Workbook

Sheet Results 16 (hidden)
A1: 1 | B1: 1 | E1: 00:01:00
A2: 2 | B2: =IF(F2=F1,"=",A2) -> = | I2: http://www.swindon-rc.co.uk/documents/Scratch.pdf
A3: 3 | B3: =IF(F3=F2,"=",A3) -> = | I3: prohost19.34sp.com
I4: swindonrccouk
I5: wobble99
I6: http://www.swindon-rc.co.uk/documents/Rota.pdf
C8: Prologue - 14 April 2016 | E8: Split Time | F8: Total Time | G8: m.p.h.
A9: 1 | B9: 1 | C9: Dan Guest | D9: Performance Cycles | E9: 00:10:52 | F9: 00:21:01 | G9: 28.54877082
A10: 2 | B10: =IF(F10=F9,"=",A10) -> 2 | C10: Matt Woods | D10: Performance Cycles | E10: 00:11:28 | F10: 00:21:31 | G10: 27.88536019
A11: 3 | B11: =IF(F11=F10,"=",A11) -> 3 | C11: James Stewart | D11: Performance Cycles | E11: 00:11:24 | F11: 00:21:44 | G11: 27.60736196
A12: 4 | B12: =IF(F12=F11,"=",A12) -> 4 | C12: Niel Dunnage | D12: Swindon RC | E12: 00:11:45 | F12: 00:22:29 | G12: 26.6864344
A13: 5 | B13: 5 | C13: Alex King | D13: Performance Cycles | E13: 00:11:49 | F13: 00:22:34 | G13: 26.58788774
A14: 6 | B14: 6 | C14: Peter Garnett | D14: Swindon RC | E14: 00:11:54 | F14: 00:22:55 | G14: 26.18181818
A15: 7 | B15: 7 | C15: Henry Slade | D15: Performance Cycles | E15: 00:12:04 | F15: 00:23:12 | G15: 25.86206897
A16: 8 | B16: 8 | C16: Rory Gilling | D16: Performance Cycles | E16: 00:12:19 | F16: 00:23:24 | G16: 25.64102564
A17: 9 | B17: 9 | C17: Jim Curry | D17: Performance Cycles | E17: 00:12:11 | F17: 00:23:31 | G17: 25.51381999
A18: 10 | B18: 10 | C18: Alex Willis | D18: Performance Cycles | E18: 00:12:23 | F18: 00:23:35 | G18: 25.44169611
A19: 11 | B19: 11 | C19: Giles White | D19: Sherwood CC | E19: 00:12:28 | F19: 00:23:54 | G19: 25.10460251
A20: 12 | B20: 12 | C20: Gary Smith | D20: Ride 24/7 | E20: 00:12:17 | F20: 00:24:02 | G20: 24.96532594
A21: 13 | B21: 13 | C21: Tom Denley | D21: Performance Cycles | E21: 00:12:23 | F21: 00:24:11 | G21: 24.81047553
A22: 14 | B22: 14 | C22: Gethin Musk | D22: Performance Cycles | E22: 00:12:44 | F22: 00:24:25 | G22: 24.57337884
A23: 15 | B23: 15 | C23: Mitch Evans | D23: Ride 24/7 | E23: 00:12:45 | F23: 00:24:26 | G23: 24.55661664
A24: 16 | B24: 16 | C24: Tom Sewell | D24: Cotswold Veldrijden | E24: 00:12:55 | F24: 00:24:31 | G24: 24.47314752
A25: 17 | B25: 17 | C25: Ewen Lewis | D25: Swindon Wheelers | E25: 00:12:47 | F25: 00:24:39 | G25: 24.34077079
A26: 18 | B26: 18 | C26: Joe Barry | D26: Performance Cycles | E26: 00:12:56 | F26: 00:24:44 | G26: 24.25876011
A27: 19 | B27: 19 | C27: Andy McIntyre | D27: Performance Cycles | E27: 00:13:27 | F27: 00:25:15 | G27: 23.76237624
A28: 20 | B28: 20 | C28: Bryan Telford | D28: Team Swindon Cycles | E28: 00:12:57 | F28: 00:25:18 | G28: 23.71541502
A29: 21 | B29: 21 | C29: Archie Scott | D29: Cotswold Veldrijden | E29: 00:13:17 | F29: 00:25:24 | G29: 23.62204724
A30: 22 | B30: 22 | C30: Sarah Gunn | D30: Performance Cycles | E30: 00:13:25 | F30: 00:25:33 | G30: 23.48336595
A31: 23 | B31: = | C31: Pete Jeans | D31: Swindon RC | E31: 00:13:25 | F31: 00:25:33 | G31: 23.48336595
A32: 24 | B32: 24 | C32: Harriet Guest | D32: Performance Cycles | E32: 00:13:15 | F32: 00:25:38 | G32: 23.40702211
A33: 25 | B33: 25 | C33: Jeff Smith | D33: Swindon RC | E33: 00:13:31 | F33: 00:25:43 | G33: 23.33117304
A34: 26 | B34: 26 | C34: Les Sheppard | D34: Swindon Wheelers | E34: 00:13:26 | F34: 00:25:55 | G34: 23.1511254
A35: 27 | B35: 27 | C35: John Simmons | D35: Performance Cycles | E35: 00:13:31 | F35: 00:25:56 | G35: 23.13624679
A36: 28 | B36: 28 | C36: Tom Radburn | D36: Veloton | E36: 00:13:37 | F36: 00:25:59 | G36: 23.09172547
A37: 29 | B37: 29 | C37: Alex Foyn | D37: Corinium CC | E37: 00:13:21 | F37: 00:26:00 | G37: 23.07692308
A38: 30 | B38: 30 | C38: Marc Allen | D38: Swindon RC | E38: 00:14:02 | F38: 00:26:32 | G38: 22.61306533
A39: 31 | B39: 31 | C39: Martin Mason | D39: Performance Cycles | E39: 00:14:08 | F39: 00:26:56 | G39: 22.27722772
A40: 32 | B40: 32 | C40: Paul Fuchs | D40: Corinium CC | E40: 00:14:07 | F40: 00:27:01 | G40: 22.20851326
A41: 33 | B41: 33 | C41: Wendy Nicholls | D41: Kinetic One | E41: 00:14:06 | F41: 00:27:03 | G41: 22.18114603
A42: 34 | B42: 34 | C42: Bernie Beale | D42: Swindon RC | E42: 00:14:19 | F42: 00:27:14 | G42: 22.03182375
A43: 35 | B43: 35 | C43: Mike Brien | D43: Swindon Wheelers | E43: 00:14:31 | F43: 00:28:02 | G43: 21.40309156
A44: 36 | B44: 36 | C44: Allan Semple | D44: SRC | E44: 00:14:31 | F44: 00:28:17 | G44: 21.21390689
A45: 37 | B45: 37 | C45: Allan Norwood | D45: Corinium CC | E45: 00:15:06 | F45: 00:29:00 | G45: 20.68965517
A46: 38 | B46: 38 | C46: Katie Scott | D46: Swindon RC | E46: 00:15:06 | F46: 00:29:03 | G46: 20.65404475
A47: 39 | B47: 39 | C47: Adam Worrall | D47: 0 | E47: 00:15:50 | F47: 00:30:28 | G47: 19.69365427
A48: 40 | B48: 40 | C48: Steve Dearlove | D48: Swindon RC | E48: 00:15:50 | F48: 00:30:29 | G48: 19.68288682
A49: 41 | B49: 41 | C49: Chris Brooks | D49: Swindon Wheelers | E49: 00:16:00 | F49: 00:30:49 | G49: 19.46998378
A50: 42 | B50: 42 | C50: Mandy Scott | D50: Cotswold Veldrijden | E50: 00:16:34 | F50: 00:31:41 | G50: 18.93740137
A51: 43 | B51: 43 | C51: Paul Wood | D51: Swindon Wheelers | E51: 00:16:27 | F51: 00:32:03 | G51: 18.72074883
A52: 44 | B52: 44 | C52: Lew Lawton | D52: 0 | E52: 00:16:39 | F52: 00:32:06 | G52: 18.69158879
A53: 45 | B53: 45 | C53: Carol Clarke | D53: Performance Cycles | E53: 00:17:06 | F53: 00:32:27 | G53: 18.48998459
A54: 46 | B54: 46 | C54: Darren Harrisson | D54: Swindon Wheelers | E54: 00:15:58 | F54: 00:32:30 | G54: 18.46153846
A55: 47 | B55: 47 | C55: Annie Pegler | D55: Corinium CC | E55: 00:17:10 | F55: 00:33:13 | G55: 18.06322127
A56: 48 | B56: 48 | C56: Neil Lewis | D56: Swindon RC | E56: 00:17:15 | F56: 00:33:27 | G56: 17.93721973
C57: Wroughton - Beckhampton 17 April 2016 | F57: Time | G57: m.p.h.
A58: 1 | B58: 1 | C58: Danny Smith | D58: Swindon RC | F58: 00:45:14 | G58: 23.21296979
A59: 2 | B59: =IF(F59=F58,"=",A59) -> 2 | C59: Peter Garnett | D59: Swindon RC | F59: 00:45:29 | G59: 23.08537926
A60: 3 | B60: =IF(F60=F59,"=",A60) -> 3 | C60: Malcolm Walklett | D60: Swindon RC | F60: 00:45:45 | G60: 22.95081967
A61: 4 | B61: =IF(F61=F60,"=",A61) -> 4 | C61: Neil Hancock | D61: Swindon RC | F61: 00:46:45 | G61: 22.45989305
A62: 5 | B62: 5 | C62: Les Liddiard | D62: Swindon RC | F62: 00:47:20 | G62: 22.18309859 | I62: =IF(COUNTIF(#REF!,'Results 16'!#REF!)>COUNTIF(Points!$C$10:$C$86,'Results 16'!#REF!),"Not on Comps","") -> 
A63: 6 | B63: 6 | C63: Jeff Smith | D63: Swindon RC | F63: 00:48:23 | G63: 21.70168791
A64: 7 | B64: 7 | C64: Richard Craig | D64: Swindon RC | F64: 00:48:36 | G64: 21.60493827
A65: 8 | B65: 8 | C65: Pete Collins | D65: Swindon RC | F65: 00:48:52 | G65: 21.48703956
A66: 9 | B66: 9 | C66: Roy Carless | D66: Swindon RC | F66: 00:49:18 | G66: 21.29817444
A67: 10 | B67: 10 | C67: Chris Broad-Drake | D67: Swindon RC | F67: 00:49:31 | G67: 21.20498149
A68: 11 | B68: 11 | C68: Ed Goss | D68: Swindon RC | F68: 00:49:53 | G68: 21.0491146
A69: 12 | B69: = | C69: Pete Jeans | D69: Team Swindon Cycles | F69: 00:49:53 | G69: 21.0491146
A70: 13 | B70: 13 | C70: Marc Allen | D70: Swindon RC | F70: 00:50:26 | G70: 20.81956378
A71: 14 | B71: 14 | C71: Mick Murkin | D71: Swindon RC | F71: 00:53:12 | G71: 19.73684211
A72: 15 | B72: 15 | C72: Gary Vickery | D72: Swindon RC | F72: 00:53:27 | G72: 19.6445276
A73: 16 | B73: 16 | C73: Dave Gibson | D73: Swindon RC | F73: 01:01:56 | G73: 16.95371367
A74: 17 | B74: 17 | C74: Lew Lawton | D74: Swindon RC | F74: 01:04:13 | G74: 16.35089541
C75: 2016-04-21 | E75: Split Time | F75: Total Time | G75: m.p.h.
A76: 1 | B76: 1 | C76: James Stewart | D76: Performance Cycles | E76: 00:11:09 | F76: 00:21:20 | G76: 28.125
A77: 2 | B77: =IF(F77=F76,"=",A77) -> 2 | C77: Pete Hutchinson | D77: Cotswold Veldrijden | E77: 00:11:40 | F77: 00:22:15 | G77: 26.96629213
A78: 3 | B78: =IF(F78=F77,"=",A78) -> 3 | C78: Jacob Pilkington | D78: Performance Cycles | E78: 00:11:40 | F78: 00:22:16 | G78: 26.94610778
A79: 4 | B79: =IF(F79=F78,"=",A79) -> 4 | C79: Niel Dunnage | D79: Cotswold Veldrijden | E79: 00:11:39 | F79: 00:22:27 | G79: 26.72605791 | I79: =IF(COUNTIF(#REF!,'Results 16'!#REF!)>COUNTIF(Points!$C$10:$C$86,'Results 16'!#REF!),"Not on Comps","") -> 
A80: 5 | B80: 5 | C80: Peter Garnett | D80: Swindon RC | E80: 00:11:44 | F80: 00:22:31 | G80: 26.6469282
A81: 6 | B81: 6 | C81: Alex King | D81: Performance Cycles | E81: 00:11:47 | F81: 00:22:36 | G81: 26.54867257
A82: 7 | B82: 7 | C82: Chris Wood | D82: Performance Cycles | E82: 00:12:08 | F82: 00:23:29 | G82: 25.55003549
A83: 8 | B83: 8 | C83: Gethin Musk | D83: Performance Cycles | E83: 00:12:29 | F83: 00:23:46 | G83: 25.2454418
A84: 9 | B84: = | C84: Richard Cooper | D84: Swindon RC | E84: 00:12:19 | F84: 00:23:46 | G84: 25.2454418
A85: 10 | B85: 10 | C85: Gary Smith | D85: Ride 24/7 | E85: 00:12:18 | F85: 00:23:49 | G85: 25.19244227
A86: 11 | B86: 11 | C86: Tom Denley | D86: Performance Cycles | E86: 00:12:37 | F86: 00:24:09 | G86: 24.8447205
A87: 12 | B87: 12 | C87: Jason Costello | D87: Team Swindon Cycles | E87: 00:12:36 | F87: 00:24:23 | G87: 24.60697198
A88: 13 | B88: 13 | C88: Mick Sharratt | D88: 73 Degrees Bikes | E88: 00:12:49 | F88: 00:24:43 | G88: 24.275118
A89: 14 | B89: 14 | C89: Joe Barry | D89: Performance Cycles | E89: 00:12:55 | F89: 00:24:49 | G89: 24.1773002
A90: 15 | B90: 15 | C90: Matt Seddon | D90: Performance Cycles | E90: 00:12:51 | F90: 00:24:51 | G90: 24.14486922
A91: 16 | B91: 16 | C91: Pete Jeans | D91: Team Swindon Cycles | E91: 00:13:06 | F91: 00:25:00 | G91: 24
A92: 17 | B92: 17 | C92: Bryan Telford | D92: Team Swindon Cycles | E92: 00:12:49 | F92: 00:25:01 | G92: 23.98401066
A93: 18 | B93: 18 | C93: Tom Radburn | D93: Veloton | E93: 00:13:13 | F93: 00:25:18 | G93: 23.71541502
A94: 19 | B94: 19 | C94: Steve Buckley | D94: Ride 24/7 | E94: 00:13:13 | F94: 00:25:19 | G94: 23.6998025
A95: 20 | B95: 20 | C95: Rowan Brown | D95: Swindon Wheelers | E95: 00:13:24 | F95: 00:25:44 | G95: 23.31606218
A96: 21 | B96: 21 | C96: Les Sheppard | D96: Swindon Wheelers | E96: 00:13:27 | F96: 00:25:49 | G96: 23.24080052
A97: 22 | B97: 22 | C97: John Simmons | D97: Performance Cycles | E97: 00:13:31 | F97: 00:25:52 | G97: 23.19587629
A98: 23 | B98: 23 | C98: Dave Gibson | D98: Swindon RC | E98: 00:13:31 | F98: 00:25:54 | G98: 23.16602317
A99: 24 | B99: 24 | C99: Alex Foyn | D99: Corinium CC | E99: 00:13:21 | F99: 00:25:56 | G99: 23.13624679
A100: 25 | B100: 25 | C100: Marc Allen | D100: Swindon RC | E100: 00:13:51 | F100: 00:26:00 | G100: 23.07692308
A101: 26 | B101: 26 | C101: Mark Foyn | D101: Corinium CC | E101: 00:13:41 | F101: 00:26:15 | G101: 22.85714286
A102: 27 | B102: 27 | C102: Ady Short | D102: Swindon Wheelers | E102: 00:13:42 | F102: 00:26:19 | G102: 22.79924003
A103: 28 | B103: 28 | C103: Andrew Telling | D103: Performance Cycles | E103: 00:13:42 | F103: 00:26:32 | G103: 22.61306533
A104: 29 | B104: 29 | C104: Paul Fuchs | D104: Corinium CC | E104: 00:13:57 | F104: 00:26:47 | G104: 22.40199129
A105: 30 | B105: 30 | C105: Kevin Lister | D105: Corinium CC | E105: 00:13:51 | F105: 00:26:54 | G105: 22.30483271
A106: 31 | B106: 31 | C106: Ben Gamsa | D106: Performance Cycles | E106: 00:14:02 | F106: 00:26:56 | G106: 22.27722772
A107: 32 | B107: 32 | C107: Gerry Peppin | D107: Corinium CC | E107: 00:14:03 | F107: 00:27:07 | G107: 22.1266134
A108: 33 | B108: 33 | C108: Stephen Chapman | D108: Corinium CC | E108: 00:14:03 | F108: 00:27:10 | G108: 22.08588957
A109: 34 | B109: 34 | C109: Ben Hunt | D109: Performance Cycles | E109: 00:14:05 | F109: 00:27:11 | G109: 22.07234825
A110: 35 | B110: 35 | C110: Mike Brien | D110: Swindon Wheelers | E110: 00:14:16 | F110: 00:27:40 | G110: 21.68674699
A111: 36 | B111: 36 | C111: Allan Semple | D111: Swindon RC | F111: 00:27:41 | G111: 21.67369055
A112: 37 | B112: 37 | C112: Chris Kane | D112: Swindon Wheelers | E112: 00:14:26 | F112: 00:27:45 | G112: 21.62162162
A113: 38 | B113: 38 | C113: Tom List | D113: Swindon RC | E113: 00:15:00 | F113: 00:28:39 | G113: 20.94240838
A114: 39 | B114: 39 | C114: Nick Fiore | D114: Cotswold Veldrijden | E114: 00:14:50 | F114: 00:28:47 | G114: 20.84539664
A115: 40 | B115: 40 | C115: Kyle Wallace | D115: Cotswold Veldrijden | E115: 00:15:04 | F115: 00:28:50 | G115: 20.80924855
A116: 41 | B116: 41 | C116: Charlotte Berry | D116: Performance Cycles | E116: 00:15:36 | F116: 00:29:45 | G116: 20.16806723 | I116: =IF(COUNTIF(#REF!,'Results 16'!#REF!)>COUNTIF(Points!$C$10:$C$86,'Results 16'!#REF!),"Not on Comps","") -> 
A117: 42 | B117: 42 | C117: Adam Worrall | D117: Swindon Wheelers | E117: 00:15:57 | F117: 00:30:54 | G117: 19.41747573 | I117: =IF(COUNTIF(#REF!,'Results 16'!#REF!)>COUNTIF(Points!$C$10:$C$86,'Results 16'!#REF!),"Not on Comps","") -> 
A118: 43 | B118: 43 | C118: Denis Hedges | D118: Corinium CC | E118: 00:16:20 | F118: 00:31:52 | G118: 18.82845188 | I118: =IF(COUNTIF(#REF!,'Results 16'!#REF!)>COUNTIF(Points!$C$10:$C$86,'Results 16'!#REF!),"Not on Comps","") -> 
A119: 44 | B119: 44 | C119: Paul Wood | D119: Swindon Wheelers | E119: 00:16:40 | F119: 00:32:35 | G119: 18.41432225 | I119: =IF(COUNTIF(#REF!,'Results 16'!#REF!)>COUNTIF(Points!$C$10:$C$86,'Results 16'!#REF!),"Not on Comps","") -> 
A120: 45 | B120: 45 | C120: Annie Pegler | D120: Corinium CC | E120: 00:17:09 | F120: 00:33:14 | G120: 18.05416249 | I120: =IF(COUNTIF(#REF!,'Results 16'!#REF!)>COUNTIF(Points!$C$10:$C$86,'Results 16'!#REF!),"Not on Comps","") -> 
A121: 46 | B121: 46 | C121: Ross Gregory | D121: Corinium CC | E121: 00:17:11 | F121: 00:33:18 | G121: 18.01801802 | I121: =IF(COUNTIF(#REF!,'Results 16'!#REF!)>COUNTIF(Points!$C$10:$C$86,'Results 16'!#REF!),"Not on Comps","") -> 
A122: 47 | B122: 47 | C122: Howard Seward | D122: Swindon RC | E122: 00:16:03 | F122: 00:35:46 | G122: 16.77539609 | I122: =IF(COUNTIF(#REF!,'Results 16'!#REF!)>COUNTIF(Points!$C$10:$C$86,'Results 16'!#REF!),"Not on Comps","") -> 
C123: 2016-04-28 | E123: Split Time | F123: Total Time | G123: m.p.h. | I123: =IF(COUNTIF(#REF!,'Results 16'!#REF!)>COUNTIF(Points!$C$10:$C$86,'Results 16'!#REF!),"Not on Comps","") -> 
A124: 1 | B124: 1 | C124: Dan Guest | D124: Performance Cycles | E124: 00:11:01 | F124: 00:21:15 | G124: 28.23529412 | I124: =IF(COUNTIF(#REF!,'Results 16'!#REF!)>COUNTIF(Points!$C$10:$C$86,'Results 16'!#REF!),"Not on Comps","") -> 
A125: 2 | B125: =IF(F125=F124,"=",A125) -> 2 | C125: Pete Hutchinson | D125: Cotswold Veldrijden | E125: 00:11:49 | F125: 00:22:38 | G125: 26.5095729 | I125: =IF(COUNTIF(#REF!,'Results 16'!#REF!)>COUNTIF(Points!$C$10:$C$86,'Results 16'!#REF!),"Not on Comps","") -> 
A126: 3 | B126: =IF(F126=F125,"=",A126) -> 3 | C126: Niel Dunnage | D126: Cotswold Veldrijden | E126: 00:12:09 | F126: 00:23:03 | G126: 26.03036876 | I126: =IF(COUNTIF(#REF!,'Results 16'!#REF!)>COUNTIF(Points!$C$10:$C$86,'Results 16'!#REF!),"Not on Comps","") -> 
A127: 4 | B127: =IF(F127=F126,"=",A127) -> 4 | C127: Gethin Musk | D127: Performance Cycles | E127: 00:12:36 | F127: 00:24:10 | G127: 24.82758621 | I127: =IF(COUNTIF(#REF!,'Results 16'!#REF!)>COUNTIF(Points!$C$10:$C$86,'Results 16'!#REF!),"Not on Comps","") -> 
A128: 5 | B128: 5 | C128: Tom Denley | D128: Performance Cycles | E128: 00:12:36 | F128: 00:24:21 | G128: 24.64065708 | I128: =IF(COUNTIF(#REF!,'Results 16'!#REF!)>COUNTIF(Points!$C$10:$C$86,'Results 16'!#REF!),"Not on Comps","") -> 
A129: 6 | B129: 6 | C129: Matt Seddon | D129: Performance Cycles | E129: 00:12:48 | F129: 00:24:24 | G129: 24.59016393 | I129: =IF(COUNTIF(#REF!,'Results 16'!#REF!)>COUNTIF(Points!$C$10:$C$86,'Results 16'!#REF!),"Not on Comps","") -> 
A130: 7 | B130: 7 | C130: Bryan Telford | D130: Team Swindon Cycles | E130: 00:13:05 | F130: 00:25:10 | G130: 23.8410596 | I130: =IF(COUNTIF(#REF!,'Results 16'!#REF!)>COUNTIF(Points!$C$10:$C$86,'Results 16'!#REF!),"Not on Comps","") -> 
A131: 8 | B131: 8 | C131: Mick Sharratt | D131: Swindon RC | E131: 00:13:19 | F131: 00:25:31 | G131: 23.51404311 | I131: =IF(COUNTIF(#REF!,'Results 16'!#REF!)>COUNTIF(Points!$C$10:$C$86,'Results 16'!#REF!),"Not on Comps","") -> 
A132: 9 | B132: 9 | C132: Lewis Braithwaite | D132: Ride 24/7 | E132: 00:13:22 | F132: 00:25:42 | G132: 23.3463035 | I132: =IF(COUNTIF(#REF!,'Results 16'!#REF!)>COUNTIF(Points!$C$10:$C$86,'Results 16'!#REF!),"Not on Comps","") -> 
A133: 10 | B133: 10 | C133: Ewen Lewis | D133: Swindon Wheelers | E133: 00:13:33 | F133: 00:25:59 | G133: 23.09172547 | I133: =IF(COUNTIF(#REF!,'Results 16'!#REF!)>COUNTIF(Points!$C$10:$C$86,'Results 16'!#REF!),"Not on Comps","") -> 
A134: 11 | B134: 11 | C134: Harriet Guest | D134: Performance Cycles | E134: 00:13:34 | F134: 00:26:17 | G134: 22.82815472 | I134: =IF(COUNTIF(#REF!,'Results 16'!#REF!)>COUNTIF(Points!$C$10:$C$86,'Results 16'!#REF!),"Not on Comps","") -> 
A135: 12 | B135: 12 | C135: Les Sheppard | D135: Swindon Wheelers | E135: 00:13:42 | F135: 00:26:22 | G135: 22.75600506 | I135: =IF(COUNTIF(#REF!,'Results 16'!#REF!)>COUNTIF(Points!$C$10:$C$86,'Results 16'!#REF!),"Not on Comps","") -> 
A136: 13 | B136: 13 | C136: Daniel Wood | D136: Performance Cycles | E136: 00:14:15 | F136: 00:27:30 | G136: 21.81818182 | I136: =IF(COUNTIF(#REF!,'Results 16'!#REF!)>COUNTIF(Points!$C$10:$C$86,'Results 16'!#REF!),"Not on Comps","") -> 
A137: 14 | B137: 14 | C137: Marc Allen | D137: Swindon RC | E137: 00:14:40 | F137: 00:27:38 | G137: 21.71290712 | I137: =IF(COUNTIF(#REF!,'Results 16'!#REF!)>COUNTIF(Points!$C$10:$C$86,'Results 16'!#REF!),"Not on Comps","") -> 
A138: 15 | B138: 15 | C138: Mark Phillips | D138: Swindon RC | E138: 00:14:45 | F138: 00:28:37 | G138: 20.96680256 | I138: =IF(COUNTIF(#REF!,'Results 16'!#REF!)>COUNTIF(Points!$C$10:$C$86,'Results 16'!#REF!),"Not on Comps","") -> 
A139: 16 | B139: 16 | C139: Bernie Beale | D139: Swindon RC | E139: 00:15:06 | F139: 00:28:58 | G139: 20.71346375 | I139: =IF(COUNTIF(#REF!,'Results 16'!#REF!)>COUNTIF(Points!$C$10:$C$86,'Results 16'!#REF!),"Not on Comps","") -> 
A140: 17 | B140: 17 | C140: Kyle Wallace | D140: Cotswold Veldrijden | E140: 00:15:37 | F140: 00:29:12 | G140: 20.54794521 | I140: =IF(COUNTIF(#REF!,'Results 16'!#REF!)>COUNTIF(Points!$C$10:$C$86,'Results 16'!#REF!),"Not on Comps","") -> 
A141: 18 | B141: 18 | C141: Howard Seward | D141: Swindon RC | E141: 00:15:45 | F141: 00:30:14 | G141: 19.84564498 | I141: =IF(COUNTIF(#REF!,'Results 16'!#REF!)>COUNTIF(Points!$C$10:$C$86,'Results 16'!#REF!),"Not on Comps","") -> 
A142: 19 | B142: 19 | C142: Denis Hedges | D142: Corinium CC | E142: 00:17:33 | F142: 00:33:28 | G142: 17.92828685 | I142: =IF(COUNTIF(#REF!,'Results 16'!#REF!)>COUNTIF(Points!$C$10:$C$86,'Results 16'!#REF!),"Not on Comps","") -> 
A143: 20 | B143: 20 | C143: Dave Miatt | D143: Corinium CC | E143: 00:17:37 | F143: 00:33:42 | G143: 17.8041543 | I143: =IF(COUNTIF(#REF!,'Results 16'!#REF!)>COUNTIF(Points!$C$10:$C$86,'Results 16'!#REF!),"Not on Comps","") -> 
A144: 21 | B144: 21 | C144: Carol Clarke | D144: Performance Cycles | E144: 00:17:51 | F144: 00:34:14 | G144: 17.52677702 | I144: =IF(COUNTIF(#REF!,'Results 16'!#REF!)>COUNTIF(Points!$C$10:$C$86,'Results 16'!#REF!),"Not on Comps","") -> 
A145: 22 | B145: 22 | C145: Jason Wood | D145: Swindon Wheelers | E145: 00:17:29 | F145: 00:34:20 | G145: 17.47572816 | I145: =IF(COUNTIF(#REF!,'Results 16'!#REF!)>COUNTIF(Points!$C$10:$C$86,'Results 16'!#REF!),"Not on Comps","") -> 
A146: 23 | B146: 23 | C146: Paul Wood | D146: Swindon Wheelers | E146: 00:18:45 | F146: 00:35:56 | G146: 16.69758813 | I146: =IF(COUNTIF(#REF!,'Results 16'!#REF!)>COUNTIF(Points!$C$10:$C$86,'Results 16'!#REF!),"Not on Comps","") -> 
A147: 24 | B147: 24 | C147: Jason Costello | D147: Team Swindon Cycles | E147: 00:24:21 | F147: 00:37:27 | G147: 16.02136182 | I147: =IF(COUNTIF(#REF!,'Results 16'!#REF!)>COUNTIF(Points!$C$10:$C$86,'Results 16'!#REF!),"Not on Comps","") -> 
C148: 2016-05-05 | E148: Split Time | F148: Total Time | G148: m.p.h. | I148: =IF(COUNTIF(#REF!,'Results 16'!#REF!)>COUNTIF(Points!$C$10:$C$86,'Results 16'!#REF!),"Not on Comps","") -> 
A149: 1 | B149: 1 | C149: Pete Hutchinson | D149: Cotswold Veldrijden | E149: 00:11:51 | F149: 00:22:21 | G149: 26.84563758 | I149: =IF(COUNTIF(#REF!,'Results 16'!#REF!)>COUNTIF(Points!$C$10:$C$86,'Results 16'!#REF!),"Not on Comps","") -> 
A150: 2 | B150: =IF(F150=F149,"=",A150) -> 2 | C150: Peter Garnett | D150: Swindon RC | E150: 00:11:48 | F150: 00:22:35 | G150: 26.56826568 | I150: =IF(COUNTIF(#REF!,'Results 16'!#REF!)>COUNTIF(Points!$C$10:$C$86,'Results 16'!#REF!),"Not on Comps","") -> 
A151: 3 | B151: =IF(F151=F150,"=",A151) -> 3 | C151: Robin Short | D151: Performance Cycles | E151: 00:12:04 | F151: 00:22:48 | G151: 26.31578947 | I151: =IF(COUNTIF(#REF!,'Results 16'!#REF!)>COUNTIF(Points!$C$10:$C$86,'Results 16'!#REF!),"Not on Comps","") -> 
A152: 4 | B152: =IF(F152=F151,"=",A152) -> 4 | C152: Alex Willis | D152: Performance Cycles | E152: 00:11:57 | F152: 00:22:54 | G152: 26.20087336 | I152: =IF(COUNTIF(#REF!,'Results 16'!#REF!)>COUNTIF(Points!$C$10:$C$86,'Results 16'!#REF!),"Not on Comps","") -> 
A153: 5 | B153: 5 | C153: Jim Curry | D153: Performance Cycles | E153: 00:12:03 | F153: 00:23:02 | G153: 26.04920405 | I153: =IF(COUNTIF(#REF!,'Results 16'!#REF!)>COUNTIF(Points!$C$10:$C$86,'Results 16'!#REF!),"Not on Comps","") -> 
A154: 6 | B154: 6 | C154: Joe Schvartz | D154: Team Swindon Cycles | E154: 00:12:20 | F154: 00:23:17 | G154: 25.76950608 | I154: =IF(COUNTIF(#REF!,'Results 16'!#REF!)>COUNTIF(Points!$C$10:$C$86,'Results 16'!#REF!),"Not on Comps","") -> 
A155: 7 | B155: 7 | C155: Felix Wilkinson | D155: Veloton | E155: 00:12:28 | F155: 00:23:18 | G155: 25.75107296 | I155: =IF(COUNTIF(#REF!,'Results 16'!#REF!)>COUNTIF(Points!$C$10:$C$86,'Results 16'!#REF!),"Not on Comps","") -> 
A156: 8 | B156: 8 | C156: Les Liddiard | D156: Swindon RC | E156: 00:12:24 | F156: 00:23:32 | G156: 25.49575071 | I156: =IF(COUNTIF(#REF!,'Results 16'!#REF!)>COUNTIF(Points!$C$10:$C$86,'Results 16'!#REF!),"Not on Comps","") -> 
A157: 9 | B157: 9 | C157: Chris Wood | D157: Performance Cycles | E157: 00:12:19 | F157: 00:23:39 | G157: 25.36997886 | I157: =IF(COUNTIF(#REF!,'Results 16'!#REF!)>COUNTIF(Points!$C$10:$C$86,'Results 16'!#REF!),"Not on Comps","") -> 
A158: 10 | B158: 10 | C158: David Wright | D158: Veloton | E158: 00:12:19 | F158: 00:23:47 | G158: 25.22775053 | I158: =IF(COUNTIF(#REF!,'Results 16'!#REF!)>COUNTIF(Points!$C$10:$C$86,'Results 16'!#REF!),"Not on Comps","") -> 
A159: 11 | B159: 11 | C159: Paul Clarkson | D159: Kingston Wheelers | E159: 00:12:42 | F159: 00:23:51 | G159: 25.1572327 | I159: =IF(COUNTIF(#REF!,'Results 16'!#REF!)>COUNTIF(Points!$C$10:$C$86,'Results 16'!#REF!),"Not on Comps","") -> 
A160: 12 | B160: 12 | C160: Jason Costello | D160: Team Swindon Cycles | E160: 00:12:37 | F160: 00:23:55 | G160: 25.08710801 | I160: =IF(COUNTIF(#REF!,'Results 16'!#REF!)>COUNTIF(Points!$C$10:$C$86,'Results 16'!#REF!),"Not on Comps","") -> 
A161: 13 | B161: 13 | C161: Andy McIntyre | D161: Performance Cycles | E161: 00:12:52 | F161: 00:24:32 | G161: 24.45652174 | I161: =IF(COUNTIF(#REF!,'Results 16'!#REF!)>COUNTIF(Points!$C$10:$C$86,'Results 16'!#REF!),"Not on Comps","") -> 
A162: 14 | B162: 14 | C162: Steve Davies | D162: Swindon RC | E162: 00:12:50 | F162: 00:24:33 | G162: 24.43991853 | I162: =IF(COUNTIF(#REF!,'Results 16'!#REF!)>COUNTIF(Points!$C$10:$C$86,'Results 16'!#REF!),"Not on Comps","") -> 
A163: 15 | B163: 15 | C163: Mick Sharratt | D163: Swindon RC | E163: 00:12:57 | F163: 00:24:39 | G163: 24.34077079 | I163: =IF(COUNTIF(#REF!,'Results 16'!#REF!)>COUNTIF(Points!$C$10:$C$86,'Results 16'!#REF!),"Not on Comps","") -> 
A164: 16 | B164: 16 | C164: Tom Radburn | D164: Veloton | E164: 00:12:50 | F164: 00:24:51 | G164: 24.14486922 | I164: =IF(COUNTIF(#REF!,'Results 16'!#REF!)>COUNTIF(Points!$C$10:$C$86,'Results 16'!#REF!),"Not on Comps","") -> 
A165: 17 | B165: 17 | C165: Tim Strong | D165: Ride 24/7 | E165: 00:13:09 | F165: 00:24:58 | G165: 24.03204272 | I165: =IF(COUNTIF(#REF!,'Results 16'!#REF!)>COUNTIF(Points!$C$10:$C$86,'Results 16'!#REF!),"Not on Comps","") -> 
A166: 18 | B166: 18 | C166: Sarah Gunn | D166: Performance Cycles | E166: 00:13:06 | F166: 00:25:02 | G166: 23.96804261 | I166: =IF(COUNTIF(#REF!,'Results 16'!#REF!)>COUNTIF(Points!$C$10:$C$86,'Results 16'!#REF!),"Not on Comps","") -> 
A167: 19 | B167: 19 | C167: Bryan Telford | D167: Team Swindon Cycles | E167: 00:12:56 | F167: 00:25:04 | G167: 23.93617021 | I167: =IF(COUNTIF(#REF!,'Results 16'!#REF!)>COUNTIF(Points!$C$10:$C$86,'Results 16'!#REF!),"Not on Comps","") -> 
A168: 20 | B168: 20 | C168: Pete Jeans | D168: Team Swindon Cycles | E168: 00:13:17 | F168: 00:25:10 | G168: 23.8410596 | I168: =IF(COUNTIF(#REF!,'Results 16'!#REF!)>COUNTIF(Points!$C$10:$C$86,'Results 16'!#REF!),"Not on Comps","") -> 
A169: 21 | B169: 21 | C169: Steve Buckley | D169: Ride 24/7 | E169: 00:13:15 | F169: 00:25:17 | G169: 23.73104812 | I169: =IF(COUNTIF(#REF!,'Results 16'!#REF!)>COUNTIF(Points!$C$10:$C$86,'Results 16'!#REF!),"Not on Comps","") -> 
A170: 22 | B170: 22 | C170: Mark Foyn | D170: Corinium CC | E170: 00:13:09 | F170: 00:25:21 | G170: 23.66863905 | I170: =IF(COUNTIF(#REF!,'Results 16'!#REF!)>COUNTIF(Points!$C$10:$C$86,'Results 16'!#REF!),"Not on Comps","") -> 
A171: 23 | B171: 23 | C171: Simon James | D171: Corinium CC | E171: 00:13:23 | F171: 00:25:25 | G171: 23.60655738 | I171: =IF(COUNTIF(#REF!,'Results 16'!#REF!)>COUNTIF(Points!$C$10:$C$86,'Results 16'!#REF!),"Not on Comps","") -> 
A172: 24 | B172: 24 | C172: Les Sheppard | D172: Swindon Wheelers | E172: 00:13:29 | F172: 00:25:38 | G172: 23.40702211 | I172: =IF(COUNTIF(#REF!,'Results 16'!#REF!)>COUNTIF(Points!$C$10:$C$86,'Results 16'!#REF!),"Not on Comps","") -> 
A173: 25 | B173: 25 | C173: Trevor Hodges | D173: Corinium CC | E173: 00:13:18 | F173: 00:25:48 | G173: 23.25581395 | I173: =IF(COUNTIF(#REF!,'Results 16'!#REF!)>COUNTIF(Points!$C$10:$C$86,'Results 16'!#REF!),"Not on Comps","") -> 
A174: 26 | B174: = | C174: Marc Allen | D174: Swindon RC | E174: 00:13:52 | F174: 00:25:48 | G174: 23.25581395 | I174: =IF(COUNTIF(#REF!,'Results 16'!#REF!)>COUNTIF(Points!$C$10:$C$86,'Results 16'!#REF!),"Not on Comps","") -> 
A175: 27 | B175: 27 | C175: Jeff Smith | D175: Swindon RC | E175: 00:13:38 | F175: 00:25:55 | G175: 23.1511254 | I175: =IF(COUNTIF(#REF!,'Results 16'!#REF!)>COUNTIF(Points!$C$10:$C$86,'Results 16'!#REF!),"Not on Comps","") -> 
A176: 28 | B176: 28 | C176: Daniel Wood | D176: Performance Cycles | E176: 00:13:28 | F176: 00:26:00 | G176: 23.07692308 | I176: =IF(COUNTIF(#REF!,'Results 16'!#REF!)>COUNTIF(Points!$C$10:$C$86,'Results 16'!#REF!),"Not on Comps","") -> 
A177: 29 | B177: 29 | C177: Simon Weston | D177: Ride 24/7 | E177: 00:13:40 | F177: 00:26:18 | G177: 22.81368821 | I177: =IF(COUNTIF(#REF!,'Results 16'!#REF!)>COUNTIF(Points!$C$10:$C$86,'Results 16'!#REF!),"Not on Comps","") -> 
A178: 30 | B178: 30 | C178: Gerry Peppin | D178: Corinium CC | E178: 00:13:59 | F178: 00:26:34 | G178: 22.5846926 | I178: =IF(COUNTIF(#REF!,'Results 16'!#REF!)>COUNTIF(Points!$C$10:$C$86,'Results 16'!#REF!),"Not on Comps","") -> 
A179: 31 | B179: 31 | C179: Mark Phillips | D179: Swindon RC | E179: 00:13:43 | F179: 00:26:36 | G179: 22.55639098 | I179: =IF(COUNTIF(#REF!,'Results 16'!#REF!)>COUNTIF(Points!$C$10:$C$86,'Results 16'!#REF!),"Not on Comps","") -> 
A180: 32 | B180: 32 | C180: James Pocock | D180: Ride 24/7 | E180: 00:13:56 | F180: 00:26:45 | G180: 22.42990654 | I180: =IF(COUNTIF(#REF!,'Results 16'!#REF!)>COUNTIF(Points!$C$10:$C$86,'Results 16'!#REF!),"Not on Comps","") -> 
A181: 33 | B181: 33 | C181: Bernie Beale | D181: Swindon RC | E181: 00:14:16 | F181: 00:27:06 | G181: 22.1402214 | I181: =IF(COUNTIF(#REF!,'Results 16'!#REF!)>COUNTIF(Points!$C$10:$C$86,'Results 16'!#REF!),"Not on Comps","") -> 
A182: 34 | B182: 34 | C182: Kevin Lister | D182: Corinium CC | E182: 00:13:50 | F182: 00:27:11 | G182: 22.07234825 | I182: =IF(COUNTIF(#REF!,'Results 16'!#REF!)>COUNTIF(Points!$C$10:$C$86,'Results 16'!#REF!),"Not on Comps","") -> 
A183: 35 | B183: = | C183: Stephen Chapman | D183: Corinium CC | E183: 00:14:11 | F183: 00:27:11 | G183: 22.07234825 | I183: =IF(COUNTIF(#REF!,'Results 16'!#REF!)>COUNTIF(Points!$C$10:$C$86,'Results 16'!#REF!),"Not on Comps","") -> 
A184: 36 | B184: 36 | C184: Paul Fuchs | D184: Corinium CC | E184: 00:14:18 | F184: 00:27:14 | G184: 22.03182375 | I184: =IF(COUNTIF(#REF!,'Results 16'!#REF!)>COUNTIF(Points!$C$10:$C$86,'Results 16'!#REF!),"Not on Comps","") -> 
A185: 37 | B185: 37 | C185: Todd Cumberpatch | D185: Performance Cycles | E185: 00:14:22 | F185: 00:27:28 | G185: 21.84466019 | I185: =IF(COUNTIF(#REF!,'Results 16'!#REF!)>COUNTIF(Points!$C$10:$C$86,'Results 16'!#REF!),"Not on Comps","") -> 
A186: 38 | B186: 38 | C186: Rob Patterson | D186: Swindon RC | E186: 00:14:24 | F186: 00:27:42 | G186: 21.66064982 | I186: =IF(COUNTIF(#REF!,'Results 16'!#REF!)>COUNTIF(Points!$C$10:$C$86,'Results 16'!#REF!),"Not on Comps","") -> 
A187: 39 | B187: 39 | C187: Allan Semple | D187: Swindon RC | E187: 00:14:33 | F187: 00:27:49 | G187: 21.56980228 | I187: =IF(COUNTIF(#REF!,'Results 16'!#REF!)>COUNTIF(Points!$C$10:$C$86,'Results 16'!#REF!),"Not on Comps","") -> 
A188: 40 | B188: 40 | C188: Jon Grace | D188: Swindon Wheelers | E188: 00:14:42 | F188: 00:27:55 | G188: 21.49253731 | I188: =IF(COUNTIF(#REF!,'Results 16'!#REF!)>COUNTIF(Points!$C$10:$C$86,'Results 16'!#REF!),"Not on Comps","") -> 
A189: 41 | B189: 41 | C189: John Smith | D189: Swindon RC | E189: 00:14:47 | F189: 00:28:13 | G189: 21.26402835 | I189: =IF(COUNTIF(#REF!,'Results 16'!#REF!)>COUNTIF(Points!$C$10:$C$86,'Results 16'!#REF!),"Not on Comps","") -> 
A190: 42 | B190: 42 | C190: Kyle Wallace | D190: Cotswold Veldrijden | E190: 00:15:02 | F190: 00:28:18 | G190: 21.20141343 | I190: =IF(COUNTIF(#REF!,'Results 16'!#REF!)>COUNTIF(Points!$C$10:$C$86,'Results 16'!#REF!),"Not on Comps","") -> 
A191: 43 | B191: 43 | C191: Roy Carless | D191: Swindon RC | E191: 00:15:00 | F191: 00:28:26 | G191: 21.10199297 | I191: =IF(COUNTIF(#REF!,'Results 16'!#REF!)>COUNTIF(Points!$C$10:$C$86,'Results 16'!#REF!),"Not on Comps","") -> 
A192: 44 | B192: 44 | C192: Becky Cox | D192: Swindon Wheelers | E192: 00:15:05 | F192: 00:28:30 | G192: 21.05263158 | I192: =IF(COUNTIF(#REF!,'Results 16'!#REF!)>COUNTIF(Points!$C$10:$C$86,'Results 16'!#REF!),"Not on Comps","") -> 
A193: 45 | B193: 45 | C193: Howard Seward | D193: Swindon RC | E193: 00:14:54 | F193: 00:28:35 | G193: 20.99125364 | I193: =IF(COUNTIF(#REF!,'Results 16'!#REF!)>COUNTIF(Points!$C$10:$C$86,'Results 16'!#REF!),"Not on Comps","") -> 
A194: 46 | B194: 46 | C194: Allan Norwood | D194: Corinium CC | E194: 00:14:56 | F194: 00:28:46 | G194: 20.85747393 | I194: =IF(COUNTIF(#REF!,'Results 16'!#REF!)>COUNTIF(Points!$C$10:$C$86,'Results 16'!#REF!),"Not on Comps","") -> 
A195: 47 | B195: 47 | C195: Nick Fiore | D195: Cotswold Veldrijden | E195: 00:15:00 | F195: 00:28:51 | G195: 20.79722704 | I195: =IF(COUNTIF(#REF!,'Results 16'!#REF!)>COUNTIF(Points!$C$10:$C$86,'Results 16'!#REF!),"Not on Comps","") -> 
A196: 48 | B196: 48 | C196: David Parkin | D196: Swindon RC | E196: 00:15:09 | F196: 00:28:56 | G196: 20.73732719 | I196: =IF(COUNTIF(#REF!,'Results 16'!#REF!)>COUNTIF(Points!$C$10:$C$86,'Results 16'!#REF!),"Not on Comps","") -> 
A197: 49 | B197: 49 | C197: Kieran Golding | D197: Swindon RC | E197: 00:15:20 | F197: 00:29:16 | G197: 20.50113895 | I197: =IF(COUNTIF(#REF!,'Results 16'!#REF!)>COUNTIF(Points!$C$10:$C$86,'Results 16'!#REF!),"Not on Comps","") -> 
A198: 50 | B198: 50 | C198: Steve Dearlove | D198: Swindon RC | E198: 00:15:25 | F198: 00:29:43 | G198: 20.19068985 | I198: =IF(COUNTIF(#REF!,'Results 16'!#REF!)>COUNTIF(Points!$C$10:$C$86,'Results 16'!#REF!),"Not on Comps","") -> 
A199: 51 | B199: 51 | C199: Denis Hedges | D199: Corinium CC | E199: 00:15:46 | F199: 00:30:35 | G199: 19.61852861 | I199: =IF(COUNTIF(#REF!,'Results 16'!#REF!)>COUNTIF(Points!$C$10:$C$86,'Results 16'!#REF!),"Not on Comps","") -> 
A200: 52 | B200: 52 | C200: Lew Lawton | D200: Swindon RC | E200: 00:16:02 | F200: 00:31:10 | G200: 19.2513369 | I200: =IF(COUNTIF(#REF!,'Results 16'!#REF!)>COUNTIF(Points!$C$10:$C$86,'Results 16'!#REF!),"Not on Comps","") -> 
A201: 53 | B201: 53 | C201: Darren Harrisson | D201: Swindon Wheelers | E201: 00:16:10 | F201: 00:31:27 | G201: 19.07790143 | I201: =IF(COUNTIF(#REF!,'Results 16'!#REF!)>COUNTIF(Points!$C$10:$C$86,'Results 16'!#REF!),"Not on Comps","") -> 
... 739 more rows

Sheet Results 2014 (hidden)
A1: 1 | B1: 1 | E1: 00:01:00
A2: 2 | B2: =IF(E2=E1,"=",A2) -> 2 | I2: http://www.swindon-rc.co.uk/documents/Scratch.pdf
A3: 3 | B3: =IF(E3=E2,"=",A3) -> = | I3: prohost19.34sp.com
I4: swindonrccouk
I5: wobble99
I6: http://www.swindon-rc.co.uk/documents/Rota.pdf
C8: Come & Try It - 5 April 2014
C9: David Parkin | D9: Swindon RC | E9: 00:32:57
C10: Steve George | D10: Swindon RC | E10: 00:29:30
C11: Tom Willemsen | D11: Swindon RC | E11: 00:26:09
C12: Tim Wadsworth | D12: Malmesbury Clarion | E12: 00:30:23
C13: Andy Morgan | D13: Corinium CC | E13: 00:25:13
C14: George Wadsworth | D14: Malmesbury Clarion | E14: 00:30:26
C15: John Twidell | E15: 00:29:12
C16: Craige Goodson | D16: Cotswold Veldrijden | E16: 00:27:52
C17: Les Liddiard | D17: Team Jewson | E17: 00:23:32
C18: Andy Claxton | D18: Ride 24/7 | E18: 00:25:22
C19: Tom Sewell | D19: Cotswold Veldrijden | E19: 00:27:04
C20: Malc Ingleby | D20: Gloucester CCC | E20: 00:26:54
C21: Alex McIntosh | D21: Cotswold Veldrijden | E21: 00:26:46
C22: Aaron Collins | D22: Cotswold Veldrijden | E22: 00:25:59
C23: Natalie Moore (1 lap) | D23: Cotswold Veldrijden | E23: 00:20:02
C24: Glenn Chapman | D24: Swindon RC | E24: 00:30:06
C25: Nathan Huynh | D25: Cotswold Veldrijden | E25: 00:26:45
C26: Matt Hodgson | D26: Ride 24/7 | E26: 00:26:04
C27: Stuart Longhurst | D27: Swindon RC | E27: 00:29:24
C28: Mark Parry | E28: 00:27:40
C29: Steve McGinlay | D29: Performance Cycles | E29: 00:30:34
C30: Rob Compton | D30: Performance Cycles | E30: 00:28:53
C31: Paul Adams | D31: Swindon RC | E31: 00:29:06
C32: Amanda Adams | D32: Swindon RC | E32: 00:41:28
C33: Carmen Young | E33: 00:34:22
C34: Michael Ponzo | D34: Cotswold Veldrijden | E34: 00:26:18
C35: Marc Allen | D35: Swindon RC | E35: 00:27:57
C36: Prologue - 10 April 2014
A37: 1 | B37: 1 | C37: Matt Woods | D37: Cotswold Veldrijden | E37: 00:10:44
A38: 2 | B38: =IF(E38=E37,"=",A38) -> 2 | C38: Alex King | D38: Performance Cycles | E38: 00:11:42
A39: 3 | B39: =IF(E39=E38,"=",A39) -> 3 | C39: Tony Staples | D39: RNRMCA | E39: 00:11:49
A40: 4 | B40: =IF(E40=E39,"=",A40) -> 4 | C40: Paul O'Driscoll | D40: Swindon RC | E40: 00:12:03
A41: 5 | B41: 5 | C41: Chris Wood | D41: Performance Cycles | E41: 00:12:08
A42: 6 | B42: 6 | C42: Joe Barry | D42: Swindon RC | E42: 00:12:10
A43: 7 | B43: 7 | C43: Rob Merrison | D43: Swindon RC | E43: 00:12:21
A44: 8 | B44: 8 | C44: Mick Sharratt | D44: Cadence | E44: 00:12:28
A45: 9 | B45: 9 | C45: Mike Cashman | D45: Corinium CC | E45: 00:12:38
A46: 10 | B46: 10 | C46: Matt Hodgson | D46: Ride 24/7 | E46: 00:12:46
A47: 11 | B47: 11 | C47: Tom Sewell | D47: Cotswold Veldrijden | E47: 00:12:48
A48: 12 | B48: = | C48: Bryan Telford | D48: Swindon RC | E48: 00:12:48
A49: 13 | B49: 13 | C49: Adriano dos Santos | D49: Swindon RC | E49: 00:13:01
A50: 14 | B50: 14 | C50: John Kampe | D50: Corinium CC | E50: 00:13:48
A51: 15 | B51: 15 | C51: Paul Fuchs | D51: Corinium CC | E51: 00:13:49
A52: 16 | B52: 16 | C52: David Woods | D52: Cotswold Veldrijden | E52: 00:14:03
A53: 17 | B53: 17 | C53: Stuart Longhurst | D53: Swindon RC | E53: 00:14:16
A54: 18 | B54: 18 | C54: Allan Norwood | D54: Corinium CC | E54: 00:15:19
A55: 19 | B55: 19 | C55: Heather Jefferies | D55: Performance Cycles | E55: 00:15:33
A56: 20 | B56: 20 | C56: Rob Barry | D56: Performance Cycles | E56: 00:15:39
A57: 21 | B57: 21 | C57: John Whittaker | D57: Corinium CC | E57: 00:15:47
A58: 22 | B58: 22 | C58: Marguerite Miatt | D58: Corinium CC | E58: 00:16:17
A59: 23 | B59: 23 | C59: Carol Clarke | D59: Corinium CC | E59: 00:17:03
C60: 2014-04-17
A61: 1 | B61: 1 | C61: Dan Guest | D61: Performance Cycles | E61: 00:21:05 | I61: =IF(COUNTIF(#REF!,'Results 2014'!C61)>COUNTIF(Points!$C$10:$C$86,'Results 2014'!C61),"Not on Comps","") -> 
A62: 2 | B62: =IF(E62=E61,"=",A62) -> 2 | C62: Matt Woods | D62: Cotswold Veldrijden | E62: 00:21:27 | I62: =IF(COUNTIF(#REF!,'Results 2014'!C62)>COUNTIF(Points!$C$10:$C$86,'Results 2014'!C62),"Not on Comps","") -> 
A63: 3 | B63: =IF(E63=E62,"=",A63) -> 3 | C63: Peter Garnett | D63: Swindon RC | E63: 00:21:59 | I63: =IF(COUNTIF(#REF!,'Results 2014'!C63)>COUNTIF(Points!$C$10:$C$86,'Results 2014'!C63),"Not on Comps","") -> 
A64: 4 | B64: =IF(E64=E63,"=",A64) -> 4 | C64: Niel Dunnage | D64: Swindon RC | E64: 00:22:21 | I64: =IF(COUNTIF(#REF!,'Results 2014'!C64)>COUNTIF(Points!$C$10:$C$86,'Results 2014'!C64),"Not on Comps","") -> 
A65: 5 | B65: 5 | C65: Steve Yates | D65: Corinium CC | E65: 00:22:26 | I65: =IF(COUNTIF(#REF!,'Results 2014'!C65)>COUNTIF(Points!$C$10:$C$86,'Results 2014'!C65),"Not on Comps","") -> 
A66: 6 | B66: 6 | C66: Les Liddiard | D66: Team Jewson | E66: 00:22:42 | I66: =IF(COUNTIF(#REF!,'Results 2014'!C66)>COUNTIF(Points!$C$10:$C$86,'Results 2014'!C66),"Not on Comps","") -> 
A67: 7 | B67: 7 | C67: Andy Morgan | D67: Corinium CC | E67: 00:23:11 | I67: =IF(COUNTIF(#REF!,'Results 2014'!C67)>COUNTIF(Points!$C$10:$C$86,'Results 2014'!C67),"Not on Comps","") -> 
A68: 8 | B68: 8 | C68: Joe Schvartz | D68: Swindon RC | E68: 00:23:27 | I68: =IF(COUNTIF(#REF!,'Results 2014'!C68)>COUNTIF(Points!$C$10:$C$86,'Results 2014'!C68),"Not on Comps","") -> 
A69: 9 | B69: 9 | C69: Andy Claxton | D69: Swindon RC | E69: 00:23:35 | I69: =IF(COUNTIF(#REF!,'Results 2014'!C69)>COUNTIF(Points!$C$10:$C$86,'Results 2014'!C69),"Not on Comps","") -> 
A70: 10 | B70: 10 | C70: Dave Gibson | D70: Swindon RC | E70: 00:24:15 | I70: =IF(COUNTIF(#REF!,'Results 2014'!C70)>COUNTIF(Points!$C$10:$C$86,'Results 2014'!C70),"Not on Comps","") -> 
A71: 11 | B71: 11 | C71: Chris Broad-Drake | D71: Swindon RC | E71: 00:24:43 | I71: =IF(COUNTIF(#REF!,'Results 2014'!C71)>COUNTIF(Points!$C$10:$C$86,'Results 2014'!C71),"Not on Comps","") -> 
A72: 12 | B72: 12 | C72: Mick Sharratt | D72: Cadence | E72: 00:24:56 | I72: =IF(COUNTIF(#REF!,'Results 2014'!C72)>COUNTIF(Points!$C$10:$C$86,'Results 2014'!C72),"Not on Comps","") -> 
A73: 13 | B73: = | C73: Malcolm Walklett | D73: Swindon RC | E73: 00:24:56 | I73: =IF(COUNTIF(#REF!,'Results 2014'!C73)>COUNTIF(Points!$C$10:$C$86,'Results 2014'!C73),"Not on Comps","") -> 
A74: 14 | B74: 14 | C74: Adriano dos Santos | D74: Swindon RC | E74: 00:25:07 | I74: =IF(COUNTIF(#REF!,'Results 2014'!C74)>COUNTIF(Points!$C$10:$C$86,'Results 2014'!C74),"Not on Comps","") -> 
A75: 15 | B75: 15 | C75: Mike Cashman | D75: Corinium CC | E75: 00:25:23 | I75: =IF(COUNTIF(#REF!,'Results 2014'!C75)>COUNTIF(Points!$C$10:$C$86,'Results 2014'!C75),"Not on Comps","") -> 
A76: 16 | B76: 16 | C76: Jeff Smith | D76: Swindon RC | E76: 00:25:24 | I76: =IF(COUNTIF(#REF!,'Results 2014'!C76)>COUNTIF(Points!$C$10:$C$86,'Results 2014'!C76),"Not on Comps","") -> 
A77: 17 | B77: 17 | C77: Jim Curry | D77: Performance Cycles | E77: 00:25:45 | I77: =IF(COUNTIF(#REF!,'Results 2014'!C77)>COUNTIF(Points!$C$10:$C$86,'Results 2014'!C77),"Not on Comps","") -> 
A78: 18 | B78: 18 | C78: Gerry Peppin | D78: Corinium CC | E78: 00:25:51 | I78: =IF(COUNTIF(#REF!,'Results 2014'!C78)>COUNTIF(Points!$C$10:$C$86,'Results 2014'!C78),"Not on Comps","") -> 
A79: 19 | B79: 19 | C79: Marc Allen | D79: Swindon RC | E79: 00:26:02 | I79: =IF(COUNTIF(#REF!,'Results 2014'!C79)>COUNTIF(Points!$C$10:$C$86,'Results 2014'!C79),"Not on Comps","") -> 
A80: 20 | B80: 20 | C80: Mark Foyn | D80: Corinium CC | E80: 00:26:03 | I80: =IF(COUNTIF(#REF!,'Results 2014'!C80)>COUNTIF(Points!$C$10:$C$86,'Results 2014'!C80),"Not on Comps","") -> 
A81: 21 | B81: 21 | C81: Trevor Hodges | D81: Corinium CC | E81: 00:26:06 | I81: =IF(COUNTIF(#REF!,'Results 2014'!C81)>COUNTIF(Points!$C$10:$C$86,'Results 2014'!C81),"Not on Comps","") -> 
A82: 22 | B82: 22 | C82: Daniel Darby | D82: Swindon RC | E82: 00:26:51 | I82: =IF(COUNTIF(#REF!,'Results 2014'!C82)>COUNTIF(Points!$C$10:$C$86,'Results 2014'!C82),"Not on Comps","") -> 
A83: 23 | B83: 23 | C83: Paul Fuchs | D83: Corinium CC | E83: 00:27:00 | I83: =IF(COUNTIF(#REF!,'Results 2014'!C83)>COUNTIF(Points!$C$10:$C$86,'Results 2014'!C83),"Not on Comps","") -> 
A84: 24 | B84: 24 | C84: Archie Scott | D84: Swindon RC | E84: 00:27:18 | I84: =IF(COUNTIF(#REF!,'Results 2014'!C84)>COUNTIF(Points!$C$10:$C$86,'Results 2014'!C84),"Not on Comps","") -> 
A85: 25 | B85: 25 | C85: Allan Norwood | D85: Corinium CC | E85: 00:27:46 | I85: =IF(COUNTIF(#REF!,'Results 2014'!C85)>COUNTIF(Points!$C$10:$C$86,'Results 2014'!C85),"Not on Comps","") -> 
A86: 26 | B86: 26 | C86: Paul Adams | D86: Swindon RC | E86: 00:27:55 | I86: =IF(COUNTIF(#REF!,'Results 2014'!C86)>COUNTIF(Points!$C$10:$C$86,'Results 2014'!C86),"Not on Comps","") -> 
A87: 27 | B87: 27 | C87: Stephen Chapman | D87: Corinium CC | E87: 00:28:02 | I87: =IF(COUNTIF(#REF!,'Results 2014'!C87)>COUNTIF(Points!$C$10:$C$86,'Results 2014'!C87),"Not on Comps","") -> 
A88: 28 | B88: 28 | C88: Stuart Longhurst | D88: Swindon RC | E88: 00:28:24 | I88: =IF(COUNTIF(#REF!,'Results 2014'!C88)>COUNTIF(Points!$C$10:$C$86,'Results 2014'!C88),"Not on Comps","") -> 
A89: 29 | B89: 29 | C89: Kieran Golding | D89: Swindon RC | E89: 00:29:13 | I89: =IF(COUNTIF(#REF!,'Results 2014'!C89)>COUNTIF(Points!$C$10:$C$86,'Results 2014'!C89),"Not on Comps","") -> 
A90: 30 | B90: 30 | C90: Keith Williams | D90: Oxford CC | E90: 00:30:47 | I90: =IF(COUNTIF(#REF!,'Results 2014'!C90)>COUNTIF(Points!$C$10:$C$86,'Results 2014'!C90),"Not on Comps","") -> 
A91: 31 | B91: 31 | C91: Dave Miatt | D91: Corinium CC | E91: 00:31:10 | I91: =IF(COUNTIF(#REF!,'Results 2014'!C91)>COUNTIF(Points!$C$10:$C$86,'Results 2014'!C91),"Not on Comps","") -> 
A92: 32 | B92: 32 | C92: Mandy Scott | D92: Swindon RC | E92: 00:31:21 | I92: =IF(COUNTIF(#REF!,'Results 2014'!C92)>COUNTIF(Points!$C$10:$C$86,'Results 2014'!C92),"Not on Comps","") -> 
A93: 33 | B93: 33 | C93: John Whittaker | D93: Corinium CC | E93: 00:31:22 | I93: =IF(COUNTIF(#REF!,'Results 2014'!C93)>COUNTIF(Points!$C$10:$C$86,'Results 2014'!C93),"Not on Comps","") -> 
A94: 34 | B94: 34 | C94: Marguerite Miatt | D94: Corinium CC | E94: 00:32:13 | I94: =IF(COUNTIF(#REF!,'Results 2014'!C94)>COUNTIF(Points!$C$10:$C$86,'Results 2014'!C94),"Not on Comps","") -> 
A95: 35 | B95: 35 | C95: Katie Scott | D95: Swindon RC | E95: 00:32:55 | I95: =IF(COUNTIF(#REF!,'Results 2014'!C95)>COUNTIF(Points!$C$10:$C$86,'Results 2014'!C95),"Not on Comps","") -> 
A96: 36 | B96: 36 | C96: Terry Barry | D96: Corinium CC | E96: 00:34:49 | I96: =IF(COUNTIF(#REF!,'Results 2014'!C96)>COUNTIF(Points!$C$10:$C$86,'Results 2014'!C96),"Not on Comps","") -> 
C97: Wroughton - Beckhampton | D97: 2014-04-20 | I97: =IF(COUNTIF(#REF!,'Results 2014'!C97)>COUNTIF(Points!$C$10:$C$86,'Results 2014'!C97),"Not on Comps","") -> 
A98: 1 | B98: 1 | C98: Matt Woods | D98: Cotswold Veldrijden | E98: 00:42:54
A99: 2 | B99: =IF(E99=E98,"=",A99) -> 2 | C99: Mike Ford | D99: Blazing Saddles | E99: 00:45:00
A100: 3 | B100: =IF(E100=E99,"=",A100) -> 3 | C100: Dan Smith | D100: Banjo Cycles | E100: 00:47:17
A101: 4 | B101: =IF(E101=E100,"=",A101) -> 4 | C101: Les Liddiard | D101: Team Jewson | E101: 00:47:26
A102: 5 | B102: 5 | C102: Danny Smith | D102: Swindon RC | E102: 00:48:28
A103: 6 | B103: 6 | C103: Rob Merrison | D103: Swindon RC | E103: 00:48:29
A104: 7 | B104: 7 | C104: Peter Garnett | D104: Swindon RC | E104: 00:48:44
A105: 8 | B105: 8 | C105: Dave Gibson | D105: Swindon RC | E105: 00:49:14
A106: 9 | B106: 9 | C106: Joe Schvartz | D106: Swindon RC | E106: 00:49:41
A107: 10 | B107: 10 | C107: Justin Robbins | D107: Swindon Wheelers | E107: 00:50:18
A108: 11 | B108: 11 | C108: Marc Allen | D108: Swindon RC | E108: 00:50:38
A109: 12 | B109: 12 | C109: Chris Broad-Drake | D109: Swindon RC | E109: 00:51:02
A110: 13 | B110: 13 | C110: Jeff Smith | D110: Swindon RC | E110: 00:52:02
A111: 14 | B111: 14 | C111: Leigh Schvartz | D111: Swindon RC | E111: 00:52:30
A112: 15 | B112: 15 | C112: Adriano dos Santos | D112: Swindon RC | E112: 00:53:55
A113: 16 | B113: 16 | C113: Paul Fuchs | D113: Corinium CC | E113: 00:57:41
A114: 17 | B114: 17 | C114: Jon Wickham | E114: 00:57:49
C115: 2014-04-24 | I115: =IF(COUNTIF(#REF!,'Results 2014'!C115)>COUNTIF(Points!$C$10:$C$86,'Results 2014'!C115),"Not on Comps","") -> 
A116: 1 | B116: 1 | C116: Dan Guest | D116: Performance Cycles | E116: 00:21:08 | I116: =IF(COUNTIF(#REF!,'Results 2014'!C116)>COUNTIF(Points!$C$10:$C$86,'Results 2014'!C116),"Not on Comps","") -> 
A117: 2 | B117: =IF(E117=E116,"=",A117) -> 2 | C117: Matt Woods | D117: Cotswold Veldrijden | E117: 00:21:24 | I117: =IF(COUNTIF(#REF!,'Results 2014'!C117)>COUNTIF(Points!$C$10:$C$86,'Results 2014'!C117),"Not on Comps","") -> 
A118: 3 | B118: =IF(E118=E117,"=",A118) -> 3 | C118: Peter Garnett | D118: Swindon RC | E118: 00:22:25 | I118: =IF(COUNTIF(#REF!,'Results 2014'!C118)>COUNTIF(Points!$C$10:$C$86,'Results 2014'!C118),"Not on Comps","") -> 
A119: 4 | B119: =IF(E119=E118,"=",A119) -> 4 | C119: Les Liddiard | D119: Team Jewson | E119: 00:22:29 | I119: =IF(COUNTIF(#REF!,'Results 2014'!C119)>COUNTIF(Points!$C$10:$C$86,'Results 2014'!C119),"Not on Comps","") -> 
A120: 5 | B120: 5 | C120: Steve Yates | D120: Corinium CC | E120: 00:22:33 | I120: =IF(COUNTIF(#REF!,'Results 2014'!C120)>COUNTIF(Points!$C$10:$C$86,'Results 2014'!C120),"Not on Comps","") -> 
A121: 6 | B121: 6 | C121: Joe Schvartz | D121: Swindon RC | E121: 00:22:52 | I121: =IF(COUNTIF(#REF!,'Results 2014'!C121)>COUNTIF(Points!$C$10:$C$86,'Results 2014'!C121),"Not on Comps","") -> 
A122: 7 | B122: 7 | C122: Andy Morgan | D122: Corinium CC | E122: 00:23:27 | I122: =IF(COUNTIF(#REF!,'Results 2014'!C122)>COUNTIF(Points!$C$10:$C$86,'Results 2014'!C122),"Not on Comps","") -> 
A123: 8 | B123: 8 | C123: Alex King | D123: Performance Cycles | E123: 00:23:35 | I123: =IF(COUNTIF(#REF!,'Results 2014'!C123)>COUNTIF(Points!$C$10:$C$86,'Results 2014'!C123),"Not on Comps","") -> 
A124: 9 | B124: 9 | C124: Paul O'Driscoll | D124: Swindon RC | E124: 00:23:54 | I124: =IF(COUNTIF(#REF!,'Results 2014'!C124)>COUNTIF(Points!$C$10:$C$86,'Results 2014'!C124),"Not on Comps","") -> 
A125: 10 | B125: 10 | C125: Joe Barry | D125: Ride 24/7 | E125: 00:23:55 | I125: =IF(COUNTIF(#REF!,'Results 2014'!C125)>COUNTIF(Points!$C$10:$C$86,'Results 2014'!C125),"Not on Comps","") -> 
A126: 11 | B126: 11 | C126: Nick Lowe | D126: Cotswold Veldrijden | E126: 00:24:14 | I126: =IF(COUNTIF(#REF!,'Results 2014'!C126)>COUNTIF(Points!$C$10:$C$86,'Results 2014'!C126),"Not on Comps","") -> 
A127: 12 | B127: 12 | C127: Adriano dos Santos | D127: Swindon RC | E127: 00:24:18 | I127: =IF(COUNTIF(#REF!,'Results 2014'!C127)>COUNTIF(Points!$C$10:$C$86,'Results 2014'!C127),"Not on Comps","") -> 
A128: 13 | B128: 13 | C128: Mick Sharratt | D128: Cadence | E128: 00:24:43 | I128: =IF(COUNTIF(#REF!,'Results 2014'!C128)>COUNTIF(Points!$C$10:$C$86,'Results 2014'!C128),"Not on Comps","") -> 
A129: 14 | B129: 14 | C129: Richard Cooper | D129: Swindon RC | E129: 00:24:53 | I129: =IF(COUNTIF(#REF!,'Results 2014'!C129)>COUNTIF(Points!$C$10:$C$86,'Results 2014'!C129),"Not on Comps","") -> 
A130: 15 | B130: 15 | C130: Matt Hodgson | D130: Corinium CC | E130: 00:25:00 | I130: =IF(COUNTIF(#REF!,'Results 2014'!C130)>COUNTIF(Points!$C$10:$C$86,'Results 2014'!C130),"Not on Comps","") -> 
A131: 16 | B131: 16 | C131: Chris Broad-Drake | D131: Swindon RC | E131: 00:25:07 | I131: =IF(COUNTIF(#REF!,'Results 2014'!C131)>COUNTIF(Points!$C$10:$C$86,'Results 2014'!C131),"Not on Comps","") -> 
A132: 17 | B132: 17 | C132: Ross Thompson | D132: Performance Cycles | E132: 00:25:08 | I132: =IF(COUNTIF(#REF!,'Results 2014'!C132)>COUNTIF(Points!$C$10:$C$86,'Results 2014'!C132),"Not on Comps","") -> 
A133: 18 | B133: 18 | C133: Marc Allen | D133: Swindon RC | E133: 00:25:09 | I133: =IF(COUNTIF(#REF!,'Results 2014'!C133)>COUNTIF(Points!$C$10:$C$86,'Results 2014'!C133),"Not on Comps","") -> 
A134: 19 | B134: 19 | C134: Steve Davies | D134: Swindon RC | E134: 00:25:26 | I134: =IF(COUNTIF(#REF!,'Results 2014'!C134)>COUNTIF(Points!$C$10:$C$86,'Results 2014'!C134),"Not on Comps","") -> 
A135: 20 | B135: = | C135: Jim Curry | D135: Performance Cycles | E135: 00:25:26 | I135: =IF(COUNTIF(#REF!,'Results 2014'!C135)>COUNTIF(Points!$C$10:$C$86,'Results 2014'!C135),"Not on Comps","") -> 
A136: 21 | B136: 21 | C136: Mike Cashman | D136: Corinium CC | E136: 00:25:30 | I136: =IF(COUNTIF(#REF!,'Results 2014'!C136)>COUNTIF(Points!$C$10:$C$86,'Results 2014'!C136),"Not on Comps","") -> 
A137: 22 | B137: = | C137: Leigh Schvartz | D137: Swindon RC | E137: 00:25:30 | I137: =IF(COUNTIF(#REF!,'Results 2014'!C137)>COUNTIF(Points!$C$10:$C$86,'Results 2014'!C137),"Not on Comps","") -> 
A138: 23 | B138: 23 | C138: Tom Sewell | D138: Cotswold Veldrijden | E138: 00:25:33 | I138: =IF(COUNTIF(#REF!,'Results 2014'!C138)>COUNTIF(Points!$C$10:$C$86,'Results 2014'!C138),"Not on Comps","") -> 
A139: 24 | B139: 24 | C139: Mark Foyn | D139: Corinium CC | E139: 00:25:42 | I139: =IF(COUNTIF(#REF!,'Results 2014'!C139)>COUNTIF(Points!$C$10:$C$86,'Results 2014'!C139),"Not on Comps","") -> 
A140: 25 | B140: 25 | C140: Paul Fuchs | D140: Corinium CC | E140: 00:26:11 | I140: =IF(COUNTIF(#REF!,'Results 2014'!C140)>COUNTIF(Points!$C$10:$C$86,'Results 2014'!C140),"Not on Comps","") -> 
A141: 26 | B141: 26 | C141: Gerry Peppin | D141: Corinium CC | E141: 00:26:12 | I141: =IF(COUNTIF(#REF!,'Results 2014'!C141)>COUNTIF(Points!$C$10:$C$86,'Results 2014'!C141),"Not on Comps","") -> 
A142: 27 | B142: 27 | C142: Craig Scott | D142: Cotswold Veldrijden | E142: 00:26:27 | I142: =IF(COUNTIF(#REF!,'Results 2014'!C142)>COUNTIF(Points!$C$10:$C$86,'Results 2014'!C142),"Not on Comps","") -> 
A143: 28 | B143: 28 | C143: Dave Tilling | D143: Ride 24/7 | E143: 00:26:28 | I143: =IF(COUNTIF(#REF!,'Results 2014'!C143)>COUNTIF(Points!$C$10:$C$86,'Results 2014'!C143),"Not on Comps","") -> 
A144: 29 | B144: 29 | C144: Harriet Guest | D144: Performance Cycles | E144: 00:26:36 | I144: =IF(COUNTIF(#REF!,'Results 2014'!C144)>COUNTIF(Points!$C$10:$C$86,'Results 2014'!C144),"Not on Comps","") -> 
A145: 30 | B145: 30 | C145: Archie Scott | D145: Swindon RC | E145: 00:26:57 | I145: =IF(COUNTIF(#REF!,'Results 2014'!C145)>COUNTIF(Points!$C$10:$C$86,'Results 2014'!C145),"Not on Comps","") -> 
A146: 31 | B146: 31 | C146: Stephen Chapman | D146: Corinium CC | E146: 00:27:25 | I146: =IF(COUNTIF(#REF!,'Results 2014'!C146)>COUNTIF(Points!$C$10:$C$86,'Results 2014'!C146),"Not on Comps","") -> 
A147: 32 | B147: 32 | C147: Allan Norwood | D147: Corinium CC | E147: 00:27:31 | I147: =IF(COUNTIF(#REF!,'Results 2014'!C147)>COUNTIF(Points!$C$10:$C$86,'Results 2014'!C147),"Not on Comps","") -> 
A148: 33 | B148: 33 | C148: Rob Barry | D148: Performance Cycles | E148: 00:27:48 | I148: =IF(COUNTIF(#REF!,'Results 2014'!C148)>COUNTIF(Points!$C$10:$C$86,'Results 2014'!C148),"Not on Comps","") -> 
A149: 34 | B149: 34 | C149: Paul Adams | D149: Swindon RC | E149: 00:28:04 | I149: =IF(COUNTIF(#REF!,'Results 2014'!C149)>COUNTIF(Points!$C$10:$C$86,'Results 2014'!C149),"Not on Comps","") -> 
A150: 35 | B150: 35 | C150: Kieran Golding | D150: Swindon RC | E150: 00:28:21 | I150: =IF(COUNTIF(#REF!,'Results 2014'!C150)>COUNTIF(Points!$C$10:$C$86,'Results 2014'!C150),"Not on Comps","") -> 
A151: 36 | B151: 36 | C151: Mervyn Cox | D151: Performance Cycles | E151: 00:28:24 | I151: =IF(COUNTIF(#REF!,'Results 2014'!C151)>COUNTIF(Points!$C$10:$C$86,'Results 2014'!C151),"Not on Comps","") -> 
A152: 37 | B152: 37 | C152: Nick Fiore | D152: Cotswold Veldrijden | E152: 00:28:33 | I152: =IF(COUNTIF(#REF!,'Results 2014'!C152)>COUNTIF(Points!$C$10:$C$86,'Results 2014'!C152),"Not on Comps","") -> 
A153: 38 | B153: 38 | C153: David Parkin | D153: Swindon RC | E153: 00:29:34 | I153: =IF(COUNTIF(#REF!,'Results 2014'!C153)>COUNTIF(Points!$C$10:$C$86,'Results 2014'!C153),"Not on Comps","") -> 
A154: 39 | B154: 39 | C154: Sophie Crampin | D154: Dame Cycling | E154: 00:29:47 | I154: =IF(COUNTIF(#REF!,'Results 2014'!C154)>COUNTIF(Points!$C$10:$C$86,'Results 2014'!C154),"Not on Comps","") -> 
A155: 40 | B155: 40 | C155: Keith Williams | D155: Oxford CC | E155: 00:30:21 | I155: =IF(COUNTIF(#REF!,'Results 2014'!C155)>COUNTIF(Points!$C$10:$C$86,'Results 2014'!C155),"Not on Comps","") -> 
A156: 41 | B156: 41 | C156: Mandy Scott | D156: Swindon RC | E156: 00:30:25 | I156: =IF(COUNTIF(#REF!,'Results 2014'!C156)>COUNTIF(Points!$C$10:$C$86,'Results 2014'!C156),"Not on Comps","") -> 
A157: 42 | B157: 42 | C157: Hazel Ross | D157: Dame Cycling | E157: 00:30:39 | I157: =IF(COUNTIF(#REF!,'Results 2014'!C157)>COUNTIF(Points!$C$10:$C$86,'Results 2014'!C157),"Not on Comps","") -> 
A158: 43 | B158: 43 | C158: Marguerite Miatt | D158: Corinium CC | E158: 00:31:20 | I158: =IF(COUNTIF(#REF!,'Results 2014'!C158)>COUNTIF(Points!$C$10:$C$86,'Results 2014'!C158),"Not on Comps","") -> 
A159: 44 | B159: 44 | C159: Kelli Salone | D159: Dame Cycling | E159: 00:31:39 | I159: =IF(COUNTIF(#REF!,'Results 2014'!C159)>COUNTIF(Points!$C$10:$C$86,'Results 2014'!C159),"Not on Comps","") -> 
A160: 45 | B160: 45 | C160: Emma Rider | D160: Dame Cycling | E160: 00:32:26 | I160: =IF(COUNTIF(#REF!,'Results 2014'!C160)>COUNTIF(Points!$C$10:$C$86,'Results 2014'!C160),"Not on Comps","") -> 
A161: 46 | B161: 46 | C161: Sam Hackett | D161: Dame Cycling | E161: 00:32:28 | I161: =IF(COUNTIF(#REF!,'Results 2014'!C161)>COUNTIF(Points!$C$10:$C$86,'Results 2014'!C161),"Not on Comps","") -> 
A162: 47 | B162: 47 | C162: Amanda Adams | D162: Swindon RC | E162: 00:32:30 | I162: =IF(COUNTIF(#REF!,'Results 2014'!C162)>COUNTIF(Points!$C$10:$C$86,'Results 2014'!C162),"Not on Comps","") -> 
A163: 48 | B163: 48 | C163: Laura Chadwick | D163: Dame Cycling | E163: 00:32:42 | I163: =IF(COUNTIF(#REF!,'Results 2014'!C163)>COUNTIF(Points!$C$10:$C$86,'Results 2014'!C163),"Not on Comps","") -> 
A164: 49 | B164: 49 | C164: Noel MacKenzie | D164: Corinium CC | E164: 00:33:05 | I164: =IF(COUNTIF(#REF!,'Results 2014'!C164)>COUNTIF(Points!$C$10:$C$86,'Results 2014'!C164),"Not on Comps","") -> 
A165: 50 | B165: 50 | C165: Becky Brown | D165: Dame Cycling | E165: 00:33:30 | I165: =IF(COUNTIF(#REF!,'Results 2014'!C165)>COUNTIF(Points!$C$10:$C$86,'Results 2014'!C165),"Not on Comps","") -> 
A166: 51 | B166: 51 | C166: Katie Scott | D166: Swindon RC | E166: 00:33:51 | I166: =IF(COUNTIF(#REF!,'Results 2014'!C166)>COUNTIF(Points!$C$10:$C$86,'Results 2014'!C166),"Not on Comps","") -> 
A167: 52 | B167: 52 | C167: Carol Clarke | D167: Corinium CC | E167: 00:34:04 | I167: =IF(COUNTIF(#REF!,'Results 2014'!C167)>COUNTIF(Points!$C$10:$C$86,'Results 2014'!C167),"Not on Comps","") -> 
A168: 53 | B168: 53 | C168: Terry Barry | D168: Corinium CC | E168: 00:34:45 | I168: =IF(COUNTIF(#REF!,'Results 2014'!C168)>COUNTIF(Points!$C$10:$C$86,'Results 2014'!C168),"Not on Comps","") -> 
A169: 54 | B169: 54 | C169: Jean Kent | D169: Dame Cycling | E169: 00:39:18 | I169: =IF(COUNTIF(#REF!,'Results 2014'!C169)>COUNTIF(Points!$C$10:$C$86,'Results 2014'!C169),"Not on Comps","") -> 
C170: 2014-05-01 | I170: =IF(COUNTIF(#REF!,'Results 2014'!C170)>COUNTIF(Points!$C$10:$C$86,'Results 2014'!C170),"Not on Comps","") -> 
A171: 1 | B171: 1 | C171: Dan Guest | D171: Performance Cycles | E171: 00:21:23 | I171: =IF(COUNTIF(#REF!,'Results 2014'!C171)>COUNTIF(Points!$C$10:$C$86,'Results 2014'!C171),"Not on Comps","") -> 
A172: 2 | B172: =IF(E172=E171,"=",A172) -> 2 | C172: Peter Garnett | D172: Swindon RC | E172: 00:22:26 | I172: =IF(COUNTIF(#REF!,'Results 2014'!C172)>COUNTIF(Points!$C$10:$C$86,'Results 2014'!C172),"Not on Comps","") -> 
A173: 3 | B173: =IF(E173=E172,"=",A173) -> 3 | C173: Les Liddiard | D173: Team Jewson | E173: 00:22:28 | I173: =IF(COUNTIF(#REF!,'Results 2014'!C173)>COUNTIF(Points!$C$10:$C$86,'Results 2014'!C173),"Not on Comps","") -> 
A174: 4 | B174: =IF(E174=E173,"=",A174) -> 4 | C174: Tony Costello | D174: Corinium CC | E174: 00:22:45 | I174: =IF(COUNTIF(#REF!,'Results 2014'!C174)>COUNTIF(Points!$C$10:$C$86,'Results 2014'!C174),"Not on Comps","") -> 
A175: 5 | B175: 5 | C175: Pete Hutchinson | D175: Corinium CC | E175: 00:23:03 | I175: =IF(COUNTIF(#REF!,'Results 2014'!C175)>COUNTIF(Points!$C$10:$C$86,'Results 2014'!C175),"Not on Comps","") -> 
A176: 6 | B176: 6 | C176: Steve Yates | D176: Corinium CC | E176: 00:23:07 | I176: =IF(COUNTIF(#REF!,'Results 2014'!C176)>COUNTIF(Points!$C$10:$C$86,'Results 2014'!C176),"Not on Comps","") -> 
A177: 7 | B177: 7 | C177: Andy Claxton | D177: Swindon RC | E177: 00:23:45 | I177: =IF(COUNTIF(#REF!,'Results 2014'!C177)>COUNTIF(Points!$C$10:$C$86,'Results 2014'!C177),"Not on Comps","") -> 
A178: 8 | B178: 8 | C178: Gary Smith | D178: Ride 24/7 | E178: 00:23:48 | I178: =IF(COUNTIF(#REF!,'Results 2014'!C178)>COUNTIF(Points!$C$10:$C$86,'Results 2014'!C178),"Not on Comps","") -> 
A179: 9 | B179: 9 | C179: Chris Broad-Drake | D179: Swindon RC | E179: 00:24:13 | I179: =IF(COUNTIF(#REF!,'Results 2014'!C179)>COUNTIF(Points!$C$10:$C$86,'Results 2014'!C179),"Not on Comps","") -> 
A180: 10 | B180: 10 | C180: Paul O'Driscoll | D180: Swindon RC | E180: 00:24:18 | I180: =IF(COUNTIF(#REF!,'Results 2014'!C180)>COUNTIF(Points!$C$10:$C$86,'Results 2014'!C180),"Not on Comps","") -> 
A181: 11 | B181: 11 | C181: Rob Merrison | D181: Swindon RC | E181: 00:24:44 | I181: =IF(COUNTIF(#REF!,'Results 2014'!C181)>COUNTIF(Points!$C$10:$C$86,'Results 2014'!C181),"Not on Comps","") -> 
A182: 12 | B182: 12 | C182: Marc Allen | D182: Swindon RC | E182: 00:24:56 | I182: =IF(COUNTIF(#REF!,'Results 2014'!C182)>COUNTIF(Points!$C$10:$C$86,'Results 2014'!C182),"Not on Comps","") -> 
A183: 13 | B183: 13 | C183: Simon Barnes | D183: Corinium CC | E183: 00:25:14 | I183: =IF(COUNTIF(#REF!,'Results 2014'!C183)>COUNTIF(Points!$C$10:$C$86,'Results 2014'!C183),"Not on Comps","") -> 
A184: 14 | B184: 14 | C184: Jim Curry | D184: Performance Cycles | E184: 00:25:17 | I184: =IF(COUNTIF(#REF!,'Results 2014'!C184)>COUNTIF(Points!$C$10:$C$86,'Results 2014'!C184),"Not on Comps","") -> 
A185: 15 | B185: 15 | C185: Dave Gibson | D185: Swindon RC | E185: 00:25:21 | I185: =IF(COUNTIF(#REF!,'Results 2014'!C185)>COUNTIF(Points!$C$10:$C$86,'Results 2014'!C185),"Not on Comps","") -> 
A186: 16 | B186: 16 | C186: Mike Cashman | D186: Corinium CC | E186: 00:25:37 | I186: =IF(COUNTIF(#REF!,'Results 2014'!C186)>COUNTIF(Points!$C$10:$C$86,'Results 2014'!C186),"Not on Comps","") -> 
A187: 17 | B187: 17 | C187: Keith Waller | D187: Swindon RC | E187: 00:25:53 | I187: =IF(COUNTIF(#REF!,'Results 2014'!C187)>COUNTIF(Points!$C$10:$C$86,'Results 2014'!C187),"Not on Comps","") -> 
A188: 18 | B188: 18 | C188: Richard Woods | D188: Corinium CC | E188: 00:25:56 | I188: =IF(COUNTIF(#REF!,'Results 2014'!C188)>COUNTIF(Points!$C$10:$C$86,'Results 2014'!C188),"Not on Comps","") -> 
A189: 19 | B189: 19 | C189: Tom Sewell | D189: Cotswold Veldrijden | E189: 00:26:20 | I189: =IF(COUNTIF(#REF!,'Results 2014'!C189)>COUNTIF(Points!$C$10:$C$86,'Results 2014'!C189),"Not on Comps","") -> 
A190: 20 | B190: 20 | C190: Rob Everill | D190: Performance Cycles | E190: 00:26:59 | I190: =IF(COUNTIF(#REF!,'Results 2014'!C190)>COUNTIF(Points!$C$10:$C$86,'Results 2014'!C190),"Not on Comps","") -> 
A191: 21 | B191: 21 | C191: Jeff Smith | D191: Swindon RC | E191: 00:27:09 | I191: =IF(COUNTIF(#REF!,'Results 2014'!C191)>COUNTIF(Points!$C$10:$C$86,'Results 2014'!C191),"Not on Comps","") -> 
A192: 22 | B192: 22 | C192: Paul Burnip | D192: Corinium CC | E192: 00:27:17 | I192: =IF(COUNTIF(#REF!,'Results 2014'!C192)>COUNTIF(Points!$C$10:$C$86,'Results 2014'!C192),"Not on Comps","") -> 
A193: 23 | B193: 23 | C193: John Simmons | D193: Performance Cycles | E193: 00:27:44 | I193: =IF(COUNTIF(#REF!,'Results 2014'!C193)>COUNTIF(Points!$C$10:$C$86,'Results 2014'!C193),"Not on Comps","") -> 
A194: 24 | B194: 24 | C194: Mervyn Cox | D194: Performance Cycles | E194: 00:28:48 | I194: =IF(COUNTIF(#REF!,'Results 2014'!C194)>COUNTIF(Points!$C$10:$C$86,'Results 2014'!C194),"Not on Comps","") -> 
A195: 25 | B195: 25 | C195: Keith Williams | D195: Oxford CC | E195: 00:30:28 | I195: =IF(COUNTIF(#REF!,'Results 2014'!C195)>COUNTIF(Points!$C$10:$C$86,'Results 2014'!C195),"Not on Comps","") -> 
A196: 26 | B196: 26 | C196: Heather Jefferies | D196: Performance Cycles | E196: 00:30:50 | I196: =IF(COUNTIF(#REF!,'Results 2014'!C196)>COUNTIF(Points!$C$10:$C$86,'Results 2014'!C196),"Not on Comps","") -> 
A197: 27 | B197: = | C197: Kelli Salone | D197: Dame Cycling | E197: 00:30:50 | I197: =IF(COUNTIF(#REF!,'Results 2014'!C197)>COUNTIF(Points!$C$10:$C$86,'Results 2014'!C197),"Not on Comps","") -> 
A198: 28 | B198: 28 | C198: Hazel Ross | D198: Dame Cycling | E198: 00:30:56 | I198: =IF(COUNTIF(#REF!,'Results 2014'!C198)>COUNTIF(Points!$C$10:$C$86,'Results 2014'!C198),"Not on Comps","") -> 
A199: 29 | B199: 29 | C199: Noel MacKenzie | D199: Corinium CC | E199: 00:33:01 | I199: =IF(COUNTIF(#REF!,'Results 2014'!C199)>COUNTIF(Points!$C$10:$C$86,'Results 2014'!C199),"Not on Comps","") -> 
A200: 30 | B200: 30 | C200: Becky Brown | D200: Dame Cycling | E200: 00:33:18 | I200: =IF(COUNTIF(#REF!,'Results 2014'!C200)>COUNTIF(Points!$C$10:$C$86,'Results 2014'!C200),"Not on Comps","") -> 
A201: 31 | B201: 31 | C201: Carol Clarke | D201: Corinium CC | E201: 00:34:34 | I201: =IF(COUNTIF(#REF!,'Results 2014'!C201)>COUNTIF(Points!$C$10:$C$86,'Results 2014'!C201),"Not on Comps","") -> 
... 816 more rows

Sheet Scratch Final 13 (hidden)
A1: Swindon RC Club 10 Scratch Competitions 2013
B3: Overall | C3: Best 7 rides
C4: 1 | D4: 2 | E4: 3 | F4: 4 | G4: 5 | H4: 6 | I4: 7 | J4: Average Speed (mph)
A5: 1 | B5: Peter Garnett | C5: 00:21:48 | D5: 00:21:51 | E5: 00:21:53 | F5: 00:22:03 | G5: 00:22:04 | H5: 00:22:06 | I5: 00:22:08 | J5: 27.3
A6: 2 | B6: Joe Schvartz | C6: 00:22:34 | D6: 00:22:35 | E6: 00:22:37 | F6: 00:22:40 | G6: 00:22:42 | H6: 00:23:08 | I6: 00:23:09 | J6: 26.35
A7: 3 | B7: Paul O'Driscoll | C7: 00:23:20 | D7: 00:23:32 | E7: 00:23:34 | F7: 00:23:46 | G7: 00:23:49 | H7: 00:23:57 | I7: 00:23:59 | J7: 25.31
A8: 4 | B8: Chris Broad-Drake | C8: 00:23:25 | D8: 00:23:43 | E8: 00:23:51 | F8: 00:23:52 | G8: 00:23:56 | H8: 00:24:04 | I8: 00:24:18 | J8: 25.13
A9: 5 | B9: Pete Jeans | C9: 00:23:39 | D9: 00:23:43 | E9: 00:23:52 | F9: 00:23:59 | G9: 00:24:00 | H9: 00:24:16 | I9: 00:24:25 | J9: 25.02
A10: 6 | B10: Marc Allen | C10: 00:23:57 | D10: 00:24:17 | E10: 00:24:26 | F10: 00:24:30 | G10: 00:24:37 | H10: 00:24:39 | I10: 00:24:49 | J10: 24.53
A11: 7 | B11: Adriano dos Santos | C11: 00:24:10 | D11: 00:24:27 | E11: 00:24:34 | F11: 00:24:43 | G11: 00:24:47 | H11: 00:24:54 | I11: 00:25:17 | J11: 24.3
A12: 8 | B12: Dave Gibson | C12: 00:24:36 | D12: 00:24:43 | E12: 00:24:47 | F12: 00:24:49 | G12: 00:24:50 | H12: 00:24:57 | I12: 00:26:10 | J12: 24.02
A13: 9 | B13: Ross Harvey | C13: 00:24:52 | D13: 00:24:54 | E13: 00:24:59 | F13: 00:25:05 | G13: 00:25:15 | H13: 00:25:25 | I13: 00:25:32 | J13: 23.86
A14: 10 | B14: Steve Davies | C14: 00:25:05 | D14: 00:25:11 | E14: 00:25:14 | F14: 00:25:15 | G14: 00:25:16 | H14: 00:25:19 | I14: 00:25:26 | J14: 23.77
A15: 11 | B15: Rob Patterson | C15: 00:25:17 | D15: 00:25:21 | E15: 00:25:22 | F15: 00:25:33 | G15: 00:25:48 | H15: 00:25:58 | I15: 00:26:03 | J15: 23.42
A16: 12 | B16: Alex McIntosh | C16: 00:27:02 | D16: 00:27:11 | E16: 00:27:32 | F16: 00:27:42 | G16: 00:28:31 | H16: 00:29:32 | I16: 00:31:04 | J16: 21.16
A17: 13 | B17: Nick Fiore | C17: 00:27:56 | D17: 00:28:02 | E17: 00:28:19 | F17: 00:28:25 | G17: 00:28:53 | H17: 00:29:12 | I17: 00:29:19 | J17: 20.99
A18: 14 | B18: Marc Roberts | C18: 00:27:51 | D18: 00:27:53 | E18: 00:28:07 | F18: 00:28:34 | G18: 00:29:20 | H18: 00:29:36 | I18: 00:29:43 | J18: 20.89
A19: 15 | B19: Keith Williams | C19: 00:28:31 | D19: 00:29:04 | E19: 00:29:15 | F19: 00:29:23 | G19: 00:29:25 | H19: 00:29:37 | I19: 00:30:55 | J19: 20.38
A20: 16 | B20: Rob Merrison | C20: 00:23:07 | D20: 00:23:09 | E20: 00:23:25 | F20: 00:24:05 | G20: 00:24:21 | H20: 00:25:37 | J20: 25.05
A21: 17 | B21: Aaron Collins | C21: 00:24:14 | D21: 00:24:16 | E21: 00:24:23 | F21: 00:24:57 | G21: 00:25:19 | H21: 00:25:58 | J21: 24.15
A22: 18 | B22: Keith Waller | C22: 00:25:31 | D22: 00:25:42 | E22: 00:25:45 | F22: 00:25:46 | G22: 00:25:58 | H22: 00:26:36 | J22: 23.19
A23: 19 | B23: Daniel Darby | C23: 00:27:24 | D23: 00:27:34 | E23: 00:28:01 | F23: 00:28:30 | G23: 00:28:34 | H23: 00:28:50 | J23: 21.32
A24: 20 | B24: Steve Harvey | C24: 00:27:52 | D24: 00:28:09 | E24: 00:28:14 | F24: 00:28:18 | G24: 00:28:33 | J24: 21.27
A25: 21 | B25: Archie Scott | C25: 00:29:10 | D25: 00:30:27 | E25: 00:31:00 | F25: 00:31:11 | G25: 00:31:52 | J25: 19.53
A26: 22 | B26: Mandy Scott | C26: 00:32:36 | D26: 00:34:56 | E26: 00:35:38 | F26: 00:36:18 | G26: 00:37:36 | J26: 16.95
A27: 23 | B27: Amanda Dickson | C27: 00:34:05 | D27: 00:34:12 | E27: 00:35:48 | F27: 00:35:53 | G27: 00:38:06 | J27: 16.85
A28: 24 | B28: Katie Scott | C28: 00:33:53 | D28: 00:36:47 | E28: 00:37:11 | F28: 00:37:13 | G28: 00:37:48 | J28: 16.41
A29: 25 | B29: Jeff Smith | C29: 00:25:41 | D29: 00:25:50 | E29: 00:25:57 | F29: 00:25:58 | J29: 23.21
A30: 26 | B30: Kieran Golding | C30: 00:28:11 | D30: 00:28:36 | E30: 00:28:57 | F30: 00:29:00 | J30: 20.92
A31: 27 | B31: Niel Dunnage | C31: 00:21:53 | D31: 00:22:14 | E31: 00:22:49 | J31: 26.9
A32: 28 | B32: Clive Hayter | C32: 00:24:25 | D32: 00:24:53 | J32: 24.35
A33: 29 | B33: Nick Mawson | C33: 00:24:37 | D33: 00:25:09 | J33: 24.12
A34: 30 | B34: Elliot Lassiter | C34: 00:24:53 | D34: 00:25:27 | J34: 23.85
A35: 31 | B35: Richard Cooper | C35: 00:24:16 | D35: 00:26:19 | J35: 23.73
A36: 32 | B36: Matt Cooper | C36: 00:25:35 | D36: 00:26:51 | J36: 22.89
A37: 33 | B37: Tom Longland | C37: 00:25:38 | D37: 00:26:54 | J37: 22.85
A38: 34 | B38: Bernie Beale | C38: 00:26:26 | D38: 00:26:27 | J38: 22.7
A39: 35 | B39: Lee Rayfield | C39: 00:26:37 | D39: 00:27:01 | J39: 22.38
A40: 36 | B40: Andy Bent | C40: 00:26:58 | D40: 00:26:59 | J40: 22.25
A41: 37 | B41: Mark Chick | C41: 00:26:25 | D41: 00:27:53 | J41: 22.1
A42: 38 | B42: Dave Newton | C42: 00:27:09 | D42: 00:27:56 | J42: 21.79
A43: 39 | B43: Bernie McPhail | C43: 00:28:08 | D43: 00:29:17 | J43: 20.9
A44: 40 | B44: Trevor Sherwood | C44: 00:28:46 | D44: 00:29:19 | J44: 20.66
A45: 41 | B45: Chris Fox | C45: 00:30:46 | D45: 00:31:13 | J45: 19.37
A46: 42 | B46: Andy Bentley | C46: 00:24:04 | J46: 24.94
A47: 43 | B47: David Ryan | C47: 00:24:23 | J47: 24.61
A48: 44 | B48: Paul Adams | C48: 00:27:12 | J48: 22.06
A49: 45 | B49: Craig Scott | C49: 00:27:16 | J49: 22.01
A50: 46 | B50: Michael Ponzo | C50: 00:27:29 | J50: 21.84
A51: 47 | B51: Daniel Watt | C51: 00:27:39 | J51: 21.7
A52: 48 | B52: Dave Roper | C52: 00:29:00 | J52: 20.69
B54: Non-Aero | C54: Best 5 rides*
C55: 1 | D55: 2 | E55: 3 | F55: 4 | G55: 5 | J55: Average Speed (mph)
A56: 1 | B56: Marc Allen | C56: 00:23:57 | D56: 00:24:17 | E56: 00:24:26 | F56: 00:24:30 | G56: 00:24:37 | J56: 24.64
A57: 2 | B57: Dave Gibson | C57: 00:24:36 | D57: 00:24:43 | E57: 00:24:47 | F57: 00:24:49 | G57: 00:24:50 | J57: 24.25
A58: 3 | B58: Daniel Darby | C58: 00:27:24 | D58: 00:27:34 | E58: 00:28:01 | F58: 00:28:30 | G58: 00:28:34 | J58: 21.43
A59: 4 | B59: Archie Scott | C59: 00:29:10 | D59: 00:30:27 | E59: 00:31:00 | F59: 00:31:11 | G59: 00:31:52 | J59: 19.53
A60: 5 | B60: Mandy Scott | C60: 00:32:36 | D60: 00:34:56 | E60: 00:35:38 | F60: 00:36:18 | G60: 00:37:36 | J60: 16.95
A61: 6 | B61: Amanda Dickson | C61: 00:34:05 | D61: 00:34:12 | E61: 00:35:48 | F61: 00:35:53 | G61: 00:38:06 | J61: 16.85
A62: 7 | B62: Katie Scott | C62: 00:33:53 | D62: 00:36:47 | E62: 00:37:11 | F62: 00:37:13 | G62: 00:37:48 | J62: 16.41
A63: 8 | B63: Jeff Smith | C63: 00:25:41 | D63: 00:25:50 | E63: 00:25:57 | F63: 00:25:58 | J63: 23.21
A64: 9 | B64: Elliot Lassiter | C64: 00:24:53 | D64: 00:25:27 | J64: 23.85
A65: 10 | B65: Lee Rayfield | C65: 00:26:37 | D65: 00:27:01 | J65: 22.38
A66: 11 | B66: Andy Bent | C66: 00:26:58 | D66: 00:26:59 | J66: 22.25
A67: 12 | B67: Mark Chick | C67: 00:26:25 | D67: 00:27:53 | J67: 22.1
A68: 13 | B68: Paul Adams | C68: 00:27:12 | J68: 22.06
A69: 14 | B69: Daniel Watt | C69: 00:27:39 | J69: 21.7
A70: 15 | B70: Dave Roper | C70: 00:29:00 | J70: 20.69
B72: 50 & Over | C72: Best 6 rides*
C73: 1 | D73: 2 | E73: 3 | F73: 4 | G73: 5 | H73: 6 | J73: Average Speed (mph)
A74: 1 | B74: Joe Schvartz | C74: 00:22:34 | D74: 00:22:35 | E74: 00:22:37 | F74: 00:22:40 | G74: 00:22:42 | H74: 00:23:08 | J74: 26.42
A75: 2 | B75: Chris Broad-Drake | C75: 00:23:25 | D75: 00:23:43 | E75: 00:23:51 | F75: 00:23:52 | G75: 00:23:56 | H75: 00:24:04 | J75: 25.21
A76: 3 | B76: Pete Jeans | C76: 00:23:39 | D76: 00:23:43 | E76: 00:23:52 | F76: 00:23:59 | G76: 00:24:00 | H76: 00:24:16 | J76: 25.1
A77: 4 | B77: Rob Patterson | C77: 00:25:17 | D77: 00:25:21 | E77: 00:25:22 | F77: 00:25:33 | G77: 00:25:48 | H77: 00:25:58 | J77: 23.49
A78: 5 | B78: Keith Williams | C78: 00:28:31 | D78: 00:29:04 | E78: 00:29:15 | F78: 00:29:23 | G78: 00:29:25 | H78: 00:29:37 | J78: 20.55
A79: 6 | B79: Steve Harvey | C79: 00:27:52 | D79: 00:28:09 | E79: 00:28:14 | F79: 00:28:18 | G79: 00:28:33 | J79: 21.27
A80: 7 | B80: Jeff Smith | C80: 00:25:41 | D80: 00:25:50 | E80: 00:25:57 | F80: 00:25:58 | J80: 23.21
A81: 8 | B81: Lee Rayfield | C81: 00:26:37 | D81: 00:27:01 | J81: 22.38
A82: 9 | B82: Bernie McPhail | C82: 00:28:08 | D82: 00:29:17 | J82: 20.9
B84: Ladies | C84: Best 5 rides
C85: 1 | D85: 2 | E85: 3 | F85: 4 | G85: 5 | J85: Average Speed (mph)
A86: 1 | B86: Mandy Scott | C86: 00:32:36 | D86: 00:34:56 | E86: 00:35:38 | F86: 00:36:18 | G86: 00:37:36 | J86: 16.95
A87: 2 | B87: Amanda Dickson | C87: 00:34:05 | D87: 00:34:12 | E87: 00:35:48 | F87: 00:35:53 | G87: 00:38:06 | J87: 16.85
A88: 3 | B88: Katie Scott | C88: 00:33:53 | D88: 00:36:47 | E88: 00:37:11 | F88: 00:37:13 | G88: 00:37:48 | J88: 16.41
B90: 16 & Under | C90: Best 5 rides
C91: 1 | D91: 2 | E91: 3 | F91: 4 | G91: 5 | J91: Average Speed (mph)
A92: 1 | B92: Archie Scott | C92: 00:29:10 | D92: 00:30:27 | E92: 00:31:00 | F92: 00:31:11 | G92: 00:31:52 | J92: 19.53
A93: 2 | B93: Katie Scott | C93: 00:33:53 | D93: 00:36:47 | E93: 00:37:11 | F93: 00:37:13 | G93: 00:37:48 | J93: 16.41
A94: 3 | B94: Elliot Lassiter | C94: 00:24:53 | D94: 00:25:27 | J94: 23.85
A95: 4 | B95: Daniel Watt | C95: 00:27:39 | J95: 21.7
B97: Newcomer | C97: Best 5 rides
C98: 1 | D98: 2 | E98: 3 | F98: 4 | G98: 5 | J98: Average Speed (mph)
A99: 1 | B99: Rob Merrison | C99: 00:23:07 | D99: 00:23:09 | E99: 00:23:25 | F99: 00:24:05 | G99: 00:24:21 | J99: 25.4
A100: 2 | B100: Adriano dos Santos | C100: 00:24:10 | D100: 00:24:27 | E100: 00:24:34 | F100: 00:24:43 | G100: 00:24:47 | J100: 24.46
A101: 3 | B101: Dave Gibson | C101: 00:24:36 | D101: 00:24:43 | E101: 00:24:47 | F101: 00:24:49 | G101: 00:24:50 | J101: 24.25
A102: 4 | B102: Steve Davies | C102: 00:25:05 | D102: 00:25:11 | E102: 00:25:14 | F102: 00:25:15 | G102: 00:25:16 | J102: 23.81
A103: 5 | B103: Alex McIntosh | C103: 00:27:02 | D103: 00:27:11 | E103: 00:27:32 | F103: 00:27:42 | G103: 00:28:31 | J103: 21.75
A104: 6 | B104: Daniel Darby | C104: 00:27:24 | D104: 00:27:34 | E104: 00:28:01 | F104: 00:28:30 | G104: 00:28:34 | J104: 21.43
A105: 7 | B105: Nick Fiore | C105: 00:27:56 | D105: 00:28:02 | E105: 00:28:19 | F105: 00:28:25 | G105: 00:28:53 | J105: 21.19
A106: 8 | B106: Marc Roberts | C106: 00:27:51 | D106: 00:27:53 | E106: 00:28:07 | F106: 00:28:34 | G106: 00:29:20 | J106: 21.17
A107: 9 | B107: Archie Scott | C107: 00:29:10 | D107: 00:30:27 | E107: 00:31:00 | F107: 00:31:11 | G107: 00:31:52 | J107: 19.53
A108: 10 | B108: Mandy Scott | C108: 00:32:36 | D108: 00:34:56 | E108: 00:35:38 | F108: 00:36:18 | G108: 00:37:36 | J108: 16.95
A109: 11 | B109: Amanda Dickson | C109: 00:34:05 | D109: 00:34:12 | E109: 00:35:48 | F109: 00:35:53 | G109: 00:38:06 | J109: 16.85
A110: 12 | B110: Katie Scott | C110: 00:33:53 | D110: 00:36:47 | E110: 00:37:11 | F110: 00:37:13 | G110: 00:37:48 | J110: 16.41
A111: 13 | B111: Jeff Smith | C111: 00:25:41 | D111: 00:25:50 | E111: 00:25:57 | F111: 00:25:58 | J111: 23.21
A112: 14 | B112: Clive Hayter | C112: 00:24:25 | D112: 00:24:53 | J112: 24.35
A113: 15 | B113: Elliot Lassiter | C113: 00:24:53 | D113: 00:25:27 | J113: 23.85
A114: 16 | B114: Matt Cooper | C114: 00:25:35 | D114: 00:26:51 | J114: 22.89
A115: 17 | B115: Andy Bent | C115: 00:26:58 | D115: 00:26:59 | J115: 22.25
A116: 18 | B116: Mark Chick | C116: 00:26:25 | D116: 00:27:53 | J116: 22.1
A117: 19 | B117: Trevor Sherwood | C117: 00:28:46 | D117: 00:29:19 | J117: 20.66
A118: 20 | B118: Chris Fox | C118: 00:30:46 | D118: 00:31:13 | J118: 19.37
A119: 21 | B119: Andy Bentley | C119: 00:24:04 | J119: 24.94
A120: 22 | B120: Paul Adams | C120: 00:27:12 | J120: 22.06
A121: 23 | B121: Craig Scott | C121: 00:27:16 | J121: 22.01
A122: 24 | B122: Daniel Watt | C122: 00:27:39 | J122: 21.7
A123: 25 | B123: Dave Roper | C123: 00:29:00 | J123: 20.69
A125: * Number of counting rides reduced as insufficient riders completed the required number of rides
A126: Shading denotes the required number of rides were not completed

Sheet Points 2014 (hidden)
C1: 86400
C2: Start Points | D2: 60
C3: Max Points | D3: 75
C4: Min Points | D4: 45 | R4: =75*7 -> 525
C5: Counting Rides | D5: 7
B6: Swindon RC Club 10 Points Competition 2014
I7: 2013-04-17 | L7: =I7+7 -> 2013-04-24 | O7: =L7+7 -> 2013-05-01 | R7: =O7+7 -> 2013-05-08 | U7: =R7+7 -> 2013-05-15 | X7: =U7+7 -> 2013-05-22 | AA7: =X7+7 -> 2013-05-29 | AD7: 2014-06-05 | AG7: =AD7+14 -> 2014-06-19 | AJ7: =AG7+7 -> 2014-06-26 | AM7: =AJ7+7 -> 2014-07-03 | AP7: =AM7+7 -> 2014-07-10 | AS7: =AP7+7 -> 2014-07-17 | AV7: =AS7+7 -> 2014-07-24 | AY7: =AV7+7 -> 2014-07-31 | BB7: =AY7+7 -> 2014-08-07 | BE7: =BB7+7 -> 2014-08-14 | BH7: =BE7+7 -> 2014-08-21 | BK7: =BH7+7 -> 2014-08-28
B8: (names shaded grey indicate the required marshaling and/or timekeeping has not yet been completed) | D8: Rides | E8: Marshal/ Timekeep | F8: Total Points (Best 7) | G8: Season's Best | H8: Time | I8: Points | J8: Best to date | K8: Time | L8: Points | M8: Best to date | N8: Time | O8: Points | P8: Best to date | Q8: Time | R8: Points | S8: Best to date | T8: Time | U8: Points | V8: Best to date | W8: Time | X8: Points | Y8: Best to date | Z8: Time | AA8: Points | AB8: Best to date | AC8: Time | AD8: Points | AE8: Best to date | AF8: Time | AG8: Points | AH8: Best to date | AI8: Time | AJ8: Points | AK8: Best to date | AL8: Time | AM8: Points | AN8: Best to date | AO8: Time | AP8: Points | AQ8: Best to date | AR8: Time | AS8: Points | AT8: Best to date | AU8: Time | AV8: Points | AW8: Best to date | AX8: Time | AY8: Points | AZ8: Best to date | BA8: Time | BB8: Points | BC8: Best to date | BD8: Time | BE8: Points | BF8: Best to date | BG8: Time | BH8: Points | BI8: Best to date | BJ8: Time | BK8: Points | BL8: Best to date
C9: 2 | D9: =COUNT(H9,K9,N9,Q9,T9,W9,Z9,AC9,AF9,AI9,AL9,AO9,AR9,AU9,AX9,BA9,BD9,BG9,BJ9) -> 0 | E9: =VLOOKUP(C9,#REF!,2,FALSE) ->  | F9: =ROUNDDOWN(LARGE(H9:BK9,1)+(IF($D$5>1,LARGE(H9:BK9,2),0))+(IF($D$5>2,LARGE(H9:BK9,3),0))+(IF($D$5>3,LARGE(H9:BK9,4),0))+(IF($D$5>4,LARGE(H9:BK9,5),0))+(IF($D$5>5,LARGE(H9:BK9,6),0))+(IF($D$5>6,LARGE(H9:BK9,7),0)),0) -> 0 | G9: =IF(D9=0,999,MIN(H9,K9,N9,Q9,T9,W9,Z9,AC9,AF9,AI9,AL9,AO9,AR9,AU9,AX9,BA9,BD9,BG9,BJ9)) -> 999 | I9: =IF(H9="",0,$D$2) -> 0 | J9: =IF(H9="","",H9) ->  | L9: =IF(K9="",0,IF(J9="",$D$2,IF((J9-K9)*$C$1+$D$2<$D$4,$D$4,IF((J9-K9)*$C$1+$D$2>$D$3,$D$3,IF((J9-K9)*$C$1+$D$2<$D$3,(J9-K9)*$C$1+$D$2,0))))) -> 0 | M9: =IF(AND(J9="",K9="")=TRUE,"",MIN(J9,K9)) ->  | O9: =IF(N9="",0,IF(M9="",$D$2,IF((M9-N9)*$C$1+$D$2<$D$4,$D$4,IF((M9-N9)*$C$1+$D$2>$D$3,$D$3,IF((M9-N9)*$C$1+$D$2<$D$3,(M9-N9)*$C$1+$D$2,0))))) -> 0 | P9: =IF(AND(M9="",N9="")=TRUE,"",MIN(M9,N9)) ->  | R9: =IF(Q9="",0,IF(P9="",$D$2,IF((P9-Q9)*$C$1+$D$2<$D$4,$D$4,IF((P9-Q9)*$C$1+$D$2>$D$3,$D$3,IF((P9-Q9)*$C$1+$D$2<$D$3,(P9-Q9)*$C$1+$D$2,0))))) -> 0 | U9: =IF(T9="",0,IF(S9="",$D$2,IF((S9-T9)*$C$1+$D$2<$D$4,$D$4,IF((S9-T9)*$C$1+$D$2>$D$3,$D$3,IF((S9-T9)*$C$1+$D$2<$D$3,(S9-T9)*$C$1+$D$2,0))))) -> 0 | V9: =IF(AND(S9="",T9="")=TRUE,"",MIN(S9,T9)) ->  | X9: =IF(W9="",0,IF(V9="",$D$2,IF((V9-W9)*$C$1+$D$2<$D$4,$D$4,IF((V9-W9)*$C$1+$D$2>$D$3,$D$3,IF((V9-W9)*$C$1+$D$2<$D$3,(V9-W9)*$C$1+$D$2,0))))) -> 0 | Y9: =IF(AND(V9="",W9="")=TRUE,"",MIN(V9,W9)) ->  | AA9: =IF(Z9="",0,IF(Y9="",$D$2,IF((Y9-Z9)*$C$1+$D$2<$D$4,$D$4,IF((Y9-Z9)*$C$1+$D$2>$D$3,$D$3,IF((Y9-Z9)*$C$1+$D$2<$D$3,(Y9-Z9)*$C$1+$D$2,0))))) -> 0 | AB9: =IF(AND(Y9="",Z9="")=TRUE,"",MIN(Y9,Z9)) ->  | AD9: =IF(AC9="",0,IF(AB9="",$D$2,IF((AB9-AC9)*$C$1+$D$2<$D$4,$D$4,IF((AB9-AC9)*$C$1+$D$2>$D$3,$D$3,IF((AB9-AC9)*$C$1+$D$2<$D$3,(AB9-AC9)*$C$1+$D$2,0))))) -> 0 | AE9: =IF(AND(AB9="",AC9="")=TRUE,"",MIN(AB9,AC9)) ->  | AG9: =IF(AF9="",0,IF(AE9="",$D$2,IF((AE9-AF9)*$C$1+$D$2<$D$4,$D$4,IF((AE9-AF9)*$C$1+$D$2>$D$3,$D$3,IF((AE9-AF9)*$C$1+$D$2<$D$3,(AE9-AF9)*$C$1+$D$2,0))))) -> 0 | AH9: =IF(AND(AE9="",AF9="")=TRUE,"",MIN(AE9,AF9)) ->  | AJ9: =IF(AI9="",0,IF(AH9="",$D$2,IF((AH9-AI9)*$C$1+$D$2<$D$4,$D$4,IF((AH9-AI9)*$C$1+$D$2>$D$3,$D$3,IF((AH9-AI9)*$C$1+$D$2<$D$3,(AH9-AI9)*$C$1+$D$2,0))))) -> 0 | AK9: =IF(AND(AH9="",AI9="")=TRUE,"",MIN(AH9,AI9)) ->  | AM9: =IF(AL9="",0,IF(AK9="",$D$2,IF((AK9-AL9)*$C$1+$D$2<$D$4,$D$4,IF((AK9-AL9)*$C$1+$D$2>$D$3,$D$3,IF((AK9-AL9)*$C$1+$D$2<$D$3,(AK9-AL9)*$C$1+$D$2,0))))) -> 0 | AN9: =IF(AND(AK9="",AL9="")=TRUE,"",MIN(AK9,AL9)) ->  | AP9: =IF(AO9="",0,IF(AN9="",$D$2,IF((AN9-AO9)*$C$1+$D$2<$D$4,$D$4,IF((AN9-AO9)*$C$1+$D$2>$D$3,$D$3,IF((AN9-AO9)*$C$1+$D$2<$D$3,(AN9-AO9)*$C$1+$D$2,0))))) -> 0 | AQ9: =IF(AND(AN9="",AO9="")=TRUE,"",MIN(AN9,AO9)) ->  | AS9: =IF(AR9="",0,IF(AQ9="",$D$2,IF((AQ9-AR9)*$C$1+$D$2<$D$4,$D$4,IF((AQ9-AR9)*$C$1+$D$2>$D$3,$D$3,IF((AQ9-AR9)*$C$1+$D$2<$D$3,(AQ9-AR9)*$C$1+$D$2,0))))) -> 0 | AT9: =IF(AND(AQ9="",AR9="")=TRUE,"",MIN(AQ9,AR9)) ->  | AV9: =IF(AU9="",0,IF(AT9="",$D$2,IF((AT9-AU9)*$C$1+$D$2<$D$4,$D$4,IF((AT9-AU9)*$C$1+$D$2>$D$3,$D$3,IF((AT9-AU9)*$C$1+$D$2<$D$3,(AT9-AU9)*$C$1+$D$2,0))))) -> 0 | AW9: =IF(AND(AT9="",AU9="")=TRUE,"",MIN(AT9,AU9)) ->  | AY9: =IF(AX9="",0,IF(AW9="",$D$2,IF((AW9-AX9)*$C$1+$D$2<$D$4,$D$4,IF((AW9-AX9)*$C$1+$D$2>$D$3,$D$3,IF((AW9-AX9)*$C$1+$D$2<$D$3,(AW9-AX9)*$C$1+$D$2,0))))) -> 0 | AZ9: =IF(AND(AW9="",AX9="")=TRUE,"",MIN(AW9,AX9)) ->  | BB9: =IF(BA9="",0,IF(AZ9="",$D$2,IF((AZ9-BA9)*$C$1+$D$2<$D$4,$D$4,IF((AZ9-BA9)*$C$1+$D$2>$D$3,$D$3,IF((AZ9-BA9)*$C$1+$D$2<$D$3,(AZ9-BA9)*$C$1+$D$2,0))))) -> 0 | BC9: =IF(AND(AZ9="",BA9="")=TRUE,"",MIN(AZ9,BA9)) ->  | BE9: =IF(BD9="",0,IF(BC9="",$D$2,IF((BC9-BD9)*$C$1+$D$2<$D$4,$D$4,IF((BC9-BD9)*$C$1+$D$2>$D$3,$D$3,IF((BC9-BD9)*$C$1+$D$2<$D$3,(BC9-BD9)*$C$1+$D$2,0))))) -> 0 | BF9: =IF(AND(BC9="",BD9="")=TRUE,"",MIN(BC9,BD9)) ->  | BH9: =IF(BG9="",0,IF(BF9="",$D$2,IF((BF9-BG9)*$C$1+$D$2<$D$4,$D$4,IF((BF9-BG9)*$C$1+$D$2>$D$3,$D$3,IF((BF9-BG9)*$C$1+$D$2<$D$3,(BF9-BG9)*$C$1+$D$2,0))))) -> 0 | BI9: =IF(AND(BF9="",BG9="")=TRUE,"",MIN(BF9,BG9)) ->  | BK9: =IF(BJ9="",0,IF(BI9="",$D$2,IF((BI9-BJ9)*$C$1+$D$2<$D$4,$D$4,IF((BI9-BJ9)*$C$1+$D$2>$D$3,$D$3,IF((BI9-BJ9)*$C$1+$D$2<$D$3,(BI9-BJ9)*$C$1+$D$2,0))))) -> 0 | BL9: =IF(AND(BI9="",BJ9="")=TRUE,"",MIN(BI9,BJ9)) -> 
A10: 1 | B10: =IF(C10="","",IF(F10=F9,"=",A10)) -> 1 | C10: Marc Allen | D10: 16 | E10: =VLOOKUP(C10,#REF!,2,FALSE) ->  | F10: 493 | G10: 00:23:43 | H10: 00:26:02 | I10: 60 | J10: 00:26:02 | K10: 00:25:09 | L10: 75 | M10: 00:25:09 | N10: 00:24:56 | O10: 73 | P10: 00:24:56 | Q10: 00:25:12 | R10: 45 | S10: =IF(AND(P10="",Q10="")=TRUE,"",MIN(P10,Q10)) -> 00:24:56 | T10: 00:25:13 | U10: 45 | V10: 00:24:56 | W10: 00:24:44 | X10: 72 | Y10: 00:24:44 | Z10: 00:24:41 | AA10: 63 | AB10: 00:24:41 | AC10: 00:24:38 | AD10: 63 | AE10: 00:24:38 | AF10: 00:24:39 | AG10: 59 | AH10: 00:24:38 | AI10: 00:24:44 | AJ10: 54 | AK10: 00:24:38 | AM10: 0 | AN10: 00:24:38 | AP10: 0 | AQ10: 00:24:38 | AR10: 00:23:55 | AS10: 75 | AT10: 00:23:55 | AU10: 00:24:00 | AV10: 55 | AW10: 00:23:55 | AX10: 00:24:16 | AY10: 45 | AZ10: 00:23:55 | BA10: 00:23:43 | BB10: 72 | BC10: 00:23:43 | BD10: 00:24:46 | BE10: 45 | BF10: 00:23:43 | BG10: 00:24:56 | BH10: 45 | BI10: 00:23:43 | BK10: 0 | BL10: 00:23:43 | BM10: =IF(E10="N/A",C10,IF(E10>=$C$9,C10,"")) -> 
A11: 2 | B11: 2 | C11: Rob Patterson | D11: 9 | E11: =VLOOKUP(C11,#REF!,2,FALSE) ->  | F11: 481 | G11: 00:25:14 | I11: 0 | L11: 0 | O11: 0 | Q11: 00:26:50 | R11: 60 | S11: 00:26:50 | T11: 00:26:20 | U11: 75 | V11: 00:26:20 | X11: 0 | Y11: 00:26:20 | Z11: 00:26:18 | AA11: 62 | AB11: 00:26:18 | AD11: 0 | AE11: 00:26:18 | AF11: 00:26:16 | AG11: 62 | AH11: 00:26:16 | AJ11: 0 | AK11: 00:26:16 | AL11: 00:26:04 | AM11: 72 | AN11: 00:26:04 | AO11: 00:25:41 | AP11: 75 | AQ11: 00:25:41 | AR11: 00:25:45 | AS11: 56 | AT11: 00:25:41 | AV11: 0 | AW11: 00:25:41 | AX11: 00:25:52 | AY11: 49 | AZ11: 00:25:41 | BA11: 00:25:14 | BB11: 75 | BC11: 00:25:14 | BE11: 0 | BF11: 00:25:14 | BH11: 0 | BI11: 00:25:14 | BK11: 0 | BL11: 00:25:14
A12: 3 | B12: 3 | C12: Chris Broad-Drake | D12: 15 | E12: =VLOOKUP(C12,#REF!,2,FALSE) ->  | F12: 476 | G12: 00:23:19 | H12: 00:24:43 | I12: 60 | J12: 00:24:43 | K12: 00:25:07 | L12: 45 | M12: 00:24:43 | N12: 00:24:13 | O12: 75 | P12: 00:24:13 | R12: 0 | S12: 00:24:13 | T12: 00:23:56 | U12: 75 | V12: 00:23:56 | W12: 00:23:53 | X12: 63 | Y12: 00:23:53 | Z12: 00:23:50 | AA12: 63 | AB12: 00:23:50 | AC12: 00:24:15 | AD12: 45 | AE12: 00:23:50 | AF12: 00:23:45 | AG12: 65 | AH12: 00:23:45 | AI12: 00:24:39 | AJ12: 45 | AK12: 00:23:45 | AM12: 0 | AN12: 00:23:45 | AP12: 0 | AQ12: 00:23:45 | AR12: 00:23:19 | AS12: 75 | AT12: 00:23:19 | AU12: 00:24:06 | AV12: 45 | AW12: 00:23:19 | AX12: 00:24:07 | AY12: 45 | AZ12: 00:23:19 | BA12: 00:24:00 | BB12: 45 | BC12: 00:23:19 | BD12: 00:24:10 | BE12: 45 | BF12: 00:23:19 | BG12: 00:23:50 | BH12: 45 | BI12: 00:23:19 | BK12: 0 | BL12: 00:23:19
A13: 4 | B13: 4 | C13: Andy Claxton | D13: 11 | E13: =VLOOKUP(C13,#REF!,2,FALSE) ->  | F13: 475 | G13: 00:22:39 | H13: 00:23:35 | I13: 60 | J13: 00:23:35 | L13: 0 | M13: 00:23:35 | N13: 00:23:45 | O13: 50 | P13: 00:23:35 | R13: 0 | S13: 00:23:35 | T13: 00:23:19 | U13: 75 | V13: 00:23:19 | W13: 00:23:08 | X13: 71 | Y13: 00:23:08 | AA13: 0 | AB13: 00:23:08 | AC13: 00:22:57 | AD13: 71 | AE13: 00:22:57 | AF13: 00:22:52 | AG13: 65 | AH13: 00:22:52 | AI13: 00:23:30 | AJ13: 45 | AK13: 00:22:52 | AM13: 0 | AN13: 00:22:52 | AP13: 0 | AQ13: 00:22:52 | AR13: 00:22:53 | AS13: 59 | AT13: 00:22:52 | AU13: 00:22:42 | AV13: 70 | AW13: 00:22:42 | AX13: 00:22:39 | AY13: 63 | AZ13: 00:22:39 | BB13: 0 | BC13: 00:22:39 | BE13: 0 | BF13: 00:22:39 | BG13: 00:23:12 | BH13: 45 | BI13: 00:22:39 | BK13: 0 | BL13: 00:22:39
A14: 5 | B14: 5 | C14: Paul Adams | D14: 7 | E14: =VLOOKUP(C14,#REF!,2,FALSE) ->  | F14: 446 | G14: 00:26:35 | H14: 00:27:55 | I14: 60 | J14: 00:27:55 | K14: 00:28:04 | L14: 51 | M14: 00:27:55 | O14: 0 | P14: 00:27:55 | R14: 0 | S14: 00:27:55 | U14: 0 | V14: 00:27:55 | W14: 00:27:28 | X14: 75 | Y14: 00:27:28 | Z14: 00:27:22 | AA14: 66 | AB14: 00:27:22 | AD14: 0 | AE14: 00:27:22 | AG14: 0 | AH14: 00:27:22 | AJ14: 0 | AK14: 00:27:22 | AM14: 0 | AN14: 00:27:22 | AO14: 00:26:54 | AP14: 75 | AQ14: 00:26:54 | AR14: 00:26:35 | AS14: 75 | AT14: 00:26:35 | AV14: 0 | AW14: 00:26:35 | AY14: 0 | AZ14: 00:26:35 | BB14: 0 | BC14: 00:26:35 | BE14: 0 | BF14: 00:26:35 | BG14: 00:27:24 | BH14: 45 | BI14: 00:26:35 | BK14: 0 | BL14: 00:26:35
A15: 6 | B15: 6 | C15: Daniel Darby | D15: 11 | E15: =VLOOKUP(C15,#REF!,2,FALSE) ->  | F15: 442 | G15: 00:26:00 | H15: 00:26:51 | I15: 60 | J15: 00:26:51 | L15: =IF(K15="",0,IF(J15="",$D$2,IF((J15-K15)*$C$1+$D$2=$D$4,$D$4,IF((J15-K15)*$C$1+$D$2>$D$3,$D$3,IF((J15-K15)*$C$1+$D$2<$D$3,(J15-K15)*$C$1+$D$2,0))))) -> 0 | M15: 00:26:51 | O15: 0 | P15: 00:26:51 | R15: 0 | S15: 00:26:51 | T15: 00:27:19 | U15: 45 | V15: 00:26:51 | W15: 00:27:07 | X15: 45 | Y15: 00:26:51 | AA15: 0 | AB15: 00:26:51 | AC15: 00:26:46 | AD15: 65 | AE15: 00:26:46 | AF15: 00:26:38 | AG15: 68 | AH15: 00:26:38 | AJ15: 0 | AK15: 00:26:38 | AL15: 00:26:28 | AM15: 70 | AN15: 00:26:28 | AO15: 00:26:47 | AP15: 45 | AQ15: 00:26:28 | AR15: 00:26:30 | AS15: 58 | AT15: 00:26:28 | AV15: 0 | AW15: 00:26:28 | AX15: 00:26:42 | AY15: 46 | AZ15: 00:26:28 | BA15: 00:26:00 | BB15: 75 | BC15: 00:26:00 | BE15: 0 | BF15: 00:26:00 | BG15: 00:28:01 | BH15: 45 | BI15: 00:26:00 | BK15: 0 | BL15: 00:26:00
A16: 7 | B16: 7 | C16: Joe Schvartz | D16: 12 | E16: =VLOOKUP(C16,#REF!,2,FALSE) ->  | F16: 435 | G16: 00:22:40 | H16: 00:23:27 | I16: 60 | J16: 00:23:27 | K16: 00:22:52 | L16: =IF(K16="",0,IF(J16="",$D$2,IF((J16-K16)*$C$1+$D$2<$D$4,$D$4,IF((J16-K16)*$C$1+$D$2>$D$3,$D$3,IF((J16-K16)*$C$1+$D$2<$D$3,(J16-K16)*$C$1+$D$2,0))))) -> 75 | M16: 00:22:52 | O16: 0 | P16: 00:22:52 | R16: 0 | S16: 00:22:52 | T16: 00:22:51 | U16: 61 | V16: 00:22:51 | W16: 00:22:49 | X16: 62 | Y16: 00:22:49 | Z16: 00:23:00 | AA16: 49 | AB16: 00:22:49 | AC16: 00:23:02 | AD16: 47 | AE16: 00:22:49 | AG16: 0 | AH16: 00:22:49 | AJ16: 0 | AK16: 00:22:49 | AM16: 0 | AN16: 00:22:49 | AP16: 0 | AQ16: 00:22:49 | AR16: 00:22:51 | AS16: 58 | AT16: 00:22:49 | AU16: 00:22:59 | AV16: 50 | AW16: 00:22:49 | AX16: 00:23:19 | AY16: 45 | AZ16: 00:22:49 | BA16: 00:22:40 | BB16: 69 | BC16: 00:22:40 | BD16: 00:23:02 | BE16: 45 | BF16: 00:22:40 | BG16: 00:23:06 | BH16: 45 | BI16: 00:22:40 | BK16: 0 | BL16: 00:22:40
A17: 8 | B17: = | C17: Jeff Smith | D17: 13 | E17: =VLOOKUP(C17,#REF!,2,FALSE) ->  | F17: 435 | G17: 00:24:39 | H17: 00:25:24 | I17: 60 | J17: 00:25:24 | L17: 0 | M17: 00:25:24 | N17: 00:27:09 | O17: 45 | P17: 00:25:24 | Q17: 00:26:53 | R17: 45 | S17: 00:25:24 | T17: 00:25:49 | U17: 45 | V17: 00:25:24 | W17: 00:25:58 | X17: 45 | Y17: 00:25:24 | Z17: 00:26:22 | AA17: 45 | AB17: 00:25:24 | AD17: 0 | AE17: 00:25:24 | AF17: 00:26:17 | AG17: 45 | AH17: 00:25:24 | AJ17: 0 | AK17: 00:25:24 | AM17: 0 | AN17: 00:25:24 | AO17: 00:25:20 | AP17: 64 | AQ17: 00:25:20 | AR17: 00:25:23 | AS17: 57 | AT17: 00:25:20 | AU17: 00:25:21 | AV17: 59 | AW17: 00:25:20 | AX17: 00:24:55 | AY17: 75 | AZ17: 00:24:55 | BA17: 00:24:39 | BB17: 75 | BC17: 00:24:39 | BD17: 00:25:25 | BE17: 45 | BF17: 00:24:39 | BH17: 0 | BI17: 00:24:39 | BK17: 0 | BL17: 00:24:39
A18: 9 | B18: 9 | C18: Kieran Golding | D18: 9 | E18: =VLOOKUP(C18,#REF!,2,FALSE) ->  | F18: 432 | G18: 00:27:41 | H18: 00:29:13 | I18: 60 | J18: 00:29:13 | K18: 00:28:21 | L18: 75 | M18: 00:28:21 | O18: 0 | P18: 00:28:21 | R18: 0 | S18: 00:28:21 | T18: 00:28:31 | U18: 50 | V18: 00:28:21 | X18: 0 | Y18: 00:28:21 | Z18: 00:27:52 | AA18: 75 | AB18: 00:27:52 | AC18: 00:27:41 | AD18: 71 | AE18: 00:27:41 | AG18: 0 | AH18: 00:27:41 | AJ18: 0 | AK18: 00:27:41 | AM18: 0 | AN18: 00:27:41 | AP18: 0 | AQ18: 00:27:41 | AS18: 0 | AT18: 00:27:41 | AU18: 00:27:47 | AV18: 54 | AW18: 00:27:41 | AX18: 00:28:12 | AY18: 45 | AZ18: 00:27:41 | BB18: 0 | BC18: 00:27:41 | BD18: 00:27:54 | BE18: 47 | BF18: 00:27:41 | BG18: 00:27:59 | BH18: 45 | BI18: 00:27:41 | BK18: 0 | BL18: 00:27:41
A19: 10 | B19: = | C19: Steve Davies | D19: 9 | E19: =VLOOKUP(C19,#REF!,2,FALSE) ->  | F19: 432 | G19: 00:23:59 | I19: 0 | K19: 00:25:26 | L19: 60 | M19: 00:25:26 | O19: 0 | P19: 00:25:26 | R19: 0 | S19: 00:25:26 | T19: 00:25:06 | U19: 75 | V19: 00:25:06 | X19: 0 | Y19: 00:25:06 | AA19: 0 | AB19: 00:25:06 | AC19: 00:24:12 | AD19: 75 | AE19: 00:24:12 | AF19: 00:24:28 | AG19: 45 | AH19: 00:24:12 | AI19: 00:24:54 | AJ19: 45 | AK19: 00:24:12 | AL19: 00:24:18 | AM19: 54 | AN19: 00:24:12 | AP19: 0 | AQ19: 00:24:12 | AR19: 00:24:43 | AS19: 45 | AT19: 00:24:12 | AU19: 00:23:59 | AV19: 73 | AW19: 00:23:59 | AY19: 0 | AZ19: 00:23:59 | BA19: 00:24:09 | BB19: 50 | BC19: 00:23:59 | BE19: 0 | BF19: 00:23:59 | BH19: 0 | BI19: 00:23:59 | BK19: 0 | BL19: 00:23:59
A20: 11 | B20: 11 | C20: Keith Waller | D20: 10 | E20: =VLOOKUP(C20,#REF!,2,FALSE) ->  | F20: 418 | G20: 00:24:49 | I20: 0 | L20: 0 | N20: 00:25:53 | O20: 60 | P20: 00:25:53 | R20: 0 | S20: 00:25:53 | T20: 00:25:05 | U20: 75 | V20: 00:25:05 | W20: 00:25:25 | X20: 45 | Y20: 00:25:05 | AA20: 0 | AB20: 00:25:05 | AD20: 0 | AE20: 00:25:05 | AG20: 0 | AH20: 00:25:05 | AI20: 00:25:37 | AJ20: 45 | AK20: 00:25:05 | AM20: 0 | AN20: 00:25:05 | AP20: 0 | AQ20: 00:25:05 | AR20: 00:25:02 | AS20: 63 | AT20: 00:25:02 | AU20: 00:25:20 | AV20: 45 | AW20: 00:25:02 | AX20: 00:24:49 | AY20: 73 | AZ20: 00:24:49 | BA20: 00:24:52 | BB20: 57 | BC20: 00:24:49 | BD20: 00:25:41 | BE20: 45 | BF20: 00:24:49 | BG20: 00:25:21 | BH20: 45 | BI20: 00:24:49 | BK20: 0 | BL20: 00:24:49
A21: 12 | B21: 12 | C21: Les Liddiard | D21: 10 | E21: =VLOOKUP(C21,#REF!,2,FALSE) ->  | F21: 404 | G21: 00:22:21 | H21: 00:22:42 | I21: 60 | J21: 00:22:42 | K21: 00:22:29 | L21: 73 | M21: 00:22:29 | N21: 00:22:28 | O21: 61 | P21: 00:22:28 | R21: 0 | S21: 00:22:28 | T21: 00:22:49 | U21: 45 | V21: 00:22:28 | W21: 00:22:35 | X21: 53 | Y21: 00:22:28 | AA21: 0 | AB21: 00:22:28 | AD21: 0 | AE21: 00:22:28 | AG21: 0 | AH21: 00:22:28 | AJ21: 0 | AK21: 00:22:28 | AL21: 00:22:46 | AM21: 45 | AN21: 00:22:28 | AO21: 00:22:42 | AP21: 46 | AQ21: 00:22:28 | AS21: 0 | AT21: 00:22:28 | AV21: 0 | AW21: 00:22:28 | AY21: 0 | AZ21: 00:22:28 | BA21: 00:22:21 | BB21: 67 | BC21: 00:22:21 | BD21: 00:22:42 | BE21: 45 | BF21: 00:22:21 | BG21: 00:22:54 | BH21: 45 | BI21: 00:22:21 | BK21: 0 | BL21: 00:22:21
A22: 13 | B22: 13 | C22: Adriano dos Santos | D22: 7 | E22: =VLOOKUP(C22,#REF!,2,FALSE) ->  | F22: 392 | G22: 00:23:52 | H22: 00:25:07 | I22: 60 | J22: 00:25:07 | K22: 00:24:18 | L22: 75 | M22: 00:24:18 | O22: 0 | P22: 00:24:18 | Q22: 00:25:07 | R22: 45 | S22: 00:24:18 | T22: 00:23:52 | U22: 75 | V22: 00:23:52 | X22: 0 | Y22: 00:23:52 | Z22: 00:26:08 | AA22: 45 | AB22: 00:23:52 | AD22: 0 | AE22: 00:23:52 | AG22: 0 | AH22: 00:23:52 | AJ22: 0 | AK22: 00:23:52 | AM22: 0 | AN22: 00:23:52 | AP22: 0 | AQ22: 00:23:52 | AS22: 0 | AT22: 00:23:52 | AV22: 0 | AW22: 00:23:52 | AY22: 0 | AZ22: 00:23:52 | BB22: 0 | BC22: 00:23:52 | BD22: 00:24:05 | BE22: 47 | BF22: 00:23:52 | BG22: 00:24:19 | BH22: 45 | BI22: 00:23:52 | BK22: 0 | BL22: 00:23:52
A23: 14 | B23: 14 | C23: Dave Gibson | D23: 11 | E23: =VLOOKUP(C23,#REF!,2,FALSE) ->  | F23: 376 | G23: 00:24:00 | H23: 00:24:15 | I23: 60 | J23: 00:24:15 | L23: 0 | M23: 00:24:15 | N23: 00:25:21 | O23: 45 | P23: 00:24:15 | Q23: 00:24:51 | R23: 45 | S23: 00:24:15 | T23: 00:24:38 | U23: 45 | V23: 00:24:15 | W23: 00:24:36 | X23: 45 | Y23: 00:24:15 | AA23: 0 | AB23: 00:24:15 | AC23: 00:24:29 | AD23: 46 | AE23: 00:24:15 | AG23: 0 | AH23: 00:24:15 | AJ23: 0 | AK23: 00:24:15 | AM23: 0 | AN23: 00:24:15 | AO23: 00:24:49 | AP23: 45 | AQ23: 00:24:15 | AR23: 00:24:06 | AS23: 69 | AT23: 00:24:06 | AV23: 0 | AW23: 00:24:06 | AX23: 00:24:00 | AY23: 66 | AZ23: 00:24:00 | BA23: 00:24:34 | BB23: 45 | BC23: 00:24:00 | BD23: 00:24:23 | BE23: 45 | BF23: 00:24:00 | BH23: 0 | BI23: 00:24:00 | BK23: 0 | BL23: 00:24:00
A24: 15 | B24: 15 | C24: Peter Garnett | D24: 15 | E24: =VLOOKUP(C24,#REF!,2,FALSE) ->  | F24: 362 | G24: 00:21:46 | H24: 00:21:59 | I24: 60 | J24: 00:21:59 | K24: 00:22:25 | L24: 45 | M24: 00:21:59 | N24: 00:22:26 | O24: 45 | P24: 00:21:59 | R24: 0 | S24: 00:21:59 | T24: 00:22:13 | U24: 46 | V24: 00:21:59 | W24: 00:22:18 | X24: 45 | Y24: 00:21:59 | Z24: 00:22:17 | AA24: 45 | AB24: 00:21:59 | AC24: 00:22:20 | AD24: 45 | AE24: 00:21:59 | AF24: 00:22:15 | AG24: 45 | AH24: 00:21:59 | AJ24: 0 | AK24: 00:21:59 | AM24: 0 | AN24: 00:21:59 | AO24: 00:22:12 | AP24: 47 | AQ24: 00:21:59 | AR24: 00:21:46 | AS24: 73 | AT24: 00:21:46 | AU24: 00:22:00 | AV24: 46 | AW24: 00:21:46 | AX24: 00:22:15 | AY24: 45 | AZ24: 00:21:46 | BA24: 00:22:15 | BB24: 45 | BC24: 00:21:46 | BD24: 00:22:32 | BE24: 45 | BF24: 00:21:46 | BG24: 00:22:43 | BH24: 45 | BI24: 00:21:46 | BK24: 0 | BL24: 00:21:46
A25: 16 | B25: 16 | C25: Stuart Longhurst | D25: 5 | E25: =VLOOKUP(C25,#REF!,2,FALSE) ->  | F25: 346 | G25: 00:26:52 | H25: 00:28:24 | I25: 60 | J25: 00:28:24 | L25: 0 | M25: 00:28:24 | O25: 0 | P25: 00:28:24 | R25: 0 | S25: 00:28:24 | T25: 00:27:49 | U25: 75 | V25: 00:27:49 | W25: 00:27:48 | X25: 61 | Y25: 00:27:48 | Z25: 00:27:28 | AA25: 75 | AB25: 00:27:28 | AC25: 00:26:52 | AD25: 75 | AE25: 00:26:52 | AG25: 0 | AH25: 00:26:52 | AJ25: 0 | AK25: 00:26:52 | AM25: 0 | AN25: 00:26:52 | AP25: 0 | AQ25: 00:26:52 | AS25: 0 | AT25: 00:26:52 | AV25: 0 | AW25: 00:26:52 | AY25: 0 | AZ25: 00:26:52 | BB25: 0 | BC25: 00:26:52 | BE25: 0 | BF25: 00:26:52 | BH25: 0 | BI25: 00:26:52 | BK25: 0 | BL25: 00:26:52
A26: 17 | B26: 17 | C26: Tom Sewell | D26: 6 | E26: =VLOOKUP(C26,#REF!,2,FALSE) ->  | F26: 341 | G26: 00:25:01 | I26: 0 | K26: 00:25:33 | L26: 60 | M26: 00:25:33 | N26: 00:26:20 | O26: 45 | P26: 00:25:33 | Q26: 00:26:05 | R26: 45 | S26: 00:25:33 | T26: 00:25:29 | U26: 64 | V26: 00:25:29 | W26: 00:25:37 | X26: 52 | Y26: 00:25:29 | AA26: 0 | AB26: 00:25:29 | AD26: 0 | AE26: 00:25:29 | AG26: 0 | AH26: 00:25:29 | AJ26: 0 | AK26: 00:25:29 | AM26: 0 | AN26: 00:25:29 | AP26: 0 | AQ26: 00:25:29 | AS26: 0 | AT26: 00:25:29 | AV26: 0 | AW26: 00:25:29 | AY26: 0 | AZ26: 00:25:29 | BB26: 0 | BC26: 00:25:29 | BE26: 0 | BF26: 00:25:29 | BG26: 00:25:01 | BH26: 75 | BI26: 00:25:01 | BK26: 0 | BL26: 00:25:01
A27: 18 | B27: 18 | C27: Richard Cooper | D27: 5 | E27: =VLOOKUP(C27,#REF!,2,FALSE) ->  | F27: 327 | G27: 00:23:17 | I27: 0 | K27: 00:24:53 | L27: 60 | M27: 00:24:53 | O27: 0 | P27: 00:24:53 | R27: 0 | S27: 00:24:53 | T27: 00:23:44 | U27: 75 | V27: 00:23:44 | W27: 00:23:30 | X27: 74 | Y27: 00:23:30 | AA27: 0 | AB27: 00:23:30 | AD27: 0 | AE27: 00:23:30 | AG27: 0 | AH27: 00:23:30 | AJ27: 0 | AK27: 00:23:30 | AM27: 0 | AN27: 00:23:30 | AP27: 0 | AQ27: 00:23:30 | AR27: 00:23:17 | AS27: 73 | AT27: 00:23:17 | AV27: 0 | AW27: 00:23:17 | AY27: 0 | AZ27: 00:23:17 | BA27: 00:23:39 | BB27: 45 | BC27: 00:23:17 | BE27: 0 | BF27: 00:23:17 | BH27: 0 | BI27: 00:23:17 | BK27: 0 | BL27: 00:23:17
A28: 19 | B28: 19 | C28: Amanda Adams | D28: 6 | E28: =VLOOKUP(C28,#REF!,2,FALSE) ->  | F28: 318 | G28: 00:31:12 | I28: 0 | K28: 00:32:30 | L28: 60 | M28: 00:32:30 | O28: 0 | P28: 00:32:30 | Q28: 00:31:12 | R28: 75 | S28: 00:31:12 | T28: 00:31:24 | U28: 48 | V28: 00:31:12 | X28: 0 | Y28: 00:31:12 | Z28: 00:31:48 | AA28: 45 | AB28: 00:31:12 | AD28: 0 | AE28: 00:31:12 | AG28: 0 | AH28: 00:31:12 | AJ28: 0 | AK28: 00:31:12 | AL28: 00:31:41 | AM28: 45 | AN28: 00:31:12 | AP28: 0 | AQ28: 00:31:12 | AS28: 0 | AT28: 00:31:12 | AV28: 0 | AW28: 00:31:12 | AY28: 0 | AZ28: 00:31:12 | BB28: 0 | BC28: 00:31:12 | BE28: 0 | BF28: 00:31:12 | BG28: 00:32:27 | BH28: 45 | BI28: 00:31:12 | BK28: 0 | BL28: 00:31:12
A29: 20 | B29: 20 | C29: Rob Merrison | D29: 5 | E29: =VLOOKUP(C29,#REF!,2,FALSE) ->  | F29: 310 | G29: 00:23:28 | I29: 0 | L29: 0 | N29: 00:24:44 | O29: 60 | P29: 00:24:44 | R29: 0 | S29: 00:24:44 | T29: 00:23:58 | U29: 75 | V29: 00:23:58 | W29: 00:24:24 | X29: 45 | Y29: 00:23:58 | AA29: 0 | AB29: 00:23:58 | AC29: 00:24:03 | AD29: 55 | AE29: 00:23:58 | AF29: 00:23:28 | AG29: 75 | AH29: 00:23:28 | AJ29: 0 | AK29: 00:23:28 | AM29: 0 | AN29: 00:23:28 | AP29: 0 | AQ29: 00:23:28 | AS29: 0 | AT29: 00:23:28 | AV29: 0 | AW29: 00:23:28 | AY29: 0 | AZ29: 00:23:28 | BB29: 0 | BC29: 00:23:28 | BE29: 0 | BF29: 00:23:28 | BH29: 0 | BI29: 00:23:28 | BK29: 0 | BL29: 00:23:28
A30: 21 | B30: 21 | C30: Mandy Scott | D30: 5 | E30: =VLOOKUP(C30,#REF!,2,FALSE) ->  | F30: 300 | G30: 00:28:39 | H30: 00:31:21 | I30: 60 | J30: 00:31:21 | K30: 00:30:25 | L30: 75 | M30: 00:30:25 | O30: 0 | P30: 00:30:25 | R30: 0 | S30: 00:30:25 | T30: 00:28:39 | U30: 75 | V30: 00:28:39 | X30: 0 | Y30: 00:28:39 | Z30: 00:30:21 | AA30: 45 | AB30: 00:28:39 | AD30: 0 | AE30: 00:28:39 | AG30: 0 | AH30: 00:28:39 | AJ30: 0 | AK30: 00:28:39 | AM30: 0 | AN30: 00:28:39 | AP30: 0 | AQ30: 00:28:39 | AS30: 0 | AT30: 00:28:39 | AV30: 0 | AW30: 00:28:39 | AX30: 00:32:33 | AY30: 45 | AZ30: 00:28:39 | BB30: 0 | BC30: 00:28:39 | BE30: 0 | BF30: 00:28:39 | BH30: 0 | BI30: 00:28:39 | BK30: 0 | BL30: 00:28:39
A31: 22 | B31: 22 | C31: Katie Scott | D31: 4 | E31: =VLOOKUP(C31,#REF!,2,FALSE) ->  | F31: 255 | G31: 00:29:45 | H31: 00:32:55 | I31: 60 | J31: 00:32:55 | K31: 00:33:51 | L31: 45 | M31: 00:32:55 | O31: 0 | P31: 00:32:55 | R31: 0 | S31: 00:32:55 | U31: 0 | V31: 00:32:55 | X31: 0 | Y31: 00:32:55 | Z31: 00:30:59 | AA31: 75 | AB31: 00:30:59 | AD31: 0 | AE31: 00:30:59 | AG31: 0 | AH31: 00:30:59 | AJ31: 0 | AK31: 00:30:59 | AM31: 0 | AN31: 00:30:59 | AP31: 0 | AQ31: 00:30:59 | AS31: 0 | AT31: 00:30:59 | AU31: 00:29:45 | AV31: 75 | AW31: 00:29:45 | AY31: 0 | AZ31: 00:29:45 | BB31: 0 | BC31: 00:29:45 | BE31: 0 | BF31: 00:29:45 | BH31: 0 | BI31: 00:29:45 | BK31: 0 | BL31: 00:29:45
A32: 23 | B32: 23 | C32: Archie Scott | D32: 4 | E32: =VLOOKUP(C32,#REF!,2,FALSE) ->  | F32: 244 | G32: 00:26:54 | H32: 00:27:18 | I32: 60 | J32: 00:27:18 | K32: 00:26:57 | L32: 75 | M32: 00:26:57 | O32: 0 | P32: 00:26:57 | R32: 0 | S32: 00:26:57 | T32: 00:27:11 | U32: 46 | V32: 00:26:57 | X32: 0 | Y32: 00:26:57 | AA32: 0 | AB32: 00:26:57 | AD32: 0 | AE32: 00:26:57 | AG32: 0 | AH32: 00:26:57 | AJ32: 0 | AK32: 00:26:57 | AM32: 0 | AN32: 00:26:57 | AP32: 0 | AQ32: 00:26:57 | AS32: 0 | AT32: 00:26:57 | AV32: 0 | AW32: 00:26:57 | AX32: 00:26:54 | AY32: 63 | AZ32: 00:26:54 | BB32: 0 | BC32: 00:26:54 | BE32: 0 | BF32: 00:26:54 | BH32: 0 | BI32: 00:26:54 | BK32: 0 | BL32: 00:26:54
A33: 24 | B33: 24 | C33: Leigh Schvartz | D33: 3 | E33: =VLOOKUP(C33,#REF!,2,FALSE) ->  | F33: 210 | G33: 00:23:11 | I33: 0 | K33: 00:25:30 | L33: 60 | M33: 00:25:30 | O33: 0 | P33: 00:25:30 | R33: 0 | S33: 00:25:30 | U33: 0 | V33: 00:25:30 | X33: 0 | Y33: 00:25:30 | AA33: 0 | AB33: 00:25:30 | AD33: 0 | AE33: 00:25:30 | AG33: 0 | AH33: 00:25:30 | AJ33: 0 | AK33: 00:25:30 | AM33: 0 | AN33: 00:25:30 | AP33: 0 | AQ33: 00:25:30 | AS33: 0 | AT33: 00:25:30 | AU33: 00:23:46 | AV33: 75 | AW33: 00:23:46 | AY33: 0 | AZ33: 00:23:46 | BA33: 00:23:11 | BB33: 75 | BC33: 00:23:11 | BE33: 0 | BF33: 00:23:11 | BH33: 0 | BI33: 00:23:11 | BK33: 0 | BL33: 00:23:11
A34: 25 | B34: 25 | C34: Laura Chadwick | D34: 3 | E34: =VLOOKUP(C34,#REF!,2,FALSE) ->  | F34: 180 | G34: 00:31:37 | I34: 0 | K34: 00:32:42 | L34: 60 | M34: 00:32:42 | O34: 0 | P34: 00:32:42 | R34: 0 | S34: 00:32:42 | T34: 00:31:37 | U34: 75 | V34: 00:31:37 | X34: 0 | Y34: 00:31:37 | Z34: 00:32:11 | AA34: 45 | AB34: 00:31:37 | AD34: 0 | AE34: 00:31:37 | AG34: 0 | AH34: 00:31:37 | AJ34: 0 | AK34: 00:31:37 | AM34: 0 | AN34: 00:31:37 | AP34: 0 | AQ34: 00:31:37 | AS34: 0 | AT34: 00:31:37 | AV34: 0 | AW34: 00:31:37 | AY34: 0 | AZ34: 00:31:37 | BB34: 0 | BC34: 00:31:37 | BE34: 0 | BF34: 00:31:37 | BH34: 0 | BI34: 00:31:37 | BK34: 0 | BL34: 00:31:37
A35: 26 | B35: 26 | C35: Tom Longland | D35: 3 | E35: =VLOOKUP(C35,#REF!,2,FALSE) ->  | F35: 165 | G35: 00:24:23 | I35: 0 | L35: 0 | O35: 0 | Q35: 01:26:50 | R35: 60 | T35: 00:24:23 | U35: 60 | V35: 00:24:23 | X35: 0 | Y35: 00:24:23 | AA35: 0 | AB35: 00:24:23 | AD35: 0 | AE35: 00:24:23 | AG35: 0 | AH35: 00:24:23 | AJ35: 0 | AK35: 00:24:23 | AM35: 0 | AN35: 00:24:23 | AO35: 00:24:58 | AP35: 45 | AQ35: 00:24:23 | AS35: 0 | AT35: 00:24:23 | AV35: 0 | AW35: 00:24:23 | AY35: 0 | AZ35: 00:24:23 | BB35: 0 | BC35: 00:24:23 | BE35: 0 | BF35: 00:24:23 | BH35: 0 | BI35: 00:24:23 | BK35: 0 | BL35: 00:24:23
A36: 27 | B36: 27 | C36: Paul O'Driscoll | D36: 2 | E36: =VLOOKUP(C36,#REF!,2,FALSE) ->  | F36: 105 | G36: 00:23:54 | I36: 0 | K36: 00:23:54 | L36: 60 | M36: 00:23:54 | N36: 00:24:18 | O36: 45 | P36: 00:23:54 | R36: 0 | S36: =IF(AND(P36="",Q36="")=TRUE,"",MIN(P36,Q36)) -> 00:23:54 | U36: 0 | V36: 00:23:54 | X36: 0 | Y36: 00:23:54 | AA36: 0 | AB36: 00:23:54 | AD36: 0 | AE36: 00:23:54 | AG36: 0 | AH36: 00:23:54 | AJ36: 0 | AK36: 00:23:54 | AM36: 0 | AN36: 00:23:54 | AP36: 0 | AQ36: 00:23:54 | AS36: 0 | AT36: 00:23:54 | AV36: 0 | AW36: 00:23:54 | AY36: 0 | AZ36: 00:23:54 | BB36: 0 | BC36: 00:23:54 | BE36: 0 | BF36: 00:23:54 | BH36: 0 | BI36: 00:23:54 | BK36: 0 | BL36: 00:23:54
A37: 28 | B37: = | C37: Niel Dunnage | D37: 2 | E37: =VLOOKUP(C37,#REF!,2,FALSE) ->  | F37: 105 | G37: 00:22:21 | H37: 00:22:21 | I37: 60 | J37: 00:22:21 | L37: 0 | M37: 00:22:21 | O37: 0 | P37: 00:22:21 | R37: 0 | S37: 00:22:21 | U37: 0 | V37: 00:22:21 | X37: 0 | Y37: 00:22:21 | AA37: 0 | AB37: 00:22:21 | AD37: 0 | AE37: 00:22:21 | AG37: 0 | AH37: 00:22:21 | AI37: 00:22:47 | AJ37: 45 | AK37: 00:22:21 | AM37: 0 | AN37: 00:22:21 | AP37: 0 | AQ37: 00:22:21 | AS37: 0 | AT37: 00:22:21 | AV37: 0 | AW37: 00:22:21 | AY37: 0 | AZ37: 00:22:21 | BB37: 0 | BC37: 00:22:21 | BE37: 0 | BF37: 00:22:21 | BH37: 0 | BI37: 00:22:21 | BK37: 0 | BL37: 00:22:21
A38: 29 | B38: = | C38: Sharon Dolman | D38: 2 | E38: =VLOOKUP(C38,#REF!,2,FALSE) ->  | F38: 105 | G38: 00:26:36 | I38: 0 | L38: 0 | O38: 0 | R38: 0 | U38: 0 | X38: 0 | AA38: 0 | AD38: 0 | AF38: 00:26:36 | AG38: 60 | AH38: 00:26:36 | AJ38: 0 | AK38: 00:26:36 | AM38: 0 | AN38: 00:26:36 | AP38: 0 | AQ38: 00:26:36 | AS38: 0 | AT38: 00:26:36 | AV38: 0 | AW38: 00:26:36 | AY38: 0 | AZ38: 00:26:36 | BB38: 0 | BC38: 00:26:36 | BE38: 0 | BF38: 00:26:36 | BG38: 00:27:27 | BH38: 45 | BI38: 00:26:36 | BK38: 0 | BL38: 00:26:36
A39: 30 | B39: 30 | C39: Malcolm Walklett | D39: 1 | E39: =VLOOKUP(C39,#REF!,2,FALSE) ->  | F39: 60 | G39: 00:24:56 | H39: 00:24:56 | I39: 60 | J39: 00:24:56 | L39: 0 | M39: 00:24:56 | O39: 0 | P39: 00:24:56 | R39: 0 | S39: 00:24:56 | U39: 0 | V39: 00:24:56 | X39: 0 | Y39: 00:24:56 | AA39: 0 | AB39: 00:24:56 | AD39: 0 | AE39: 00:24:56 | AG39: 0 | AH39: 00:24:56 | AJ39: 0 | AK39: 00:24:56 | AM39: 0 | AN39: 00:24:56 | AP39: 0 | AQ39: 00:24:56 | AS39: 0 | AT39: 00:24:56 | AV39: 0 | AW39: 00:24:56 | AY39: 0 | AZ39: 00:24:56 | BB39: 0 | BC39: 00:24:56 | BE39: 0 | BF39: 00:24:56 | BH39: 0 | BI39: 00:24:56 | BK39: 0 | BL39: 00:24:56 | BM39: =IF(E39="N/A",C39,IF(E39>=$C$9,C39,"")) -> 
A40: 31 | B40: = | C40: David Parkin | D40: 1 | E40: =VLOOKUP(C40,#REF!,2,FALSE) ->  | F40: 60 | G40: 00:29:34 | I40: 0 | K40: 00:29:34 | L40: 60 | M40: 00:29:34 | O40: 0 | P40: 00:29:34 | R40: 0 | S40: 00:29:34 | U40: 0 | V40: 00:29:34 | X40: 0 | Y40: 00:29:34 | AA40: 0 | AB40: 00:29:34 | AD40: 0 | AE40: 00:29:34 | AG40: 0 | AH40: 00:29:34 | AJ40: 0 | AK40: 00:29:34 | AM40: 0 | AN40: 00:29:34 | AP40: 0 | AQ40: 00:29:34 | AS40: 0 | AT40: 00:29:34 | AV40: 0 | AW40: 00:29:34 | AY40: 0 | AZ40: 00:29:34 | BB40: 0 | BC40: 00:29:34 | BE40: 0 | BF40: 00:29:34 | BH40: 0 | BI40: 00:29:34 | BK40: 0 | BL40: 00:29:34 | BM40: =IF(E40="N/A",C40,IF(E40>=$C$9,C40,"")) -> 
A41: 32 | B41: = | C41: Kim Lassiter | D41: 1 | E41: =VLOOKUP(C41,#REF!,2,FALSE) ->  | F41: 60 | G41: 00:26:10 | I41: 0 | L41: 0 | O41: 0 | R41: 0 | T41: 00:26:10 | U41: 60 | V41: 00:26:10 | X41: 0 | Y41: 00:26:10 | AA41: 0 | AB41: 00:26:10 | AD41: 0 | AE41: 00:26:10 | AG41: 0 | AH41: 00:26:10 | AJ41: 0 | AK41: 00:26:10 | AM41: 0 | AN41: 00:26:10 | AP41: 0 | AQ41: 00:26:10 | AS41: 0 | AT41: 00:26:10 | AV41: 0 | AW41: 00:26:10 | AY41: 0 | AZ41: 00:26:10 | BB41: 0 | BC41: 00:26:10 | BE41: 0 | BF41: 00:26:10 | BH41: 0 | BI41: 00:26:10 | BK41: 0 | BL41: 00:26:10 | BM41: =IF(E41="N/A",C41,IF(E41>=$C$9,C41,"")) -> 
A42: 33 | B42: = | C42: Chris Lowe | D42: 1 | E42: =VLOOKUP(C42,#REF!,2,FALSE) ->  | F42: 60 | G42: 00:23:51 | I42: 0 | L42: 0 | O42: 0 | R42: 0 | U42: 0 | X42: 0 | AA42: 0 | AC42: 00:23:51 | AD42: 60 | AE42: 00:23:51 | AG42: 0 | AH42: 00:23:51 | AJ42: 0 | AK42: 00:23:51 | AM42: 0 | AN42: 00:23:51 | AP42: 0 | AQ42: 00:23:51 | AS42: 0 | AT42: 00:23:51 | AV42: 0 | AW42: 00:23:51 | AY42: 0 | AZ42: 00:23:51 | BB42: 0 | BC42: 00:23:51 | BE42: 0 | BF42: 00:23:51 | BH42: 0 | BI42: 00:23:51 | BK42: 0 | BL42: 00:23:51 | BM42: =IF(E42="N/A",C42,IF(E42>=$C$9,C42,"")) -> 
A43: 34 | B43: = | C43: Oisin Kelly | D43: 1 | E43: =VLOOKUP(C43,#REF!,2,FALSE) ->  | F43: 60 | G43: 00:29:28 | I43: 0 | L43: 0 | O43: 0 | R43: 0 | U43: 0 | X43: 0 | AA43: 0 | AD43: 0 | AF43: 00:29:28 | AG43: 60 | AH43: 00:29:28 | AJ43: 0 | AK43: 00:29:28 | AM43: 0 | AN43: 00:29:28 | AP43: 0 | AQ43: 00:29:28 | AS43: 0 | AT43: 00:29:28 | AV43: 0 | AW43: 00:29:28 | AY43: 0 | AZ43: 00:29:28 | BB43: 0 | BC43: 00:29:28 | BE43: 0 | BF43: 00:29:28 | BH43: 0 | BI43: 00:29:28 | BK43: 0 | BL43: 00:29:28
A44: 35 | D44: 0 | E44: =VLOOKUP(C44,#REF!,2,FALSE) ->  | F44: 0 | G44: 999 | I44: 0 | L44: 0 | O44: 0 | R44: 0 | U44: 0 | X44: 0 | AA44: 0 | AD44: 0 | AG44: 0 | AJ44: 0 | AM44: 0 | AP44: 0 | AS44: 0 | AV44: 0 | AY44: 0 | BB44: 0 | BE44: 0 | BH44: 0 | BK44: 0
A45: 36 | D45: 0 | E45: =VLOOKUP(C45,#REF!,2,FALSE) ->  | F45: 0 | G45: 999 | I45: 0 | L45: 0 | O45: 0 | R45: 0 | U45: 0 | X45: 0 | AA45: 0 | AD45: 0 | AG45: 0 | AJ45: 0 | AM45: 0 | AP45: 0 | AS45: 0 | AV45: 0 | AY45: 0 | BB45: 0 | BE45: 0 | BH45: 0 | BK45: 0
A46: 37 | D46: 0 | E46: =VLOOKUP(C46,#REF!,2,FALSE) ->  | F46: 0 | G46: 999 | I46: 0 | L46: 0 | O46: 0 | R46: 0 | U46: 0 | X46: 0 | AA46: 0 | AD46: 0 | AG46: 0 | AJ46: 0 | AM46: 0 | AP46: 0 | AS46: 0 | AV46: 0 | AY46: 0 | BB46: 0 | BE46: 0 | BH46: 0 | BK46: 0
A47: 38 | D47: 0 | E47: =VLOOKUP(C47,#REF!,2,FALSE) ->  | F47: 0 | G47: 999 | I47: 0 | L47: 0 | O47: 0 | R47: 0 | U47: 0 | X47: 0 | AA47: 0 | AD47: 0 | AG47: 0 | AJ47: 0 | AM47: 0 | AP47: 0 | AS47: 0 | AV47: 0 | AY47: 0 | BB47: 0 | BE47: 0 | BH47: 0 | BK47: 0
A48: 39 | D48: 0 | E48: =VLOOKUP(C48,#REF!,2,FALSE) ->  | F48: 0 | G48: 999 | I48: 0 | L48: 0 | O48: 0 | R48: 0 | U48: 0 | X48: 0 | AA48: 0 | AD48: 0 | AG48: 0 | AJ48: 0 | AM48: 0 | AP48: 0 | AS48: 0 | AV48: 0 | AY48: 0 | BB48: 0 | BE48: 0 | BH48: 0 | BK48: 0
A49: 40 | D49: 0 | E49: =VLOOKUP(C49,#REF!,2,FALSE) ->  | F49: 0 | G49: 999 | I49: 0 | L49: 0 | O49: 0 | R49: 0 | U49: 0 | X49: 0 | AA49: 0 | AD49: 0 | AG49: 0 | AJ49: 0 | AM49: 0 | AP49: 0 | AS49: 0 | AV49: 0 | AY49: 0 | BB49: 0 | BE49: 0 | BH49: 0 | BK49: 0
A50: 41 | D50: 0 | E50: =VLOOKUP(C50,#REF!,2,FALSE) ->  | F50: 0 | G50: 999 | I50: 0 | L50: 0 | O50: 0 | R50: 0 | U50: 0 | X50: 0 | AA50: 0 | AD50: 0 | AG50: 0 | AJ50: 0 | AM50: 0 | AP50: 0 | AS50: 0 | AV50: 0 | AY50: 0 | BB50: 0 | BE50: 0 | BH50: 0 | BK50: 0
A51: 42 | D51: 0 | E51: =VLOOKUP(C51,#REF!,2,FALSE) ->  | F51: 0 | G51: 999 | I51: 0 | L51: 0 | O51: 0 | R51: 0 | U51: 0 | X51: 0 | AA51: 0 | AD51: 0 | AG51: 0 | AJ51: 0 | AM51: 0 | AP51: 0 | AS51: 0 | AV51: 0 | AY51: 0 | BB51: 0 | BE51: 0 | BH51: 0 | BK51: 0
A52: 43 | D52: 0 | E52: =VLOOKUP(C52,#REF!,2,FALSE) ->  | F52: 0 | G52: 999 | I52: 0 | L52: 0 | O52: 0 | R52: 0 | U52: 0 | X52: 0 | AA52: 0 | AD52: 0 | AG52: 0 | AJ52: 0 | AM52: 0 | AP52: 0 | AS52: 0 | AV52: 0 | AY52: 0 | BB52: 0 | BE52: 0 | BH52: 0 | BK52: 0
A53: 44 | D53: 0 | E53: =VLOOKUP(C53,#REF!,2,FALSE) ->  | F53: 0 | G53: 999 | I53: 0 | L53: 0 | O53: 0 | R53: 0 | U53: 0 | X53: 0 | AA53: 0 | AD53: 0 | AG53: 0 | AJ53: 0 | AM53: 0 | AP53: 0 | AS53: 0 | AV53: 0 | AY53: 0 | BB53: 0 | BE53: 0 | BH53: 0 | BK53: 0
A54: 45 | D54: 0 | E54: =VLOOKUP(C54,#REF!,2,FALSE) ->  | F54: 0 | G54: 999 | I54: 0 | L54: 0 | O54: 0 | R54: 0 | U54: 0 | X54: 0 | AA54: 0 | AD54: 0 | AG54: 0 | AJ54: 0 | AM54: 0 | AP54: 0 | AS54: 0 | AV54: 0 | AY54: 0 | BB54: 0 | BE54: 0 | BH54: 0 | BK54: 0
A55: 46 | D55: 0 | E55: =VLOOKUP(C55,#REF!,2,FALSE) ->  | F55: 0 | G55: 999 | I55: 0 | L55: 0 | O55: 0 | R55: 0 | U55: 0 | X55: 0 | AA55: 0 | AD55: 0 | AG55: 0 | AJ55: 0 | AM55: 0 | AP55: 0 | AS55: 0 | AV55: 0 | AY55: 0 | BB55: 0 | BE55: 0 | BH55: 0 | BK55: 0
A56: 47 | D56: 0 | E56: =VLOOKUP(C56,#REF!,2,FALSE) ->  | F56: 0 | G56: 999 | I56: 0 | L56: 0 | O56: 0 | R56: 0 | U56: 0 | X56: 0 | AA56: 0 | AD56: 0 | AG56: 0 | AJ56: 0 | AM56: 0 | AP56: 0 | AS56: 0 | AV56: 0 | AY56: 0 | BB56: 0 | BE56: 0 | BH56: 0 | BK56: 0
A57: 48 | D57: 0 | E57: =VLOOKUP(C57,#REF!,2,FALSE) ->  | F57: 0 | G57: 999 | I57: 0 | L57: 0 | O57: 0 | R57: 0 | U57: 0 | X57: 0 | AA57: 0 | AD57: 0 | AG57: 0 | AJ57: 0 | AM57: 0 | AP57: 0 | AS57: 0 | AV57: 0 | AY57: 0 | BB57: 0 | BE57: 0 | BH57: 0 | BK57: 0
A58: 49 | D58: 0 | E58: =VLOOKUP(C58,#REF!,2,FALSE) ->  | F58: 0 | G58: 999 | I58: 0 | L58: 0 | O58: 0 | R58: 0 | U58: 0 | X58: 0 | AA58: 0 | AD58: 0 | AG58: 0 | AJ58: 0 | AM58: 0 | AP58: 0 | AS58: 0 | AV58: 0 | AY58: 0 | BB58: 0 | BE58: 0 | BH58: 0 | BK58: 0
A59: 50 | D59: 0 | E59: =VLOOKUP(C59,#REF!,2,FALSE) ->  | F59: 0 | G59: 999 | I59: 0 | L59: 0 | O59: 0 | R59: 0 | U59: 0 | X59: 0 | AA59: 0 | AD59: 0 | AG59: 0 | AJ59: 0 | AM59: 0 | AP59: 0 | AS59: 0 | AV59: 0 | AY59: 0 | BB59: 0 | BE59: 0 | BH59: 0 | BK59: 0
A60: 51 | D60: 0 | E60: =VLOOKUP(C60,#REF!,2,FALSE) ->  | F60: 0 | G60: 999 | I60: 0 | L60: 0 | O60: 0 | R60: 0 | U60: 0 | X60: 0 | AA60: 0 | AD60: 0 | AG60: 0 | AJ60: 0 | AM60: 0 | AP60: 0 | AS60: 0 | AV60: 0 | AY60: 0 | BB60: 0 | BE60: 0 | BH60: 0 | BK60: 0
A61: 52 | D61: 0 | E61: =VLOOKUP(C61,#REF!,2,FALSE) ->  | F61: 0 | G61: 999 | I61: 0 | L61: 0 | O61: 0 | R61: 0 | U61: 0 | X61: 0 | AA61: 0 | AD61: 0 | AG61: 0 | AJ61: 0 | AM61: 0 | AP61: 0 | AS61: 0 | AV61: 0 | AY61: 0 | BB61: 0 | BE61: 0 | BH61: 0 | BK61: 0
A62: 53 | D62: 0 | E62: =VLOOKUP(C62,#REF!,2,FALSE) ->  | F62: 0 | G62: 999 | I62: 0 | L62: 0 | O62: 0 | R62: 0 | U62: 0 | X62: 0 | AA62: 0 | AD62: 0 | AG62: 0 | AJ62: 0 | AM62: 0 | AP62: 0 | AS62: 0 | AV62: 0 | AY62: 0 | BB62: 0 | BE62: 0 | BH62: 0 | BK62: 0
A63: 54 | D63: 0 | E63: =VLOOKUP(C63,#REF!,2,FALSE) ->  | F63: 0 | G63: 999 | I63: 0 | L63: 0 | O63: 0 | R63: 0 | U63: 0 | X63: 0 | AA63: 0 | AD63: 0 | AG63: 0 | AJ63: 0 | AM63: 0 | AP63: 0 | AS63: 0 | AV63: 0 | AY63: 0 | BB63: 0 | BE63: 0 | BH63: 0 | BK63: 0
A64: 55 | D64: 0 | E64: =VLOOKUP(C64,#REF!,2,FALSE) ->  | F64: 0 | G64: 999 | I64: 0 | L64: 0 | O64: 0 | R64: 0 | U64: 0 | X64: 0 | AA64: 0 | AD64: 0 | AG64: 0 | AJ64: 0 | AM64: 0 | AP64: 0 | AS64: 0 | AV64: 0 | AY64: 0 | BB64: 0 | BE64: 0 | BH64: 0 | BK64: 0
A65: 56 | D65: 0 | E65: =VLOOKUP(C65,#REF!,2,FALSE) ->  | F65: 0 | G65: 999 | I65: 0 | L65: 0 | O65: 0 | R65: 0 | U65: 0 | X65: 0 | AA65: 0 | AD65: 0 | AG65: 0 | AJ65: 0 | AM65: 0 | AP65: 0 | AS65: 0 | AV65: 0 | AY65: 0 | BB65: 0 | BE65: 0 | BH65: 0 | BK65: 0
A66: 57 | D66: 0 | E66: =VLOOKUP(C66,#REF!,2,FALSE) ->  | F66: 0 | G66: 999 | I66: 0 | L66: 0 | O66: 0 | R66: 0 | U66: 0 | X66: 0 | AA66: 0 | AD66: 0 | AG66: 0 | AJ66: 0 | AM66: 0 | AP66: 0 | AS66: 0 | AV66: 0 | AY66: 0 | BB66: 0 | BE66: 0 | BH66: 0 | BK66: 0
A67: 58 | D67: 0 | E67: =VLOOKUP(C67,#REF!,2,FALSE) ->  | F67: 0 | G67: 999 | I67: 0 | L67: 0 | O67: 0 | R67: 0 | U67: 0 | X67: 0 | AA67: 0 | AD67: 0 | AG67: 0 | AJ67: 0 | AM67: 0 | AP67: 0 | AS67: 0 | AV67: 0 | AY67: 0 | BB67: 0 | BE67: 0 | BH67: 0 | BK67: 0
A68: 59 | D68: 0 | E68: =VLOOKUP(C68,#REF!,2,FALSE) ->  | F68: 0 | G68: 999 | I68: 0 | L68: 0 | O68: 0 | R68: 0 | U68: 0 | X68: 0 | AA68: 0 | AD68: 0 | AG68: 0 | AJ68: 0 | AM68: 0 | AP68: 0 | AS68: 0 | AV68: 0 | AY68: 0 | BB68: 0 | BE68: 0 | BH68: 0 | BK68: 0
A69: 60 | D69: 0 | E69: =VLOOKUP(C69,#REF!,2,FALSE) ->  | F69: 0 | G69: 999 | I69: 0 | L69: 0 | O69: 0 | R69: 0 | U69: 0 | X69: 0 | AA69: 0 | AD69: 0 | AG69: 0 | AJ69: 0 | AM69: 0 | AP69: 0 | AS69: 0 | AV69: 0 | AY69: 0 | BB69: 0 | BE69: 0 | BH69: 0 | BK69: 0
A70: 61 | D70: 0 | E70: =VLOOKUP(C70,#REF!,2,FALSE) ->  | F70: 0 | G70: 999 | I70: 0 | L70: 0 | O70: 0 | R70: 0 | U70: 0 | X70: 0 | AA70: 0 | AD70: 0 | AG70: 0 | AJ70: 0 | AM70: 0 | AP70: 0 | AS70: 0 | AV70: 0 | AY70: 0 | BB70: 0 | BE70: 0 | BH70: 0 | BK70: 0
A71: 62 | D71: 0 | E71: =VLOOKUP(C71,#REF!,2,FALSE) ->  | F71: 0 | G71: 999 | I71: 0 | L71: 0 | O71: 0 | R71: 0 | U71: 0 | X71: 0 | AA71: 0 | AD71: 0 | AG71: 0 | AJ71: 0 | AM71: 0 | AP71: 0 | AS71: 0 | AV71: 0 | AY71: 0 | BB71: 0 | BE71: 0 | BH71: 0 | BK71: 0
A72: 63 | D72: 0 | E72: =VLOOKUP(C72,#REF!,2,FALSE) ->  | F72: 0 | G72: 999 | I72: 0 | L72: 0 | O72: 0 | R72: 0 | U72: 0 | X72: 0 | AA72: 0 | AD72: 0 | AG72: 0 | AJ72: 0 | AM72: 0 | AP72: 0 | AS72: 0 | AV72: 0 | AY72: 0 | BB72: 0 | BE72: 0 | BH72: 0 | BK72: 0
A73: 64 | D73: =COUNT(H73,K73,N73,Q73,T73,W73,Z73,AC73,AF73,AI73,AL73,AO73,AR73,AU73,AX73,BA73,BD73,BG73,BJ73) -> 0 | E73: =VLOOKUP(C73,#REF!,2,FALSE) ->  | F73: =ROUNDDOWN(LARGE(H73:BK73,1)+(IF($D$5>1,LARGE(H73:BK73,2),0))+(IF($D$5>2,LARGE(H73:BK73,3),0))+(IF($D$5>3,LARGE(H73:BK73,4),0))+(IF($D$5>4,LARGE(H73:BK73,5),0))+(IF($D$5>5,LARGE(H73:BK73,6),0))+(IF($D$5>6,LARGE(H73:BK73,7),0)),0) -> 0 | G73: =IF(D73=0,999,MIN(H73,K73,N73,Q73,T73,W73,Z73,AC73,AF73,AI73,AL73,AO73,AR73,AU73,AX73,BA73,BD73,BG73,BJ73)) -> 999 | I73: =IF(H73="",0,$D$2) -> 0 | J73: =IF(H73="","",H73) ->  | L73: 0 | M73: =IF(AND(J73="",K73="")=TRUE,"",MIN(J73,K73)) ->  | O73: =IF(N73="",0,IF(M73="",$D$2,IF((M73-N73)*$C$1+$D$2<$D$4,$D$4,IF((M73-N73)*$C$1+$D$2>$D$3,$D$3,IF((M73-N73)*$C$1+$D$2<$D$3,(M73-N73)*$C$1+$D$2,0))))) -> 0 | P73: =IF(AND(M73="",N73="")=TRUE,"",MIN(M73,N73)) ->  | R73: =IF(Q73="",0,IF(P73="",$D$2,IF((P73-Q73)*$C$1+$D$2<$D$4,$D$4,IF((P73-Q73)*$C$1+$D$2>$D$3,$D$3,IF((P73-Q73)*$C$1+$D$2<$D$3,(P73-Q73)*$C$1+$D$2,0))))) -> 0 | U73: =IF(T73="",0,IF(S73="",$D$2,IF((S73-T73)*$C$1+$D$2<$D$4,$D$4,IF((S73-T73)*$C$1+$D$2>$D$3,$D$3,IF((S73-T73)*$C$1+$D$2<$D$3,(S73-T73)*$C$1+$D$2,0))))) -> 0 | V73: =IF(AND(S73="",T73="")=TRUE,"",MIN(S73,T73)) ->  | X73: =IF(W73="",0,IF(V73="",$D$2,IF((V73-W73)*$C$1+$D$2<$D$4,$D$4,IF((V73-W73)*$C$1+$D$2>$D$3,$D$3,IF((V73-W73)*$C$1+$D$2<$D$3,(V73-W73)*$C$1+$D$2,0))))) -> 0 | Y73: =IF(AND(V73="",W73="")=TRUE,"",MIN(V73,W73)) ->  | AA73: =IF(Z73="",0,IF(Y73="",$D$2,IF((Y73-Z73)*$C$1+$D$2<$D$4,$D$4,IF((Y73-Z73)*$C$1+$D$2>$D$3,$D$3,IF((Y73-Z73)*$C$1+$D$2<$D$3,(Y73-Z73)*$C$1+$D$2,0))))) -> 0 | AB73: =IF(AND(Y73="",Z73="")=TRUE,"",MIN(Y73,Z73)) ->  | AD73: =IF(AC73="",0,IF(AB73="",$D$2,IF((AB73-AC73)*$C$1+$D$2<$D$4,$D$4,IF((AB73-AC73)*$C$1+$D$2>$D$3,$D$3,IF((AB73-AC73)*$C$1+$D$2<$D$3,(AB73-AC73)*$C$1+$D$2,0))))) -> 0 | AE73: =IF(AND(AB73="",AC73="")=TRUE,"",MIN(AB73,AC73)) ->  | AG73: =IF(AF73="",0,IF(AE73="",$D$2,IF((AE73-AF73)*$C$1+$D$2<$D$4,$D$4,IF((AE73-AF73)*$C$1+$D$2>$D$3,$D$3,IF((AE73-AF73)*$C$1+$D$2<$D$3,(AE73-AF73)*$C$1+$D$2,0))))) -> 0 | AH73: =IF(AND(AE73="",AF73="")=TRUE,"",MIN(AE73,AF73)) ->  | AJ73: =IF(AI73="",0,IF(AH73="",$D$2,IF((AH73-AI73)*$C$1+$D$2<$D$4,$D$4,IF((AH73-AI73)*$C$1+$D$2>$D$3,$D$3,IF((AH73-AI73)*$C$1+$D$2<$D$3,(AH73-AI73)*$C$1+$D$2,0))))) -> 0 | AK73: =IF(AND(AH73="",AI73="")=TRUE,"",MIN(AH73,AI73)) ->  | AM73: =IF(AL73="",0,IF(AK73="",$D$2,IF((AK73-AL73)*$C$1+$D$2<$D$4,$D$4,IF((AK73-AL73)*$C$1+$D$2>$D$3,$D$3,IF((AK73-AL73)*$C$1+$D$2<$D$3,(AK73-AL73)*$C$1+$D$2,0))))) -> 0 | AN73: =IF(AND(AK73="",AL73="")=TRUE,"",MIN(AK73,AL73)) ->  | AP73: =IF(AO73="",0,IF(AN73="",$D$2,IF((AN73-AO73)*$C$1+$D$2<$D$4,$D$4,IF((AN73-AO73)*$C$1+$D$2>$D$3,$D$3,IF((AN73-AO73)*$C$1+$D$2<$D$3,(AN73-AO73)*$C$1+$D$2,0))))) -> 0 | AQ73: =IF(AND(AN73="",AO73="")=TRUE,"",MIN(AN73,AO73)) ->  | AS73: =IF(AR73="",0,IF(AQ73="",$D$2,IF((AQ73-AR73)*$C$1+$D$2<$D$4,$D$4,IF((AQ73-AR73)*$C$1+$D$2>$D$3,$D$3,IF((AQ73-AR73)*$C$1+$D$2<$D$3,(AQ73-AR73)*$C$1+$D$2,0))))) -> 0 | AT73: =IF(AND(AQ73="",AR73="")=TRUE,"",MIN(AQ73,AR73)) ->  | AV73: =IF(AU73="",0,IF(AT73="",$D$2,IF((AT73-AU73)*$C$1+$D$2<$D$4,$D$4,IF((AT73-AU73)*$C$1+$D$2>$D$3,$D$3,IF((AT73-AU73)*$C$1+$D$2<$D$3,(AT73-AU73)*$C$1+$D$2,0))))) -> 0 | AW73: =IF(AND(AT73="",AU73="")=TRUE,"",MIN(AT73,AU73)) ->  | AY73: =IF(AX73="",0,IF(AW73="",$D$2,IF((AW73-AX73)*$C$1+$D$2<$D$4,$D$4,IF((AW73-AX73)*$C$1+$D$2>$D$3,$D$3,IF((AW73-AX73)*$C$1+$D$2<$D$3,(AW73-AX73)*$C$1+$D$2,0))))) -> 0 | AZ73: =IF(AND(AW73="",AX73="")=TRUE,"",MIN(AW73,AX73)) ->  | BB73: =IF(BA73="",0,IF(AZ73="",$D$2,IF((AZ73-BA73)*$C$1+$D$2<$D$4,$D$4,IF((AZ73-BA73)*$C$1+$D$2>$D$3,$D$3,IF((AZ73-BA73)*$C$1+$D$2<$D$3,(AZ73-BA73)*$C$1+$D$2,0))))) -> 0 | BC73: =IF(AND(AZ73="",BA73="")=TRUE,"",MIN(AZ73,BA73)) ->  | BE73: =IF(BD73="",0,IF(BC73="",$D$2,IF((BC73-BD73)*$C$1+$D$2<$D$4,$D$4,IF((BC73-BD73)*$C$1+$D$2>$D$3,$D$3,IF((BC73-BD73)*$C$1+$D$2<$D$3,(BC73-BD73)*$C$1+$D$2,0))))) -> 0 | BF73: =IF(AND(BC73="",BD73="")=TRUE,"",MIN(BC73,BD73)) ->  | BH73: =IF(BG73="",0,IF(BF73="",$D$2,IF((BF73-BG73)*$C$1+$D$2<$D$4,$D$4,IF((BF73-BG73)*$C$1+$D$2>$D$3,$D$3,IF((BF73-BG73)*$C$1+$D$2<$D$3,(BF73-BG73)*$C$1+$D$2,0))))) -> 0 | BI73: =IF(AND(BF73="",BG73="")=TRUE,"",MIN(BF73,BG73)) ->  | BK73: =IF(BJ73="",0,IF(BI73="",$D$2,IF((BI73-BJ73)*$C$1+$D$2<$D$4,$D$4,IF((BI73-BJ73)*$C$1+$D$2>$D$3,$D$3,IF((BI73-BJ73)*$C$1+$D$2<$D$3,(BI73-BJ73)*$C$1+$D$2,0))))) -> 0 | BL73: =IF(AND(BI73="",BJ73="")=TRUE,"",MIN(BI73,BJ73)) -> 
A74: 65 | B74: =IF(C74="","",IF(F74=F73,"=",A74)) ->  | D74: 0 | E74: =VLOOKUP(C74,#REF!,2,FALSE) ->  | F74: 0 | G74: 999 | I74: 0 | L74: 0 | O74: 0 | R74: 0 | U74: 0 | X74: 0 | AA74: 0 | AD74: 0 | AG74: 0 | AJ74: 0 | AM74: 0 | AP74: 0 | AS74: 0 | AV74: 0 | AY74: 0 | BB74: 0 | BE74: 0 | BH74: 0 | BK74: 0
A75: 66 | D75: 0 | E75: =VLOOKUP(C75,#REF!,2,FALSE) ->  | F75: 0 | G75: 999 | I75: 0 | L75: 0 | O75: 0 | R75: 0 | U75: 0 | X75: 0 | AA75: 0 | AD75: 0 | AG75: 0 | AJ75: 0 | AM75: 0 | AP75: 0 | AS75: 0 | AV75: 0 | AY75: 0 | BB75: 0 | BE75: 0 | BH75: 0 | BK75: 0
A76: 67 | D76: 0 | E76: =VLOOKUP(C76,#REF!,2,FALSE) ->  | F76: 0 | G76: 999 | I76: 0 | L76: 0 | O76: 0 | R76: 0 | U76: 0 | X76: 0 | AA76: 0 | AD76: 0 | AG76: 0 | AJ76: 0 | AM76: 0 | AP76: 0 | AS76: 0 | AV76: 0 | AY76: 0 | BB76: 0 | BE76: 0 | BH76: 0 | BK76: 0
A77: 68 | D77: 0 | E77: =VLOOKUP(C77,#REF!,2,FALSE) ->  | F77: 0 | G77: 999 | I77: 0 | L77: 0 | O77: 0 | R77: 0 | U77: 0 | X77: 0 | AA77: 0 | AD77: 0 | AG77: 0 | AJ77: 0 | AM77: 0 | AP77: 0 | AS77: 0 | AV77: 0 | AY77: 0 | BB77: 0 | BE77: 0 | BH77: 0 | BK77: 0
A78: 69 | D78: 0 | E78: =VLOOKUP(C78,#REF!,2,FALSE) ->  | F78: 0 | G78: 999 | I78: 0 | L78: 0 | O78: 0 | R78: 0 | U78: 0 | X78: 0 | AA78: 0 | AD78: 0 | AG78: 0 | AJ78: 0 | AM78: 0 | AP78: 0 | AS78: 0 | AV78: 0 | AY78: 0 | BB78: 0 | BE78: 0 | BH78: 0 | BK78: 0
A79: 70 | D79: 0 | E79: =VLOOKUP(C79,#REF!,2,FALSE) ->  | F79: 0 | G79: 999 | I79: 0 | L79: 0 | O79: 0 | R79: 0 | U79: 0 | X79: 0 | AA79: 0 | AD79: 0 | AG79: 0 | AJ79: 0 | AM79: 0 | AP79: 0 | AS79: 0 | AV79: 0 | AY79: 0 | BB79: 0 | BE79: 0 | BH79: 0 | BK79: 0
A80: 71 | D80: 0 | E80: =VLOOKUP(C80,#REF!,2,FALSE) ->  | F80: 0 | G80: 999 | I80: 0 | L80: =IF(K80="",0,IF(J80="",$D$2,IF((J80-K80)*$C$1+$D$2<$D$4,$D$4,IF((J80-K80)*$C$1+$D$2>$D$3,$D$3,IF((J80-K80)*$C$1+$D$2<$D$3,(J80-K80)*$C$1+$D$2,0))))) -> 0 | O80: 0 | R80: 0 | U80: 0 | X80: 0 | AA80: 0 | AD80: 0 | AG80: 0 | AJ80: 0 | AM80: 0 | AP80: 0 | AS80: 0 | AV80: 0 | AY80: 0 | BB80: 0 | BE80: 0 | BH80: 0 | BK80: 0
A81: 72 | D81: 0 | E81: =VLOOKUP(C81,#REF!,2,FALSE) ->  | F81: 0 | G81: 999 | I81: 0 | L81: 0 | O81: 0 | R81: 0 | U81: 0 | X81: 0 | AA81: 0 | AD81: 0 | AG81: 0 | AJ81: 0 | AM81: 0 | AP81: 0 | AS81: 0 | AV81: 0 | AY81: 0 | BB81: 0 | BE81: 0 | BH81: 0 | BK81: 0
A82: 73 | D82: 0 | E82: =VLOOKUP(C82,#REF!,2,FALSE) ->  | F82: 0 | G82: 999 | I82: 0 | L82: 0 | O82: 0 | R82: 0 | U82: 0 | X82: 0 | AA82: 0 | AD82: 0 | AG82: 0 | AJ82: 0 | AM82: 0 | AP82: 0 | AS82: 0 | AV82: 0 | AY82: 0 | BB82: 0 | BE82: 0 | BH82: 0 | BK82: 0
A83: 74 | D83: 0 | E83: =VLOOKUP(C83,#REF!,2,FALSE) ->  | F83: 0 | G83: 999 | I83: 0 | L83: 0 | O83: 0 | R83: 0 | U83: 0 | X83: 0 | AA83: 0 | AD83: 0 | AG83: 0 | AJ83: 0 | AM83: 0 | AP83: 0 | AS83: 0 | AV83: 0 | AY83: 0 | BB83: 0 | BE83: 0 | BH83: 0 | BK83: 0
A84: 75 | D84: 0 | E84: =VLOOKUP(C84,#REF!,2,FALSE) ->  | F84: 0 | G84: 999 | I84: 0 | L84: 0 | O84: 0 | R84: 0 | U84: 0 | X84: 0 | AA84: 0 | AD84: 0 | AG84: 0 | AJ84: 0 | AM84: 0 | AP84: 0 | AS84: 0 | AV84: 0 | AY84: 0 | BB84: 0 | BE84: 0 | BH84: 0 | BK84: 0
A85: 76 | D85: 0 | E85: =VLOOKUP(C85,#REF!,2,FALSE) ->  | F85: 0 | G85: 999 | I85: 0 | L85: 0 | O85: 0 | R85: 0 | U85: 0 | X85: 0 | AA85: 0 | AD85: 0 | AG85: 0 | AJ85: 0 | AM85: 0 | AP85: 0 | AS85: 0 | AV85: 0 | AY85: 0 | BB85: 0 | BE85: 0 | BH85: 0 | BK85: 0
A86: 77 | D86: 0 | E86: =VLOOKUP(C86,#REF!,2,FALSE) ->  | F86: 0 | G86: 999 | I86: 0 | L86: 0 | O86: 0 | R86: 0 | U86: 0 | X86: 0 | AA86: 0 | AD86: 0 | AG86: 0 | AJ86: 0 | AM86: 0 | AP86: 0 | AS86: 0 | AV86: 0 | AY86: 0 | BB86: 0 | BE86: 0 | BH86: 0 | BK86: 0
A87: 78 | D87: 0 | E87: =VLOOKUP(C87,#REF!,2,FALSE) ->  | F87: 0 | G87: 999 | I87: 0 | L87: 0 | O87: 0 | R87: 0 | U87: 0 | X87: 0 | AA87: 0 | AD87: 0 | AG87: 0 | AJ87: 0 | AM87: 0 | AP87: 0 | AS87: 0 | AV87: 0 | AY87: 0 | BB87: 0 | BE87: 0 | BH87: 0 | BK87: 0
A88: 79 | D88: 0 | E88: =VLOOKUP(C88,#REF!,2,FALSE) ->  | F88: 0 | G88: 999 | I88: 0 | L88: 0 | O88: 0 | R88: 0 | U88: 0 | X88: 0 | AA88: 0 | AD88: 0 | AG88: 0 | AJ88: 0 | AM88: 0 | AP88: 0 | AS88: 0 | AV88: 0 | AY88: 0 | BB88: 0 | BE88: 0 | BH88: 0 | BK88: 0
A89: 80 | D89: 0 | E89: =VLOOKUP(C89,#REF!,2,FALSE) ->  | F89: 0 | G89: 999 | I89: 0 | L89: 0 | O89: 0 | R89: 0 | U89: 0 | X89: 0 | AA89: 0 | AD89: 0 | AG89: 0 | AJ89: 0 | AM89: 0 | AP89: 0 | AS89: 0 | AV89: 0 | AY89: 0 | BB89: 0 | BE89: 0 | BH89: 0 | BK89: 0
A90: 81 | D90: 0 | E90: =VLOOKUP(C90,#REF!,2,FALSE) ->  | F90: 0 | G90: 999 | I90: 0 | L90: 0 | O90: 0 | R90: 0 | U90: 0 | X90: 0 | AA90: 0 | AD90: 0 | AG90: 0 | AJ90: 0 | AM90: 0 | AP90: 0 | AS90: 0 | AV90: 0 | AY90: 0 | BB90: 0 | BE90: 0 | BH90: 0 | BK90: 0
A91: 82 | D91: 0 | E91: =VLOOKUP(C91,#REF!,2,FALSE) ->  | F91: 0 | G91: 999 | I91: 0 | L91: 0 | O91: 0 | R91: 0 | U91: 0 | X91: 0 | AA91: 0 | AD91: 0 | AG91: 0 | AJ91: 0 | AM91: 0 | AP91: 0 | AS91: 0 | AV91: 0 | AY91: 0 | BB91: 0 | BE91: 0 | BH91: 0 | BK91: 0
A92: 83 | D92: 0 | E92: =VLOOKUP(C92,#REF!,2,FALSE) ->  | F92: 0 | G92: 999 | I92: 0 | L92: 0 | O92: 0 | R92: 0 | U92: 0 | X92: 0 | AA92: 0 | AD92: 0 | AG92: 0 | AJ92: 0 | AM92: 0 | AP92: 0 | AS92: 0 | AV92: 0 | AY92: 0 | BB92: 0 | BE92: 0 | BH92: 0 | BK92: 0
A93: 84 | D93: 0 | E93: =VLOOKUP(C93,#REF!,2,FALSE) ->  | F93: 0 | G93: 999 | I93: 0 | L93: 0 | O93: 0 | R93: 0 | U93: 0 | X93: 0 | AA93: 0 | AD93: 0 | AG93: 0 | AJ93: 0 | AM93: 0 | AP93: 0 | AS93: 0 | AV93: 0 | AY93: 0 | BB93: 0 | BE93: 0 | BH93: 0 | BK93: 0
A94: 85 | D94: 0 | E94: =VLOOKUP(C94,#REF!,2,FALSE) ->  | F94: 0 | G94: 999 | I94: 0 | L94: 0 | O94: 0 | R94: 0 | U94: 0 | X94: 0 | AA94: 0 | AD94: 0 | AG94: 0 | AJ94: 0 | AM94: 0 | AP94: 0 | AS94: 0 | AV94: 0 | AY94: 0 | BB94: 0 | BE94: 0 | BH94: 0 | BK94: 0
A95: 86 | D95: 0 | E95: =VLOOKUP(C95,#REF!,2,FALSE) ->  | F95: 0 | G95: 999 | I95: 0 | L95: 0 | O95: 0 | R95: 0 | U95: 0 | X95: 0 | AA95: 0 | AD95: 0 | AG95: 0 | AJ95: 0 | AM95: 0 | AP95: 0 | AS95: 0 | AV95: 0 | AY95: 0 | BB95: 0 | BE95: 0 | BH95: 0 | BK95: 0
A96: 87 | D96: 0 | E96: =VLOOKUP(C96,#REF!,2,FALSE) ->  | F96: 0 | G96: 999 | I96: 0 | L96: 0 | O96: 0 | R96: 0 | U96: 0 | X96: 0 | AA96: 0 | AD96: 0 | AG96: 0 | AJ96: 0 | AM96: 0 | AP96: 0 | AS96: 0 | AV96: 0 | AY96: 0 | BB96: 0 | BE96: 0 | BH96: 0 | BK96: 0
A97: 88 | D97: 0 | E97: =VLOOKUP(C97,#REF!,2,FALSE) ->  | F97: 0 | G97: 999 | I97: 0 | L97: 0 | O97: 0 | R97: 0 | U97: 0 | X97: 0 | AA97: 0 | AD97: 0 | AG97: 0 | AJ97: 0 | AM97: 0 | AP97: 0 | AS97: 0 | AV97: 0 | AY97: 0 | BB97: 0 | BE97: 0 | BH97: 0 | BK97: 0
A98: 89 | D98: 0 | E98: =VLOOKUP(C98,#REF!,2,FALSE) ->  | F98: 0 | G98: 999 | I98: 0 | L98: 0 | O98: 0 | R98: 0 | U98: 0 | X98: 0 | AA98: 0 | AD98: 0 | AG98: 0 | AJ98: 0 | AM98: 0 | AP98: 0 | AS98: 0 | AV98: 0 | AY98: 0 | BB98: 0 | BE98: 0 | BH98: 0 | BK98: 0
A99: 90 | D99: 0 | E99: =VLOOKUP(C99,#REF!,2,FALSE) ->  | F99: 0 | G99: 999 | I99: 0 | L99: 0 | O99: 0 | R99: 0 | U99: 0 | X99: 0 | AA99: 0 | AD99: 0 | AG99: 0 | AJ99: 0 | AM99: 0 | AP99: 0 | AS99: 0 | AV99: 0 | AY99: 0 | BB99: 0 | BE99: 0 | BH99: 0 | BK99: 0
A100: 91 | D100: 0 | E100: =VLOOKUP(C100,#REF!,2,FALSE) ->  | F100: 0 | G100: 999 | I100: 0 | L100: 0 | O100: 0 | R100: 0 | S100: =IF(AND(P100="",Q100="")=TRUE,"",MIN(P100,Q100)) ->  | U100: 0 | X100: 0 | AA100: 0 | AD100: 0 | AG100: 0 | AJ100: 0 | AM100: 0 | AP100: 0 | AS100: 0 | AV100: 0 | AY100: 0 | BB100: 0 | BE100: 0 | BH100: 0 | BK100: 0
A101: 92 | D101: 0 | E101: =VLOOKUP(C101,#REF!,2,FALSE) ->  | F101: 0 | G101: 999 | I101: 0 | L101: 0 | O101: 0 | R101: 0 | U101: 0 | X101: 0 | AA101: 0 | AD101: 0 | AG101: 0 | AJ101: 0 | AM101: 0 | AP101: 0 | AS101: 0 | AV101: 0 | AY101: 0 | BB101: 0 | BE101: 0 | BH101: 0 | BK101: 0
A102: 93 | D102: 0 | E102: =VLOOKUP(C102,#REF!,2,FALSE) ->  | F102: 0 | G102: 999 | I102: 0 | L102: 0 | O102: 0 | R102: 0 | U102: 0 | X102: 0 | AA102: 0 | AD102: 0 | AG102: 0 | AJ102: 0 | AM102: 0 | AP102: 0 | AS102: 0 | AV102: 0 | AY102: 0 | BB102: 0 | BE102: 0 | BH102: 0 | BK102: 0
A103: 94 | D103: 0 | E103: =VLOOKUP(C103,#REF!,2,FALSE) ->  | F103: 0 | G103: 999 | I103: 0 | L103: 0 | O103: 0 | R103: 0 | U103: 0 | X103: 0 | AA103: 0 | AD103: 0 | AG103: 0 | AJ103: 0 | AM103: 0 | AP103: 0 | AS103: 0 | AV103: 0 | AY103: 0 | BB103: 0 | BE103: 0 | BH103: 0 | BK103: 0
A104: 95 | D104: 0 | E104: =VLOOKUP(C104,#REF!,2,FALSE) ->  | F104: 0 | G104: 999 | I104: 0 | L104: 0 | O104: 0 | R104: 0 | U104: 0 | X104: 0 | AA104: 0 | AD104: 0 | AG104: 0 | AJ104: 0 | AM104: 0 | AP104: 0 | AS104: 0 | AV104: 0 | AY104: 0 | BB104: 0 | BE104: 0 | BH104: 0 | BK104: 0
A105: 96 | D105: 0 | E105: =VLOOKUP(C105,#REF!,2,FALSE) ->  | F105: 0 | G105: 999 | I105: 0 | L105: 0 | O105: 0 | R105: 0 | U105: 0 | X105: 0 | AA105: 0 | AD105: 0 | AG105: 0 | AJ105: 0 | AM105: 0 | AP105: 0 | AS105: 0 | AV105: 0 | AY105: 0 | BB105: 0 | BE105: 0 | BH105: 0 | BK105: 0
A106: 97

Sheet Points
C1: 86400 | G1: 0.01671296296
C2: Start Points | D2: 60
C3: Max Points | D3: 75
C4: Min Points | D4: 45 | I4: =COUNT(I10:I41) -> 15 | L4: =COUNT(L10:L41) -> 10 | O4: =COUNT(O10:O41) -> 9 | R4: =COUNT(R10:R41) -> 15 | U4: =COUNT(U10:U41) -> 15 | X4: =COUNT(X10:X41) -> 14 | AA4: =COUNT(AA10:AA41) -> 0 | AD4: =COUNT(AD10:AD41) -> 0 | AG4: =COUNT(AG10:AG41) -> 0 | AJ4: =COUNT(AJ10:AJ41) -> 0 | AM4: =COUNT(AM10:AM41) -> 0 | AP4: =COUNT(AP10:AP41) -> 0 | AS4: =COUNT(AS10:AS41) -> 0 | AV4: =COUNT(AV10:AV41) -> 0 | AY4: =COUNT(AY10:AY41) -> 0 | BB4: =COUNT(BB10:BB41) -> 0 | BE4: =COUNT(BE10:BE41) -> 0 | BH4: =COUNT(BH10:BH41) -> 0 | BN4: =COUNT(BN10:BN41) -> 0
C5: Counting Rides | D5: 7
B6: SWCC 2024 Latton TT points league
J7: 2024-04-18 | M7: =J7+7 -> 2024-04-25 | P7: =M7+7 -> 2024-05-02 | S7: =P7+7 -> 2024-05-09 | V7: =S7+7 -> 2024-05-16 | Y7: =V7+7 -> 2024-05-23 | AB7: =Y7+7 -> 2024-05-30 | AE7: =AB7+7 -> 2024-06-06 | AH7: =AE7+7 -> 2024-06-13 | AK7: =AH7+7 -> 2024-06-20 | AN7: =AK7+7 -> 2024-06-27 | AQ7: =AN7+7 -> 2024-07-04 | AT7: =AQ7+7 -> 2024-07-11 | AW7: =AT7+7 -> 2024-07-18 | AZ7: =AW7+7 -> 2024-07-25 | BC7: =AZ7+7 -> 2024-08-01 | BF7: =BC7+7 -> 2024-08-08 | BI7: =BF7+7 -> 2024-08-15 | BL7: =BI7+7 -> 2024-08-22 | BO7: =BL7+7 -> 2024-08-29
D8: Rides | E8: Age group | F8: Gender | G8: ="Total Points (Best "&D5&")" -> Total Points (Best 7) | H8: Season's Best | I8: Time | J8: Points | K8: Best to date | L8: Time | M8: Points | N8: Best to date | O8: Time | P8: Points | Q8: Best to date | R8: Time | S8: Points | T8: Best to date | U8: Time | V8: Points | W8: Best to date | X8: Time | Y8: Points | Z8: Best to date | AA8: Time | AB8: Points | AC8: Best to date | AD8: Time | AE8: Points | AF8: Best to date | AG8: Time | AH8: Points | AI8: Best to date | AJ8: Time | AK8: Points | AL8: Best to date | AM8: Time | AN8: Points | AO8: Best to date | AP8: Time | AQ8: Points | AR8: Best to date | AS8: Time | AT8: Points | AU8: Best to date | AV8: Time | AW8: Points | AX8: Best to date | AY8: Time | AZ8: Points | BA8: Best to date | BB8: Time | BC8: Points | BD8: Best to date | BE8: Time | BF8: Points | BG8: Best to date | BH8: Time | BI8: Points | BJ8: Best to date | BK8: Time | BL8: Points | BM8: Best to date | BN8: Time | BO8: Points | BP8: Best to date | BR8: AG | BS8: Age @31st Dec | BT8: Age adjustment | BU8: Age adjusted Best time | BW8: Season's worst
C9: 1 | D9: =COUNT(I9,L9,O9,R9,U9,X9,AA9,AD9,AG9,AJ9,AM9,AP9,AS9,AV9,AY9,BB9,BE9,BH9,BN9) -> 0 | G9: =ROUNDDOWN(LARGE(I9:BO9,1)+(IF($D$5>1,LARGE(I9:BO9,2),0))+(IF($D$5>2,LARGE(I9:BO9,3),0))+(IF($D$5>3,LARGE(I9:BO9,4),0))+(IF($D$5>4,LARGE(I9:BO9,5),0))+(IF($D$5>5,LARGE(I9:BO9,6),0))+(IF($D$5>6,LARGE(I9:BO9,7),0)),0) -> 0 | H9: =IF(D9=0,999,MIN(I9,L9,O9,R9,U9,X9,AA9,AD9,AG9,AJ9,AM9,AP9,AS9,AV9,AY9,BB9,BE9,BH9,BK9,BN9)) -> 999 | J9: =IF(I9="",0,$D$2) -> 0 | K9: =IF(I9="","",I9) ->  | M9: =IF(L9="",0,IF(K9="",$D$2,IF((K9-L9)*$C$1+$D$2<$D$4,$D$4,IF((K9-L9)*$C$1+$D$2>$D$3,$D$3,IF((K9-L9)*$C$1+$D$2<$D$3,(K9-L9)*$C$1+$D$2,0))))) -> 0 | N9: =IF(AND(K9="",L9="")=TRUE,"",MIN(K9,L9)) ->  | P9: =IF(O9="",0,IF(N9="",$D$2,IF((N9-O9)*$C$1+$D$2<$D$4,$D$4,IF((N9-O9)*$C$1+$D$2>$D$3,$D$3,IF((N9-O9)*$C$1+$D$2<$D$3,(N9-O9)*$C$1+$D$2,0))))) -> 0 | Q9: =IF(AND(N9="",O9="")=TRUE,"",MIN(N9,O9)) ->  | S9: =IF(R9="",0,IF(Q9="",$D$2,IF((Q9-R9)*$C$1+$D$2<$D$4,$D$4,IF((Q9-R9)*$C$1+$D$2>$D$3,$D$3,IF((Q9-R9)*$C$1+$D$2<$D$3,(Q9-R9)*$C$1+$D$2,0))))) -> 0 | V9: =IF(U9="",0,IF(T9="",$D$2,IF((T9-U9)*$C$1+$D$2<$D$4,$D$4,IF((T9-U9)*$C$1+$D$2>$D$3,$D$3,IF((T9-U9)*$C$1+$D$2<$D$3,(T9-U9)*$C$1+$D$2,0))))) -> 0 | W9: =IF(AND(T9="",U9="")=TRUE,"",MIN(T9,U9)) ->  | Y9: =IF(X9="",0,IF(W9="",$D$2,IF((W9-X9)*$C$1+$D$2<$D$4,$D$4,IF((W9-X9)*$C$1+$D$2>$D$3,$D$3,IF((W9-X9)*$C$1+$D$2<$D$3,(W9-X9)*$C$1+$D$2,0))))) -> 0 | Z9: =IF(AND(W9="",X9="")=TRUE,"",MIN(W9,X9)) ->  | AB9: =IF(AA9="",0,IF(Z9="",$D$2,IF((Z9-AA9)*$C$1+$D$2<$D$4,$D$4,IF((Z9-AA9)*$C$1+$D$2>$D$3,$D$3,IF((Z9-AA9)*$C$1+$D$2<$D$3,(Z9-AA9)*$C$1+$D$2,0))))) -> 0 | AC9: =IF(AND(Z9="",AA9="")=TRUE,"",MIN(Z9,AA9)) ->  | AE9: =IF(AD9="",0,IF(AC9="",$D$2,IF((AC9-AD9)*$C$1+$D$2<$D$4,$D$4,IF((AC9-AD9)*$C$1+$D$2>$D$3,$D$3,IF((AC9-AD9)*$C$1+$D$2<$D$3,(AC9-AD9)*$C$1+$D$2,0))))) -> 0 | AF9: =IF(AND(AC9="",AD9="")=TRUE,"",MIN(AC9,AD9)) ->  | AH9: =IF(AG9="",0,IF(AF9="",$D$2,IF((AF9-AG9)*$C$1+$D$2<$D$4,$D$4,IF((AF9-AG9)*$C$1+$D$2>$D$3,$D$3,IF((AF9-AG9)*$C$1+$D$2<$D$3,(AF9-AG9)*$C$1+$D$2,0))))) -> 0 | AI9: =IF(AND(AF9="",AG9="")=TRUE,"",MIN(AF9,AG9)) ->  | AK9: =IF(AJ9="",0,IF(AI9="",$D$2,IF((AI9-AJ9)*$C$1+$D$2<$D$4,$D$4,IF((AI9-AJ9)*$C$1+$D$2>$D$3,$D$3,IF((AI9-AJ9)*$C$1+$D$2<$D$3,(AI9-AJ9)*$C$1+$D$2,0))))) -> 0 | AL9: =IF(AND(AI9="",AJ9="")=TRUE,"",MIN(AI9,AJ9)) ->  | AN9: =IF(AM9="",0,IF(AL9="",$D$2,IF((AL9-AM9)*$C$1+$D$2<$D$4,$D$4,IF((AL9-AM9)*$C$1+$D$2>$D$3,$D$3,IF((AL9-AM9)*$C$1+$D$2<$D$3,(AL9-AM9)*$C$1+$D$2,0))))) -> 0 | AO9: =IF(AND(AL9="",AM9="")=TRUE,"",MIN(AL9,AM9)) ->  | AQ9: =IF(AP9="",0,IF(AO9="",$D$2,IF((AO9-AP9)*$C$1+$D$2<$D$4,$D$4,IF((AO9-AP9)*$C$1+$D$2>$D$3,$D$3,IF((AO9-AP9)*$C$1+$D$2<$D$3,(AO9-AP9)*$C$1+$D$2,0))))) -> 0 | AR9: =IF(AND(AO9="",AP9="")=TRUE,"",MIN(AO9,AP9)) ->  | AT9: =IF(AS9="",0,IF(AR9="",$D$2,IF((AR9-AS9)*$C$1+$D$2<$D$4,$D$4,IF((AR9-AS9)*$C$1+$D$2>$D$3,$D$3,IF((AR9-AS9)*$C$1+$D$2<$D$3,(AR9-AS9)*$C$1+$D$2,0))))) -> 0 | AU9: =IF(AND(AR9="",AS9="")=TRUE,"",MIN(AR9,AS9)) ->  | AW9: =IF(AV9="",0,IF(AU9="",$D$2,IF((AU9-AV9)*$C$1+$D$2<$D$4,$D$4,IF((AU9-AV9)*$C$1+$D$2>$D$3,$D$3,IF((AU9-AV9)*$C$1+$D$2<$D$3,(AU9-AV9)*$C$1+$D$2,0))))) -> 0 | AX9: =IF(AND(AU9="",AV9="")=TRUE,"",MIN(AU9,AV9)) ->  | AZ9: =IF(AY9="",0,IF(AX9="",$D$2,IF((AX9-AY9)*$C$1+$D$2<$D$4,$D$4,IF((AX9-AY9)*$C$1+$D$2>$D$3,$D$3,IF((AX9-AY9)*$C$1+$D$2<$D$3,(AX9-AY9)*$C$1+$D$2,0))))) -> 0 | BA9: =IF(AND(AX9="",AY9="")=TRUE,"",MIN(AX9,AY9)) ->  | BC9: =IF(BB9="",0,IF(BA9="",$D$2,IF((BA9-BB9)*$C$1+$D$2<$D$4,$D$4,IF((BA9-BB9)*$C$1+$D$2>$D$3,$D$3,IF((BA9-BB9)*$C$1+$D$2<$D$3,(BA9-BB9)*$C$1+$D$2,0))))) -> 0 | BD9: =IF(AND(BA9="",BB9="")=TRUE,"",MIN(BA9,BB9)) ->  | BF9: =IF(BE9="",0,IF(BD9="",$D$2,IF((BD9-BE9)*$C$1+$D$2<$D$4,$D$4,IF((BD9-BE9)*$C$1+$D$2>$D$3,$D$3,IF((BD9-BE9)*$C$1+$D$2<$D$3,(BD9-BE9)*$C$1+$D$2,0))))) -> 0 | BG9: =IF(AND(BD9="",BE9="")=TRUE,"",MIN(BD9,BE9)) ->  | BI9: =IF(BH9="",0,IF(BG9="",$D$2,IF((BG9-BH9)*$C$1+$D$2<$D$4,$D$4,IF((BG9-BH9)*$C$1+$D$2>$D$3,$D$3,IF((BG9-BH9)*$C$1+$D$2<$D$3,(BG9-BH9)*$C$1+$D$2,0))))) -> 0 | BJ9: =IF(AND(BG9="",BH9="")=TRUE,"",MIN(BG9,BH9)) ->  | BL9: =IF(BK9="",0,IF(BG9="",$D$2,IF((BG9-BK9)*$C$1+$D$2<$D$4,$D$4,IF((BG9-BK9)*$C$1+$D$2>$D$3,$D$3,IF((BG9-BK9)*$C$1+$D$2<$D$3,(BG9-BK9)*$C$1+$D$2,0))))) -> 0 | BM9: =IF(AND(BG9="",BK9="")=TRUE,"",MIN(BG9,BK9)) ->  | BO9: =IF(BN9="",0,IF(BJ9="",$D$2,IF((BJ9-BN9)*$C$1+$D$2<$D$4,$D$4,IF((BJ9-BN9)*$C$1+$D$2>$D$3,$D$3,IF((BJ9-BN9)*$C$1+$D$2<$D$3,(BJ9-BN9)*$C$1+$D$2,0))))) -> 0 | BP9: =IF(AND(BJ9="",BN9="")=TRUE,"",MIN(BJ9,BN9)) -> 
A10: 1 | B10: =IF(C10="","",IF(G10=G9,"=",A10)) -> 1 | C10: Marcello Grossi | D10: =COUNT(I10,L10,O10,R10,U10,X10,AA10,AD10,AG10,AJ10,AM10,AP10,AS10,AV10,AY10,BB10,BE10,BH10,BN10) -> 3 | E10: Sen | F10: M | G10: =ROUNDDOWN(LARGE(I10:BO10,1)+(IF($D$5>1,LARGE(I10:BO10,2),0))+(IF($D$5>2,LARGE(I10:BO10,3),0))+(IF($D$5>3,LARGE(I10:BO10,4),0))+(IF($D$5>4,LARGE(I10:BO10,5),0))+(IF($D$5>5,LARGE(I10:BO10,6),0))+(IF($D$5>6,LARGE(I10:BO10,7),0)),0) -> 117 | H10: =IF(D10=0,999,MIN(I10,L10,O10,R10,U10,X10,AA10,AD10,AG10,AJ10,AM10,AP10,AS10,AV10,AY10,BB10,BE10,BH10,BK10,BN10)) -> 00:20:55 | J10: =IF(I10="",0,$D$2) -> 0 | K10: =IF(I10="","",I10) ->  | M10: =IF(L10="",0,IF(K10="",$D$2,IF((K10-L10)*$C$1+$D$2<$D$4,$D$4,IF((K10-L10)*$C$1+$D$2>$D$3,$D$3,IF((K10-L10)*$C$1+$D$2<$D$3,(K10-L10)*$C$1+$D$2,0))))) -> 0 | N10: =IF(AND(K10="",L10="")=TRUE,"",MIN(K10,L10)) ->  | P10: =IF(O10="",0,IF(N10="",$D$2,IF((N10-O10)*$C$1+$D$2<$D$4,$D$4,IF((N10-O10)*$C$1+$D$2>$D$3,$D$3,IF((N10-O10)*$C$1+$D$2<$D$3,(N10-O10)*$C$1+$D$2,0))))) -> 0 | Q10: =IF(AND(N10="",O10="")=TRUE,"",MIN(N10,O10)) ->  | R10: 00:20:55 | S10: =IF(R10="",0,IF(Q10="",$D$2,IF((Q10-R10)*$C$1+$D$2<$D$4,$D$4,IF((Q10-R10)*$C$1+$D$2>$D$3,$D$3,IF((Q10-R10)*$C$1+$D$2<$D$3,(Q10-R10)*$C$1+$D$2,0))))) -> 60 | T10: =IF(AND(Q10="",R10="")=TRUE,"",MIN(Q10,R10)) -> 00:20:55 | U10: 00:20:56 | W10: =IF(AND(T10="",U10="")=TRUE,"",MIN(T10,U10)) -> 00:20:55 | X10: 00:20:58 | Y10: =IF(X10="",0,IF(W10="",$D$2,IF((W10-X10)*$C$1+$D$2<$D$4,$D$4,IF((W10-X10)*$C$1+$D$2>$D$3,$D$3,IF((W10-X10)*$C$1+$D$2<$D$3,(W10-X10)*$C$1+$D$2,0))))) -> 57 | Z10: =IF(AND(W10="",X10="")=TRUE,"",MIN(W10,X10)) -> 00:20:55 | AB10: =IF(AA10="",0,IF(Z10="",$D$2,IF((Z10-AA10)*$C$1+$D$2<$D$4,$D$4,IF((Z10-AA10)*$C$1+$D$2>$D$3,$D$3,IF((Z10-AA10)*$C$1+$D$2<$D$3,(Z10-AA10)*$C$1+$D$2,0))))) -> 0 | AC10: =IF(AND(Z10="",AA10="")=TRUE,"",MIN(Z10,AA10)) -> 00:20:55 | AE10: =IF(AD10="",0,IF(AC10="",$D$2,IF((AC10-AD10)*$C$1+$D$2<$D$4,$D$4,IF((AC10-AD10)*$C$1+$D$2>$D$3,$D$3,IF((AC10-AD10)*$C$1+$D$2<$D$3,(AC10-AD10)*$C$1+$D$2,0))))) -> 0 | AF10: =IF(AND(AC10="",AD10="")=TRUE,"",MIN(AC10,AD10)) -> 00:20:55 | AH10: =IF(AG10="",0,IF(AF10="",$D$2,IF((AF10-AG10)*$C$1+$D$2<$D$4,$D$4,IF((AF10-AG10)*$C$1+$D$2>$D$3,$D$3,IF((AF10-AG10)*$C$1+$D$2<$D$3,(AF10-AG10)*$C$1+$D$2,0))))) -> 0 | AI10: =IF(AND(AF10="",AG10="")=TRUE,"",MIN(AF10,AG10)) -> 00:20:55 | AK10: =IF(AJ10="",0,IF(AI10="",$D$2,IF((AI10-AJ10)*$C$1+$D$2<$D$4,$D$4,IF((AI10-AJ10)*$C$1+$D$2>$D$3,$D$3,IF((AI10-AJ10)*$C$1+$D$2<$D$3,(AI10-AJ10)*$C$1+$D$2,0))))) -> 0 | AL10: =IF(AND(AI10="",AJ10="")=TRUE,"",MIN(AI10,AJ10)) -> 00:20:55 | AN10: =IF(AM10="",0,IF(AL10="",$D$2,IF((AL10-AM10)*$C$1+$D$2<$D$4,$D$4,IF((AL10-AM10)*$C$1+$D$2>$D$3,$D$3,IF((AL10-AM10)*$C$1+$D$2<$D$3,(AL10-AM10)*$C$1+$D$2,0))))) -> 0 | AO10: =IF(AND(AL10="",AM10="")=TRUE,"",MIN(AL10,AM10)) -> 00:20:55 | AQ10: =IF(AP10="",0,IF(AO10="",$D$2,IF((AO10-AP10)*$C$1+$D$2<$D$4,$D$4,IF((AO10-AP10)*$C$1+$D$2>$D$3,$D$3,IF((AO10-AP10)*$C$1+$D$2<$D$3,(AO10-AP10)*$C$1+$D$2,0))))) -> 0 | AR10: =IF(AND(AO10="",AP10="")=TRUE,"",MIN(AO10,AP10)) -> 00:20:55 | AT10: =IF(AS10="",0,IF(AR10="",$D$2,IF((AR10-AS10)*$C$1+$D$2<$D$4,$D$4,IF((AR10-AS10)*$C$1+$D$2>$D$3,$D$3,IF((AR10-AS10)*$C$1+$D$2<$D$3,(AR10-AS10)*$C$1+$D$2,0))))) -> 0 | AU10: =IF(AND(AR10="",AS10="")=TRUE,"",MIN(AR10,AS10)) -> 00:20:55 | AW10: =IF(AV10="",0,IF(AU10="",$D$2,IF((AU10-AV10)*$C$1+$D$2<$D$4,$D$4,IF((AU10-AV10)*$C$1+$D$2>$D$3,$D$3,IF((AU10-AV10)*$C$1+$D$2<$D$3,(AU10-AV10)*$C$1+$D$2,0))))) -> 0 | AX10: =IF(AND(AU10="",AV10="")=TRUE,"",MIN(AU10,AV10)) -> 00:20:55 | AZ10: =IF(AY10="",0,IF(AX10="",$D$2,IF((AX10-AY10)*$C$1+$D$2<$D$4,$D$4,IF((AX10-AY10)*$C$1+$D$2>$D$3,$D$3,IF((AX10-AY10)*$C$1+$D$2<$D$3,(AX10-AY10)*$C$1+$D$2,0))))) -> 0 | BA10: =IF(AND(AX10="",AY10="")=TRUE,"",MIN(AX10,AY10)) -> 00:20:55 | BC10: =IF(BB10="",0,IF(BA10="",$D$2,IF((BA10-BB10)*$C$1+$D$2<$D$4,$D$4,IF((BA10-BB10)*$C$1+$D$2>$D$3,$D$3,IF((BA10-BB10)*$C$1+$D$2<$D$3,(BA10-BB10)*$C$1+$D$2,0))))) -> 0 | BD10: =IF(AND(BA10="",BB10="")=TRUE,"",MIN(BA10,BB10)) -> 00:20:55 | BF10: =IF(BE10="",0,IF(BD10="",$D$2,IF((BD10-BE10)*$C$1+$D$2<$D$4,$D$4,IF((BD10-BE10)*$C$1+$D$2>$D$3,$D$3,IF((BD10-BE10)*$C$1+$D$2<$D$3,(BD10-BE10)*$C$1+$D$2,0))))) -> 0 | BG10: =IF(AND(BD10="",BE10="")=TRUE,"",MIN(BD10,BE10)) -> 00:20:55 | BI10: =IF(BH10="",0,IF(BG10="",$D$2,IF((BG10-BH10)*$C$1+$D$2<$D$4,$D$4,IF((BG10-BH10)*$C$1+$D$2>$D$3,$D$3,IF((BG10-BH10)*$C$1+$D$2<$D$3,(BG10-BH10)*$C$1+$D$2,0))))) -> 0 | BJ10: =IF(AND(BG10="",BH10="")=TRUE,"",MIN(BG10,BH10)) -> 00:20:55 | BL10: =IF(BK10="",0,IF(BG10="",$D$2,IF((BG10-BK10)*$C$1+$D$2<$D$4,$D$4,IF((BG10-BK10)*$C$1+$D$2>$D$3,$D$3,IF((BG10-BK10)*$C$1+$D$2<$D$3,(BG10-BK10)*$C$1+$D$2,0))))) -> 0 | BM10: =IF(AND(BG10="",BK10="")=TRUE,"",MIN(BG10,BK10)) -> 00:20:55 | BO10: =IF(BN10="",0,IF(BJ10="",$D$2,IF((BJ10-BN10)*$C$1+$D$2<$D$4,$D$4,IF((BJ10-BN10)*$C$1+$D$2>$D$3,$D$3,IF((BJ10-BN10)*$C$1+$D$2<$D$3,(BJ10-BN10)*$C$1+$D$2,0))))) -> 0 | BP10: =IF(AND(BJ10="",BN10="")=TRUE,"",MIN(BJ10,BN10)) -> 00:20:55 | BR10: =E10 -> Sen | BT10: =SUMPRODUCT(('Age Adjustments'!$A$2:$A$113=Points!BS33)*('Age Adjustments'!$B$2:$B$113=Points!F33)*('Age Adjustments'!$C$2:$C$113)) -> 00:00:00 | BU10: =H10-BT10 -> 00:20:55 | BW10: =IF(D10=0,999,MAX(I10,L10,O10,R10,U10,X10,AA10,AD10,AG10,AJ10,AM10,AP10,AS10,AV10,AY10,BB10,BE10,BH10,BK10,BN10)) -> 00:20:58
A11: 2 | B11: 2 | C11: Matt Hallett | D11: 3 | E11: V40 | F11: M | G11: 180 | H11: 00:21:42 | I11: 00:22:20 | J11: 60 | K11: 00:22:20 | M11: 0 | N11: 00:22:20 | P11: 0 | Q11: 00:22:20 | R11: 00:21:42 | S11: 75 | T11: 00:21:42 | U11: 00:22:01 | V11: =IF(U11="",0,IF(T11="",$D$2,IF((T11-U11)*$C$1+$D$2<$D$4,$D$4,IF((T11-U11)*$C$1+$D$2>$D$3,$D$3,IF((T11-U11)*$C$1+$D$2<$D$3,(T11-U11)*$C$1+$D$2,0))))) -> 45 | W11: 00:21:42 | Y11: 0 | Z11: 00:21:42 | AB11: 0 | AC11: 00:21:42 | AE11: 0 | AF11: 00:21:42 | AH11: 0 | AI11: 00:21:42 | AK11: 0 | AL11: 00:21:42 | AN11: 0 | AO11: 00:21:42 | AQ11: 0 | AR11: 00:21:42 | AT11: 0 | AU11: 00:21:42 | AW11: 0 | AX11: 00:21:42 | AZ11: 0 | BA11: 00:21:42 | BC11: 0 | BD11: 00:21:42 | BF11: 0 | BG11: 00:21:42 | BI11: 0 | BJ11: 00:21:42 | BL11: 0 | BM11: 00:21:42 | BO11: 0 | BP11: 00:21:42 | BR11: V40 | BT11: =SUMPRODUCT(('Age Adjustments'!$A$2:$A$113=Points!BS10)*('Age Adjustments'!$B$2:$B$113=Points!F10)*('Age Adjustments'!$C$2:$C$113)) -> 00:00:00 | BU11: 00:21:42 | BW11: 00:22:20
A12: 3 | B12: 3 | C12: Ian Cheatle | D12: 1 | E12: Sen | F12: M | G12: 60 | H12: 00:22:48 | J12: 0 | M12: 0 | P12: 0 | R12: 00:22:48 | S12: 60 | T12: 00:22:48 | V12: 0 | W12: 00:22:48 | Y12: 0 | Z12: 00:22:48 | AB12: 0 | AC12: 00:22:48 | AE12: 0 | AF12: 00:22:48 | AH12: 0 | AI12: 00:22:48 | AK12: 0 | AL12: 00:22:48 | AN12: 0 | AO12: 00:22:48 | AQ12: 0 | AR12: 00:22:48 | AT12: 0 | AU12: 00:22:48 | AW12: 0 | AX12: 00:22:48 | AZ12: 0 | BA12: 00:22:48 | BC12: 0 | BD12: 00:22:48 | BF12: 0 | BG12: 00:22:48 | BI12: 0 | BJ12: 00:22:48 | BL12: 0 | BM12: 00:22:48 | BO12: 0 | BP12: 00:22:48 | BR12: Sen | BT12: =SUMPRODUCT(('Age Adjustments'!$A$2:$A$113=Points!BS34)*('Age Adjustments'!$B$2:$B$113=Points!F34)*('Age Adjustments'!$C$2:$C$113)) -> 00:00:00 | BU12: 00:22:48 | BW12: 00:22:48
A13: 4 | B13: = | C13: Chris Tye | D13: 1 | E13: V50 | F13: M | G13: 60 | H13: 00:23:25 | J13: 0 | M13: 0 | P13: 0 | S13: 0 | V13: 0 | X13: 00:23:25 | Y13: 60 | Z13: 00:23:25 | AB13: 0 | AC13: 00:23:25 | AE13: 0 | AF13: 00:23:25 | AH13: 0 | AI13: 00:23:25 | AK13: 0 | AL13: 00:23:25 | AN13: 0 | AO13: 00:23:25 | AQ13: 0 | AR13: 00:23:25 | AT13: 0 | AU13: 00:23:25 | AW13: 0 | AX13: 00:23:25 | AZ13: 0 | BA13: 00:23:25 | BC13: 0 | BD13: 00:23:25 | BF13: 0 | BG13: 00:23:25 | BI13: 0 | BJ13: 00:23:25 | BL13: 0 | BM13: 00:23:25 | BO13: 0 | BP13: 00:23:25 | BR13: V50 | BT13: =SUMPRODUCT(('Age Adjustments'!$A$2:$A$113=Points!BS41)*('Age Adjustments'!$B$2:$B$113=Points!F41)*('Age Adjustments'!$C$2:$C$113)) -> 00:00:00 | BU13: 00:23:25 | BW13: 00:23:25
A14: 5 | B14: = | C14: Fraser Joyce | D14: 1 | E14: Sen | F14: M | G14: 60 | H14: 00:23:26 | J14: 0 | M14: 0 | P14: 0 | R14: 00:23:26 | S14: 60 | T14: 00:23:26 | V14: 0 | W14: 00:23:26 | Y14: 0 | Z14: 00:23:26 | AB14: 0 | AC14: 00:23:26 | AE14: 0 | AF14: 00:23:26 | AH14: 0 | AI14: 00:23:26 | AK14: 0 | AL14: 00:23:26 | AN14: 0 | AO14: 00:23:26 | AQ14: 0 | AR14: 00:23:26 | AT14: 0 | AU14: 00:23:26 | AW14: 0 | AX14: 00:23:26 | AZ14: 0 | BA14: 00:23:26 | BC14: 0 | BD14: 00:23:26 | BF14: 0 | BG14: 00:23:26 | BI14: 0 | BJ14: 00:23:26 | BL14: 0 | BM14: 00:23:26 | BO14: 0 | BP14: 00:23:26 | BR14: Sen | BT14: =SUMPRODUCT(('Age Adjustments'!$A$2:$A$113=Points!BS35)*('Age Adjustments'!$B$2:$B$113=Points!F35)*('Age Adjustments'!$C$2:$C$113)) -> 00:00:00 | BU14: 00:23:26 | BW14: 00:23:26
A15: 6 | B15: 6 | C15: Justin Robbins | D15: 3 | E15: V50 | F15: M | G15: 180 | H15: 00:23:29 | J15: 0 | M15: 0 | O15: 00:24:04 | P15: 60 | Q15: 00:24:04 | R15: 00:26:52 | S15: 45 | T15: 00:24:04 | U15: 00:23:29 | V15: 75 | W15: 00:23:29 | Y15: 0 | Z15: 00:23:29 | AB15: 0 | AC15: 00:23:29 | AE15: 0 | AF15: 00:23:29 | AH15: 0 | AI15: 00:23:29 | AK15: 0 | AL15: 00:23:29 | AN15: 0 | AO15: 00:23:29 | AQ15: 0 | AR15: 00:23:29 | AT15: 0 | AU15: 00:23:29 | AW15: 0 | AX15: 00:23:29 | AZ15: 0 | BA15: 00:23:29 | BC15: 0 | BD15: 00:23:29 | BF15: 0 | BG15: 00:23:29 | BI15: 0 | BJ15: 00:23:29 | BL15: 0 | BM15: 00:23:29 | BO15: 0 | BP15: 00:23:29 | BR15: V50 | BT15: =SUMPRODUCT(('Age Adjustments'!$A$2:$A$113=Points!BS29)*('Age Adjustments'!$B$2:$B$113=Points!F29)*('Age Adjustments'!$C$2:$C$113)) -> 00:00:00 | BU15: 00:23:29 | BW15: 00:26:52
A16: 7 | B16: 7 | C16: Les Sheppard | D16: 3 | E16: V50 | F16: M | G16: 184 | H16: 00:23:41 | I16: 00:23:56 | J16: 60 | K16: 00:23:56 | M16: 0 | N16: 00:23:56 | P16: 0 | Q16: 00:23:56 | R16: 00:23:41 | S16: 75 | T16: 00:23:41 | V16: 0 | W16: 00:23:41 | X16: 00:23:52 | Y16: 49 | Z16: 00:23:41 | AB16: 0 | AC16: 00:23:41 | AE16: 0 | AF16: 00:23:41 | AH16: 0 | AI16: 00:23:41 | AK16: 0 | AL16: 00:23:41 | AN16: 0 | AO16: 00:23:41 | AQ16: 0 | AR16: 00:23:41 | AT16: 0 | AU16: 00:23:41 | AW16: 0 | AX16: 00:23:41 | AZ16: 0 | BA16: 00:23:41 | BC16: 0 | BD16: 00:23:41 | BF16: 0 | BG16: 00:23:41 | BI16: 0 | BJ16: 00:23:41 | BL16: 0 | BM16: 00:23:41 | BO16: 0 | BP16: 00:23:41 | BR16: V50 | BT16: =SUMPRODUCT(('Age Adjustments'!$A$2:$A$113=Points!BS12)*('Age Adjustments'!$B$2:$B$113=Points!F12)*('Age Adjustments'!$C$2:$C$113)) -> 00:00:00 | BU16: 00:23:41 | BW16: 00:23:56
A17: 8 | B17: 8 | C17: Ben Parker | D17: 1 | E17: V40 | F17: M | G17: 60 | H17: 00:23:43 | I17: 00:23:43 | J17: 60 | K17: 00:23:43 | M17: 0 | N17: 00:23:43 | P17: 0 | Q17: 00:23:43 | S17: 0 | T17: 00:23:43 | V17: 0 | W17: 00:23:43 | Y17: 0 | Z17: 00:23:43 | AB17: 0 | AC17: 00:23:43 | AE17: 0 | AF17: 00:23:43 | AH17: 0 | AI17: 00:23:43 | AK17: 0 | AL17: 00:23:43 | AN17: 0 | AO17: 00:23:43 | AQ17: 0 | AR17: 00:23:43 | AT17: 0 | AU17: 00:23:43 | AW17: 0 | AX17: 00:23:43 | AZ17: 0 | BA17: 00:23:43 | BC17: 0 | BD17: 00:23:43 | BF17: 0 | BG17: 00:23:43 | BI17: 0 | BJ17: 00:23:43 | BL17: 0 | BM17: 00:23:43 | BO17: 0 | BP17: 00:23:43 | BR17: V40 | BT17: =SUMPRODUCT(('Age Adjustments'!$A$2:$A$113=Points!BS11)*('Age Adjustments'!$B$2:$B$113=Points!F11)*('Age Adjustments'!$C$2:$C$113)) -> 00:00:00 | BU17: 00:23:43 | BW17: 00:23:43
A18: 9 | B18: 9 | C18: Charlotte Berry | D18: 3 | E18: Sen | F18: F | G18: 200 | H18: 00:23:49 | J18: 0 | M18: 0 | O18: 00:24:09 | P18: 60 | Q18: 00:24:09 | S18: 0 | T18: 00:24:09 | U18: 00:23:54 | V18: 75 | W18: 00:23:54 | X18: 00:23:49 | Y18: 65 | Z18: 00:23:49 | AB18: 0 | AC18: 00:23:49 | AE18: 0 | AF18: 00:23:49 | AH18: 0 | AI18: 00:23:49 | AK18: 0 | AL18: 00:23:49 | AN18: 0 | AO18: 00:23:49 | AQ18: 0 | AR18: 00:23:49 | AT18: 0 | AU18: 00:23:49 | AW18: 0 | AX18: 00:23:49 | AZ18: 0 | BA18: 00:23:49 | BC18: 0 | BD18: 00:23:49 | BF18: 0 | BG18: 00:23:49 | BI18: 0 | BJ18: 00:23:49 | BL18: 0 | BM18: 00:23:49 | BO18: 0 | BP18: 00:23:49 | BR18: Sen | BT18: =SUMPRODUCT(('Age Adjustments'!$A$2:$A$113=Points!BS30)*('Age Adjustments'!$B$2:$B$113=Points!F30)*('Age Adjustments'!$C$2:$C$113)) -> 00:00:00 | BU18: 00:23:49 | BW18: 00:24:09
A19: 10 | B19: 10 | C19: Jack Walters | D19: 4 | E19: Jun | F19: M | G19: 285 | H19: 00:24:06 | I19: 00:25:28 | J19: 60 | K19: 00:25:28 | M19: 0 | N19: 00:25:28 | O19: 00:24:51 | P19: 75 | Q19: 00:24:51 | R19: 00:24:27 | S19: 75 | T19: 00:24:27 | U19: 00:24:06 | V19: 75 | W19: 00:24:06 | Y19: 0 | Z19: 00:24:06 | AB19: 0 | AC19: 00:24:06 | AE19: 0 | AF19: 00:24:06 | AH19: 0 | AI19: 00:24:06 | AK19: 0 | AL19: 00:24:06 | AN19: 0 | AO19: 00:24:06 | AQ19: 0 | AR19: 00:24:06 | AT19: 0 | AU19: 00:24:06 | AW19: 0 | AX19: 00:24:06 | AZ19: 0 | BA19: 00:24:06 | BC19: 0 | BD19: 00:24:06 | BF19: 0 | BG19: 00:24:06 | BI19: 0 | BJ19: 00:24:06 | BL19: 0 | BM19: 00:24:06 | BO19: 0 | BP19: 00:24:06 | BR19: Jun | BT19: =SUMPRODUCT(('Age Adjustments'!$A$2:$A$113=Points!BS15)*('Age Adjustments'!$B$2:$B$113=Points!F15)*('Age Adjustments'!$C$2:$C$113)) -> 00:00:00 | BU19: 00:24:06 | BW19: 00:25:28
A20: 11 | B20: 11 | C20: Jo Spencer | D20: 3 | E20: V40 | F20: F | G20: 150 | H20: 00:24:11 | I20: 00:24:11 | J20: 60 | K20: 00:24:11 | L20: 00:24:27 | M20: 45 | N20: 00:24:11 | P20: 0 | Q20: 00:24:11 | S20: 0 | T20: 00:24:11 | U20: 00:24:27 | V20: 45 | W20: 00:24:11 | Y20: 0 | Z20: 00:24:11 | AB20: 0 | AC20: 00:24:11 | AE20: 0 | AF20: 00:24:11 | AH20: 0 | AI20: 00:24:11 | AK20: 0 | AL20: 00:24:11 | AN20: 0 | AO20: 00:24:11 | AQ20: 0 | AR20: 00:24:11 | AT20: 0 | AU20: 00:24:11 | AW20: 0 | AX20: 00:24:11 | AZ20: 0 | BA20: 00:24:11 | BC20: 0 | BD20: 00:24:11 | BF20: 0 | BG20: 00:24:11 | BI20: 0 | BJ20: 00:24:11 | BL20: 0 | BM20: 00:24:11 | BO20: 0 | BP20: 00:24:11 | BR20: V40 | BT20: =SUMPRODUCT(('Age Adjustments'!$A$2:$A$113=Points!BS13)*('Age Adjustments'!$B$2:$B$113=Points!F13)*('Age Adjustments'!$C$2:$C$113)) -> 00:00:00 | BU20: 00:24:11 | BW20: 00:24:27
A21: 12 | B21: 12 | C21: Huw Riley | D21: 1 | E21: Sen | F21: M | G21: 60 | H21: 00:24:23 | J21: 0 | M21: 0 | P21: 0 | R21: 00:24:23 | S21: 60 | T21: 00:24:23 | V21: 0 | W21: 00:24:23 | Y21: 0 | Z21: 00:24:23 | AB21: 0 | AC21: 00:24:23 | AE21: 0 | AF21: 00:24:23 | AH21: 0 | AI21: 00:24:23 | AK21: 0 | AL21: 00:24:23 | AN21: 0 | AO21: 00:24:23 | AQ21: 0 | AR21: 00:24:23 | AT21: 0 | AU21: 00:24:23 | AW21: 0 | AX21: 00:24:23 | AZ21: 0 | BA21: 00:24:23 | BC21: 0 | BD21: 00:24:23 | BF21: 0 | BG21: 00:24:23 | BI21: 0 | BJ21: 00:24:23 | BL21: 0 | BM21: 00:24:23 | BO21: 0 | BP21: 00:24:23 | BR21: Sen | BT21: =SUMPRODUCT(('Age Adjustments'!$A$2:$A$113=Points!BS36)*('Age Adjustments'!$B$2:$B$113=Points!F36)*('Age Adjustments'!$C$2:$C$113)) -> 00:00:00 | BU21: 00:24:23 | BW21: 00:24:23
A22: 13 | B22: 13 | C22: Michael Spencer | D22: 3 | E22: V40 | F22: M | G22: 191 | H22: 00:25:02 | I22: 00:25:13 | J22: 60 | K22: 00:25:13 | L22: 00:25:08 | M22: 65 | N22: 00:25:08 | P22: 0 | Q22: 00:25:08 | S22: 0 | T22: 00:25:08 | V22: 0 | W22: 00:25:08 | X22: 00:25:02 | Y22: 66 | Z22: 00:25:02 | AB22: 0 | AC22: 00:25:02 | AE22: 0 | AF22: 00:25:02 | AH22: 0 | AI22: 00:25:02 | AK22: 0 | AL22: 00:25:02 | AN22: 0 | AO22: 00:25:02 | AQ22: 0 | AR22: 00:25:02 | AT22: 0 | AU22: 00:25:02 | AW22: 0 | AX22: 00:25:02 | AZ22: 0 | BA22: 00:25:02 | BC22: 0 | BD22: 00:25:02 | BF22: 0 | BG22: 00:25:02 | BI22: 0 | BJ22: 00:25:02 | BL22: 0 | BM22: 00:25:02 | BO22: 0 | BP22: 00:25:02 | BR22: V40 | BT22: =SUMPRODUCT(('Age Adjustments'!$A$2:$A$113=Points!BS14)*('Age Adjustments'!$B$2:$B$113=Points!F14)*('Age Adjustments'!$C$2:$C$113)) -> 00:00:00 | BU22: 00:25:02 | BW22: 00:25:13
A23: 14 | B23: 14 | C23: Paul Ashman | D23: 2 | E23: v40 | F23: M | G23: 120 | H23: 00:25:02 | J23: 0 | M23: 0 | P23: 0 | R23: 00:25:02 | S23: 60 | T23: 00:25:02 | V23: 0 | W23: 00:25:02 | X23: 00:25:02 | Y23: 60 | Z23: 00:25:02 | AB23: 0 | AC23: 00:25:02 | AE23: 0 | AF23: 00:25:02 | AH23: 0 | AI23: 00:25:02 | AK23: 0 | AL23: 00:25:02 | AN23: 0 | AO23: 00:25:02 | AQ23: 0 | AR23: 00:25:02 | AT23: 0 | AU23: 00:25:02 | AW23: 0 | AX23: 00:25:02 | AZ23: 0 | BA23: 00:25:02 | BC23: 0 | BD23: 00:25:02 | BF23: 0 | BG23: 00:25:02 | BI23: 0 | BJ23: 00:25:02 | BL23: 0 | BM23: 00:25:02 | BO23: 0 | BP23: 00:25:02 | BR23: v40 | BT23: =SUMPRODUCT(('Age Adjustments'!$A$2:$A$113=Points!BS37)*('Age Adjustments'!$B$2:$B$113=Points!F37)*('Age Adjustments'!$C$2:$C$113)) -> 00:00:00 | BU23: 00:25:02 | BW23: 00:25:02
A24: 15 | B24: 15 | C24: John Hargreaves | D24: 3 | E24: V60+ | F24: M | G24: 181 | H24: 00:25:03 | I24: 00:26:20 | J24: 60 | K24: 00:26:20 | M24: 0 | N24: 00:26:20 | P24: 0 | Q24: 00:26:20 | S24: 0 | T24: 00:26:20 | U24: 00:25:03 | V24: 75 | W24: 00:25:03 | X24: 00:25:17 | Y24: 46 | Z24: 00:25:03 | AB24: 0 | AC24: 00:25:03 | AE24: 0 | AF24: 00:25:03 | AH24: 0 | AI24: 00:25:03 | AK24: 0 | AL24: 00:25:03 | AN24: 0 | AO24: 00:25:03 | AQ24: 0 | AR24: 00:25:03 | AT24: 0 | AU24: 00:25:03 | AW24: 0 | AX24: 00:25:03 | AZ24: 0 | BA24: 00:25:03 | BC24: 0 | BD24: 00:25:03 | BF24: 0 | BG24: 00:25:03 | BI24: 0 | BJ24: 00:25:03 | BL24: 0 | BM24: 00:25:03 | BO24: 0 | BP24: 00:25:03 | BR24: V60+ | BT24: =SUMPRODUCT(('Age Adjustments'!$A$2:$A$113=Points!BS16)*('Age Adjustments'!$B$2:$B$113=Points!F16)*('Age Adjustments'!$C$2:$C$113)) -> 00:00:00 | BU24: 00:25:03 | BW24: 00:26:20
A25: 16 | B25: 16 | C25: Jai Bhatoolaul | D25: 3 | E25: Sen | F25: M | G25: 180 | H25: 00:25:15 | J25: 0 | M25: 0 | O25: 00:25:40 | P25: 60 | Q25: 00:25:40 | R25: 00:25:15 | S25: 75 | T25: 00:25:15 | V25: 0 | W25: 00:25:15 | X25: 00:25:37 | Y25: 45 | Z25: 00:25:15 | AB25: 0 | AC25: 00:25:15 | AE25: 0 | AF25: 00:25:15 | AH25: 0 | AI25: 00:25:15 | AK25: 0 | AL25: 00:25:15 | AN25: 0 | AO25: 00:25:15 | AQ25: 0 | AR25: 00:25:15 | AT25: 0 | AU25: 00:25:15 | AW25: 0 | AX25: 00:25:15 | AZ25: 0 | BA25: 00:25:15 | BC25: 0 | BD25: 00:25:15 | BF25: 0 | BG25: 00:25:15 | BI25: 0 | BJ25: 00:25:15 | BL25: 0 | BM25: 00:25:15 | BO25: 0 | BP25: 00:25:15 | BR25: Sen | BT25: =SUMPRODUCT(('Age Adjustments'!$A$2:$A$113=Points!BS31)*('Age Adjustments'!$B$2:$B$113=Points!F31)*('Age Adjustments'!$C$2:$C$113)) -> 00:00:00 | BU25: 00:25:15 | BW25: 00:25:40
A26: 17 | B26: = | C26: Gary Beale | D26: 3 | E26: v50 | F26: M | G26: 180 | H26: 00:25:59 | J26: 0 | M26: 0 | O26: 00:28:41 | P26: 60 | Q26: 00:28:41 | S26: 0 | T26: 00:28:41 | U26: 00:25:59 | V26: 75 | W26: 00:25:59 | X26: 00:26:23 | Y26: 45 | Z26: 00:25:59 | AB26: 0 | AC26: 00:25:59 | AE26: 0 | AF26: 00:25:59 | AH26: 0 | AI26: 00:25:59 | AK26: 0 | AL26: 00:25:59 | AN26: 0 | AO26: 00:25:59 | AQ26: 0 | AR26: 00:25:59 | AT26: 0 | AU26: 00:25:59 | AW26: 0 | AX26: 00:25:59 | AZ26: 0 | BA26: 00:25:59 | BC26: 0 | BD26: 00:25:59 | BF26: 0 | BG26: 00:25:59 | BI26: 0 | BJ26: 00:25:59 | BL26: 0 | BM26: 00:25:59 | BO26: 0 | BP26: 00:25:59 | BR26: v50 | BT26: =SUMPRODUCT(('Age Adjustments'!$A$2:$A$113=Points!BS38)*('Age Adjustments'!$B$2:$B$113=Points!F38)*('Age Adjustments'!$C$2:$C$113)) -> 00:00:00 | BU26: 00:25:59 | BW26: 00:28:41
A27: 18 | B27: = | C27: Sue Smith | D27: 3 | E27: V50 | F27: F | G27: 180 | H27: 00:26:01 | J27: 0 | M27: 0 | O27: 00:27:39 | P27: 60 | Q27: 00:27:39 | R27: 00:26:01 | S27: 75 | T27: 00:26:01 | V27: 0 | W27: 00:26:01 | X27: 00:26:25 | Y27: 45 | Z27: 00:26:01 | AB27: 0 | AC27: 00:26:01 | AE27: 0 | AF27: 00:26:01 | AH27: 0 | AI27: 00:26:01 | AK27: 0 | AL27: 00:26:01 | AN27: 0 | AO27: 00:26:01 | AQ27: 0 | AR27: 00:26:01 | AT27: 0 | AU27: 00:26:01 | AW27: 0 | AX27: 00:26:01 | AZ27: 0 | BA27: 00:26:01 | BC27: 0 | BD27: 00:26:01 | BF27: 0 | BG27: 00:26:01 | BI27: 0 | BJ27: 00:26:01 | BL27: 0 | BM27: 00:26:01 | BO27: 0 | BP27: 00:26:01 | BR27: V50 | BT27: =SUMPRODUCT(('Age Adjustments'!$A$2:$A$113=Points!BS32)*('Age Adjustments'!$B$2:$B$113=Points!F32)*('Age Adjustments'!$C$2:$C$113)) -> 00:00:00 | BU27: 00:26:01 | BW27: 00:27:39
A28: 19 | B28: 19 | C28: Steve Black | D28: 5 | E28: V50 | F28: M | G28: 309 | H28: 00:26:16 | I28: 00:27:36 | J28: 60 | K28: 00:27:36 | L28: 00:27:42 | M28: 54 | N28: 00:27:36 | P28: 0 | Q28: 00:27:36 | R28: 00:26:43 | S28: 75 | T28: 00:26:43 | U28: 00:26:16 | V28: 75 | W28: 00:26:16 | X28: 00:26:43 | Y28: 45 | Z28: 00:26:16 | AB28: 0 | AC28: 00:26:16 | AE28: 0 | AF28: 00:26:16 | AH28: 0 | AI28: 00:26:16 | AK28: 0 | AL28: 00:26:16 | AN28: 0 | AO28: 00:26:16 | AQ28: 0 | AR28: 00:26:16 | AT28: 0 | AU28: 00:26:16 | AW28: 0 | AX28: 00:26:16 | AZ28: 0 | BA28: 00:26:16 | BC28: 0 | BD28: 00:26:16 | BF28: 0 | BG28: 00:26:16 | BI28: 0 | BJ28: 00:26:16 | BL28: 0 | BM28: 00:26:16 | BO28: 0 | BP28: 00:26:16 | BR28: V50 | BT28: =SUMPRODUCT(('Age Adjustments'!$A$2:$A$113=Points!BS19)*('Age Adjustments'!$B$2:$B$113=Points!F19)*('Age Adjustments'!$C$2:$C$113)) -> 00:00:00 | BU28: 00:26:16 | BW28: 00:27:42
A29: 20 | B29: 20 | C29: Justin Ede | D29: 1 | E29: V40 | F29: M | G29: 60 | H29: 00:26:24 | I29: 00:26:24 | J29: 60 | K29: 00:26:24 | M29: 0 | N29: 00:26:24 | P29: 0 | Q29: 00:26:24 | S29: 0 | T29: 00:26:24 | V29: 0 | W29: 00:26:24 | Y29: 0 | Z29: 00:26:24 | AB29: 0 | AC29: 00:26:24 | AE29: 0 | AF29: 00:26:24 | AH29: 0 | AI29: 00:26:24 | AK29: 0 | AL29: 00:26:24 | AN29: 0 | AO29: 00:26:24 | AQ29: 0 | AR29: 00:26:24 | AT29: 0 | AU29: 00:26:24 | AW29: 0 | AX29: 00:26:24 | AZ29: 0 | BA29: 00:26:24 | BC29: 0 | BD29: 00:26:24 | BF29: 0 | BG29: 00:26:24 | BI29: 0 | BJ29: 00:26:24 | BL29: 0 | BM29: 00:26:24 | BO29: 0 | BP29: 00:26:24 | BR29: V40 | BT29: =SUMPRODUCT(('Age Adjustments'!$A$2:$A$113=Points!BS17)*('Age Adjustments'!$B$2:$B$113=Points!F17)*('Age Adjustments'!$C$2:$C$113)) -> 00:00:00 | BU29: 00:26:24 | BW29: 00:26:24
A30: 21 | B30: = | C30: Tom Holden | D30: 1 | E30: Sen | F30: M | G30: 60 | H30: 00:26:40 | I30: 00:26:40 | J30: 60 | K30: 00:26:40 | M30: 0 | N30: 00:26:40 | P30: 0 | Q30: 00:26:40 | S30: 0 | T30: 00:26:40 | V30: 0 | W30: 00:26:40 | Y30: 0 | Z30: 00:26:40 | AB30: 0 | AC30: 00:26:40 | AE30: 0 | AF30: 00:26:40 | AH30: 0 | AI30: 00:26:40 | AK30: 0 | AL30: 00:26:40 | AN30: 0 | AO30: 00:26:40 | AQ30: 0 | AR30: 00:26:40 | AT30: 0 | AU30: 00:26:40 | AW30: 0 | AX30: 00:26:40 | AZ30: 0 | BA30: 00:26:40 | BC30: 0 | BD30: 00:26:40 | BF30: 0 | BG30: 00:26:40 | BI30: 0 | BJ30: 00:26:40 | BL30: 0 | BM30: 00:26:40 | BO30: 0 | BP30: 00:26:40 | BR30: Sen | BT30: =SUMPRODUCT(('Age Adjustments'!$A$2:$A$113=Points!BS18)*('Age Adjustments'!$B$2:$B$113=Points!F18)*('Age Adjustments'!$C$2:$C$113)) -> 00:00:00 | BU30: 00:26:40 | BW30: 00:26:40
A31: 22 | B31: = | C31: Marianne Day | D31: 1 | E31: Sen | F31: F | G31: 60 | H31: 00:26:41 | J31: 0 | L31: 00:26:41 | M31: 60 | N31: 00:26:41 | P31: 0 | Q31: 00:26:41 | S31: 0 | T31: 00:26:41 | V31: 0 | W31: 00:26:41 | Y31: 0 | Z31: 00:26:41 | AB31: 0 | AC31: 00:26:41 | AE31: 0 | AF31: 00:26:41 | AH31: 0 | AI31: 00:26:41 | AK31: 0 | AL31: 00:26:41 | AN31: 0 | AO31: 00:26:41 | AQ31: 0 | AR31: 00:26:41 | AT31: 0 | AU31: 00:26:41 | AW31: 0 | AX31: 00:26:41 | AZ31: 0 | BA31: 00:26:41 | BC31: 0 | BD31: 00:26:41 | BF31: 0 | BG31: 00:26:41 | BI31: 0 | BJ31: 00:26:41 | BL31: 0 | BM31: 00:26:41 | BO31: 0 | BP31: 00:26:41 | BR31: Sen | BT31: =SUMPRODUCT(('Age Adjustments'!$A$2:$A$113=Points!BS25)*('Age Adjustments'!$B$2:$B$113=Points!F25)*('Age Adjustments'!$C$2:$C$113)) -> 00:00:00 | BU31: 00:26:41 | BW31: 00:26:41
A32: 23 | B32: = | C32: David Addyman | D32: 1 | E32: V50 | F32: M | G32: 60 | H32: 00:27:13 | J32: 0 | M32: 0 | P32: 0 | S32: 0 | V32: 0 | X32: 00:27:13 | Y32: 60 | Z32: 00:27:13 | AB32: 0 | AC32: 00:27:13 | AE32: 0 | AF32: 00:27:13 | AH32: 0 | AI32: 00:27:13 | AK32: 0 | AL32: 00:27:13 | AN32: 0 | AO32: 00:27:13 | AQ32: 0 | AR32: 00:27:13 | AT32: 0 | AU32: 00:27:13 | AW32: 0 | AX32: 00:27:13 | AZ32: 0 | BA32: 00:27:13 | BC32: 0 | BD32: 00:27:13 | BF32: 0 | BG32: 00:27:13 | BI32: 0 | BJ32: 00:27:13 | BL32: 0 | BM32: 00:27:13 | BO32: 0 | BP32: 00:27:13 | BT32: =SUMPRODUCT(('Age Adjustments'!$A$2:$A$113=Points!BS42)*('Age Adjustments'!$B$2:$B$113=Points!F42)*('Age Adjustments'!$C$2:$C$113)) -> 00:00:00 | BU32: 00:27:13 | BW32: 00:27:13
A33: 24 | B33: 24 | C33: Paul Fuchs | D33: 6 | E33: V60+ | F33: M | G33: 338 | H33: 00:28:22 | I33: 00:28:49 | J33: 60 | K33: 00:28:49 | L33: 00:28:46 | M33: 63 | N33: 00:28:46 | O33: 00:29:12 | P33: 45 | Q33: 00:28:46 | R33: 00:28:56 | S33: 50 | T33: 00:28:46 | U33: 00:28:22 | V33: 75 | W33: 00:28:22 | X33: 00:28:50 | Y33: 45 | Z33: 00:28:22 | AB33: 0 | AC33: 00:28:22 | AE33: 0 | AF33: 00:28:22 | AH33: 0 | AI33: 00:28:22 | AK33: 0 | AL33: 00:28:22 | AN33: 0 | AO33: 00:28:22 | AQ33: 0 | AR33: 00:28:22 | AT33: 0 | AU33: 00:28:22 | AW33: 0 | AX33: 00:28:22 | AZ33: 0 | BA33: 00:28:22 | BC33: 0 | BD33: 00:28:22 | BF33: 0 | BG33: 00:28:22 | BI33: 0 | BJ33: 00:28:22 | BL33: 0 | BM33: 00:28:22 | BO33: 0 | BP33: 00:28:22 | BR33: =E33 -> V60+ | BT33: =SUMPRODUCT(('Age Adjustments'!$A$2:$A$113=Points!BS20)*('Age Adjustments'!$B$2:$B$113=Points!F20)*('Age Adjustments'!$C$2:$C$113)) -> 00:00:00 | BU33: 00:28:22 | BW33: 00:29:12
A34: 25 | B34: 25 | C34: Wing To | D34: 1 | E34: v40 | F34: F | G34: 60 | H34: 00:29:00 | J34: 0 | M34: 0 | P34: 0 | S34: 0 | U34: 00:29:00 | V34: 60 | W34: 00:29:00 | Y34: 0 | Z34: 00:29:00 | AB34: 0 | AC34: 00:29:00 | AE34: 0 | AF34: 00:29:00 | AH34: 0 | AI34: 00:29:00 | AK34: 0 | AL34: 00:29:00 | AN34: 0 | AO34: 00:29:00 | AQ34: 0 | AR34: 00:29:00 | AT34: 0 | AU34: 00:29:00 | AW34: 0 | AX34: 00:29:00 | AZ34: 0 | BA34: 00:29:00 | BC34: 0 | BD34: 00:29:00 | BF34: 0 | BG34: 00:29:00 | BI34: 0 | BJ34: 00:29:00 | BL34: 0 | BM34: 00:29:00 | BO34: 0 | BP34: 00:29:00 | BR34: v40 | BT34: =SUMPRODUCT(('Age Adjustments'!$A$2:$A$113=Points!BS39)*('Age Adjustments'!$B$2:$B$113=Points!F39)*('Age Adjustments'!$C$2:$C$113)) -> 00:00:00 | BU34: 00:29:00 | BW34: 00:29:00
A35: 26 | B35: 26 | C35: Nigel Davies | D35: 3 | E35: V50 | F35: M | G35: 203 | H35: 00:29:38 | I35: 00:30:56 | J35: 60 | K35: 00:30:56 | L35: 00:30:48 | M35: 68 | N35: 00:30:48 | P35: 0 | Q35: 00:30:48 | S35: 0 | T35: 00:30:48 | U35: 00:29:38 | V35: 75 | W35: 00:29:38 | Y35: 0 | Z35: 00:29:38 | AB35: 0 | AC35: 00:29:38 | AE35: 0 | AF35: 00:29:38 | AH35: 0 | AI35: 00:29:38 | AK35: 0 | AL35: 00:29:38 | AN35: 0 | AO35: 00:29:38 | AQ35: 0 | AR35: 00:29:38 | AT35: 0 | AU35: 00:29:38 | AW35: 0 | AX35: 00:29:38 | AZ35: 0 | BA35: 00:29:38 | BC35: 0 | BD35: 00:29:38 | BF35: 0 | BG35: 00:29:38 | BI35: 0 | BJ35: 00:29:38 | BL35: 0 | BM35: 00:29:38 | BO35: 0 | BP35: 00:29:38 | BR35: V50 | BT35: =SUMPRODUCT(('Age Adjustments'!$A$2:$A$113=Points!BS21)*('Age Adjustments'!$B$2:$B$113=Points!F21)*('Age Adjustments'!$C$2:$C$113)) -> 00:00:00 | BU35: 00:29:38 | BW35: 00:30:56
A36: 27 | B36: 27 | C36: Darren Harrisson | D36: 2 | E36: V50 | F36: M | G36: 135 | H36: 00:30:40 | J36: 0 | L36: 00:32:25 | M36: 60 | N36: 00:32:25 | P36: 0 | Q36: 00:32:25 | S36: 0 | T36: 00:32:25 | U36: 00:30:40 | V36: 75 | W36: 00:30:40 | Y36: 0 | Z36: 00:30:40 | AB36: 0 | AC36: 00:30:40 | AE36: 0 | AF36: 00:30:40 | AH36: 0 | AI36: 00:30:40 | AK36: 0 | AL36: 00:30:40 | AN36: 0 | AO36: 00:30:40 | AQ36: 0 | AR36: 00:30:40 | AT36: 0 | AU36: 00:30:40 | AW36: 0 | AX36: 00:30:40 | AZ36: 0 | BA36: 00:30:40 | BC36: 0 | BD36: 00:30:40 | BF36: 0 | BG36: 00:30:40 | BI36: 0 | BJ36: 00:30:40 | BL36: 0 | BM36: 00:30:40 | BO36: 0 | BP36: 00:30:40 | BR36: V50 | BT36: =SUMPRODUCT(('Age Adjustments'!$A$2:$A$113=Points!BS26)*('Age Adjustments'!$B$2:$B$113=Points!F26)*('Age Adjustments'!$C$2:$C$113)) -> 00:00:00 | BU36: 00:30:40 | BW36: 00:32:25
A37: 28 | B37: 28 | C37: Meena Morrish | D37: 3 | E37: Sen | F37: F | G37: 199 | H37: 00:32:40 | I37: 00:33:50 | J37: 60 | K37: 00:33:50 | M37: 0 | N37: 00:33:50 | O37: 00:33:46 | P37: 64 | Q37: 00:33:46 | R37: 00:32:40 | S37: 75 | T37: 00:32:40 | V37: 0 | W37: 00:32:40 | Y37: 0 | Z37: 00:32:40 | AB37: 0 | AC37: 00:32:40 | AE37: 0 | AF37: 00:32:40 | AH37: 0 | AI37: 00:32:40 | AK37: 0 | AL37: 00:32:40 | AN37: 0 | AO37: 00:32:40 | AQ37: 0 | AR37: 00:32:40 | AT37: 0 | AU37: 00:32:40 | AW37: 0 | AX37: 00:32:40 | AZ37: 0 | BA37: 00:32:40 | BC37: 0 | BD37: 00:32:40 | BF37: 0 | BG37: 00:32:40 | BI37: 0 | BJ37: 00:32:40 | BL37: 0 | BM37: 00:32:40 | BO37: 0 | BP37: 00:32:40 | BR37: Sen | BT37: =SUMPRODUCT(('Age Adjustments'!$A$2:$A$113=Points!BS22)*('Age Adjustments'!$B$2:$B$113=Points!F22)*('Age Adjustments'!$C$2:$C$113)) -> 00:00:00 | BU37: 00:32:40 | BW37: 00:33:50
A38: 29 | B38: 29 | C38: Tony White | D38: 1 | E38: V60+ | F38: M | G38: 60 | H38: 00:32:45 | J38: 0 | L38: 00:32:45 | M38: 60 | N38: 00:32:45 | P38: 0 | Q38: 00:32:45 | S38: 0 | T38: 00:32:45 | V38: 0 | W38: 00:32:45 | Y38: 0 | Z38: 00:32:45 | AB38: 0 | AC38: 00:32:45 | AE38: 0 | AF38: 00:32:45 | AH38: 0 | AI38: 00:32:45 | AK38: 0 | AL38: 00:32:45 | AN38: 0 | AO38: 00:32:45 | AQ38: 0 | AR38: 00:32:45 | AT38: 0 | AU38: 00:32:45 | AW38: 0 | AX38: 00:32:45 | AZ38: 0 | BA38: 00:32:45 | BC38: 0 | BD38: 00:32:45 | BF38: 0 | BG38: 00:32:45 | BI38: 0 | BJ38: 00:32:45 | BL38: 0 | BM38: 00:32:45 | BO38: 0 | BP38: 00:32:45 | BR38: V60+ | BT38: =SUMPRODUCT(('Age Adjustments'!$A$2:$A$113=Points!BS27)*('Age Adjustments'!$B$2:$B$113=Points!F27)*('Age Adjustments'!$C$2:$C$113)) -> 00:00:00 | BU38: 00:32:45 | BW38: 00:32:45
A39: 30 | B39: 30 | C39: Yvonne White | D39: 6 | E39: V60+ | F39: F | G39: 352 | H39: 00:33:16 | I39: 00:34:45 | J39: 60 | K39: 00:34:45 | L39: 00:35:16 | M39: 45 | N39: 00:34:45 | O39: 00:35:45 | P39: 45 | Q39: 00:34:45 | R39: 00:34:32 | S39: 73 | T39: 00:34:32 | U39: 00:33:16 | V39: 75 | W39: 00:33:16 | X39: 00:33:22 | Y39: 54 | Z39: 00:33:16 | AB39: 0 | AC39: 00:33:16 | AE39: 0 | AF39: 00:33:16 | AH39: 0 | AI39: 00:33:16 | AK39: 0 | AL39: 00:33:16 | AN39: 0 | AO39: 00:33:16 | AQ39: 0 | AR39: 00:33:16 | AT39: 0 | AU39: 00:33:16 | AW39: 0 | AX39: 00:33:16 | AZ39: 0 | BA39: 00:33:16 | BC39: 0 | BD39: 00:33:16 | BF39: 0 | BG39: 00:33:16 | BI39: 0 | BJ39: 00:33:16 | BL39: 0 | BM39: 00:33:16 | BO39: 0 | BP39: 00:33:16 | BR39: V60+ | BT39: =SUMPRODUCT(('Age Adjustments'!$A$2:$A$113=Points!BS23)*('Age Adjustments'!$B$2:$B$113=Points!F23)*('Age Adjustments'!$C$2:$C$113)) -> 00:00:00 | BU39: 00:33:16 | BW39: 00:35:45
A40: 31 | B40: 31 | C40: Caroline Fishlock | D40: 1 | E40: V40 | F40: F | G40: 60 | H40: 00:33:29 | J40: 0 | L40: 00:33:29 | M40: 60 | N40: 00:33:29 | P40: 0 | Q40: 00:33:29 | S40: 0 | T40: 00:33:29 | V40: 0 | W40: 00:33:29 | Y40: 0 | Z40: 00:33:29 | AB40: 0 | AC40: 00:33:29 | AE40: 0 | AF40: 00:33:29 | AH40: 0 | AI40: 00:33:29 | AK40: 0 | AL40: 00:33:29 | AN40: 0 | AO40: 00:33:29 | AQ40: 0 | AR40: 00:33:29 | AT40: 0 | AU40: 00:33:29 | AW40: 0 | AX40: 00:33:29 | AZ40: 0 | BA40: 00:33:29 | BC40: 0 | BD40: 00:33:29 | BF40: 0 | BG40: 00:33:29 | BI40: 0 | BJ40: 00:33:29 | BL40: 0 | BM40: 00:33:29 | BO40: 0 | BP40: 00:33:29 | BR40: V40 | BT40: =SUMPRODUCT(('Age Adjustments'!$A$2:$A$113=Points!BS28)*('Age Adjustments'!$B$2:$B$113=Points!F28)*('Age Adjustments'!$C$2:$C$113)) -> 00:00:00 | BU40: 00:33:29 | BW40: 00:33:29
A41: 32 | B41: 32 | C41: Kyall Steab | D41: 2 | E41: Sen | F41: M | G41: 135 | H41: 00:35:07 | I41: 00:38:01 | J41: 60 | K41: 00:38:01 | M41: 0 | N41: 00:38:01 | P41: 0 | Q41: 00:38:01 | S41: 0 | T41: 00:38:01 | U41: 00:35:07 | V41: 75 | W41: 00:35:07 | Y41: 0 | Z41: 00:35:07 | AB41: 0 | AC41: 00:35:07 | AE41: 0 | AF41: 00:35:07 | AH41: 0 | AI41: 00:35:07 | AK41: 0 | AL41: 00:35:07 | AN41: 0 | AO41: 00:35:07 | AQ41: 0 | AR41: 00:35:07 | AT41: 0 | AU41: 00:35:07 | AW41: 0 | AX41: 00:35:07 | AZ41: 0 | BA41: 00:35:07 | BC41: 0 | BD41: 00:35:07 | BF41: 0 | BG41: 00:35:07 | BI41: 0 | BJ41: 00:35:07 | BL41: 0 | BM41: 00:35:07 | BO41: 0 | BP41: 00:35:07 | BR41: Sen | BT41: =SUMPRODUCT(('Age Adjustments'!$A$2:$A$113=Points!BS24)*('Age Adjustments'!$B$2:$B$113=Points!F24)*('Age Adjustments'!$C$2:$C$113)) -> 00:00:00 | BU41: 00:35:07 | BW41: 00:38:01
A42: 33 | B42: 33 | C42: Charles Russell | D42: =COUNT(I42,L42,O42,R42,U42,X42,AA42,AD42,AG42,AJ42,AM42,AP42,AS42,AV42,AY42,BB42,BE42,BH42,BN42) -> 1 | E42: Sen | F42: M | G42: =ROUNDDOWN(LARGE(I42:BO42,1)+(IF($D$5>1,LARGE(I42:BO42,2),0))+(IF($D$5>2,LARGE(I42:BO42,3),0))+(IF($D$5>3,LARGE(I42:BO42,4),0))+(IF($D$5>4,LARGE(I42:BO42,5),0))+(IF($D$5>5,LARGE(I42:BO42,6),0))+(IF($D$5>6,LARGE(I42:BO42,7),0)),0) -> 60 | H42: =IF(D42=0,999,MIN(I42,L42,O42,R42,U42,X42,AA42,AD42,AG42,AJ42,AM42,AP42,AS42,AV42,AY42,BB42,BE42,BH42,BK42,BN42)) -> 00:35:38 | J42: =IF(I42="",0,$D$2) -> 0 | K42: =IF(I42="","",I42) ->  | M42: =IF(L42="",0,IF(K42="",$D$2,IF((K42-L42)*$C$1+$D$2<$D$4,$D$4,IF((K42-L42)*$C$1+$D$2>$D$3,$D$3,IF((K42-L42)*$C$1+$D$2<$D$3,(K42-L42)*$C$1+$D$2,0))))) -> 0 | N42: =IF(AND(K42="",L42="")=TRUE,"",MIN(K42,L42)) ->  | P42: =IF(O42="",0,IF(N42="",$D$2,IF((N42-O42)*$C$1+$D$2<$D$4,$D$4,IF((N42-O42)*$C$1+$D$2>$D$3,$D$3,IF((N42-O42)*$C$1+$D$2<$D$3,(N42-O42)*$C$1+$D$2,0))))) -> 0 | Q42: =IF(AND(N42="",O42="")=TRUE,"",MIN(N42,O42)) ->  | S42: =IF(R42="",0,IF(Q42="",$D$2,IF((Q42-R42)*$C$1+$D$2<$D$4,$D$4,IF((Q42-R42)*$C$1+$D$2>$D$3,$D$3,IF((Q42-R42)*$C$1+$D$2<$D$3,(Q42-R42)*$C$1+$D$2,0))))) -> 0 | T42: =IF(AND(Q42="",R42="")=TRUE,"",MIN(Q42,R42)) ->  | U42: 00:35:38 | V42: 60 | W42: =IF(AND(T42="",U42="")=TRUE,"",MIN(T42,U42)) -> 00:35:38 | Y42: =IF(X42="",0,IF(W42="",$D$2,IF((W42-X42)*$C$1+$D$2<$D$4,$D$4,IF((W42-X42)*$C$1+$D$2>$D$3,$D$3,IF((W42-X42)*$C$1+$D$2<$D$3,(W42-X42)*$C$1+$D$2,0))))) -> 0 | Z42: =IF(AND(W42="",X42="")=TRUE,"",MIN(W42,X42)) -> 00:35:38 | AB42: =IF(AA42="",0,IF(Z42="",$D$2,IF((Z42-AA42)*$C$1+$D$2<$D$4,$D$4,IF((Z42-AA42)*$C$1+$D$2>$D$3,$D$3,IF((Z42-AA42)*$C$1+$D$2<$D$3,(Z42-AA42)*$C$1+$D$2,0))))) -> 0 | AC42: =IF(AND(Z42="",AA42="")=TRUE,"",MIN(Z42,AA42)) -> 00:35:38 | AE42: =IF(AD42="",0,IF(AC42="",$D$2,IF((AC42-AD42)*$C$1+$D$2<$D$4,$D$4,IF((AC42-AD42)*$C$1+$D$2>$D$3,$D$3,IF((AC42-AD42)*$C$1+$D$2<$D$3,(AC42-AD42)*$C$1+$D$2,0))))) -> 0 | AF42: =IF(AND(AC42="",AD42="")=TRUE,"",MIN(AC42,AD42)) -> 00:35:38 | AH42: =IF(AG42="",0,IF(AF42="",$D$2,IF((AF42-AG42)*$C$1+$D$2<$D$4,$D$4,IF((AF42-AG42)*$C$1+$D$2>$D$3,$D$3,IF((AF42-AG42)*$C$1+$D$2<$D$3,(AF42-AG42)*$C$1+$D$2,0))))) -> 0 | AI42: =IF(AND(AF42="",AG42="")=TRUE,"",MIN(AF42,AG42)) -> 00:35:38 | AK42: =IF(AJ42="",0,IF(AI42="",$D$2,IF((AI42-AJ42)*$C$1+$D$2<$D$4,$D$4,IF((AI42-AJ42)*$C$1+$D$2>$D$3,$D$3,IF((AI42-AJ42)*$C$1+$D$2<$D$3,(AI42-AJ42)*$C$1+$D$2,0))))) -> 0 | AL42: =IF(AND(AI42="",AJ42="")=TRUE,"",MIN(AI42,AJ42)) -> 00:35:38 | AN42: =IF(AM42="",0,IF(AL42="",$D$2,IF((AL42-AM42)*$C$1+$D$2<$D$4,$D$4,IF((AL42-AM42)*$C$1+$D$2>$D$3,$D$3,IF((AL42-AM42)*$C$1+$D$2<$D$3,(AL42-AM42)*$C$1+$D$2,0))))) -> 0 | AO42: =IF(AND(AL42="",AM42="")=TRUE,"",MIN(AL42,AM42)) -> 00:35:38 | AQ42: =IF(AP42="",0,IF(AO42="",$D$2,IF((AO42-AP42)*$C$1+$D$2<$D$4,$D$4,IF((AO42-AP42)*$C$1+$D$2>$D$3,$D$3,IF((AO42-AP42)*$C$1+$D$2<$D$3,(AO42-AP42)*$C$1+$D$2,0))))) -> 0 | AR42: =IF(AND(AO42="",AP42="")=TRUE,"",MIN(AO42,AP42)) -> 00:35:38 | AT42: =IF(AS42="",0,IF(AR42="",$D$2,IF((AR42-AS42)*$C$1+$D$2<$D$4,$D$4,IF((AR42-AS42)*$C$1+$D$2>$D$3,$D$3,IF((AR42-AS42)*$C$1+$D$2<$D$3,(AR42-AS42)*$C$1+$D$2,0))))) -> 0 | AU42: =IF(AND(AR42="",AS42="")=TRUE,"",MIN(AR42,AS42)) -> 00:35:38 | AW42: =IF(AV42="",0,IF(AU42="",$D$2,IF((AU42-AV42)*$C$1+$D$2<$D$4,$D$4,IF((AU42-AV42)*$C$1+$D$2>$D$3,$D$3,IF((AU42-AV42)*$C$1+$D$2<$D$3,(AU42-AV42)*$C$1+$D$2,0))))) -> 0 | AX42: =IF(AND(AU42="",AV42="")=TRUE,"",MIN(AU42,AV42)) -> 00:35:38 | AZ42: =IF(AY42="",0,IF(AX42="",$D$2,IF((AX42-AY42)*$C$1+$D$2<$D$4,$D$4,IF((AX42-AY42)*$C$1+$D$2>$D$3,$D$3,IF((AX42-AY42)*$C$1+$D$2<$D$3,(AX42-AY42)*$C$1+$D$2,0))))) -> 0 | BA42: =IF(AND(AX42="",AY42="")=TRUE,"",MIN(AX42,AY42)) -> 00:35:38 | BC42: =IF(BB42="",0,IF(BA42="",$D$2,IF((BA42-BB42)*$C$1+$D$2<$D$4,$D$4,IF((BA42-BB42)*$C$1+$D$2>$D$3,$D$3,IF((BA42-BB42)*$C$1+$D$2<$D$3,(BA42-BB42)*$C$1+$D$2,0))))) -> 0 | BD42: =IF(AND(BA42="",BB42="")=TRUE,"",MIN(BA42,BB42)) -> 00:35:38 | BF42: =IF(BE42="",0,IF(BD42="",$D$2,IF((BD42-BE42)*$C$1+$D$2<$D$4,$D$4,IF((BD42-BE42)*$C$1+$D$2>$D$3,$D$3,IF((BD42-BE42)*$C$1+$D$2<$D$3,(BD42-BE42)*$C$1+$D$2,0))))) -> 0 | BG42: =IF(AND(BD42="",BE42="")=TRUE,"",MIN(BD42,BE42)) -> 00:35:38 | BI42: =IF(BH42="",0,IF(BG42="",$D$2,IF((BG42-BH42)*$C$1+$D$2<$D$4,$D$4,IF((BG42-BH42)*$C$1+$D$2>$D$3,$D$3,IF((BG42-BH42)*$C$1+$D$2<$D$3,(BG42-BH42)*$C$1+$D$2,0))))) -> 0 | BJ42: =IF(AND(BG42="",BH42="")=TRUE,"",MIN(BG42,BH42)) -> 00:35:38 | BL42: =IF(BK42="",0,IF(BG42="",$D$2,IF((BG42-BK42)*$C$1+$D$2<$D$4,$D$4,IF((BG42-BK42)*$C$1+$D$2>$D$3,$D$3,IF((BG42-BK42)*$C$1+$D$2<$D$3,(BG42-BK42)*$C$1+$D$2,0))))) -> 0 | BM42: =IF(AND(BG42="",BK42="")=TRUE,"",MIN(BG42,BK42)) -> 00:35:38 | BO42: =IF(BN42="",0,IF(BJ42="",$D$2,IF((BJ42-BN42)*$C$1+$D$2<$D$4,$D$4,IF((BJ42-BN42)*$C$1+$D$2>$D$3,$D$3,IF((BJ42-BN42)*$C$1+$D$2<$D$3,(BJ42-BN42)*$C$1+$D$2,0))))) -> 0 | BP42: =IF(AND(BJ42="",BN42="")=TRUE,"",MIN(BJ42,BN42)) -> 00:35:38 | BR42: Sen | BT42: =SUMPRODUCT(('Age Adjustments'!$A$2:$A$113=Points!BS40)*('Age Adjustments'!$B$2:$B$113=Points!F40)*('Age Adjustments'!$C$2:$C$113)) -> 00:00:00 | BU42: 00:35:38 | BW42: 00:35:38
A43: 34 | D43: 0 | G43: 0 | H43: 999 | J43: 0 | M43: 0 | P43: 0 | S43: 0 | V43: =IF(U43="",0,IF(T43="",$D$2,IF((T43-U43)*$C$1+$D$2<$D$4,$D$4,IF((T43-U43)*$C$1+$D$2>$D$3,$D$3,IF((T43-U43)*$C$1+$D$2<$D$3,(T43-U43)*$C$1+$D$2,0))))) -> 0 | Y43: 0 | AB43: 0 | AE43: 0 | AH43: 0 | AK43: 0 | AN43: 0 | AQ43: 0 | AT43: 0 | AW43: 0 | AZ43: 0 | BC43: 0 | BF43: 0 | BI43: 0 | BL43: 0 | BO43: 0 | BR43: 0 | BT43: =SUMPRODUCT(('Age Adjustments'!$A$2:$A$113=Points!BS43)*('Age Adjustments'!$B$2:$B$113=Points!F43)*('Age Adjustments'!$C$2:$C$113)) -> 00:00:00 | BU43: 999 | BW43: 999
A44: 35 | D44: 0 | G44: 0 | H44: 999 | J44: 0 | M44: 0 | P44: 0 | S44: 0 | V44: 0 | Y44: 0 | AB44: 0 | AE44: 0 | AH44: 0 | AK44: 0 | AN44: 0 | AQ44: 0 | AT44: 0 | AW44: 0 | AZ44: 0 | BC44: 0 | BF44: 0 | BI44: 0 | BL44: 0 | BO44: 0
A45: 36 | D45: 0 | G45: 0 | H45: 999 | J45: 0 | M45: 0 | P45: 0 | S45: 0 | V45: 0 | Y45: 0 | AB45: 0 | AE45: 0 | AH45: 0 | AK45: 0 | AN45: 0 | AQ45: 0 | AT45: 0 | AW45: 0 | AZ45: 0 | BC45: 0 | BF45: 0 | BI45: 0 | BL45: 0 | BO45: 0
A46: 37 | D46: 0 | G46: 0 | H46: 999 | J46: 0 | M46: 0 | P46: 0 | S46: 0 | V46: 0 | Y46: 0 | AB46: 0 | AE46: 0 | AH46: 0 | AK46: 0 | AN46: 0 | AQ46: 0 | AT46: 0 | AW46: 0 | AZ46: 0 | BC46: 0 | BF46: 0 | BI46: 0 | BL46: 0 | BO46: 0
A47: 38 | D47: 0 | G47: 0 | H47: 999 | J47: 0 | M47: 0 | P47: 0 | S47: 0 | V47: 0 | Y47: 0 | AB47: 0 | AE47: 0 | AH47: 0 | AK47: 0 | AN47: 0 | AQ47: 0 | AT47: 0 | AW47: 0 | AZ47: 0 | BC47: 0 | BF47: 0 | BI47: 0 | BL47: 0 | BO47: 0
A48: 39 | D48: 0 | G48: 0 | H48: 999 | J48: 0 | M48: 0 | P48: 0 | S48: 0 | V48: 0 | Y48: 0 | AB48: 0 | AE48: 0 | AH48: 0 | AK48: 0 | AN48: 0 | AQ48: 0 | AT48: 0 | AW48: 0 | AZ48: 0 | BC48: 0 | BF48: 0 | BI48: 0 | BL48: 0 | BO48: 0
A49: 40 | D49: 0 | G49: 0 | H49: 999 | J49: 0 | M49: 0 | P49: 0 | S49: 0 | V49: 0 | Y49: 0 | AB49: 0 | AE49: 0 | AH49: 0 | AK49: 0 | AN49: 0 | AQ49: 0 | AT49: 0 | AW49: 0 | AZ49: 0 | BC49: 0 | BF49: 0 | BI49: 0 | BL49: 0 | BO49: 0
A50: 41 | D50: 0 | G50: 0 | H50: 999 | J50: 0 | M50: 0 | P50: 0 | S50: 0 | V50: 0 | Y50: 0 | AB50: 0 | AE50: 0 | AH50: 0 | AK50: 0 | AN50: 0 | AQ50: 0 | AT50: 0 | AW50: 0 | AZ50: 0 | BC50: 0 | BF50: 0 | BI50: 0 | BL50: 0 | BO50: 0
A51: 42 | D51: 0 | G51: 0 | H51: 999 | J51: 0 | M51: 0 | P51: 0 | S51: 0 | V51: 0 | Y51: 0 | AB51: 0 | AE51: 0 | AH51: 0 | AK51: 0 | AN51: 0 | AQ51: 0 | AT51: 0 | AW51: 0 | AZ51: 0 | BC51: 0 | BF51: 0 | BI51: 0 | BL51: 0 | BO51: 0
A52: 43 | D52: 0 | G52: 0 | H52: 999 | J52: 0 | M52: 0 | P52: 0 | S52: 0 | V52: 0 | Y52: 0 | AB52: 0 | AE52: 0 | AH52: 0 | AK52: 0 | AN52: 0 | AQ52: 0 | AT52: 0 | AW52: 0 | AZ52: 0 | BC52: 0 | BF52: 0 | BI52: 0 | BL52: 0 | BO52: 0
A53: 44 | D53: 0 | G53: 0 | H53: 999 | J53: 0 | M53: 0 | P53: 0 | S53: 0 | V53: 0 | Y53: 0 | AB53: 0 | AE53: 0 | AH53: 0 | AK53: 0 | AN53: 0 | AQ53: 0 | AT53: 0 | AW53: 0 | AZ53: 0 | BC53: 0 | BF53: 0 | BI53: 0 | BL53: 0 | BO53: 0
A54: 45 | B54: =IF(C54="","",IF(G54=G53,"=",A54)) ->  | D54: 0 | G54: 0 | H54: 999 | J54: 0 | M54: 0 | P54: 0 | S54: 0 | V54: 0 | Y54: 0 | AB54: 0 | AE54: 0 | AH54: 0 | AK54: 0 | AN54: 0 | AQ54: 0 | AT54: 0 | AW54: 0 | AZ54: 0 | BC54: 0 | BF54: 0 | BI54: 0 | BL54: 0 | BO54: 0
A55: 46 | D55: 0 | G55: 0 | H55: 999 | J55: 0 | M55: 0 | P55: 0 | S55: 0 | V55: 0 | Y55: 0 | AB55: 0 | AE55: 0 | AH55: 0 | AK55: 0 | AN55: 0 | AQ55: 0 | AT55: 0 | AW55: 0 | AZ55: 0 | BC55: 0 | BF55: 0 | BI55: 0 | BL55: 0 | BO55: 0
A56: 47 | D56: 0 | G56: 0 | H56: 999 | J56: 0 | M56: 0 | P56: 0 | S56: 0 | V56: 0 | Y56: 0 | AB56: 0 | AE56: 0 | AH56: 0 | AK56: 0 | AN56: 0 | AQ56: 0 | AT56: 0 | AW56: 0 | AZ56: 0 | BC56: 0 | BF56: 0 | BI56: 0 | BL56: 0 | BO56: 0
A57: 48 | D57: 0 | G57: 0 | H57: 999 | J57: 0 | M57: 0 | P57: 0 | S57: 0 | V57: 0 | Y57: 0 | AB57: 0 | AE57: 0 | AH57: 0 | AK57: 0 | AN57: 0 | AQ57: 0 | AT57: 0 | AW57: 0 | AZ57: 0 | BC57: 0 | BF57: 0 | BI57: 0 | BL57: 0 | BO57: 0
A58: 49 | D58: 0 | G58: 0 | H58: 999 | J58: 0 | M58: 0 | P58: 0 | S58: 0 | V58: 0 | Y58: 0 | AB58: 0 | AE58: 0 | AH58: 0 | AK58: 0 | AN58: 0 | AQ58: 0 | AT58: 0 | AW58: 0 | AZ58: 0 | BC58: 0 | BF58: 0 | BI58: 0 | BL58: 0 | BO58: 0
A59: 50 | D59: 0 | G59: 0 | H59: 999 | J59: 0 | M59: 0 | P59: 0 | S59: 0 | V59: 0 | Y59: 0 | AB59: 0 | AE59: 0 | AH59: 0 | AK59: 0 | AN59: 0 | AQ59: 0 | AT59: 0 | AW59: 0 | AZ59: 0 | BC59: 0 | BF59: 0 | BI59: 0 | BL59: 0 | BO59: 0
A60: 51 | D60: 0 | G60: 0 | H60: 999 | J60: 0 | M60: 0 | P60: 0 | S60: 0 | V60: 0 | Y60: 0 | AB60: 0 | AE60: 0 | AH60: 0 | AK60: 0 | AN60: 0 | AQ60: 0 | AT60: 0 | AW60: 0 | AZ60: 0 | BC60: 0 | BF60: 0 | BI60: 0 | BL60: 0 | BO60: 0
A61: 52 | D61: 0 | G61: 0 | H61: 999 | J61: 0 | M61: 0 | P61: 0 | S61: 0 | V61: 0 | Y61: 0 | AB61: 0 | AE61: 0 | AH61: 0 | AK61: 0 | AN61: 0 | AQ61: 0 | AT61: 0 | AW61: 0 | AZ61: 0 | BC61: 0 | BF61: 0 | BI61: 0 | BL61: 0 | BO61: 0
A62: 53 | D62: 0 | G62: 0 | H62: 999 | J62: 0 | M62: 0 | P62: 0 | S62: 0 | V62: 0 | Y62: 0 | AB62: 0 | AE62: 0 | AH62: 0 | AK62: 0 | AN62: 0 | AQ62: 0 | AT62: 0 | AW62: 0 | AZ62: 0 | BC62: 0 | BF62: 0 | BI62: 0 | BL62: 0 | BO62: 0
A63: 54 | D63: 0 | G63: 0 | H63: 999 | J63: 0 | M63: 0 | P63: 0 | S63: 0 | V63: 0 | Y63: 0 | AB63: 0 | AE63: 0 | AH63: 0 | AK63: 0 | AN63: 0 | AQ63: 0 | AT63: 0 | AW63: 0 | AZ63: 0 | BC63: 0 | BF63: 0 | BI63: 0 | BL63: 0 | BO63: 0
A64: 55 | D64: 0 | G64: 0 | H64: 999 | J64: 0 | M64: 0 | P64: 0 | S64: 0 | V64: 0 | Y64: 0 | AB64: 0 | AE64: 0 | AH64: 0 | AK64: 0 | AN64: 0 | AQ64: 0 | AT64: 0 | AW64: 0 | AZ64: 0 | BC64: 0 | BF64: 0 | BI64: 0 | BL64: 0 | BO64: 0
A65: 56 | D65: 0 | G65: 0 | H65: 999 | J65: 0 | M65: 0 | P65: 0 | S65: 0 | V65: 0 | Y65: 0 | AB65: 0 | AE65: 0 | AH65: 0 | AK65: 0 | AN65: 0 | AQ65: 0 | AT65: 0 | AW65: 0 | AZ65: 0 | BC65: 0 | BF65: 0 | BI65: 0 | BL65: 0 | BO65: 0
A66: 57 | D66: 0 | G66: 0 | H66: 999 | J66: 0 | M66: 0 | P66: 0 | S66: 0 | V66: 0 | Y66: 0 | AB66: 0 | AE66: 0 | AH66: 0 | AK66: 0 | AN66: 0 | AQ66: 0 | AT66: 0 | AW66: 0 | AZ66: 0 | BC66: 0 | BF66: 0 | BI66: 0 | BL66: 0 | BO66: 0
A67: 58 | D67: 0 | G67: 0 | H67: 999 | J67: 0 | M67: 0 | P67: 0 | S67: 0 | V67: 0 | Y67: 0 | AB67: 0 | AE67: 0 | AH67: 0 | AK67: 0 | AN67: 0 | AQ67: 0 | AT67: 0 | AW67: 0 | AZ67: 0 | BC67: 0 | BF67: 0 | BI67: 0 | BL67: 0 | BO67: 0
A68: 59 | D68: 0 | G68: 0 | H68: 999 | J68: 0 | M68: 0 | P68: 0 | S68: 0 | V68: 0 | Y68: 0 | AB68: 0 | AE68: 0 | AH68: 0 | AK68: 0 | AN68: 0 | AQ68: 0 | AT68: 0 | AW68: 0 | AZ68: 0 | BC68: 0 | BF68: 0 | BI68: 0 | BL68: 0 | BO68: 0
A69: 60 | D69: 0 | G69: 0 | H69: 999 | J69: 0 | M69: 0 | P69: 0 | S69: 0 | V69: 0 | Y69: 0 | AB69: 0 | AE69: 0 | AH69: 0 | AK69: 0 | AN69: 0 | AQ69: 0 | AT69: 0 | AW69: 0 | AZ69: 0 | BC69: 0 | BF69: 0 | BI69: 0 | BL69: 0 | BO69: 0
A70: 61 | D70: 0 | G70: 0 | H70: 999 | J70: 0 | M70: 0 | P70: 0 | S70: 0 | V70: 0 | Y70: 0 | AB70: 0 | AE70: 0 | AH70: 0 | AK70: 0 | AN70: 0 | AQ70: 0 | AT70: 0 | AW70: 0 | AZ70: 0 | BC70: 0 | BF70: 0 | BI70: 0 | BL70: 0 | BO70: 0
A71: 62 | D71: 0 | G71: 0 | H71: 999 | J71: 0 | M71: 0 | P71: 0 | S71: 0 | V71: 0 | Y71: 0 | AB71: 0 | AE71: 0 | AH71: 0 | AK71: 0 | AN71: 0 | AQ71: 0 | AT71: 0 | AW71: 0 | AZ71: 0 | BC71: 0 | BF71: 0 | BI71: 0 | BL71: 0 | BO71: 0
A72: 63 | D72: 0 | G72: 0 | H72: 999 | J72: 0 | M72: 0 | P72: 0 | S72: 0 | V72: 0 | Y72: 0 | AB72: 0 | AE72: 0 | AH72: 0 | AK72: 0 | AN72: 0 | AQ72: 0 | AT72: 0 | AW72: 0 | AZ72: 0 | BC72: 0 | BF72: 0 | BI72: 0 | BL72: 0 | BO72: 0
A73: 64 | D73: 0 | G73: 0 | H73: 999 | J73: 0 | M73: 0 | P73: 0 | S73: 0 | V73: 0 | Y73: 0 | AB73: 0 | AE73: 0 | AH73: 0 | AK73: 0 | AN73: 0 | AQ73: 0 | AT73: 0 | AW73: 0 | AZ73: 0 | BC73: 0 | BF73: 0 | BI73: 0 | BL73: 0 | BO73: 0
A74: 65 | D74: =COUNT(I74,L74,O74,R74,U74,X74,AA74,AD74,AG74,AJ74,AM74,AP74,AS74,AV74,AY74,BB74,BE74,BH74,BN74) -> 0 | G74: =ROUNDDOWN(LARGE(I74:BO74,1)+(IF($D$5>1,LARGE(I74:BO74,2),0))+(IF($D$5>2,LARGE(I74:BO74,3),0))+(IF($D$5>3,LARGE(I74:BO74,4),0))+(IF($D$5>4,LARGE(I74:BO74,5),0))+(IF($D$5>5,LARGE(I74:BO74,6),0))+(IF($D$5>6,LARGE(I74:BO74,7),0)),0) -> 0 | H74: =IF(D74=0,999,MIN(I74,L74,O74,R74,U74,X74,AA74,AD74,AG74,AJ74,AM74,AP74,AS74,AV74,AY74,BB74,BE74,BH74,BK74,BN74)) -> 999 | J74: =IF(I74="",0,$D$2) -> 0 | K74: =IF(I74="","",I74) ->  | M74: =IF(L74="",0,IF(K74="",$D$2,IF((K74-L74)*$C$1+$D$2<$D$4,$D$4,IF((K74-L74)*$C$1+$D$2>$D$3,$D$3,IF((K74-L74)*$C$1+$D$2<$D$3,(K74-L74)*$C$1+$D$2,0))))) -> 0 | N74: =IF(AND(K74="",L74="")=TRUE,"",MIN(K74,L74)) ->  | P74: =IF(O74="",0,IF(N74="",$D$2,IF((N74-O74)*$C$1+$D$2<$D$4,$D$4,IF((N74-O74)*$C$1+$D$2>$D$3,$D$3,IF((N74-O74)*$C$1+$D$2<$D$3,(N74-O74)*$C$1+$D$2,0))))) -> 0 | Q74: =IF(AND(N74="",O74="")=TRUE,"",MIN(N74,O74)) ->  | S74: =IF(R74="",0,IF(Q74="",$D$2,IF((Q74-R74)*$C$1+$D$2<$D$4,$D$4,IF((Q74-R74)*$C$1+$D$2>$D$3,$D$3,IF((Q74-R74)*$C$1+$D$2<$D$3,(Q74-R74)*$C$1+$D$2,0))))) -> 0 | T74: =IF(AND(Q74="",R74="")=TRUE,"",MIN(Q74,R74)) ->  | V74: 0 | W74: =IF(AND(T74="",U74="")=TRUE,"",MIN(T74,U74)) ->  | Y74: =IF(X74="",0,IF(W74="",$D$2,IF((W74-X74)*$C$1+$D$2<$D$4,$D$4,IF((W74-X74)*$C$1+$D$2>$D$3,$D$3,IF((W74-X74)*$C$1+$D$2<$D$3,(W74-X74)*$C$1+$D$2,0))))) -> 0 | Z74: =IF(AND(W74="",X74="")=TRUE,"",MIN(W74,X74)) ->  | AB74: =IF(AA74="",0,IF(Z74="",$D$2,IF((Z74-AA74)*$C$1+$D$2<$D$4,$D$4,IF((Z74-AA74)*$C$1+$D$2>$D$3,$D$3,IF((Z74-AA74)*$C$1+$D$2<$D$3,(Z74-AA74)*$C$1+$D$2,0))))) -> 0 | AC74: =IF(AND(Z74="",AA74="")=TRUE,"",MIN(Z74,AA74)) ->  | AE74: =IF(AD74="",0,IF(AC74="",$D$2,IF((AC74-AD74)*$C$1+$D$2<$D$4,$D$4,IF((AC74-AD74)*$C$1+$D$2>$D$3,$D$3,IF((AC74-AD74)*$C$1+$D$2<$D$3,(AC74-AD74)*$C$1+$D$2,0))))) -> 0 | AF74: =IF(AND(AC74="",AD74="")=TRUE,"",MIN(AC74,AD74)) ->  | AH74: =IF(AG74="",0,IF(AF74="",$D$2,IF((AF74-AG74)*$C$1+$D$2<$D$4,$D$4,IF((AF74-AG74)*$C$1+$D$2>$D$3,$D$3,IF((AF74-AG74)*$C$1+$D$2<$D$3,(AF74-AG74)*$C$1+$D$2,0))))) -> 0 | AI74: =IF(AND(AF74="",AG74="")=TRUE,"",MIN(AF74,AG74)) ->  | AK74: =IF(AJ74="",0,IF(AI74="",$D$2,IF((AI74-AJ74)*$C$1+$D$2<$D$4,$D$4,IF((AI74-AJ74)*$C$1+$D$2>$D$3,$D$3,IF((AI74-AJ74)*$C$1+$D$2<$D$3,(AI74-AJ74)*$C$1+$D$2,0))))) -> 0 | AL74: =IF(AND(AI74="",AJ74="")=TRUE,"",MIN(AI74,AJ74)) ->  | AN74: =IF(AM74="",0,IF(AL74="",$D$2,IF((AL74-AM74)*$C$1+$D$2<$D$4,$D$4,IF((AL74-AM74)*$C$1+$D$2>$D$3,$D$3,IF((AL74-AM74)*$C$1+$D$2<$D$3,(AL74-AM74)*$C$1+$D$2,0))))) -> 0 | AO74: =IF(AND(AL74="",AM74="")=TRUE,"",MIN(AL74,AM74)) ->  | AQ74: =IF(AP74="",0,IF(AO74="",$D$2,IF((AO74-AP74)*$C$1+$D$2<$D$4,$D$4,IF((AO74-AP74)*$C$1+$D$2>$D$3,$D$3,IF((AO74-AP74)*$C$1+$D$2<$D$3,(AO74-AP74)*$C$1+$D$2,0))))) -> 0 | AR74: =IF(AND(AO74="",AP74="")=TRUE,"",MIN(AO74,AP74)) ->  | AT74: =IF(AS74="",0,IF(AR74="",$D$2,IF((AR74-AS74)*$C$1+$D$2<$D$4,$D$4,IF((AR74-AS74)*$C$1+$D$2>$D$3,$D$3,IF((AR74-AS74)*$C$1+$D$2<$D$3,(AR74-AS74)*$C$1+$D$2,0))))) -> 0 | AU74: =IF(AND(AR74="",AS74="")=TRUE,"",MIN(AR74,AS74)) ->  | AW74: =IF(AV74="",0,IF(AU74="",$D$2,IF((AU74-AV74)*$C$1+$D$2<$D$4,$D$4,IF((AU74-AV74)*$C$1+$D$2>$D$3,$D$3,IF((AU74-AV74)*$C$1+$D$2<$D$3,(AU74-AV74)*$C$1+$D$2,0))))) -> 0 | AX74: =IF(AND(AU74="",AV74="")=TRUE,"",MIN(AU74,AV74)) ->  | AZ74: =IF(AY74="",0,IF(AX74="",$D$2,IF((AX74-AY74)*$C$1+$D$2<$D$4,$D$4,IF((AX74-AY74)*$C$1+$D$2>$D$3,$D$3,IF((AX74-AY74)*$C$1+$D$2<$D$3,(AX74-AY74)*$C$1+$D$2,0))))) -> 0 | BA74: =IF(AND(AX74="",AY74="")=TRUE,"",MIN(AX74,AY74)) ->  | BC74: =IF(BB74="",0,IF(BA74="",$D$2,IF((BA74-BB74)*$C$1+$D$2<$D$4,$D$4,IF((BA74-BB74)*$C$1+$D$2>$D$3,$D$3,IF((BA74-BB74)*$C$1+$D$2<$D$3,(BA74-BB74)*$C$1+$D$2,0))))) -> 0 | BD74: =IF(AND(BA74="",BB74="")=TRUE,"",MIN(BA74,BB74)) ->  | BF74: =IF(BE74="",0,IF(BD74="",$D$2,IF((BD74-BE74)*$C$1+$D$2<$D$4,$D$4,IF((BD74-BE74)*$C$1+$D$2>$D$3,$D$3,IF((BD74-BE74)*$C$1+$D$2<$D$3,(BD74-BE74)*$C$1+$D$2,0))))) -> 0 | BG74: =IF(AND(BD74="",BE74="")=TRUE,"",MIN(BD74,BE74)) ->  | BI74: =IF(BH74="",0,IF(BG74="",$D$2,IF((BG74-BH74)*$C$1+$D$2<$D$4,$D$4,IF((BG74-BH74)*$C$1+$D$2>$D$3,$D$3,IF((BG74-BH74)*$C$1+$D$2<$D$3,(BG74-BH74)*$C$1+$D$2,0))))) -> 0 | BJ74: =IF(AND(BG74="",BH74="")=TRUE,"",MIN(BG74,BH74)) ->  | BL74: =IF(BK74="",0,IF(BG74="",$D$2,IF((BG74-BK74)*$C$1+$D$2<$D$4,$D$4,IF((BG74-BK74)*$C$1+$D$2>$D$3,$D$3,IF((BG74-BK74)*$C$1+$D$2<$D$3,(BG74-BK74)*$C$1+$D$2,0))))) -> 0 | BM74: =IF(AND(BG74="",BK74="")=TRUE,"",MIN(BG74,BK74)) ->  | BO74: =IF(BN74="",0,IF(BJ74="",$D$2,IF((BJ74-BN74)*$C$1+$D$2<$D$4,$D$4,IF((BJ74-BN74)*$C$1+$D$2>$D$3,$D$3,IF((BJ74-BN74)*$C$1+$D$2<$D$3,(BJ74-BN74)*$C$1+$D$2,0))))) -> 0 | BP74: =IF(AND(BJ74="",BN74="")=TRUE,"",MIN(BJ74,BN74)) -> 
A75: 66 | D75: 0 | G75: 0 | H75: 999 | J75: 0 | M75: 0 | P75: 0 | S75: 0 | V75: =IF(U75="",0,IF(T75="",$D$2,IF((T75-U75)*$C$1+$D$2<$D$4,$D$4,IF((T75-U75)*$C$1+$D$2>$D$3,$D$3,IF((T75-U75)*$C$1+$D$2<$D$3,(T75-U75)*$C$1+$D$2,0))))) -> 0 | Y75: 0 | AB75: 0 | AE75: 0 | AH75: 0 | AK75: 0 | AN75: 0 | AQ75: 0 | AT75: 0 | AW75: 0 | AZ75: 0 | BC75: 0 | BF75: 0 | BI75: 0 | BL75: 0 | BO75: 0
A76: 67 | D76: 0 | G76: 0 | H76: 999 | J76: 0 | M76: 0 | P76: 0 | S76: 0 | V76: 0 | Y76: 0 | AB76: 0 | AE76: 0 | AH76: 0 | AK76: 0 | AN76: 0 | AQ76: 0 | AT76: 0 | AW76: 0 | AZ76: 0 | BC76: 0 | BF76: 0 | BI76: 0 | BL76: 0 | BO76: 0
A77: 68 | D77: 0 | G77: 0 | H77: 999 | J77: 0 | M77: 0 | P77: 0 | S77: 0 | V77: 0 | Y77: 0 | AB77: 0 | AE77: 0 | AH77: 0 | AK77: 0 | AN77: 0 | AQ77: 0 | AT77: 0 | AW77: 0 | AZ77: 0 | BC77: 0 | BF77: 0 | BI77: 0 | BL77: 0 | BO77: 0
A78: 69 | D78: 0 | G78: 0 | H78: 999 | J78: 0 | M78: 0 | P78: 0 | S78: 0 | V78: 0 | Y78: 0 | AB78: 0 | AE78: 0 | AH78: 0 | AK78: 0 | AN78: 0 | AQ78: 0 | AT78: 0 | AW78: 0 | AZ78: 0 | BC78: 0 | BF78: 0 | BI78: 0 | BL78: 0 | BO78: 0
A79: 70 | D79: 0 | G79: 0 | H79: 999 | J79: 0 | M79: 0 | P79: 0 | S79: 0 | V79: 0 | Y79: 0 | AB79: 0 | AE79: 0 | AH79: 0 | AK79: 0 | AN79: 0 | AQ79: 0 | AT79: 0 | AW79: 0 | AZ79: 0 | BC79: 0 | BF79: 0 | BI79: 0 | BL79: 0 | BO79: 0
A80: 71 | D80: 0 | G80: 0 | H80: 999 | J80: 0 | M80: 0 | P80: 0 | S80: 0 | V80: 0 | Y80: 0 | AB80: 0 | AE80: 0 | AH80: 0 | AK80: 0 | AN80: 0 | AQ80: 0 | AT80: 0 | AW80: 0 | AZ80: 0 | BC80: 0 | BF80: 0 | BI80: 0 | BL80: 0 | BO80: 0
A81: 72 | D81: 0 | G81: 0 | H81: 999 | J81: 0 | M81: 0 | P81: 0 | S81: 0 | V81: 0 | Y81: 0 | AB81: 0 | AE81: 0 | AH81: 0 | AK81: 0 | AN81: 0 | AQ81: 0 | AT81: 0 | AW81: 0 | AZ81: 0 | BC81: 0 | BF81: 0 | BI81: 0 | BL81: 0 | BO81: 0
A82: 73 | D82: 0 | G82: 0 | H82: 999 | J82: 0 | M82: 0 | P82: 0 | S82: 0 | V82: 0 | Y82: 0 | AB82: 0 | AE82: 0 | AH82: 0 | AK82: 0 | AN82: 0 | AQ82: 0 | AT82: 0 | AW82: 0 | AZ82: 0 | BC82: 0 | BF82: 0 | BI82: 0 | BL82: 0 | BO82: 0
A83: 74 | D83: 0 | G83: 0 | H83: 999 | J83: 0 | M83: 0 | P83: 0 | S83: 0 | V83: 0 | Y83: 0 | AB83: 0 | AE83: 0 | AH83: 0 | AK83: 0 | AN83: 0 | AQ83: 0 | AT83: 0 | AW83: 0 | AZ83: 0 | BC83: 0 | BF83: 0 | BI83: 0 | BL83: 0 | BO83: 0
A84: 75 | D84: 0 | G84: 0 | H84: 999 | J84: 0 | M84: 0 | P84: 0 | S84: 0 | V84: 0 | Y84: 0 | AB84: 0 | AE84: 0 | AH84: 0 | AK84: 0 | AN84: 0 | AQ84: 0 | AT84: 0 | AW84: 0 | AZ84: 0 | BC84: 0 | BF84: 0 | BI84: 0 | BL84: 0 | BO84: 0
A85: 76 | D85: 0 | G85: 0 | H85: 999 | J85: 0 | M85: 0 | P85: 0 | S85: 0 | V85: 0 | Y85: 0 | AB85: 0 | AE85: 0 | AH85: 0 | AK85: 0 | AN85: 0 | AQ85: 0 | AT85: 0 | AW85: 0 | AZ85: 0 | BC85: 0 | BF85: 0 | BI85: 0 | BL85: 0 | BO85: 0
A86: 77 | D86: 0 | G86: 0 | H86: 999 | J86: 0 | M86: 0 | P86: 0 | S86: 0 | V86: 0 | Y86: 0 | AB86: 0 | AE86: 0 | AH86: 0 | AK86: 0 | AN86: 0 | AQ86: 0 | AT86: 0 | AW86: 0 | AZ86: 0 | BC86: 0 | BF86: 0 | BI86: 0 | BL86: 0 | BO86: 0
A87: 78 | D87: 0 | G87: 0 | H87: 999 | J87: 0 | M87: 0 | P87: 0 | S87: 0 | V87: 0 | Y87: 0 | AB87: 0 | AE87: 0 | AH87: 0 | AK87: 0 | AN87: 0 | AQ87: 0 | AT87: 0 | AW87: 0 | AZ87: 0 | BC87: 0 | BF87: 0 | BI87: 0 | BL87: 0 | BO87: 0
A88: 79 | D88: 0 | G88: 0 | H88: 999 | J88: 0 | M88: 0 | P88: 0 | S88: 0 | V88: 0 | Y88: 0 | AB88: 0 | AE88: 0 | AH88: 0 | AK88: 0 | AN88: 0 | AQ88: 0 | AT88: 0 | AW88: 0 | AZ88: 0 | BC88: 0 | BF88: 0 | BI88: 0 | BL88: 0 | BO88: 0
A89: 80 | D89: 0 | G89: 0 | H89: 999 | J89: 0 | M89: 0 | P89: 0 | S89: 0 | V89: 0 | Y89: 0 | AB89: 0 | AE89: 0 | AH89: 0 | AK89: 0 | AN89: 0 | AQ89: 0 | AT89: 0 | AW89: 0 | AZ89: 0 | BC89: 0 | BF89: 0 | BI89: 0 | BL89: 0 | BO89: 0

Sheet Stats
A3: Total rides | B3: =SUM(Points!D10:D60) -> 79
A4: Total riders | B4: =SUM(B5:B8) -> 32
A5: Sen | B5: =COUNTIF(Points!$E$10:$E$60,Stats!A5) -> 11 | C5: =B5/$B$4 -> 0.34375
A6: V40 | B6: =COUNTIF(Points!$E$10:$E$60,Stats!A6) -> 8 | C6: =B6/$B$4 -> 0.25
A7: V50 | B7: =COUNTIF(Points!$E$10:$E$60,Stats!A7) -> 9 | C7: 0.28125
A8: V60+ | B8: =COUNTIF(Points!$E$10:$E$60,Stats!A8) -> 4 | C8: 0.125
A9: Average rides per rider | B9: =B3/B4 -> 2.46875
A11: Fastest | B11: =MIN(Points!H10:H60) -> 00:20:55
A12: Slowest | B12: =MAX(Points!BW10:BW24) -> 00:26:52 | C12: Need to continually adjust the range for this
A13: Range | B13: =B12-B11 -> 00:05:57

Sheet Age Adjustments
A1: Age | C1: 10 miles
A2: 40 | B2: M | C2: 00:00:00
A3: 41 | B3: M | C3: 00:00:04
A4: 42 | B4: M | C4: 00:00:08
A5: 43 | B5: M | C5: 00:00:13
A6: 44 | B6: M | C6: 00:00:17
A7: 45 | B7: M | C7: 00:00:21
A8: 46 | B8: M | C8: 00:00:26
A9: 47 | B9: M | C9: 00:00:30
A10: 48 | B10: M | C10: 00:00:35
A11: 49 | B11: M | C11: 00:00:40
A12: 50 | B12: M | C12: 00:00:45
A13: 51 | B13: M | C13: 00:00:50
A14: 52 | B14: M | C14: 00:00:55
A15: 53 | B15: M | C15: 00:01:01
A16: 54 | B16: M | C16: 00:01:06
A17: 55 | B17: M | C17: 00:01:12
A18: 56 | B18: M | C18: 00:01:18
A19: 57 | B19: M | C19: 00:01:24
A20: 58 | B20: M | C20: 00:01:31
A21: 59 | B21: M | C21: 00:01:38
A22: 60 | B22: M | C22: 00:01:45
A23: 61 | B23: M | C23: 00:01:52
A24: 62 | B24: M | C24: 00:02:00
A25: 63 | B25: M | C25: 00:02:07
A26: 64 | B26: M | C26: 00:02:16
A27: 65 | B27: M | C27: 00:02:24
A28: 66 | B28: M | C28: 00:02:33
A29: 67 | B29: M | C29: 00:02:43
A30: 68 | B30: M | C30: 00:02:52
A31: 69 | B31: M | C31: 00:03:02
A32: 70 | B32: M | C32: 00:03:13
A33: 71 | B33: M | C33: 00:03:24
A34: 72 | B34: M | C34: 00:03:36
A35: 73 | B35: M | C35: 00:03:48
A36: 74 | B36: M | C36: 00:04:01
A37: 75 | B37: M | C37: 00:04:14
A38: 76 | B38: M | C38: 00:04:29
A39: 77 | B39: M | C39: 00:04:43
A40: 78 | B40: M | C40: 00:04:59
A41: 79 | B41: M | C41: 00:05:16
A42: 80 | B42: M | C42: 00:05:33
A43: 81 | B43: M | C43: 00:05:52
A44: 82 | B44: M | C44: 00:06:11
A45: 83 | B45: M | C45: 00:06:32
A46: 84 | B46: M | C46: 00:06:54
A47: 85 | B47: M | C47: 00:07:17
A48: 86 | B48: M | C48: 00:07:42
A49: 87 | B49: M | C49: 00:08:08
A50: 88 | B50: M | C50: 00:08:37
A51: 89 | B51: M | C51: 00:09:07
A52: 90 | B52: M | C52: 00:09:40
A53: 91 | B53: M | C53: 00:10:15
A54: 92 | B54: M | C54: 00:10:53
A55: 93 | B55: M | C55: 00:11:34
A56: 94 | B56: M | C56: 00:12:19
A57: 95 | B57: M | C57: 00:13:08
A58: 40 | B58: F | C58: 00:02:27
A59: 41 | B59: F | C59: 00:02:27
A60: 42 | B60: F | C60: 00:02:36
A61: 43 | B61: F | C61: 00:02:41
A62: 44 | B62: F | C62: 00:02:46
A63: 45 | B63: F | C63: 00:02:51
A64: 46 | B64: F | C64: 00:02:56
A65: 47 | B65: F | C65: 00:03:01
A66: 48 | B66: F | C66: 00:03:06
A67: 49 | B67: F | C67: 00:03:12
A68: 50 | B68: F | C68: 00:03:17
A69: 51 | B69: F | C69: 00:03:23
A70: 52 | B70: F | C70: 00:03:29
A71: 53 | B71: F | C71: 00:03:35
A72: 54 | B72: F | C72: 00:03:42
A73: 55 | B73: F | C73: 00:03:48
A74: 56 | B74: F | C74: 00:03:55
A75: 57 | B75: F | C75: 00:04:02
A76: 58 | B76: F | C76: 00:04:09
A77: 59 | B77: F | C77: 00:04:17
A78: 60 | B78: F | C78: 00:04:25
A79: 61 | B79: F | C79: 00:04:33
A80: 62 | B80: F | C80: 00:04:41
A81: 63 | B81: F | C81: 00:04:50
A82: 64 | B82: F | C82: 00:05:00
A83: 65 | B83: F | C83: 00:05:09
A84: 66 | B84: F | C84: 00:05:19
A85: 67 | B85: F | C85: 00:05:30
A86: 68 | B86: F | C86: 00:05:41
A87: 69 | B87: F | C87: 00:05:52
A88: 70 | B88: F | C88: 00:06:04
A89: 71 | B89: F | C89: 00:06:17
A90: 72 | B90: F | C90: 00:06:30
A91: 73 | B91: F | C91: 00:06:43
A92: 74 | B92: F | C92: 00:06:58
A93: 75 | B93: F | C93: 00:07:13
A94: 76 | B94: F | C94: 00:07:29
A95: 77 | B95: F | C95: 00:07:46
A96: 78 | B96: F | C96: 00:08:03
A97: 79 | B97: F | C97: 00:08:22
A98: 80 | B98: F | C98: 00:08:41
A99: 81 | B99: F | C99: 00:09:02
A100: 82 | B100: F | C100: 00:09:24
A101: 83 | B101: F | C101: 00:09:47
A102: 84 | B102: F | C102: 00:10:12
A103: 85 | B103: F | C103: 00:10:38
A104: 86 | B104: F | C104: 00:07:42
A105: 87 | B105: F | C105: 00:08:08
A106: 88 | B106: F | C106: 00:08:37
A107: 89 | B107: F | C107: 00:09:07
A108: 90 | B108: F | C108: 00:09:40
A109: 91 | B109: F | C109: 00:10:15
A110: 92 | B110: F | C110: 00:10:53
A111: 93 | B111: F | C111: 00:11:34
A112: 94 | B112: F | C112: 00:12:19
A113: 95 | B113: F | C113: 00:13:08

Sheet Fastest times
B1: =Points!J7 -> 2024-04-18 | C1: =Points!M7 -> 2024-04-25 | D1: =Points!P7 -> 2024-05-02 | E1: =Points!S7 -> 2024-05-09 | F1: =Points!V7 -> 2024-05-16 | G1: =Points!Y7 -> 2024-05-23 | H1: =Points!AB7 -> 2024-05-30 | I1: =Points!AE7 -> 2024-06-06 | J1: =Points!AH7 -> 2024-06-13 | K1: =Points!AK7 -> 2024-06-20 | L1: =Points!AN7 -> 2024-06-27 | M1: =Points!AQ7 -> 2024-07-04 | N1: =Points!AT7 -> 2024-07-11 | O1: =Points!AW7 -> 2024-07-18 | P1: =Points!AZ7 -> 2024-07-25 | Q1: =Points!BC7 -> 2024-08-01 | R1: =Points!BF7 -> 2024-08-08 | S1: =Points!BI7 -> 2024-08-15 | W1: =B1 -> 2024-04-18 | X1: =C1 -> 2024-04-25 | Y1: 2024-05-02 | Z1: 2024-05-09 | AA1: 2024-05-16 | AB1: 2024-05-23 | AC1: 2024-05-30 | AD1: 2024-06-06 | AE1: 2024-06-13 | AF1: 2024-06-20 | AG1: 2024-06-27 | AH1: 2024-07-04 | AI1: 2024-07-11 | AJ1: 2024-07-18 | AK1: 2024-07-25 | AL1: 2024-08-01 | AM1: 2024-08-08 | AN1: 2024-08-15
A2: =Points!C10 -> Marcello Grossi | B2: =IF(Points!I10,Points!I10,"") ->  | C2: =IF(Points!L10,Points!L10,"") ->  | D2: =IF(Points!O10,Points!O10,"") ->  | E2: =IF(Points!R10,Points!R10,"") -> 00:20:55 | F2: =IF(Points!U10,Points!U10,"") -> 00:20:56 | G2: =IF(Points!X10,Points!X10,"") -> 00:20:58 | H2: =IF(Points!AA10,Points!AA10,"") ->  | I2: =IF(Points!AD10,Points!AD10,"") ->  | J2: =IF(Points!AG10,Points!AG10,"") ->  | K2: =IF(Points!AJ10,Points!AJ10,"") ->  | L2: =IF(Points!AM10,Points!AM10,"") ->  | M2: =IF(Points!AP10,Points!AP10,"") ->  | N2: =IF(Points!AS10,Points!AS10,"") ->  | O2: =IF(Points!AV10,Points!AV10,"") ->  | P2: =IF(Points!AY10,Points!AY10,"") ->  | Q2: =IF(Points!BB10,Points!BB10,"") ->  | R2: =IF(Points!BE10,Points!BE10,"") ->  | S2: =IF(Points!BH10,Points!BH10,"") ->  | V2: =A2 -> Marcello Grossi | W2: =IF((MIN($B2:B2)),(MIN($B2:B2)),"") ->  | X2: =IF((MIN($B2:C2)),(MIN($B2:C2)),"") ->  | Y2: =IF((MIN($B2:D2)),(MIN($B2:D2)),"") ->  | Z2: =IF((MIN($B2:E2)),(MIN($B2:E2)),"") -> 00:20:55 | AA2: =IF((MIN($B2:F2)),(MIN($B2:F2)),"") -> 00:20:55 | AB2: =IF((MIN($B2:G2)),(MIN($B2:G2)),"") -> 00:20:55 | AC2: =IF((MIN($B2:H2)),(MIN($B2:H2)),"") -> 00:20:55 | AD2: =IF((MIN($B2:I2)),(MIN($B2:I2)),"") -> 00:20:55 | AE2: =IF((MIN($B2:J2)),(MIN($B2:J2)),"") -> 00:20:55 | AF2: =IF((MIN($B2:K2)),(MIN($B2:K2)),"") -> 00:20:55 | AG2: =IF((MIN($B2:L2)),(MIN($B2:L2)),"") -> 00:20:55 | AH2: =IF((MIN($B2:M2)),(MIN($B2:M2)),"") -> 00:20:55 | AI2: =IF((MIN($B2:N2)),(MIN($B2:N2)),"") -> 00:20:55 | AJ2: =IF((MIN($B2:O2)),(MIN($B2:O2)),"") -> 00:20:55 | AK2: =IF((MIN($B2:P2)),(MIN($B2:P2)),"") -> 00:20:55 | AL2: =IF((MIN($B2:Q2)),(MIN($B2:Q2)),"") -> 00:20:55 | AM2: =IF((MIN($B2:R2)),(MIN($B2:R2)),"") -> 00:20:55 | AN2: =IF((MIN($B2:S2)),(MIN($B2:S2)),"") -> 00:20:55
A3: =Points!C11 -> Matt Hallett | B3: =IF(Points!I11,Points!I11,"") -> 00:22:20 | C3: =IF(Points!L11,Points!L11,"") ->  | D3: =IF(Points!O11,Points!O11,"") ->  | E3: =IF(Points!R11,Points!R11,"") -> 00:21:42 | F3: =IF(Points!U11,Points!U11,"") -> 00:22:01 | G3: =IF(Points!X11,Points!X11,"") ->  | H3: =IF(Points!AA11,Points!AA11,"") ->  | I3: =IF(Points!AD11,Points!AD11,"") ->  | J3: =IF(Points!AG11,Points!AG11,"") ->  | K3: =IF(Points!AJ11,Points!AJ11,"") ->  | L3: =IF(Points!AM11,Points!AM11,"") ->  | M3: =IF(Points!AP11,Points!AP11,"") ->  | N3: =IF(Points!AS11,Points!AS11,"") ->  | O3: =IF(Points!AV11,Points!AV11,"") ->  | P3: =IF(Points!AY11,Points!AY11,"") ->  | Q3: =IF(Points!BB11,Points!BB11,"") ->  | R3: =IF(Points!BE11,Points!BE11,"") ->  | S3: =IF(Points!BH11,Points!BH11,"") ->  | V3: =A3 -> Matt Hallett | W3: =IF((MIN($B3:B3)),(MIN($B3:B3)),"") -> 00:22:20 | X3: =IF((MIN($B3:C3)),(MIN($B3:C3)),"") -> 00:22:20 | Y3: =IF((MIN($B3:D3)),(MIN($B3:D3)),"") -> 00:22:20 | Z3: =IF((MIN($B3:E3)),(MIN($B3:E3)),"") -> 00:21:42 | AA3: =IF((MIN($B3:F3)),(MIN($B3:F3)),"") -> 00:21:42 | AB3: =IF((MIN($B3:G3)),(MIN($B3:G3)),"") -> 00:21:42 | AC3: =IF((MIN($B3:H3)),(MIN($B3:H3)),"") -> 00:21:42 | AD3: =IF((MIN($B3:I3)),(MIN($B3:I3)),"") -> 00:21:42 | AE3: =IF((MIN($B3:J3)),(MIN($B3:J3)),"") -> 00:21:42 | AF3: =IF((MIN($B3:K3)),(MIN($B3:K3)),"") -> 00:21:42 | AG3: =IF((MIN($B3:L3)),(MIN($B3:L3)),"") -> 00:21:42 | AH3: =IF((MIN($B3:M3)),(MIN($B3:M3)),"") -> 00:21:42 | AI3: =IF((MIN($B3:N3)),(MIN($B3:N3)),"") -> 00:21:42 | AJ3: =IF((MIN($B3:O3)),(MIN($B3:O3)),"") -> 00:21:42 | AK3: =IF((MIN($B3:P3)),(MIN($B3:P3)),"") -> 00:21:42 | AL3: =IF((MIN($B3:Q3)),(MIN($B3:Q3)),"") -> 00:21:42 | AM3: =IF((MIN($B3:R3)),(MIN($B3:R3)),"") -> 00:21:42 | AN3: =IF((MIN($B3:S3)),(MIN($B3:S3)),"") -> 00:21:42
A4: =Points!C12 -> Ian Cheatle | B4: =IF(Points!I12,Points!I12,"") ->  | C4: =IF(Points!L12,Points!L12,"") ->  | D4: =IF(Points!O12,Points!O12,"") ->  | E4: =IF(Points!R12,Points!R12,"") -> 00:22:48 | F4: =IF(Points!U12,Points!U12,"") ->  | G4: =IF(Points!X12,Points!X12,"") ->  | H4: =IF(Points!AA12,Points!AA12,"") ->  | I4: =IF(Points!AD12,Points!AD12,"") ->  | J4: =IF(Points!AG12,Points!AG12,"") ->  | K4: =IF(Points!AJ12,Points!AJ12,"") ->  | L4: =IF(Points!AM12,Points!AM12,"") ->  | M4: =IF(Points!AP12,Points!AP12,"") ->  | N4: =IF(Points!AS12,Points!AS12,"") ->  | O4: =IF(Points!AV12,Points!AV12,"") ->  | P4: =IF(Points!AY12,Points!AY12,"") ->  | Q4: =IF(Points!BB12,Points!BB12,"") ->  | R4: =IF(Points!BE12,Points!BE12,"") ->  | S4: =IF(Points!BH12,Points!BH12,"") ->  | V4: Ian Cheatle | W4: =IF((MIN($B4:B4)),(MIN($B4:B4)),"") ->  | X4: =IF((MIN($B4:C4)),(MIN($B4:C4)),"") ->  | Y4: =IF((MIN($B4:D4)),(MIN($B4:D4)),"") ->  | Z4: =IF((MIN($B4:E4)),(MIN($B4:E4)),"") -> 00:22:48 | AA4: =IF((MIN($B4:F4)),(MIN($B4:F4)),"") -> 00:22:48 | AB4: =IF((MIN($B4:G4)),(MIN($B4:G4)),"") -> 00:22:48 | AC4: =IF((MIN($B4:H4)),(MIN($B4:H4)),"") -> 00:22:48 | AD4: =IF((MIN($B4:I4)),(MIN($B4:I4)),"") -> 00:22:48 | AE4: =IF((MIN($B4:J4)),(MIN($B4:J4)),"") -> 00:22:48 | AF4: =IF((MIN($B4:K4)),(MIN($B4:K4)),"") -> 00:22:48 | AG4: =IF((MIN($B4:L4)),(MIN($B4:L4)),"") -> 00:22:48 | AH4: =IF((MIN($B4:M4)),(MIN($B4:M4)),"") -> 00:22:48 | AI4: =IF((MIN($B4:N4)),(MIN($B4:N4)),"") -> 00:22:48 | AJ4: =IF((MIN($B4:O4)),(MIN($B4:O4)),"") -> 00:22:48 | AK4: =IF((MIN($B4:P4)),(MIN($B4:P4)),"") -> 00:22:48 | AL4: =IF((MIN($B4:Q4)),(MIN($B4:Q4)),"") -> 00:22:48 | AM4: =IF((MIN($B4:R4)),(MIN($B4:R4)),"") -> 00:22:48 | AN4: =IF((MIN($B4:S4)),(MIN($B4:S4)),"") -> 00:22:48
A5: =Points!C13 -> Chris Tye | B5: =IF(Points!I13,Points!I13,"") ->  | C5: =IF(Points!L13,Points!L13,"") ->  | D5: =IF(Points!O13,Points!O13,"") ->  | E5: =IF(Points!R13,Points!R13,"") ->  | F5: =IF(Points!U13,Points!U13,"") ->  | G5: =IF(Points!X13,Points!X13,"") -> 00:23:25 | H5: =IF(Points!AA13,Points!AA13,"") ->  | I5: =IF(Points!AD13,Points!AD13,"") ->  | J5: =IF(Points!AG13,Points!AG13,"") ->  | K5: =IF(Points!AJ13,Points!AJ13,"") ->  | L5: =IF(Points!AM13,Points!AM13,"") ->  | M5: =IF(Points!AP13,Points!AP13,"") ->  | N5: =IF(Points!AS13,Points!AS13,"") ->  | O5: =IF(Points!AV13,Points!AV13,"") ->  | P5: =IF(Points!AY13,Points!AY13,"") ->  | Q5: =IF(Points!BB13,Points!BB13,"") ->  | R5: =IF(Points!BE13,Points!BE13,"") ->  | S5: =IF(Points!BH13,Points!BH13,"") ->  | V5: Chris Tye | W5: =IF((MIN($B5:B5)),(MIN($B5:B5)),"") ->  | X5: =IF((MIN($B5:C5)),(MIN($B5:C5)),"") ->  | Y5: =IF((MIN($B5:D5)),(MIN($B5:D5)),"") ->  | Z5: =IF((MIN($B5:E5)),(MIN($B5:E5)),"") ->  | AA5: =IF((MIN($B5:F5)),(MIN($B5:F5)),"") ->  | AB5: =IF((MIN($B5:G5)),(MIN($B5:G5)),"") -> 00:23:25 | AC5: =IF((MIN($B5:H5)),(MIN($B5:H5)),"") -> 00:23:25 | AD5: =IF((MIN($B5:I5)),(MIN($B5:I5)),"") -> 00:23:25 | AE5: =IF((MIN($B5:J5)),(MIN($B5:J5)),"") -> 00:23:25 | AF5: =IF((MIN($B5:K5)),(MIN($B5:K5)),"") -> 00:23:25 | AG5: =IF((MIN($B5:L5)),(MIN($B5:L5)),"") -> 00:23:25 | AH5: =IF((MIN($B5:M5)),(MIN($B5:M5)),"") -> 00:23:25 | AI5: =IF((MIN($B5:N5)),(MIN($B5:N5)),"") -> 00:23:25 | AJ5: =IF((MIN($B5:O5)),(MIN($B5:O5)),"") -> 00:23:25 | AK5: =IF((MIN($B5:P5)),(MIN($B5:P5)),"") -> 00:23:25 | AL5: =IF((MIN($B5:Q5)),(MIN($B5:Q5)),"") -> 00:23:25 | AM5: =IF((MIN($B5:R5)),(MIN($B5:R5)),"") -> 00:23:25 | AN5: =IF((MIN($B5:S5)),(MIN($B5:S5)),"") -> 00:23:25
A6: =Points!C14 -> Fraser Joyce | B6: =IF(Points!I14,Points!I14,"") ->  | C6: =IF(Points!L14,Points!L14,"") ->  | D6: =IF(Points!O14,Points!O14,"") ->  | E6: =IF(Points!R14,Points!R14,"") -> 00:23:26 | F6: =IF(Points!U14,Points!U14,"") ->  | G6: =IF(Points!X14,Points!X14,"") ->  | H6: =IF(Points!AA14,Points!AA14,"") ->  | I6: =IF(Points!AD14,Points!AD14,"") ->  | J6: =IF(Points!AG14,Points!AG14,"") ->  | K6: =IF(Points!AJ14,Points!AJ14,"") ->  | L6: =IF(Points!AM14,Points!AM14,"") ->  | M6: =IF(Points!AP14,Points!AP14,"") ->  | N6: =IF(Points!AS14,Points!AS14,"") ->  | O6: =IF(Points!AV14,Points!AV14,"") ->  | P6: =IF(Points!AY14,Points!AY14,"") ->  | Q6: =IF(Points!BB14,Points!BB14,"") ->  | R6: =IF(Points!BE14,Points!BE14,"") ->  | S6: =IF(Points!BH14,Points!BH14,"") ->  | V6: Fraser Joyce | W6: =IF((MIN($B6:B6)),(MIN($B6:B6)),"") ->  | X6: =IF((MIN($B6:C6)),(MIN($B6:C6)),"") ->  | Y6: =IF((MIN($B6:D6)),(MIN($B6:D6)),"") ->  | Z6: =IF((MIN($B6:E6)),(MIN($B6:E6)),"") -> 00:23:26 | AA6: =IF((MIN($B6:F6)),(MIN($B6:F6)),"") -> 00:23:26 | AB6: =IF((MIN($B6:G6)),(MIN($B6:G6)),"") -> 00:23:26 | AC6: =IF((MIN($B6:H6)),(MIN($B6:H6)),"") -> 00:23:26 | AD6: =IF((MIN($B6:I6)),(MIN($B6:I6)),"") -> 00:23:26 | AE6: =IF((MIN($B6:J6)),(MIN($B6:J6)),"") -> 00:23:26 | AF6: =IF((MIN($B6:K6)),(MIN($B6:K6)),"") -> 00:23:26 | AG6: =IF((MIN($B6:L6)),(MIN($B6:L6)),"") -> 00:23:26 | AH6: =IF((MIN($B6:M6)),(MIN($B6:M6)),"") -> 00:23:26 | AI6: =IF((MIN($B6:N6)),(MIN($B6:N6)),"") -> 00:23:26 | AJ6: =IF((MIN($B6:O6)),(MIN($B6:O6)),"") -> 00:23:26 | AK6: =IF((MIN($B6:P6)),(MIN($B6:P6)),"") -> 00:23:26 | AL6: =IF((MIN($B6:Q6)),(MIN($B6:Q6)),"") -> 00:23:26 | AM6: =IF((MIN($B6:R6)),(MIN($B6:R6)),"") -> 00:23:26 | AN6: =IF((MIN($B6:S6)),(MIN($B6:S6)),"") -> 00:23:26
A7: =Points!C15 -> Justin Robbins | B7: =IF(Points!I15,Points!I15,"") ->  | C7: =IF(Points!L15,Points!L15,"") ->  | D7: =IF(Points!O15,Points!O15,"") -> 00:24:04 | E7: =IF(Points!R15,Points!R15,"") -> 00:26:52 | F7: =IF(Points!U15,Points!U15,"") -> 00:23:29 | G7: =IF(Points!X15,Points!X15,"") ->  | H7: =IF(Points!AA15,Points!AA15,"") ->  | I7: =IF(Points!AD15,Points!AD15,"") ->  | J7: =IF(Points!AG15,Points!AG15,"") ->  | K7: =IF(Points!AJ15,Points!AJ15,"") ->  | L7: =IF(Points!AM15,Points!AM15,"") ->  | M7: =IF(Points!AP15,Points!AP15,"") ->  | N7: =IF(Points!AS15,Points!AS15,"") ->  | O7: =IF(Points!AV15,Points!AV15,"") ->  | P7: =IF(Points!AY15,Points!AY15,"") ->  | Q7: =IF(Points!BB15,Points!BB15,"") ->  | R7: =IF(Points!BE15,Points!BE15,"") ->  | S7: =IF(Points!BH15,Points!BH15,"") ->  | V7: Justin Robbins | W7: =IF((MIN($B7:B7)),(MIN($B7:B7)),"") ->  | X7: =IF((MIN($B7:C7)),(MIN($B7:C7)),"") ->  | Y7: =IF((MIN($B7:D7)),(MIN($B7:D7)),"") -> 00:24:04 | Z7: =IF((MIN($B7:E7)),(MIN($B7:E7)),"") -> 00:24:04 | AA7: =IF((MIN($B7:F7)),(MIN($B7:F7)),"") -> 00:23:29 | AB7: =IF((MIN($B7:G7)),(MIN($B7:G7)),"") -> 00:23:29 | AC7: =IF((MIN($B7:H7)),(MIN($B7:H7)),"") -> 00:23:29 | AD7: =IF((MIN($B7:I7)),(MIN($B7:I7)),"") -> 00:23:29 | AE7: =IF((MIN($B7:J7)),(MIN($B7:J7)),"") -> 00:23:29 | AF7: =IF((MIN($B7:K7)),(MIN($B7:K7)),"") -> 00:23:29 | AG7: =IF((MIN($B7:L7)),(MIN($B7:L7)),"") -> 00:23:29 | AH7: =IF((MIN($B7:M7)),(MIN($B7:M7)),"") -> 00:23:29 | AI7: =IF((MIN($B7:N7)),(MIN($B7:N7)),"") -> 00:23:29 | AJ7: =IF((MIN($B7:O7)),(MIN($B7:O7)),"") -> 00:23:29 | AK7: =IF((MIN($B7:P7)),(MIN($B7:P7)),"") -> 00:23:29 | AL7: =IF((MIN($B7:Q7)),(MIN($B7:Q7)),"") -> 00:23:29 | AM7: =IF((MIN($B7:R7)),(MIN($B7:R7)),"") -> 00:23:29 | AN7: =IF((MIN($B7:S7)),(MIN($B7:S7)),"") -> 00:23:29
A8: =Points!C16 -> Les Sheppard | B8: =IF(Points!I16,Points!I16,"") -> 00:23:56 | C8: =IF(Points!L16,Points!L16,"") ->  | D8: =IF(Points!O16,Points!O16,"") ->  | E8: =IF(Points!R16,Points!R16,"") -> 00:23:41 | F8: =IF(Points!U16,Points!U16,"") ->  | G8: =IF(Points!X16,Points!X16,"") -> 00:23:52 | H8: =IF(Points!AA16,Points!AA16,"") ->  | I8: =IF(Points!AD16,Points!AD16,"") ->  | J8: =IF(Points!AG16,Points!AG16,"") ->  | K8: =IF(Points!AJ16,Points!AJ16,"") ->  | L8: =IF(Points!AM16,Points!AM16,"") ->  | M8: =IF(Points!AP16,Points!AP16,"") ->  | N8: =IF(Points!AS16,Points!AS16,"") ->  | O8: =IF(Points!AV16,Points!AV16,"") ->  | P8: =IF(Points!AY16,Points!AY16,"") ->  | Q8: =IF(Points!BB16,Points!BB16,"") ->  | R8: =IF(Points!BE16,Points!BE16,"") ->  | S8: =IF(Points!BH16,Points!BH16,"") ->  | V8: Les Sheppard | W8: =IF((MIN($B8:B8)),(MIN($B8:B8)),"") -> 00:23:56 | X8: =IF((MIN($B8:C8)),(MIN($B8:C8)),"") -> 00:23:56 | Y8: =IF((MIN($B8:D8)),(MIN($B8:D8)),"") -> 00:23:56 | Z8: =IF((MIN($B8:E8)),(MIN($B8:E8)),"") -> 00:23:41 | AA8: =IF((MIN($B8:F8)),(MIN($B8:F8)),"") -> 00:23:41 | AB8: =IF((MIN($B8:G8)),(MIN($B8:G8)),"") -> 00:23:41 | AC8: =IF((MIN($B8:H8)),(MIN($B8:H8)),"") -> 00:23:41 | AD8: =IF((MIN($B8:I8)),(MIN($B8:I8)),"") -> 00:23:41 | AE8: =IF((MIN($B8:J8)),(MIN($B8:J8)),"") -> 00:23:41 | AF8: =IF((MIN($B8:K8)),(MIN($B8:K8)),"") -> 00:23:41 | AG8: =IF((MIN($B8:L8)),(MIN($B8:L8)),"") -> 00:23:41 | AH8: =IF((MIN($B8:M8)),(MIN($B8:M8)),"") -> 00:23:41 | AI8: =IF((MIN($B8:N8)),(MIN($B8:N8)),"") -> 00:23:41 | AJ8: =IF((MIN($B8:O8)),(MIN($B8:O8)),"") -> 00:23:41 | AK8: =IF((MIN($B8:P8)),(MIN($B8:P8)),"") -> 00:23:41 | AL8: =IF((MIN($B8:Q8)),(MIN($B8:Q8)),"") -> 00:23:41 | AM8: =IF((MIN($B8:R8)),(MIN($B8:R8)),"") -> 00:23:41 | AN8: =IF((MIN($B8:S8)),(MIN($B8:S8)),"") -> 00:23:41
A9: =Points!C17 -> Ben Parker | B9: =IF(Points!I17,Points!I17,"") -> 00:23:43 | C9: =IF(Points!L17,Points!L17,"") ->  | D9: =IF(Points!O17,Points!O17,"") ->  | E9: =IF(Points!R17,Points!R17,"") ->  | F9: =IF(Points!U17,Points!U17,"") ->  | G9: =IF(Points!X17,Points!X17,"") ->  | H9: =IF(Points!AA17,Points!AA17,"") ->  | I9: =IF(Points!AD17,Points!AD17,"") ->  | J9: =IF(Points!AG17,Points!AG17,"") ->  | K9: =IF(Points!AJ17,Points!AJ17,"") ->  | L9: =IF(Points!AM17,Points!AM17,"") ->  | M9: =IF(Points!AP17,Points!AP17,"") ->  | N9: =IF(Points!AS17,Points!AS17,"") ->  | O9: =IF(Points!AV17,Points!AV17,"") ->  | P9: =IF(Points!AY17,Points!AY17,"") ->  | Q9: =IF(Points!BB17,Points!BB17,"") ->  | R9: =IF(Points!BE17,Points!BE17,"") ->  | S9: =IF(Points!BH17,Points!BH17,"") ->  | V9: Ben Parker | W9: =IF((MIN($B9:B9)),(MIN($B9:B9)),"") -> 00:23:43 | X9: =IF((MIN($B9:C9)),(MIN($B9:C9)),"") -> 00:23:43 | Y9: =IF((MIN($B9:D9)),(MIN($B9:D9)),"") -> 00:23:43 | Z9: =IF((MIN($B9:E9)),(MIN($B9:E9)),"") -> 00:23:43 | AA9: =IF((MIN($B9:F9)),(MIN($B9:F9)),"") -> 00:23:43 | AB9: =IF((MIN($B9:G9)),(MIN($B9:G9)),"") -> 00:23:43 | AC9: =IF((MIN($B9:H9)),(MIN($B9:H9)),"") -> 00:23:43 | AD9: =IF((MIN($B9:I9)),(MIN($B9:I9)),"") -> 00:23:43 | AE9: =IF((MIN($B9:J9)),(MIN($B9:J9)),"") -> 00:23:43 | AF9: =IF((MIN($B9:K9)),(MIN($B9:K9)),"") -> 00:23:43 | AG9: =IF((MIN($B9:L9)),(MIN($B9:L9)),"") -> 00:23:43 | AH9: =IF((MIN($B9:M9)),(MIN($B9:M9)),"") -> 00:23:43 | AI9: =IF((MIN($B9:N9)),(MIN($B9:N9)),"") -> 00:23:43 | AJ9: =IF((MIN($B9:O9)),(MIN($B9:O9)),"") -> 00:23:43 | AK9: =IF((MIN($B9:P9)),(MIN($B9:P9)),"") -> 00:23:43 | AL9: =IF((MIN($B9:Q9)),(MIN($B9:Q9)),"") -> 00:23:43 | AM9: =IF((MIN($B9:R9)),(MIN($B9:R9)),"") -> 00:23:43 | AN9: =IF((MIN($B9:S9)),(MIN($B9:S9)),"") -> 00:23:43
A10: =Points!C18 -> Charlotte Berry | B10: =IF(Points!I18,Points!I18,"") ->  | C10: =IF(Points!L18,Points!L18,"") ->  | D10: =IF(Points!O18,Points!O18,"") -> 00:24:09 | E10: =IF(Points!R18,Points!R18,"") ->  | F10: =IF(Points!U18,Points!U18,"") -> 00:23:54 | G10: =IF(Points!X18,Points!X18,"") -> 00:23:49 | H10: =IF(Points!AA18,Points!AA18,"") ->  | I10: =IF(Points!AD18,Points!AD18,"") ->  | J10: =IF(Points!AG18,Points!AG18,"") ->  | K10: =IF(Points!AJ18,Points!AJ18,"") ->  | L10: =IF(Points!AM18,Points!AM18,"") ->  | M10: =IF(Points!AP18,Points!AP18,"") ->  | N10: =IF(Points!AS18,Points!AS18,"") ->  | O10: =IF(Points!AV18,Points!AV18,"") ->  | P10: =IF(Points!AY18,Points!AY18,"") ->  | Q10: =IF(Points!BB18,Points!BB18,"") ->  | R10: =IF(Points!BE18,Points!BE18,"") ->  | S10: =IF(Points!BH18,Points!BH18,"") ->  | V10: Charlotte Berry | W10: =IF((MIN($B10:B10)),(MIN($B10:B10)),"") ->  | X10: =IF((MIN($B10:C10)),(MIN($B10:C10)),"") ->  | Y10: =IF((MIN($B10:D10)),(MIN($B10:D10)),"") -> 00:24:09 | Z10: =IF((MIN($B10:E10)),(MIN($B10:E10)),"") -> 00:24:09 | AA10: =IF((MIN($B10:F10)),(MIN($B10:F10)),"") -> 00:23:54 | AB10: =IF((MIN($B10:G10)),(MIN($B10:G10)),"") -> 00:23:49 | AC10: =IF((MIN($B10:H10)),(MIN($B10:H10)),"") -> 00:23:49 | AD10: =IF((MIN($B10:I10)),(MIN($B10:I10)),"") -> 00:23:49 | AE10: =IF((MIN($B10:J10)),(MIN($B10:J10)),"") -> 00:23:49 | AF10: =IF((MIN($B10:K10)),(MIN($B10:K10)),"") -> 00:23:49 | AG10: =IF((MIN($B10:L10)),(MIN($B10:L10)),"") -> 00:23:49 | AH10: =IF((MIN($B10:M10)),(MIN($B10:M10)),"") -> 00:23:49 | AI10: =IF((MIN($B10:N10)),(MIN($B10:N10)),"") -> 00:23:49 | AJ10: =IF((MIN($B10:O10)),(MIN($B10:O10)),"") -> 00:23:49 | AK10: =IF((MIN($B10:P10)),(MIN($B10:P10)),"") -> 00:23:49 | AL10: =IF((MIN($B10:Q10)),(MIN($B10:Q10)),"") -> 00:23:49 | AM10: =IF((MIN($B10:R10)),(MIN($B10:R10)),"") -> 00:23:49 | AN10: =IF((MIN($B10:S10)),(MIN($B10:S10)),"") -> 00:23:49
A11: =Points!C19 -> Jack Walters | B11: =IF(Points!I19,Points!I19,"") -> 00:25:28 | C11: =IF(Points!L19,Points!L19,"") ->  | D11: =IF(Points!O19,Points!O19,"") -> 00:24:51 | E11: =IF(Points!R19,Points!R19,"") -> 00:24:27 | F11: =IF(Points!U19,Points!U19,"") -> 00:24:06 | G11: =IF(Points!X19,Points!X19,"") ->  | H11: =IF(Points!AA19,Points!AA19,"") ->  | I11: =IF(Points!AD19,Points!AD19,"") ->  | J11: =IF(Points!AG19,Points!AG19,"") ->  | K11: =IF(Points!AJ19,Points!AJ19,"") ->  | L11: =IF(Points!AM19,Points!AM19,"") ->  | M11: =IF(Points!AP19,Points!AP19,"") ->  | N11: =IF(Points!AS19,Points!AS19,"") ->  | O11: =IF(Points!AV19,Points!AV19,"") ->  | P11: =IF(Points!AY19,Points!AY19,"") ->  | Q11: =IF(Points!BB19,Points!BB19,"") ->  | R11: =IF(Points!BE19,Points!BE19,"") ->  | S11: =IF(Points!BH19,Points!BH19,"") ->  | V11: Jack Walters | W11: =IF((MIN($B11:B11)),(MIN($B11:B11)),"") -> 00:25:28 | X11: =IF((MIN($B11:C11)),(MIN($B11:C11)),"") -> 00:25:28 | Y11: =IF((MIN($B11:D11)),(MIN($B11:D11)),"") -> 00:24:51 | Z11: =IF((MIN($B11:E11)),(MIN($B11:E11)),"") -> 00:24:27 | AA11: =IF((MIN($B11:F11)),(MIN($B11:F11)),"") -> 00:24:06 | AB11: =IF((MIN($B11:G11)),(MIN($B11:G11)),"") -> 00:24:06 | AC11: =IF((MIN($B11:H11)),(MIN($B11:H11)),"") -> 00:24:06 | AD11: =IF((MIN($B11:I11)),(MIN($B11:I11)),"") -> 00:24:06 | AE11: =IF((MIN($B11:J11)),(MIN($B11:J11)),"") -> 00:24:06 | AF11: =IF((MIN($B11:K11)),(MIN($B11:K11)),"") -> 00:24:06 | AG11: =IF((MIN($B11:L11)),(MIN($B11:L11)),"") -> 00:24:06 | AH11: =IF((MIN($B11:M11)),(MIN($B11:M11)),"") -> 00:24:06 | AI11: =IF((MIN($B11:N11)),(MIN($B11:N11)),"") -> 00:24:06 | AJ11: =IF((MIN($B11:O11)),(MIN($B11:O11)),"") -> 00:24:06 | AK11: =IF((MIN($B11:P11)),(MIN($B11:P11)),"") -> 00:24:06 | AL11: =IF((MIN($B11:Q11)),(MIN($B11:Q11)),"") -> 00:24:06 | AM11: =IF((MIN($B11:R11)),(MIN($B11:R11)),"") -> 00:24:06 | AN11: =IF((MIN($B11:S11)),(MIN($B11:S11)),"") -> 00:24:06
A12: =Points!C20 -> Jo Spencer | B12: =IF(Points!I20,Points!I20,"") -> 00:24:11 | C12: =IF(Points!L20,Points!L20,"") -> 00:24:27 | D12: =IF(Points!O20,Points!O20,"") ->  | E12: =IF(Points!R20,Points!R20,"") ->  | F12: =IF(Points!U20,Points!U20,"") -> 00:24:27 | G12: =IF(Points!X20,Points!X20,"") ->  | H12: =IF(Points!AA20,Points!AA20,"") ->  | I12: =IF(Points!AD20,Points!AD20,"") ->  | J12: =IF(Points!AG20,Points!AG20,"") ->  | K12: =IF(Points!AJ20,Points!AJ20,"") ->  | L12: =IF(Points!AM20,Points!AM20,"") ->  | M12: =IF(Points!AP20,Points!AP20,"") ->  | N12: =IF(Points!AS20,Points!AS20,"") ->  | O12: =IF(Points!AV20,Points!AV20,"") ->  | P12: =IF(Points!AY20,Points!AY20,"") ->  | Q12: =IF(Points!BB20,Points!BB20,"") ->  | R12: =IF(Points!BE20,Points!BE20,"") ->  | S12: =IF(Points!BH20,Points!BH20,"") ->  | V12: Jo Spencer | W12: =IF((MIN($B12:B12)),(MIN($B12:B12)),"") -> 00:24:11 | X12: =IF((MIN($B12:C12)),(MIN($B12:C12)),"") -> 00:24:11 | Y12: =IF((MIN($B12:D12)),(MIN($B12:D12)),"") -> 00:24:11 | Z12: =IF((MIN($B12:E12)),(MIN($B12:E12)),"") -> 00:24:11 | AA12: =IF((MIN($B12:F12)),(MIN($B12:F12)),"") -> 00:24:11 | AB12: =IF((MIN($B12:G12)),(MIN($B12:G12)),"") -> 00:24:11 | AC12: =IF((MIN($B12:H12)),(MIN($B12:H12)),"") -> 00:24:11 | AD12: =IF((MIN($B12:I12)),(MIN($B12:I12)),"") -> 00:24:11 | AE12: =IF((MIN($B12:J12)),(MIN($B12:J12)),"") -> 00:24:11 | AF12: =IF((MIN($B12:K12)),(MIN($B12:K12)),"") -> 00:24:11 | AG12: =IF((MIN($B12:L12)),(MIN($B12:L12)),"") -> 00:24:11 | AH12: =IF((MIN($B12:M12)),(MIN($B12:M12)),"") -> 00:24:11 | AI12: =IF((MIN($B12:N12)),(MIN($B12:N12)),"") -> 00:24:11 | AJ12: =IF((MIN($B12:O12)),(MIN($B12:O12)),"") -> 00:24:11 | AK12: =IF((MIN($B12:P12)),(MIN($B12:P12)),"") -> 00:24:11 | AL12: =IF((MIN($B12:Q12)),(MIN($B12:Q12)),"") -> 00:24:11 | AM12: =IF((MIN($B12:R12)),(MIN($B12:R12)),"") -> 00:24:11 | AN12: =IF((MIN($B12:S12)),(MIN($B12:S12)),"") -> 00:24:11
A13: =Points!C21 -> Huw Riley | B13: =IF(Points!I21,Points!I21,"") ->  | C13: =IF(Points!L21,Points!L21,"") ->  | D13: =IF(Points!O21,Points!O21,"") ->  | E13: =IF(Points!R21,Points!R21,"") -> 00:24:23 | F13: =IF(Points!U21,Points!U21,"") ->  | G13: =IF(Points!X21,Points!X21,"") ->  | H13: =IF(Points!AA21,Points!AA21,"") ->  | I13: =IF(Points!AD21,Points!AD21,"") ->  | J13: =IF(Points!AG21,Points!AG21,"") ->  | K13: =IF(Points!AJ21,Points!AJ21,"") ->  | L13: =IF(Points!AM21,Points!AM21,"") ->  | M13: =IF(Points!AP21,Points!AP21,"") ->  | N13: =IF(Points!AS21,Points!AS21,"") ->  | O13: =IF(Points!AV21,Points!AV21,"") ->  | P13: =IF(Points!AY21,Points!AY21,"") ->  | Q13: =IF(Points!BB21,Points!BB21,"") ->  | R13: =IF(Points!BE21,Points!BE21,"") ->  | S13: =IF(Points!BH21,Points!BH21,"") ->  | V13: Huw Riley | W13: =IF((MIN($B13:B13)),(MIN($B13:B13)),"") ->  | X13: =IF((MIN($B13:C13)),(MIN($B13:C13)),"") ->  | Y13: =IF((MIN($B13:D13)),(MIN($B13:D13)),"") ->  | Z13: =IF((MIN($B13:E13)),(MIN($B13:E13)),"") -> 00:24:23 | AA13: =IF((MIN($B13:F13)),(MIN($B13:F13)),"") -> 00:24:23 | AB13: =IF((MIN($B13:G13)),(MIN($B13:G13)),"") -> 00:24:23 | AC13: =IF((MIN($B13:H13)),(MIN($B13:H13)),"") -> 00:24:23 | AD13: =IF((MIN($B13:I13)),(MIN($B13:I13)),"") -> 00:24:23 | AE13: =IF((MIN($B13:J13)),(MIN($B13:J13)),"") -> 00:24:23 | AF13: =IF((MIN($B13:K13)),(MIN($B13:K13)),"") -> 00:24:23 | AG13: =IF((MIN($B13:L13)),(MIN($B13:L13)),"") -> 00:24:23 | AH13: =IF((MIN($B13:M13)),(MIN($B13:M13)),"") -> 00:24:23 | AI13: =IF((MIN($B13:N13)),(MIN($B13:N13)),"") -> 00:24:23 | AJ13: =IF((MIN($B13:O13)),(MIN($B13:O13)),"") -> 00:24:23 | AK13: =IF((MIN($B13:P13)),(MIN($B13:P13)),"") -> 00:24:23 | AL13: =IF((MIN($B13:Q13)),(MIN($B13:Q13)),"") -> 00:24:23 | AM13: =IF((MIN($B13:R13)),(MIN($B13:R13)),"") -> 00:24:23 | AN13: =IF((MIN($B13:S13)),(MIN($B13:S13)),"") -> 00:24:23
A14: =Points!C22 -> Michael Spencer | B14: =IF(Points!I22,Points!I22,"") -> 00:25:13 | C14: =IF(Points!L22,Points!L22,"") -> 00:25:08 | D14: =IF(Points!O22,Points!O22,"") ->  | E14: =IF(Points!R22,Points!R22,"") ->  | F14: =IF(Points!U22,Points!U22,"") ->  | G14: =IF(Points!X22,Points!X22,"") -> 00:25:02 | H14: =IF(Points!AA22,Points!AA22,"") ->  | I14: =IF(Points!AD22,Points!AD22,"") ->  | J14: =IF(Points!AG22,Points!AG22,"") ->  | K14: =IF(Points!AJ22,Points!AJ22,"") ->  | L14: =IF(Points!AM22,Points!AM22,"") ->  | M14: =IF(Points!AP22,Points!AP22,"") ->  | N14: =IF(Points!AS22,Points!AS22,"") ->  | O14: =IF(Points!AV22,Points!AV22,"") ->  | P14: =IF(Points!AY22,Points!AY22,"") ->  | Q14: =IF(Points!BB22,Points!BB22,"") ->  | R14: =IF(Points!BE22,Points!BE22,"") ->  | S14: =IF(Points!BH22,Points!BH22,"") ->  | V14: Michael Spencer | W14: =IF((MIN($B14:B14)),(MIN($B14:B14)),"") -> 00:25:13 | X14: =IF((MIN($B14:C14)),(MIN($B14:C14)),"") -> 00:25:08 | Y14: =IF((MIN($B14:D14)),(MIN($B14:D14)),"") -> 00:25:08 | Z14: =IF((MIN($B14:E14)),(MIN($B14:E14)),"") -> 00:25:08 | AA14: =IF((MIN($B14:F14)),(MIN($B14:F14)),"") -> 00:25:08 | AB14: =IF((MIN($B14:G14)),(MIN($B14:G14)),"") -> 00:25:02 | AC14: =IF((MIN($B14:H14)),(MIN($B14:H14)),"") -> 00:25:02 | AD14: =IF((MIN($B14:I14)),(MIN($B14:I14)),"") -> 00:25:02 | AE14: =IF((MIN($B14:J14)),(MIN($B14:J14)),"") -> 00:25:02 | AF14: =IF((MIN($B14:K14)),(MIN($B14:K14)),"") -> 00:25:02 | AG14: =IF((MIN($B14:L14)),(MIN($B14:L14)),"") -> 00:25:02 | AH14: =IF((MIN($B14:M14)),(MIN($B14:M14)),"") -> 00:25:02 | AI14: =IF((MIN($B14:N14)),(MIN($B14:N14)),"") -> 00:25:02 | AJ14: =IF((MIN($B14:O14)),(MIN($B14:O14)),"") -> 00:25:02 | AK14: =IF((MIN($B14:P14)),(MIN($B14:P14)),"") -> 00:25:02 | AL14: =IF((MIN($B14:Q14)),(MIN($B14:Q14)),"") -> 00:25:02 | AM14: =IF((MIN($B14:R14)),(MIN($B14:R14)),"") -> 00:25:02 | AN14: =IF((MIN($B14:S14)),(MIN($B14:S14)),"") -> 00:25:02
A15: =Points!C23 -> Paul Ashman | B15: =IF(Points!I23,Points!I23,"") ->  | C15: =IF(Points!L23,Points!L23,"") ->  | D15: =IF(Points!O23,Points!O23,"") ->  | E15: =IF(Points!R23,Points!R23,"") -> 00:25:02 | F15: =IF(Points!U23,Points!U23,"") ->  | G15: =IF(Points!X23,Points!X23,"") -> 00:25:02 | H15: =IF(Points!AA23,Points!AA23,"") ->  | I15: =IF(Points!AD23,Points!AD23,"") ->  | J15: =IF(Points!AG23,Points!AG23,"") ->  | K15: =IF(Points!AJ23,Points!AJ23,"") ->  | L15: =IF(Points!AM23,Points!AM23,"") ->  | M15: =IF(Points!AP23,Points!AP23,"") ->  | N15: =IF(Points!AS23,Points!AS23,"") ->  | O15: =IF(Points!AV23,Points!AV23,"") ->  | P15: =IF(Points!AY23,Points!AY23,"") ->  | Q15: =IF(Points!BB23,Points!BB23,"") ->  | R15: =IF(Points!BE23,Points!BE23,"") ->  | S15: =IF(Points!BH23,Points!BH23,"") ->  | V15: Paul Ashman | W15: =IF((MIN($B15:B15)),(MIN($B15:B15)),"") ->  | X15: =IF((MIN($B15:C15)),(MIN($B15:C15)),"") ->  | Y15: =IF((MIN($B15:D15)),(MIN($B15:D15)),"") ->  | Z15: =IF((MIN($B15:E15)),(MIN($B15:E15)),"") -> 00:25:02 | AA15: =IF((MIN($B15:F15)),(MIN($B15:F15)),"") -> 00:25:02 | AB15: =IF((MIN($B15:G15)),(MIN($B15:G15)),"") -> 00:25:02 | AC15: =IF((MIN($B15:H15)),(MIN($B15:H15)),"") -> 00:25:02 | AD15: =IF((MIN($B15:I15)),(MIN($B15:I15)),"") -> 00:25:02 | AE15: =IF((MIN($B15:J15)),(MIN($B15:J15)),"") -> 00:25:02 | AF15: =IF((MIN($B15:K15)),(MIN($B15:K15)),"") -> 00:25:02 | AG15: =IF((MIN($B15:L15)),(MIN($B15:L15)),"") -> 00:25:02 | AH15: =IF((MIN($B15:M15)),(MIN($B15:M15)),"") -> 00:25:02 | AI15: =IF((MIN($B15:N15)),(MIN($B15:N15)),"") -> 00:25:02 | AJ15: =IF((MIN($B15:O15)),(MIN($B15:O15)),"") -> 00:25:02 | AK15: =IF((MIN($B15:P15)),(MIN($B15:P15)),"") -> 00:25:02 | AL15: =IF((MIN($B15:Q15)),(MIN($B15:Q15)),"") -> 00:25:02 | AM15: =IF((MIN($B15:R15)),(MIN($B15:R15)),"") -> 00:25:02 | AN15: =IF((MIN($B15:S15)),(MIN($B15:S15)),"") -> 00:25:02
A16: =Points!C24 -> John Hargreaves | B16: =IF(Points!I24,Points!I24,"") -> 00:26:20 | C16: =IF(Points!L24,Points!L24,"") ->  | D16: =IF(Points!O24,Points!O24,"") ->  | E16: =IF(Points!R24,Points!R24,"") ->  | F16: =IF(Points!U24,Points!U24,"") -> 00:25:03 | G16: =IF(Points!X24,Points!X24,"") -> 00:25:17 | H16: =IF(Points!AA24,Points!AA24,"") ->  | I16: =IF(Points!AD24,Points!AD24,"") ->  | J16: =IF(Points!AG24,Points!AG24,"") ->  | K16: =IF(Points!AJ24,Points!AJ24,"") ->  | L16: =IF(Points!AM24,Points!AM24,"") ->  | M16: =IF(Points!AP24,Points!AP24,"") ->  | N16: =IF(Points!AS24,Points!AS24,"") ->  | O16: =IF(Points!AV24,Points!AV24,"") ->  | P16: =IF(Points!AY24,Points!AY24,"") ->  | Q16: =IF(Points!BB24,Points!BB24,"") ->  | R16: =IF(Points!BE24,Points!BE24,"") ->  | S16: =IF(Points!BH24,Points!BH24,"") ->  | V16: John Hargreaves | W16: =IF((MIN($B16:B16)),(MIN($B16:B16)),"") -> 00:26:20 | X16: =IF((MIN($B16:C16)),(MIN($B16:C16)),"") -> 00:26:20 | Y16: =IF((MIN($B16:D16)),(MIN($B16:D16)),"") -> 00:26:20 | Z16: =IF((MIN($B16:E16)),(MIN($B16:E16)),"") -> 00:26:20 | AA16: =IF((MIN($B16:F16)),(MIN($B16:F16)),"") -> 00:25:03 | AB16: =IF((MIN($B16:G16)),(MIN($B16:G16)),"") -> 00:25:03 | AC16: =IF((MIN($B16:H16)),(MIN($B16:H16)),"") -> 00:25:03 | AD16: =IF((MIN($B16:I16)),(MIN($B16:I16)),"") -> 00:25:03 | AE16: =IF((MIN($B16:J16)),(MIN($B16:J16)),"") -> 00:25:03 | AF16: =IF((MIN($B16:K16)),(MIN($B16:K16)),"") -> 00:25:03 | AG16: =IF((MIN($B16:L16)),(MIN($B16:L16)),"") -> 00:25:03 | AH16: =IF((MIN($B16:M16)),(MIN($B16:M16)),"") -> 00:25:03 | AI16: =IF((MIN($B16:N16)),(MIN($B16:N16)),"") -> 00:25:03 | AJ16: =IF((MIN($B16:O16)),(MIN($B16:O16)),"") -> 00:25:03 | AK16: =IF((MIN($B16:P16)),(MIN($B16:P16)),"") -> 00:25:03 | AL16: =IF((MIN($B16:Q16)),(MIN($B16:Q16)),"") -> 00:25:03 | AM16: =IF((MIN($B16:R16)),(MIN($B16:R16)),"") -> 00:25:03 | AN16: =IF((MIN($B16:S16)),(MIN($B16:S16)),"") -> 00:25:03
A17: =Points!C25 -> Jai Bhatoolaul | B17: =IF(Points!I25,Points!I25,"") ->  | C17: =IF(Points!L25,Points!L25,"") ->  | D17: =IF(Points!O25,Points!O25,"") -> 00:25:40 | E17: =IF(Points!R25,Points!R25,"") -> 00:25:15 | F17: =IF(Points!U25,Points!U25,"") ->  | G17: =IF(Points!X25,Points!X25,"") -> 00:25:37 | H17: =IF(Points!AA25,Points!AA25,"") ->  | I17: =IF(Points!AD25,Points!AD25,"") ->  | J17: =IF(Points!AG25,Points!AG25,"") ->  | K17: =IF(Points!AJ25,Points!AJ25,"") ->  | L17: =IF(Points!AM25,Points!AM25,"") ->  | M17: =IF(Points!AP25,Points!AP25,"") ->  | N17: =IF(Points!AS25,Points!AS25,"") ->  | O17: =IF(Points!AV25,Points!AV25,"") ->  | P17: =IF(Points!AY25,Points!AY25,"") ->  | Q17: =IF(Points!BB25,Points!BB25,"") ->  | R17: =IF(Points!BE25,Points!BE25,"") ->  | S17: =IF(Points!BH25,Points!BH25,"") ->  | V17: Jai Bhatoolaul | W17: =IF((MIN($B17:B17)),(MIN($B17:B17)),"") ->  | X17: =IF((MIN($B17:C17)),(MIN($B17:C17)),"") ->  | Y17: =IF((MIN($B17:D17)),(MIN($B17:D17)),"") -> 00:25:40 | Z17: =IF((MIN($B17:E17)),(MIN($B17:E17)),"") -> 00:25:15 | AA17: =IF((MIN($B17:F17)),(MIN($B17:F17)),"") -> 00:25:15 | AB17: =IF((MIN($B17:G17)),(MIN($B17:G17)),"") -> 00:25:15 | AC17: =IF((MIN($B17:H17)),(MIN($B17:H17)),"") -> 00:25:15 | AD17: =IF((MIN($B17:I17)),(MIN($B17:I17)),"") -> 00:25:15 | AE17: =IF((MIN($B17:J17)),(MIN($B17:J17)),"") -> 00:25:15 | AF17: =IF((MIN($B17:K17)),(MIN($B17:K17)),"") -> 00:25:15 | AG17: =IF((MIN($B17:L17)),(MIN($B17:L17)),"") -> 00:25:15 | AH17: =IF((MIN($B17:M17)),(MIN($B17:M17)),"") -> 00:25:15 | AI17: =IF((MIN($B17:N17)),(MIN($B17:N17)),"") -> 00:25:15 | AJ17: =IF((MIN($B17:O17)),(MIN($B17:O17)),"") -> 00:25:15 | AK17: =IF((MIN($B17:P17)),(MIN($B17:P17)),"") -> 00:25:15 | AL17: =IF((MIN($B17:Q17)),(MIN($B17:Q17)),"") -> 00:25:15 | AM17: =IF((MIN($B17:R17)),(MIN($B17:R17)),"") -> 00:25:15 | AN17: =IF((MIN($B17:S17)),(MIN($B17:S17)),"") -> 00:25:15
A18: =Points!C26 -> Gary Beale | B18: =IF(Points!I26,Points!I26,"") ->  | C18: =IF(Points!L26,Points!L26,"") ->  | D18: =IF(Points!O26,Points!O26,"") -> 00:28:41 | E18: =IF(Points!R26,Points!R26,"") ->  | F18: =IF(Points!U26,Points!U26,"") -> 00:25:59 | G18: =IF(Points!X26,Points!X26,"") -> 00:26:23 | H18: =IF(Points!AA26,Points!AA26,"") ->  | I18: =IF(Points!AD26,Points!AD26,"") ->  | J18: =IF(Points!AG26,Points!AG26,"") ->  | K18: =IF(Points!AJ26,Points!AJ26,"") ->  | L18: =IF(Points!AM26,Points!AM26,"") ->  | M18: =IF(Points!AP26,Points!AP26,"") ->  | N18: =IF(Points!AS26,Points!AS26,"") ->  | O18: =IF(Points!AV26,Points!AV26,"") ->  | P18: =IF(Points!AY26,Points!AY26,"") ->  | Q18: =IF(Points!BB26,Points!BB26,"") ->  | R18: =IF(Points!BE26,Points!BE26,"") ->  | S18: =IF(Points!BH26,Points!BH26,"") ->  | V18: Gary Beale | W18: =IF((MIN($B18:B18)),(MIN($B18:B18)),"") ->  | X18: =IF((MIN($B18:C18)),(MIN($B18:C18)),"") ->  | Y18: =IF((MIN($B18:D18)),(MIN($B18:D18)),"") -> 00:28:41 | Z18: =IF((MIN($B18:E18)),(MIN($B18:E18)),"") -> 00:28:41 | AA18: =IF((MIN($B18:F18)),(MIN($B18:F18)),"") -> 00:25:59 | AB18: =IF((MIN($B18:G18)),(MIN($B18:G18)),"") -> 00:25:59 | AC18: =IF((MIN($B18:H18)),(MIN($B18:H18)),"") -> 00:25:59 | AD18: =IF((MIN($B18:I18)),(MIN($B18:I18)),"") -> 00:25:59 | AE18: =IF((MIN($B18:J18)),(MIN($B18:J18)),"") -> 00:25:59 | AF18: =IF((MIN($B18:K18)),(MIN($B18:K18)),"") -> 00:25:59 | AG18: =IF((MIN($B18:L18)),(MIN($B18:L18)),"") -> 00:25:59 | AH18: =IF((MIN($B18:M18)),(MIN($B18:M18)),"") -> 00:25:59 | AI18: =IF((MIN($B18:N18)),(MIN($B18:N18)),"") -> 00:25:59 | AJ18: =IF((MIN($B18:O18)),(MIN($B18:O18)),"") -> 00:25:59 | AK18: =IF((MIN($B18:P18)),(MIN($B18:P18)),"") -> 00:25:59 | AL18: =IF((MIN($B18:Q18)),(MIN($B18:Q18)),"") -> 00:25:59 | AM18: =IF((MIN($B18:R18)),(MIN($B18:R18)),"") -> 00:25:59 | AN18: =IF((MIN($B18:S18)),(MIN($B18:S18)),"") -> 00:25:59
A19: =Points!C27 -> Sue Smith | B19: =IF(Points!I27,Points!I27,"") ->  | C19: =IF(Points!L27,Points!L27,"") ->  | D19: =IF(Points!O27,Points!O27,"") -> 00:27:39 | E19: =IF(Points!R27,Points!R27,"") -> 00:26:01 | F19: =IF(Points!U27,Points!U27,"") ->  | G19: =IF(Points!X27,Points!X27,"") -> 00:26:25 | H19: =IF(Points!AA27,Points!AA27,"") ->  | I19: =IF(Points!AD27,Points!AD27,"") ->  | J19: =IF(Points!AG27,Points!AG27,"") ->  | K19: =IF(Points!AJ27,Points!AJ27,"") ->  | L19: =IF(Points!AM27,Points!AM27,"") ->  | M19: =IF(Points!AP27,Points!AP27,"") ->  | N19: =IF(Points!AS27,Points!AS27,"") ->  | O19: =IF(Points!AV27,Points!AV27,"") ->  | P19: =IF(Points!AY27,Points!AY27,"") ->  | Q19: =IF(Points!BB27,Points!BB27,"") ->  | R19: =IF(Points!BE27,Points!BE27,"") ->  | S19: =IF(Points!BH27,Points!BH27,"") ->  | V19: Sue Smith | W19: =IF((MIN($B19:B19)),(MIN($B19:B19)),"") ->  | X19: =IF((MIN($B19:C19)),(MIN($B19:C19)),"") ->  | Y19: =IF((MIN($B19:D19)),(MIN($B19:D19)),"") -> 00:27:39 | Z19: =IF((MIN($B19:E19)),(MIN($B19:E19)),"") -> 00:26:01 | AA19: =IF((MIN($B19:F19)),(MIN($B19:F19)),"") -> 00:26:01 | AB19: =IF((MIN($B19:G19)),(MIN($B19:G19)),"") -> 00:26:01 | AC19: =IF((MIN($B19:H19)),(MIN($B19:H19)),"") -> 00:26:01 | AD19: =IF((MIN($B19:I19)),(MIN($B19:I19)),"") -> 00:26:01 | AE19: =IF((MIN($B19:J19)),(MIN($B19:J19)),"") -> 00:26:01 | AF19: =IF((MIN($B19:K19)),(MIN($B19:K19)),"") -> 00:26:01 | AG19: =IF((MIN($B19:L19)),(MIN($B19:L19)),"") -> 00:26:01 | AH19: =IF((MIN($B19:M19)),(MIN($B19:M19)),"") -> 00:26:01 | AI19: =IF((MIN($B19:N19)),(MIN($B19:N19)),"") -> 00:26:01 | AJ19: =IF((MIN($B19:O19)),(MIN($B19:O19)),"") -> 00:26:01 | AK19: =IF((MIN($B19:P19)),(MIN($B19:P19)),"") -> 00:26:01 | AL19: =IF((MIN($B19:Q19)),(MIN($B19:Q19)),"") -> 00:26:01 | AM19: =IF((MIN($B19:R19)),(MIN($B19:R19)),"") -> 00:26:01 | AN19: =IF((MIN($B19:S19)),(MIN($B19:S19)),"") -> 00:26:01
A20: =Points!C28 -> Steve Black | B20: =IF(Points!I28,Points!I28,"") -> 00:27:36 | C20: =IF(Points!L28,Points!L28,"") -> 00:27:42 | D20: =IF(Points!O28,Points!O28,"") ->  | E20: =IF(Points!R28,Points!R28,"") -> 00:26:43 | F20: =IF(Points!U28,Points!U28,"") -> 00:26:16 | G20: =IF(Points!X28,Points!X28,"") -> 00:26:43 | H20: =IF(Points!AA28,Points!AA28,"") ->  | I20: =IF(Points!AD28,Points!AD28,"") ->  | J20: =IF(Points!AG28,Points!AG28,"") ->  | K20: =IF(Points!AJ28,Points!AJ28,"") ->  | L20: =IF(Points!AM28,Points!AM28,"") ->  | M20: =IF(Points!AP28,Points!AP28,"") ->  | N20: =IF(Points!AS28,Points!AS28,"") ->  | O20: =IF(Points!AV28,Points!AV28,"") ->  | P20: =IF(Points!AY28,Points!AY28,"") ->  | Q20: =IF(Points!BB28,Points!BB28,"") ->  | R20: =IF(Points!BE28,Points!BE28,"") ->  | S20: =IF(Points!BH28,Points!BH28,"") ->  | V20: Steve Black | W20: =IF((MIN($B20:B20)),(MIN($B20:B20)),"") -> 00:27:36 | X20: =IF((MIN($B20:C20)),(MIN($B20:C20)),"") -> 00:27:36 | Y20: =IF((MIN($B20:D20)),(MIN($B20:D20)),"") -> 00:27:36 | Z20: =IF((MIN($B20:E20)),(MIN($B20:E20)),"") -> 00:26:43 | AA20: =IF((MIN($B20:F20)),(MIN($B20:F20)),"") -> 00:26:16 | AB20: =IF((MIN($B20:G20)),(MIN($B20:G20)),"") -> 00:26:16 | AC20: =IF((MIN($B20:H20)),(MIN($B20:H20)),"") -> 00:26:16 | AD20: =IF((MIN($B20:I20)),(MIN($B20:I20)),"") -> 00:26:16 | AE20: =IF((MIN($B20:J20)),(MIN($B20:J20)),"") -> 00:26:16 | AF20: =IF((MIN($B20:K20)),(MIN($B20:K20)),"") -> 00:26:16 | AG20: =IF((MIN($B20:L20)),(MIN($B20:L20)),"") -> 00:26:16 | AH20: =IF((MIN($B20:M20)),(MIN($B20:M20)),"") -> 00:26:16 | AI20: =IF((MIN($B20:N20)),(MIN($B20:N20)),"") -> 00:26:16 | AJ20: =IF((MIN($B20:O20)),(MIN($B20:O20)),"") -> 00:26:16 | AK20: =IF((MIN($B20:P20)),(MIN($B20:P20)),"") -> 00:26:16 | AL20: =IF((MIN($B20:Q20)),(MIN($B20:Q20)),"") -> 00:26:16 | AM20: =IF((MIN($B20:R20)),(MIN($B20:R20)),"") -> 00:26:16 | AN20: =IF((MIN($B20:S20)),(MIN($B20:S20)),"") -> 00:26:16
A21: =Points!C29 -> Justin Ede | B21: =IF(Points!I29,Points!I29,"") -> 00:26:24 | C21: =IF(Points!L29,Points!L29,"") ->  | D21: =IF(Points!O29,Points!O29,"") ->  | E21: =IF(Points!R29,Points!R29,"") ->  | F21: =IF(Points!U29,Points!U29,"") ->  | G21: =IF(Points!X29,Points!X29,"") ->  | H21: =IF(Points!AA29,Points!AA29,"") ->  | I21: =IF(Points!AD29,Points!AD29,"") ->  | J21: =IF(Points!AG29,Points!AG29,"") ->  | K21: =IF(Points!AJ29,Points!AJ29,"") ->  | L21: =IF(Points!AM29,Points!AM29,"") ->  | M21: =IF(Points!AP29,Points!AP29,"") ->  | N21: =IF(Points!AS29,Points!AS29,"") ->  | O21: =IF(Points!AV29,Points!AV29,"") ->  | P21: =IF(Points!AY29,Points!AY29,"") ->  | Q21: =IF(Points!BB29,Points!BB29,"") ->  | R21: =IF(Points!BE29,Points!BE29,"") ->  | S21: =IF(Points!BH29,Points!BH29,"") ->  | V21: Justin Ede | W21: =IF((MIN($B21:B21)),(MIN($B21:B21)),"") -> 00:26:24 | X21: =IF((MIN($B21:C21)),(MIN($B21:C21)),"") -> 00:26:24 | Y21: =IF((MIN($B21:D21)),(MIN($B21:D21)),"") -> 00:26:24 | Z21: =IF((MIN($B21:E21)),(MIN($B21:E21)),"") -> 00:26:24 | AA21: =IF((MIN($B21:F21)),(MIN($B21:F21)),"") -> 00:26:24 | AB21: =IF((MIN($B21:G21)),(MIN($B21:G21)),"") -> 00:26:24 | AC21: =IF((MIN($B21:H21)),(MIN($B21:H21)),"") -> 00:26:24 | AD21: =IF((MIN($B21:I21)),(MIN($B21:I21)),"") -> 00:26:24 | AE21: =IF((MIN($B21:J21)),(MIN($B21:J21)),"") -> 00:26:24 | AF21: =IF((MIN($B21:K21)),(MIN($B21:K21)),"") -> 00:26:24 | AG21: =IF((MIN($B21:L21)),(MIN($B21:L21)),"") -> 00:26:24 | AH21: =IF((MIN($B21:M21)),(MIN($B21:M21)),"") -> 00:26:24 | AI21: =IF((MIN($B21:N21)),(MIN($B21:N21)),"") -> 00:26:24 | AJ21: =IF((MIN($B21:O21)),(MIN($B21:O21)),"") -> 00:26:24 | AK21: =IF((MIN($B21:P21)),(MIN($B21:P21)),"") -> 00:26:24 | AL21: =IF((MIN($B21:Q21)),(MIN($B21:Q21)),"") -> 00:26:24 | AM21: =IF((MIN($B21:R21)),(MIN($B21:R21)),"") -> 00:26:24 | AN21: =IF((MIN($B21:S21)),(MIN($B21:S21)),"") -> 00:26:24
A22: =Points!C30 -> Tom Holden | B22: =IF(Points!I30,Points!I30,"") -> 00:26:40 | C22: =IF(Points!L30,Points!L30,"") ->  | D22: =IF(Points!O30,Points!O30,"") ->  | E22: =IF(Points!R30,Points!R30,"") ->  | F22: =IF(Points!U30,Points!U30,"") ->  | G22: =IF(Points!X30,Points!X30,"") ->  | H22: =IF(Points!AA30,Points!AA30,"") ->  | I22: =IF(Points!AD30,Points!AD30,"") ->  | J22: =IF(Points!AG30,Points!AG30,"") ->  | K22: =IF(Points!AJ30,Points!AJ30,"") ->  | L22: =IF(Points!AM30,Points!AM30,"") ->  | M22: =IF(Points!AP30,Points!AP30,"") ->  | N22: =IF(Points!AS30,Points!AS30,"") ->  | O22: =IF(Points!AV30,Points!AV30,"") ->  | P22: =IF(Points!AY30,Points!AY30,"") ->  | Q22: =IF(Points!BB30,Points!BB30,"") ->  | R22: =IF(Points!BE30,Points!BE30,"") ->  | S22: =IF(Points!BH30,Points!BH30,"") ->  | V22: Tom Holden | W22: =IF((MIN($B22:B22)),(MIN($B22:B22)),"") -> 00:26:40 | X22: =IF((MIN($B22:C22)),(MIN($B22:C22)),"") -> 00:26:40 | Y22: =IF((MIN($B22:D22)),(MIN($B22:D22)),"") -> 00:26:40 | Z22: =IF((MIN($B22:E22)),(MIN($B22:E22)),"") -> 00:26:40 | AA22: =IF((MIN($B22:F22)),(MIN($B22:F22)),"") -> 00:26:40 | AB22: =IF((MIN($B22:G22)),(MIN($B22:G22)),"") -> 00:26:40 | AC22: =IF((MIN($B22:H22)),(MIN($B22:H22)),"") -> 00:26:40 | AD22: =IF((MIN($B22:I22)),(MIN($B22:I22)),"") -> 00:26:40 | AE22: =IF((MIN($B22:J22)),(MIN($B22:J22)),"") -> 00:26:40 | AF22: =IF((MIN($B22:K22)),(MIN($B22:K22)),"") -> 00:26:40 | AG22: =IF((MIN($B22:L22)),(MIN($B22:L22)),"") -> 00:26:40 | AH22: =IF((MIN($B22:M22)),(MIN($B22:M22)),"") -> 00:26:40 | AI22: =IF((MIN($B22:N22)),(MIN($B22:N22)),"") -> 00:26:40 | AJ22: =IF((MIN($B22:O22)),(MIN($B22:O22)),"") -> 00:26:40 | AK22: =IF((MIN($B22:P22)),(MIN($B22:P22)),"") -> 00:26:40 | AL22: =IF((MIN($B22:Q22)),(MIN($B22:Q22)),"") -> 00:26:40 | AM22: =IF((MIN($B22:R22)),(MIN($B22:R22)),"") -> 00:26:40 | AN22: =IF((MIN($B22:S22)),(MIN($B22:S22)),"") -> 00:26:40
A23: =Points!C31 -> Marianne Day | B23: =IF(Points!I31,Points!I31,"") ->  | C23: =IF(Points!L31,Points!L31,"") -> 00:26:41 | D23: =IF(Points!O31,Points!O31,"") ->  | E23: =IF(Points!R31,Points!R31,"") ->  | F23: =IF(Points!U31,Points!U31,"") ->  | G23: =IF(Points!X31,Points!X31,"") ->  | H23: =IF(Points!AA31,Points!AA31,"") ->  | I23: =IF(Points!AD31,Points!AD31,"") ->  | J23: =IF(Points!AG31,Points!AG31,"") ->  | K23: =IF(Points!AJ31,Points!AJ31,"") ->  | L23: =IF(Points!AM31,Points!AM31,"") ->  | M23: =IF(Points!AP31,Points!AP31,"") ->  | N23: =IF(Points!AS31,Points!AS31,"") ->  | O23: =IF(Points!AV31,Points!AV31,"") ->  | P23: =IF(Points!AY31,Points!AY31,"") ->  | Q23: =IF(Points!BB31,Points!BB31,"") ->  | R23: =IF(Points!BE31,Points!BE31,"") ->  | S23: =IF(Points!BH31,Points!BH31,"") ->  | V23: Marianne Day | W23: =IF((MIN($B23:B23)),(MIN($B23:B23)),"") ->  | X23: =IF((MIN($B23:C23)),(MIN($B23:C23)),"") -> 00:26:41 | Y23: =IF((MIN($B23:D23)),(MIN($B23:D23)),"") -> 00:26:41 | Z23: =IF((MIN($B23:E23)),(MIN($B23:E23)),"") -> 00:26:41 | AA23: =IF((MIN($B23:F23)),(MIN($B23:F23)),"") -> 00:26:41 | AB23: =IF((MIN($B23:G23)),(MIN($B23:G23)),"") -> 00:26:41 | AC23: =IF((MIN($B23:H23)),(MIN($B23:H23)),"") -> 00:26:41 | AD23: =IF((MIN($B23:I23)),(MIN($B23:I23)),"") -> 00:26:41 | AE23: =IF((MIN($B23:J23)),(MIN($B23:J23)),"") -> 00:26:41 | AF23: =IF((MIN($B23:K23)),(MIN($B23:K23)),"") -> 00:26:41 | AG23: =IF((MIN($B23:L23)),(MIN($B23:L23)),"") -> 00:26:41 | AH23: =IF((MIN($B23:M23)),(MIN($B23:M23)),"") -> 00:26:41 | AI23: =IF((MIN($B23:N23)),(MIN($B23:N23)),"") -> 00:26:41 | AJ23: =IF((MIN($B23:O23)),(MIN($B23:O23)),"") -> 00:26:41 | AK23: =IF((MIN($B23:P23)),(MIN($B23:P23)),"") -> 00:26:41 | AL23: =IF((MIN($B23:Q23)),(MIN($B23:Q23)),"") -> 00:26:41 | AM23: =IF((MIN($B23:R23)),(MIN($B23:R23)),"") -> 00:26:41 | AN23: =IF((MIN($B23:S23)),(MIN($B23:S23)),"") -> 00:26:41
A24: =Points!C32 -> David Addyman | B24: =IF(Points!I32,Points!I32,"") ->  | C24: =IF(Points!L32,Points!L32,"") ->  | D24: =IF(Points!O32,Points!O32,"") ->  | E24: =IF(Points!R32,Points!R32,"") ->  | F24: =IF(Points!U32,Points!U32,"") ->  | G24: =IF(Points!X32,Points!X32,"") -> 00:27:13 | H24: =IF(Points!AA32,Points!AA32,"") ->  | I24: =IF(Points!AD32,Points!AD32,"") ->  | J24: =IF(Points!AG32,Points!AG32,"") ->  | K24: =IF(Points!AJ32,Points!AJ32,"") ->  | L24: =IF(Points!AM32,Points!AM32,"") ->  | M24: =IF(Points!AP32,Points!AP32,"") ->  | N24: =IF(Points!AS32,Points!AS32,"") ->  | O24: =IF(Points!AV32,Points!AV32,"") ->  | P24: =IF(Points!AY32,Points!AY32,"") ->  | Q24: =IF(Points!BB32,Points!BB32,"") ->  | R24: =IF(Points!BE32,Points!BE32,"") ->  | S24: =IF(Points!BH32,Points!BH32,"") ->  | V24: David Addyman | W24: =IF((MIN($B24:B24)),(MIN($B24:B24)),"") ->  | X24: =IF((MIN($B24:C24)),(MIN($B24:C24)),"") ->  | Y24: =IF((MIN($B24:D24)),(MIN($B24:D24)),"") ->  | Z24: =IF((MIN($B24:E24)),(MIN($B24:E24)),"") ->  | AA24: =IF((MIN($B24:F24)),(MIN($B24:F24)),"") ->  | AB24: =IF((MIN($B24:G24)),(MIN($B24:G24)),"") -> 00:27:13 | AC24: =IF((MIN($B24:H24)),(MIN($B24:H24)),"") -> 00:27:13 | AD24: =IF((MIN($B24:I24)),(MIN($B24:I24)),"") -> 00:27:13 | AE24: =IF((MIN($B24:J24)),(MIN($B24:J24)),"") -> 00:27:13 | AF24: =IF((MIN($B24:K24)),(MIN($B24:K24)),"") -> 00:27:13 | AG24: =IF((MIN($B24:L24)),(MIN($B24:L24)),"") -> 00:27:13 | AH24: =IF((MIN($B24:M24)),(MIN($B24:M24)),"") -> 00:27:13 | AI24: =IF((MIN($B24:N24)),(MIN($B24:N24)),"") -> 00:27:13 | AJ24: =IF((MIN($B24:O24)),(MIN($B24:O24)),"") -> 00:27:13 | AK24: =IF((MIN($B24:P24)),(MIN($B24:P24)),"") -> 00:27:13 | AL24: =IF((MIN($B24:Q24)),(MIN($B24:Q24)),"") -> 00:27:13 | AM24: =IF((MIN($B24:R24)),(MIN($B24:R24)),"") -> 00:27:13 | AN24: =IF((MIN($B24:S24)),(MIN($B24:S24)),"") -> 00:27:13
A25: =Points!C33 -> Paul Fuchs | B25: =IF(Points!I33,Points!I33,"") -> 00:28:49 | C25: =IF(Points!L33,Points!L33,"") -> 00:28:46 | D25: =IF(Points!O33,Points!O33,"") -> 00:29:12 | E25: =IF(Points!R33,Points!R33,"") -> 00:28:56 | F25: =IF(Points!U33,Points!U33,"") -> 00:28:22 | G25: =IF(Points!X33,Points!X33,"") -> 00:28:50 | H25: =IF(Points!AA33,Points!AA33,"") ->  | I25: =IF(Points!AD33,Points!AD33,"") ->  | J25: =IF(Points!AG33,Points!AG33,"") ->  | K25: =IF(Points!AJ33,Points!AJ33,"") ->  | L25: =IF(Points!AM33,Points!AM33,"") ->  | M25: =IF(Points!AP33,Points!AP33,"") ->  | N25: =IF(Points!AS33,Points!AS33,"") ->  | O25: =IF(Points!AV33,Points!AV33,"") ->  | P25: =IF(Points!AY33,Points!AY33,"") ->  | Q25: =IF(Points!BB33,Points!BB33,"") ->  | R25: =IF(Points!BE33,Points!BE33,"") ->  | S25: =IF(Points!BH33,Points!BH33,"") ->  | V25: Paul Fuchs | W25: =IF((MIN($B25:B25)),(MIN($B25:B25)),"") -> 00:28:49 | X25: =IF((MIN($B25:C25)),(MIN($B25:C25)),"") -> 00:28:46 | Y25: =IF((MIN($B25:D25)),(MIN($B25:D25)),"") -> 00:28:46 | Z25: =IF((MIN($B25:E25)),(MIN($B25:E25)),"") -> 00:28:46 | AA25: =IF((MIN($B25:F25)),(MIN($B25:F25)),"") -> 00:28:22 | AB25: =IF((MIN($B25:G25)),(MIN($B25:G25)),"") -> 00:28:22 | AC25: =IF((MIN($B25:H25)),(MIN($B25:H25)),"") -> 00:28:22 | AD25: =IF((MIN($B25:I25)),(MIN($B25:I25)),"") -> 00:28:22 | AE25: =IF((MIN($B25:J25)),(MIN($B25:J25)),"") -> 00:28:22 | AF25: =IF((MIN($B25:K25)),(MIN($B25:K25)),"") -> 00:28:22 | AG25: =IF((MIN($B25:L25)),(MIN($B25:L25)),"") -> 00:28:22 | AH25: =IF((MIN($B25:M25)),(MIN($B25:M25)),"") -> 00:28:22 | AI25: =IF((MIN($B25:N25)),(MIN($B25:N25)),"") -> 00:28:22 | AJ25: =IF((MIN($B25:O25)),(MIN($B25:O25)),"") -> 00:28:22 | AK25: =IF((MIN($B25:P25)),(MIN($B25:P25)),"") -> 00:28:22 | AL25: =IF((MIN($B25:Q25)),(MIN($B25:Q25)),"") -> 00:28:22 | AM25: =IF((MIN($B25:R25)),(MIN($B25:R25)),"") -> 00:28:22 | AN25: =IF((MIN($B25:S25)),(MIN($B25:S25)),"") -> 00:28:22
A26: =Points!C34 -> Wing To | B26: =IF(Points!I34,Points!I34,"") ->  | C26: =IF(Points!L34,Points!L34,"") ->  | D26: =IF(Points!O34,Points!O34,"") ->  | E26: =IF(Points!R34,Points!R34,"") ->  | F26: =IF(Points!U34,Points!U34,"") -> 00:29:00 | G26: =IF(Points!X34,Points!X34,"") ->  | H26: =IF(Points!AA34,Points!AA34,"") ->  | I26: =IF(Points!AD34,Points!AD34,"") ->  | J26: =IF(Points!AG34,Points!AG34,"") ->  | K26: =IF(Points!AJ34,Points!AJ34,"") ->  | L26: =IF(Points!AM34,Points!AM34,"") ->  | M26: =IF(Points!AP34,Points!AP34,"") ->  | N26: =IF(Points!AS34,Points!AS34,"") ->  | O26: =IF(Points!AV34,Points!AV34,"") ->  | P26: =IF(Points!AY34,Points!AY34,"") ->  | Q26: =IF(Points!BB34,Points!BB34,"") ->  | R26: =IF(Points!BE34,Points!BE34,"") ->  | S26: =IF(Points!BH34,Points!BH34,"") ->  | V26: Wing To | W26: =IF((MIN($B26:B26)),(MIN($B26:B26)),"") ->  | X26: =IF((MIN($B26:C26)),(MIN($B26:C26)),"") ->  | Y26: =IF((MIN($B26:D26)),(MIN($B26:D26)),"") ->  | Z26: =IF((MIN($B26:E26)),(MIN($B26:E26)),"") ->  | AA26: =IF((MIN($B26:F26)),(MIN($B26:F26)),"") -> 00:29:00 | AB26: =IF((MIN($B26:G26)),(MIN($B26:G26)),"") -> 00:29:00 | AC26: =IF((MIN($B26:H26)),(MIN($B26:H26)),"") -> 00:29:00 | AD26: =IF((MIN($B26:I26)),(MIN($B26:I26)),"") -> 00:29:00 | AE26: =IF((MIN($B26:J26)),(MIN($B26:J26)),"") -> 00:29:00 | AF26: =IF((MIN($B26:K26)),(MIN($B26:K26)),"") -> 00:29:00 | AG26: =IF((MIN($B26:L26)),(MIN($B26:L26)),"") -> 00:29:00 | AH26: =IF((MIN($B26:M26)),(MIN($B26:M26)),"") -> 00:29:00 | AI26: =IF((MIN($B26:N26)),(MIN($B26:N26)),"") -> 00:29:00 | AJ26: =IF((MIN($B26:O26)),(MIN($B26:O26)),"") -> 00:29:00 | AK26: =IF((MIN($B26:P26)),(MIN($B26:P26)),"") -> 00:29:00 | AL26: =IF((MIN($B26:Q26)),(MIN($B26:Q26)),"") -> 00:29:00 | AM26: =IF((MIN($B26:R26)),(MIN($B26:R26)),"") -> 00:29:00 | AN26: =IF((MIN($B26:S26)),(MIN($B26:S26)),"") -> 00:29:00
A27: =Points!C35 -> Nigel Davies | B27: =IF(Points!I35,Points!I35,"") -> 00:30:56 | C27: =IF(Points!L35,Points!L35,"") -> 00:30:48 | D27: =IF(Points!O35,Points!O35,"") ->  | E27: =IF(Points!R35,Points!R35,"") ->  | F27: =IF(Points!U35,Points!U35,"") -> 00:29:38 | G27: =IF(Points!X35,Points!X35,"") ->  | H27: =IF(Points!AA35,Points!AA35,"") ->  | I27: =IF(Points!AD35,Points!AD35,"") ->  | J27: =IF(Points!AG35,Points!AG35,"") ->  | K27: =IF(Points!AJ35,Points!AJ35,"") ->  | L27: =IF(Points!AM35,Points!AM35,"") ->  | M27: =IF(Points!AP35,Points!AP35,"") ->  | N27: =IF(Points!AS35,Points!AS35,"") ->  | O27: =IF(Points!AV35,Points!AV35,"") ->  | P27: =IF(Points!AY35,Points!AY35,"") ->  | Q27: =IF(Points!BB35,Points!BB35,"") ->  | R27: =IF(Points!BE35,Points!BE35,"") ->  | S27: =IF(Points!BH35,Points!BH35,"") ->  | V27: Nigel Davies | W27: =IF((MIN($B27:B27)),(MIN($B27:B27)),"") -> 00:30:56 | X27: =IF((MIN($B27:C27)),(MIN($B27:C27)),"") -> 00:30:48 | Y27: =IF((MIN($B27:D27)),(MIN($B27:D27)),"") -> 00:30:48 | Z27: =IF((MIN($B27:E27)),(MIN($B27:E27)),"") -> 00:30:48 | AA27: =IF((MIN($B27:F27)),(MIN($B27:F27)),"") -> 00:29:38 | AB27: =IF((MIN($B27:G27)),(MIN($B27:G27)),"") -> 00:29:38 | AC27: =IF((MIN($B27:H27)),(MIN($B27:H27)),"") -> 00:29:38 | AD27: =IF((MIN($B27:I27)),(MIN($B27:I27)),"") -> 00:29:38 | AE27: =IF((MIN($B27:J27)),(MIN($B27:J27)),"") -> 00:29:38 | AF27: =IF((MIN($B27:K27)),(MIN($B27:K27)),"") -> 00:29:38 | AG27: =IF((MIN($B27:L27)),(MIN($B27:L27)),"") -> 00:29:38 | AH27: =IF((MIN($B27:M27)),(MIN($B27:M27)),"") -> 00:29:38 | AI27: =IF((MIN($B27:N27)),(MIN($B27:N27)),"") -> 00:29:38 | AJ27: =IF((MIN($B27:O27)),(MIN($B27:O27)),"") -> 00:29:38 | AK27: =IF((MIN($B27:P27)),(MIN($B27:P27)),"") -> 00:29:38 | AL27: =IF((MIN($B27:Q27)),(MIN($B27:Q27)),"") -> 00:29:38 | AM27: =IF((MIN($B27:R27)),(MIN($B27:R27)),"") -> 00:29:38 | AN27: =IF((MIN($B27:S27)),(MIN($B27:S27)),"") -> 00:29:38
A28: =Points!C36 -> Darren Harrisson | B28: =IF(Points!I36,Points!I36,"") ->  | C28: =IF(Points!L36,Points!L36,"") -> 00:32:25 | D28: =IF(Points!O36,Points!O36,"") ->  | E28: =IF(Points!R36,Points!R36,"") ->  | F28: =IF(Points!U36,Points!U36,"") -> 00:30:40 | G28: =IF(Points!X36,Points!X36,"") ->  | H28: =IF(Points!AA36,Points!AA36,"") ->  | I28: =IF(Points!AD36,Points!AD36,"") ->  | J28: =IF(Points!AG36,Points!AG36,"") ->  | K28: =IF(Points!AJ36,Points!AJ36,"") ->  | L28: =IF(Points!AM36,Points!AM36,"") ->  | M28: =IF(Points!AP36,Points!AP36,"") ->  | N28: =IF(Points!AS36,Points!AS36,"") ->  | O28: =IF(Points!AV36,Points!AV36,"") ->  | P28: =IF(Points!AY36,Points!AY36,"") ->  | Q28: =IF(Points!BB36,Points!BB36,"") ->  | R28: =IF(Points!BE36,Points!BE36,"") ->  | S28: =IF(Points!BH36,Points!BH36,"") ->  | V28: Darren Harrisson | W28: =IF((MIN($B28:B28)),(MIN($B28:B28)),"") ->  | X28: =IF((MIN($B28:C28)),(MIN($B28:C28)),"") -> 00:32:25 | Y28: =IF((MIN($B28:D28)),(MIN($B28:D28)),"") -> 00:32:25 | Z28: =IF((MIN($B28:E28)),(MIN($B28:E28)),"") -> 00:32:25 | AA28: =IF((MIN($B28:F28)),(MIN($B28:F28)),"") -> 00:30:40 | AB28: =IF((MIN($B28:G28)),(MIN($B28:G28)),"") -> 00:30:40 | AC28: =IF((MIN($B28:H28)),(MIN($B28:H28)),"") -> 00:30:40 | AD28: =IF((MIN($B28:I28)),(MIN($B28:I28)),"") -> 00:30:40 | AE28: =IF((MIN($B28:J28)),(MIN($B28:J28)),"") -> 00:30:40 | AF28: =IF((MIN($B28:K28)),(MIN($B28:K28)),"") -> 00:30:40 | AG28: =IF((MIN($B28:L28)),(MIN($B28:L28)),"") -> 00:30:40 | AH28: =IF((MIN($B28:M28)),(MIN($B28:M28)),"") -> 00:30:40 | AI28: =IF((MIN($B28:N28)),(MIN($B28:N28)),"") -> 00:30:40 | AJ28: =IF((MIN($B28:O28)),(MIN($B28:O28)),"") -> 00:30:40 | AK28: =IF((MIN($B28:P28)),(MIN($B28:P28)),"") -> 00:30:40 | AL28: =IF((MIN($B28:Q28)),(MIN($B28:Q28)),"") -> 00:30:40 | AM28: =IF((MIN($B28:R28)),(MIN($B28:R28)),"") -> 00:30:40 | AN28: =IF((MIN($B28:S28)),(MIN($B28:S28)),"") -> 00:30:40
A29: =Points!C37 -> Meena Morrish | B29: =IF(Points!I37,Points!I37,"") -> 00:33:50 | C29: =IF(Points!L37,Points!L37,"") ->  | D29: =IF(Points!O37,Points!O37,"") -> 00:33:46 | E29: =IF(Points!R37,Points!R37,"") -> 00:32:40 | F29: =IF(Points!U37,Points!U37,"") ->  | G29: =IF(Points!X37,Points!X37,"") ->  | H29: =IF(Points!AA37,Points!AA37,"") ->  | I29: =IF(Points!AD37,Points!AD37,"") ->  | J29: =IF(Points!AG37,Points!AG37,"") ->  | K29: =IF(Points!AJ37,Points!AJ37,"") ->  | L29: =IF(Points!AM37,Points!AM37,"") ->  | M29: =IF(Points!AP37,Points!AP37,"") ->  | N29: =IF(Points!AS37,Points!AS37,"") ->  | O29: =IF(Points!AV37,Points!AV37,"") ->  | P29: =IF(Points!AY37,Points!AY37,"") ->  | Q29: =IF(Points!BB37,Points!BB37,"") ->  | R29: =IF(Points!BE37,Points!BE37,"") ->  | S29: =IF(Points!BH37,Points!BH37,"") ->  | V29: Meena Morrish | W29: =IF((MIN($B29:B29)),(MIN($B29:B29)),"") -> 00:33:50 | X29: =IF((MIN($B29:C29)),(MIN($B29:C29)),"") -> 00:33:50 | Y29: =IF((MIN($B29:D29)),(MIN($B29:D29)),"") -> 00:33:46 | Z29: =IF((MIN($B29:E29)),(MIN($B29:E29)),"") -> 00:32:40 | AA29: =IF((MIN($B29:F29)),(MIN($B29:F29)),"") -> 00:32:40 | AB29: =IF((MIN($B29:G29)),(MIN($B29:G29)),"") -> 00:32:40 | AC29: =IF((MIN($B29:H29)),(MIN($B29:H29)),"") -> 00:32:40 | AD29: =IF((MIN($B29:I29)),(MIN($B29:I29)),"") -> 00:32:40 | AE29: =IF((MIN($B29:J29)),(MIN($B29:J29)),"") -> 00:32:40 | AF29: =IF((MIN($B29:K29)),(MIN($B29:K29)),"") -> 00:32:40 | AG29: =IF((MIN($B29:L29)),(MIN($B29:L29)),"") -> 00:32:40 | AH29: =IF((MIN($B29:M29)),(MIN($B29:M29)),"") -> 00:32:40 | AI29: =IF((MIN($B29:N29)),(MIN($B29:N29)),"") -> 00:32:40 | AJ29: =IF((MIN($B29:O29)),(MIN($B29:O29)),"") -> 00:32:40 | AK29: =IF((MIN($B29:P29)),(MIN($B29:P29)),"") -> 00:32:40 | AL29: =IF((MIN($B29:Q29)),(MIN($B29:Q29)),"") -> 00:32:40 | AM29: =IF((MIN($B29:R29)),(MIN($B29:R29)),"") -> 00:32:40 | AN29: =IF((MIN($B29:S29)),(MIN($B29:S29)),"") -> 00:32:40
A30: =Points!C38 -> Tony White | B30: =IF(Points!I38,Points!I38,"") ->  | C30: =IF(Points!L38,Points!L38,"") -> 00:32:45 | D30: =IF(Points!O38,Points!O38,"") ->  | E30: =IF(Points!R38,Points!R38,"") ->  | F30: =IF(Points!U38,Points!U38,"") ->  | G30: =IF(Points!X38,Points!X38,"") ->  | H30: =IF(Points!AA38,Points!AA38,"") ->  | I30: =IF(Points!AD38,Points!AD38,"") ->  | J30: =IF(Points!AG38,Points!AG38,"") ->  | K30: =IF(Points!AJ38,Points!AJ38,"") ->  | L30: =IF(Points!AM38,Points!AM38,"") ->  | M30: =IF(Points!AP38,Points!AP38,"") ->  | N30: =IF(Points!AS38,Points!AS38,"") ->  | O30: =IF(Points!AV38,Points!AV38,"") ->  | P30: =IF(Points!AY38,Points!AY38,"") ->  | Q30: =IF(Points!BB38,Points!BB38,"") ->  | R30: =IF(Points!BE38,Points!BE38,"") ->  | S30: =IF(Points!BH38,Points!BH38,"") ->  | V30: Tony White | W30: =IF((MIN($B30:B30)),(MIN($B30:B30)),"") ->  | X30: =IF((MIN($B30:C30)),(MIN($B30:C30)),"") -> 00:32:45 | Y30: =IF((MIN($B30:D30)),(MIN($B30:D30)),"") -> 00:32:45 | Z30: =IF((MIN($B30:E30)),(MIN($B30:E30)),"") -> 00:32:45 | AA30: =IF((MIN($B30:F30)),(MIN($B30:F30)),"") -> 00:32:45 | AB30: =IF((MIN($B30:G30)),(MIN($B30:G30)),"") -> 00:32:45 | AC30: =IF((MIN($B30:H30)),(MIN($B30:H30)),"") -> 00:32:45 | AD30: =IF((MIN($B30:I30)),(MIN($B30:I30)),"") -> 00:32:45 | AE30: =IF((MIN($B30:J30)),(MIN($B30:J30)),"") -> 00:32:45 | AF30: =IF((MIN($B30:K30)),(MIN($B30:K30)),"") -> 00:32:45 | AG30: =IF((MIN($B30:L30)),(MIN($B30:L30)),"") -> 00:32:45 | AH30: =IF((MIN($B30:M30)),(MIN($B30:M30)),"") -> 00:32:45 | AI30: =IF((MIN($B30:N30)),(MIN($B30:N30)),"") -> 00:32:45 | AJ30: =IF((MIN($B30:O30)),(MIN($B30:O30)),"") -> 00:32:45 | AK30: =IF((MIN($B30:P30)),(MIN($B30:P30)),"") -> 00:32:45 | AL30: =IF((MIN($B30:Q30)),(MIN($B30:Q30)),"") -> 00:32:45 | AM30: =IF((MIN($B30:R30)),(MIN($B30:R30)),"") -> 00:32:45 | AN30: =IF((MIN($B30:S30)),(MIN($B30:S30)),"") -> 00:32:45
A31: =Points!C39 -> Yvonne White | B31: =IF(Points!I39,Points!I39,"") -> 00:34:45 | C31: =IF(Points!L39,Points!L39,"") -> 00:35:16 | D31: =IF(Points!O39,Points!O39,"") -> 00:35:45 | E31: =IF(Points!R39,Points!R39,"") -> 00:34:32 | F31: =IF(Points!U39,Points!U39,"") -> 00:33:16 | G31: =IF(Points!X39,Points!X39,"") -> 00:33:22 | H31: =IF(Points!AA39,Points!AA39,"") ->  | I31: =IF(Points!AD39,Points!AD39,"") ->  | J31: =IF(Points!AG39,Points!AG39,"") ->  | K31: =IF(Points!AJ39,Points!AJ39,"") ->  | L31: =IF(Points!AM39,Points!AM39,"") ->  | M31: =IF(Points!AP39,Points!AP39,"") ->  | N31: =IF(Points!AS39,Points!AS39,"") ->  | O31: =IF(Points!AV39,Points!AV39,"") ->  | P31: =IF(Points!AY39,Points!AY39,"") ->  | Q31: =IF(Points!BB39,Points!BB39,"") ->  | R31: =IF(Points!BE39,Points!BE39,"") ->  | S31: =IF(Points!BH39,Points!BH39,"") ->  | V31: Yvonne White | W31: =IF((MIN($B31:B31)),(MIN($B31:B31)),"") -> 00:34:45 | X31: =IF((MIN($B31:C31)),(MIN($B31:C31)),"") -> 00:34:45 | Y31: =IF((MIN($B31:D31)),(MIN($B31:D31)),"") -> 00:34:45 | Z31: =IF((MIN($B31:E31)),(MIN($B31:E31)),"") -> 00:34:32 | AA31: =IF((MIN($B31:F31)),(MIN($B31:F31)),"") -> 00:33:16 | AB31: =IF((MIN($B31:G31)),(MIN($B31:G31)),"") -> 00:33:16 | AC31: =IF((MIN($B31:H31)),(MIN($B31:H31)),"") -> 00:33:16 | AD31: =IF((MIN($B31:I31)),(MIN($B31:I31)),"") -> 00:33:16 | AE31: =IF((MIN($B31:J31)),(MIN($B31:J31)),"") -> 00:33:16 | AF31: =IF((MIN($B31:K31)),(MIN($B31:K31)),"") -> 00:33:16 | AG31: =IF((MIN($B31:L31)),(MIN($B31:L31)),"") -> 00:33:16 | AH31: =IF((MIN($B31:M31)),(MIN($B31:M31)),"") -> 00:33:16 | AI31: =IF((MIN($B31:N31)),(MIN($B31:N31)),"") -> 00:33:16 | AJ31: =IF((MIN($B31:O31)),(MIN($B31:O31)),"") -> 00:33:16 | AK31: =IF((MIN($B31:P31)),(MIN($B31:P31)),"") -> 00:33:16 | AL31: =IF((MIN($B31:Q31)),(MIN($B31:Q31)),"") -> 00:33:16 | AM31: =IF((MIN($B31:R31)),(MIN($B31:R31)),"") -> 00:33:16 | AN31: =IF((MIN($B31:S31)),(MIN($B31:S31)),"") -> 00:33:16
A32: =Points!C40 -> Caroline Fishlock | B32: =IF(Points!I40,Points!I40,"") ->  | C32: =IF(Points!L40,Points!L40,"") -> 00:33:29 | D32: =IF(Points!O40,Points!O40,"") ->  | E32: =IF(Points!R40,Points!R40,"") ->  | F32: =IF(Points!U40,Points!U40,"") ->  | G32: =IF(Points!X40,Points!X40,"") ->  | H32: =IF(Points!AA40,Points!AA40,"") ->  | I32: =IF(Points!AD40,Points!AD40,"") ->  | J32: =IF(Points!AG40,Points!AG40,"") ->  | K32: =IF(Points!AJ40,Points!AJ40,"") ->  | L32: =IF(Points!AM40,Points!AM40,"") ->  | M32: =IF(Points!AP40,Points!AP40,"") ->  | N32: =IF(Points!AS40,Points!AS40,"") ->  | O32: =IF(Points!AV40,Points!AV40,"") ->  | P32: =IF(Points!AY40,Points!AY40,"") ->  | Q32: =IF(Points!BB40,Points!BB40,"") ->  | R32: =IF(Points!BE40,Points!BE40,"") ->  | S32: =IF(Points!BH40,Points!BH40,"") ->  | V32: Caroline Fishlock | W32: =IF((MIN($B32:B32)),(MIN($B32:B32)),"") ->  | X32: =IF((MIN($B32:C32)),(MIN($B32:C32)),"") -> 00:33:29 | Y32: =IF((MIN($B32:D32)),(MIN($B32:D32)),"") -> 00:33:29 | Z32: =IF((MIN($B32:E32)),(MIN($B32:E32)),"") -> 00:33:29 | AA32: =IF((MIN($B32:F32)),(MIN($B32:F32)),"") -> 00:33:29 | AB32: =IF((MIN($B32:G32)),(MIN($B32:G32)),"") -> 00:33:29 | AC32: =IF((MIN($B32:H32)),(MIN($B32:H32)),"") -> 00:33:29 | AD32: =IF((MIN($B32:I32)),(MIN($B32:I32)),"") -> 00:33:29 | AE32: =IF((MIN($B32:J32)),(MIN($B32:J32)),"") -> 00:33:29 | AF32: =IF((MIN($B32:K32)),(MIN($B32:K32)),"") -> 00:33:29 | AG32: =IF((MIN($B32:L32)),(MIN($B32:L32)),"") -> 00:33:29 | AH32: =IF((MIN($B32:M32)),(MIN($B32:M32)),"") -> 00:33:29 | AI32: =IF((MIN($B32:N32)),(MIN($B32:N32)),"") -> 00:33:29 | AJ32: =IF((MIN($B32:O32)),(MIN($B32:O32)),"") -> 00:33:29 | AK32: =IF((MIN($B32:P32)),(MIN($B32:P32)),"") -> 00:33:29 | AL32: =IF((MIN($B32:Q32)),(MIN($B32:Q32)),"") -> 00:33:29 | AM32: =IF((MIN($B32:R32)),(MIN($B32:R32)),"") -> 00:33:29 | AN32: =IF((MIN($B32:S32)),(MIN($B32:S32)),"") -> 00:33:29 | AO32: =IF((MIN($B32:S32)),(MIN($B32:S32)),"") -> 00:33:29 | AP32: =IF((MIN($B32:S32)),(MIN($B32:S32)),"") -> 00:33:29

Sheet Counting Results (2015) (hidden)
B1: 4 | D1: 2015-04-16 | H1: 0 | I1: 2015-04-23 | M1: 0 | N1: 2015-04-30 | R1: 0 | S1: 2015-05-07 | W1: 0 | X1: 2015-05-14 | AB1: 0 | AC1: 2015-05-21 | AG1: 0 | AH1: 2015-05-28 | AL1: 0 | AM1: 2015-06-04 | AQ1: 0 | AR1: 2015-06-11 | AV1: 0 | AW1: 2015-06-18 | BA1: 0 | BB1: 2015-07-02 | BF1: 0 | BG1: 2015-07-09 | BK1: 0 | BL1: 2015-07-16 | BP1: 0 | BQ1: 2015-07-23 | BU1: 0 | BV1: 2015-07-30 | BZ1: 0 | CA1: 2015-08-06 | CE1: 0 | CF1: 2015-08-13 | CJ1: 0 | CK1: 2015-08-20
A2: 1 | B2: 7 | C2: 1 | D2: Matt Woods | E2: Banjo Cycles | F2: 00:21:21 | G2: 120 | M2: 1 | N2: Dan Guest | O2: Performance Cycles | P2: 00:20:59 | Q2: 120 | R2: 1 | S2: Peter Garnett | T2: Swindon RC | U2: 00:22:18 | V2: 120 | W2: 1 | X2: Chris Wood | Y2: Performance Cycles | Z2: 00:22:49 | AA2: 120 | AB2: 1 | AC2: Paul Cook | AD2: Ride 24/7 | AE2: 00:22:11 | AF2: 120 | AG2: 1 | AH2: Tony Costello | AI2: Corinium CC | AJ2: 00:22:16 | AK2: 120 | AL2: 1 | AM2: Paul Cook | AN2: Ride 24/7 | AO2: 00:22:35 | AP2: 120 | AQ2: 1 | AR2: Tony Costello | AS2: Corinium CC | AT2: 00:21:57 | AU2: 120 | AV2: 1 | AW2: Dan Guest | AX2: Performance Cycles | AY2: 00:20:19 | AZ2: 120 | BA2: 1 | BB2: Dan Guest | BC2: Performance Cycles | BD2: 00:20:30 | BE2: 120 | BF2: 1 | BG2: Matt Woods | BH2: Cotswold Veldrijden | BI2: 00:21:05 | BJ2: 120 | BK2: 1 | BL2: Dan Guest | BM2: Performance Cycles | BN2: 00:20:50 | BO2: 120 | BP2: 1 | BQ2: Gary Smith | BR2: Ride 24/7 | BS2: 00:22:17 | BT2: 120 | BU2: 1 | BV2: Dan Guest | BW2: Performance Cycles | BX2: 00:20:37 | BY2: 120 | BZ2: 1 | CA2: Dan Guest | CB2: Performance Cycles | CC2: 00:20:40 | CD2: 120 | CE2: 1 | CF2: Dan Guest | CG2: Performance Cycles | CH2: 00:20:32 | CI2: 120 | CJ2: 1 | CK2: Dan Guest | CL2: Performance Cycles | CM2: 00:20:51 | CN2: 120
A3: 0 | C3: 2 | D3: James Stewart | E3: Performance Cycles | F3: 00:21:25 | G3: 119 | M3: 2 | N3: James Stewart | O3: Performance Cycles | P3: 00:21:35 | Q3: 119 | R3: 2 | S3: Tony Costello | T3: Corinium CC | U3: 00:22:22 | V3: 119 | W3: 2 | X3: Niel Dunnage | Y3: Swindon RC | Z3: 00:23:34 | AA3: 119 | AB3: 2 | AC3: Kevin Bexley | AD3: Team Optima | AE3: 00:22:29 | AF3: 119 | AG3: 2 | AH3: Pete Hutchinson | AI3: Corinium CC | AJ3: 00:22:23 | AK3: 119 | AL3: 2 | AM3: Peter Garnett | AN3: Swindon RC | AO3: 00:22:43 | AP3: 119 | AQ3: 2 | AR3: Niel Dunnage | AS3: Swindon RC | AT3: 00:22:16 | AU3: 119 | AV3: 2 | AW3: Paul Cook | AX3: Ride 24/7 | AY3: 00:22:02 | AZ3: 119 | BA3: 2 | BB3: Paul Cook | BC3: Ride 24/7 | BD3: 00:21:31 | BE3: 119 | BF3: 2 | BG3: Paul Cook | BH3: Ride 24/7 | BI3: 00:21:51 | BJ3: 119 | BK3: 2 | BL3: Paul Cook | BM3: Ride 24/7 | BN3: 00:21:43 | BO3: 119 | BP3: 2 | BQ3: Niel Dunnage | BR3: Swindon RC | BS3: 00:22:18 | BT3: 119 | BU3: 2 | BV3: Matt Woods | BW3: Banjo Cycles | BX3: 00:21:21 | BY3: 119 | BZ3: 2 | CA3: Rory Gilling | CB3: Performance Cycles | CC3: 00:21:59 | CD3: 119 | CE3: 2 | CF3: Niel Dunnage | CG3: Swindon RC | CH3: 00:22:04 | CI3: 119 | CJ3: 2 | CK3: Rory Gilling | CL3: Performance Cycles | CM3: 00:22:13 | CN3: 119
A4: 0 | C4: = 3 | D4: Chris Beardshaw | E4: Performance Cycles | F4: 00:22:26 | G4: 118 | M4: 3 | N4: Paul Cook | O4: Ride 24/7 | P4: 00:22:20 | Q4: 118 | R4: 3 | S4: Pete Hutchinson | T4: Corinium CC | U4: 00:22:36 | V4: 118 | W4: 3 | X4: Marc Allen | Y4: Swindon RC | Z4: 00:26:18 | AA4: 118 | AB4: 3 | AC4: Chris Wood | AD4: Performance Cycles | AE4: 00:22:38 | AF4: 118 | AG4: 3 | AH4: Peter Garnett | AI4: Swindon RC | AJ4: 00:22:39 | AK4: 118 | AL4: 3 | AM4: Niel Dunnage | AN4: Swindon RC | AO4: 00:22:51 | AP4: 118 | AQ4: 3 | AR4: Peter Garnett | AS4: Swindon RC | AT4: 00:22:19 | AU4: 118 | AV4: 3 | AW4: Peter Garnett | AX4: Swindon RC | AY4: 00:22:08 | AZ4: 118 | BA4: 3 | BB4: Les Liddiard | BC4: Swindon RC | BD4: 00:22:24 | BE4: 118 | BF4: 3 | BG4: Chris Wood | BH4: Performance Cycles | BI4: 00:22:07 | BJ4: 118 | BK4: 3 | BL4: Peter Garnett | BM4: Swindon RC | BN4: 00:22:33 | BO4: 118 | BP4: 3 | BQ4: Pete Hutchinson | BR4: Corinium CC | BS4: 00:22:33 | BT4: 118 | BU4: 3 | BV4: Rory Gilling | BW4: Performance Cycles | BX4: 00:22:12 | BY4: 118 | BZ4: 3 | CA4: Pete Hutchinson | CB4: Corinium CC | CC4: 00:22:01 | CD4: 118 | CE4: 3 | CF4: Rory Gilling | CG4: Performance Cycles | CH4: 00:22:21 | CI4: 118 | CJ4: 3 | CK4: Niel Dunnage | CL4: Swindon RC | CM4: 00:22:21 | CN4: 118
A5: 1 | C5: = 3 | D5: Niel Dunnage | E5: Swindon RC | F5: 00:22:26 | G5: 118 | M5: = 4 | N5: Pete Hutchinson | O5: Corinium CC | P5: 00:22:51 | Q5: 117 | R5: 4 | S5: Andy Claxton | T5: Swindon RC | U5: 00:23:39 | V5: 117 | W5: 4 | X5: Martin Pitts | Y5: Corinium CC | Z5: 00:28:02 | AA5: 117 | AB5: 4 | AC5: Peter Garnett | AD5: Swindon RC | AE5: 00:22:44 | AF5: 117 | AG5: 4 | AH5: Chris Wood | AI5: Performance Cycles | AJ5: 00:22:42 | AK5: 117 | AL5: 4 | AM5: Pete Hutchinson | AN5: Corinium CC | AO5: 00:23:04 | AP5: 117 | AQ5: 4 | AR5: Chris Wood | AS5: Performance Cycles | AT5: 00:22:28 | AU5: 117 | AV5: 4 | AW5: Niel Dunnage | AX5: Swindon RC | AY5: 00:22:17 | AZ5: 117 | BA5: 4 | BB5: Chris Wood | BC5: Performance Cycles | BD5: 00:22:42 | BE5: 117 | BF5: 4 | BG5: Rory Gilling | BH5: Performance Cycles | BI5: 00:22:15 | BJ5: 117 | BK5: 4 | BL5: Andy Claxton | BM5: Swindon RC | BN5: 00:22:34 | BO5: 117 | BP5: 4 | BQ5: Andy Claxton | BR5: Swindon RC | BS5: 00:22:44 | BT5: 117 | BU5: 4 | BV5: Andy Claxton | BW5: Swindon RC | BX5: 00:22:35 | BY5: 117 | BZ5: 4 | CA5: Aled Jones | CB5: RNRMCA | CC5: 00:22:09 | CD5: 117 | CE5: 4 | CF5: Paul Cook | CG5: Ride 24/7 | CH5: 00:22:23 | CI5: 117 | CJ5: 4 | CK5: Pete Hutchinson | CL5: Corinium CC | CM5: 00:22:30 | CN5: 117
A6: 0 | C6: 5 | D6: Chris Wood | E6: Performance Cycles | F6: 00:22:32 | G6: 116 | M6: = 4 | N6: Niel Dunnage | O6: Swindon RC | P6: 00:22:51 | Q6: 117 | R6: 5 | S6: Jacob Pilkington | T6: Performance Cycles | U6: 00:23:58 | V6: 116 | W6: 5 | X6: Oliver Palmer | Y6: Swindon RC | Z6: 00:28:18 | AA6: 116 | AB6: 5 | AC6: Les Liddiard | AD6: Swindon RC | AE6: 00:22:59 | AF6: 116 | AG6: 5 | AH6: Les Liddiard | AI6: Swindon RC | AJ6: 00:22:48 | AK6: 116 | AL6: 5 | AM6: Gary Smith | AN6: Ride 24/7 | AO6: 00:23:15 | AP6: 116 | AQ6: 5 | AR6: Pete Hutchinson | AS6: Corinium CC | AT6: 00:22:38 | AU6: 116 | AV6: 5 | AW6: Nick Lowe | AX6: Cotswold Veldrijden | AY6: 00:23:00 | AZ6: 116 | BA6: 5 | BB6: Steve Yates | BC6: Corinium CC | BD6: 00:22:53 | BE6: 116 | BF6: 5 | BG6: Niel Dunnage | BH6: Swindon RC | BI6: 00:22:18 | BJ6: 116 | BK6: 5 | BL6: Pete Hutchinson | BM6: Corinium CC | BN6: 00:22:38 | BO6: 116 | BP6: 5 | BQ6: David Wright | BR6: Veloton | BS6: 00:23:01 | BT6: 116 | BU6: = 5 | BV6: Gary Smith | BW6: Ride 24/7 | BX6: 00:22:39 | BY6: 116 | BZ6: 5 | CA6: Niel Dunnage | CB6: Swindon RC | CC6: 00:22:19 | CD6: 116 | CE6: 5 | CF6: Chris Wood | CG6: Performance Cycles | CH6: 00:22:33 | CI6: 116 | CJ6: 5 | CK6: Paul Cook | CL6: Ride 24/7 | CM6: 00:22:33 | CN6: 116
A7: 0 | C7: 6 | D7: Peter Garnett | E7: Swindon RC | F7: 00:22:36 | G7: 115 | M7: 6 | N7: Peter Garnett | O7: Swindon RC | P7: 00:23:10 | Q7: 115 | R7: 6 | S7: Jim Curry | T7: Performance Cycles | U7: 00:24:13 | V7: 115 | W7: 6 | X7: Stephen Chapman | Y7: Corinium CC | Z7: 00:30:25 | AA7: 115 | AB7: 6 | AC7: Adrian Williams | AD7: Ride 24/7 | AE7: 00:23:04 | AF7: 115 | AG7: 6 | AH7: Steve Yates | AI7: Corinium CC | AJ7: 00:23:09 | AK7: 115 | AL7: 6 | AM7: Alex King | AN7: Performance Cycles | AO7: 00:23:39 | AP7: 115 | AQ7: 6 | AR7: David Arthur | AS7: Performance Cycles | AT7: 00:22:43 | AU7: 115 | AV7: 6 | AW7: Andy Claxton | AX7: Swindon RC | AY7: 00:23:32 | AZ7: 115 | BA7: 6 | BB7: Andy Claxton | BC7: Swindon RC | BD7: 00:23:02 | BE7: 115 | BF7: 6 | BG7: Pete Hutchinson | BH7: Corinium CC | BI7: 00:22:36 | BJ7: 115 | BK7: 6 | BL7: Les Liddiard | BM7: Swindon RC | BN7: 00:22:47 | BO7: 115 | BP7: 6 | BQ7: Jim Curry | BR7: Performance Cycles | BS7: 00:23:26 | BT7: 115 | BU7: = 5 | BV7: Adrian Williams | BW7: Ride 24/7 | BX7: 00:22:39 | BY7: 116 | BZ7: 6 | CA7: Gary Smith | CB7: Ride 24/7 | CC7: 00:22:21 | CD7: 115 | CE7: 6 | CF7: Andy Claxton | CG7: Swindon RC | CH7: 00:22:35 | CI7: 115 | CJ7: 6 | CK7: Jacob Pilkington | CM7: 00:22:50
A8: 0 | C8: 7 | D8: Adrian Williams | E8: Ride 24/7 | F8: 00:22:48 | G8: 114 | M8: 7 | N8: Les Liddiard | O8: Swindon RC | P8: 00:23:16 | Q8: 114 | R8: 7 | S8: Andy McIntyre | T8: Performance Cycles | U8: 00:24:14 | V8: 114 | W8: 7 | X8: Allan Norwood | Y8: Corinium CC | Z8: 00:31:36 | AA8: 114 | AB8: 7 | AC8: David Wright | AD8: Veloton | AE8: 00:23:09 | AF8: 114 | AG8: 7 | AH8: Gary Smith | AI8: Ride 24/7 | AJ8: 00:23:13 | AK8: 114 | AL8: 7 | AM8: Neil Pugh | AN8: Newbury Road Club | AO8: 00:24:04 | AP8: 114 | AQ8: 7 | AR8: Steve Yates | AS8: Corinium CC | AT8: 00:22:51 | AU8: 114 | AV8: 7 | AW8: Leigh Schvartz | AX8: Swindon RC | AY8: 00:23:33 | AZ8: 114 | BA8: 7 | BB8: Alex King | BC8: Performance Cycles | BD8: 00:23:08 | BE8: 114 | BF8: 7 | BG8: Andy Claxton | BH8: Swindon RC | BI8: 00:22:43 | BJ8: 114 | BK8: 7 | BL8: Gary Smith | BM8: Ride 24/7 | BN8: 00:23:02 | BO8: 114 | BP8: 7 | BQ8: Mick Sharratt | BR8: Swindon RC | BS8: 00:23:45 | BT8: 114 | BU8: 7 | BV8: Mitch Evans | BW8: Ride 24/7 | BX8: 00:22:43 | BY8: 114 | BZ8: 7 | CA8: Peter Garnett | CB8: Swindon RC | CC8: 00:22:24 | CD8: 114 | CE8: 7 | CF8: Les Liddiard | CG8: Swindon RC | CH8: 00:22:43 | CI8: 114 | CJ8: 7 | CK8: Chris Wood | CL8: Performance Cycles | CM8: 00:22:52 | CN8: 114
A9: 1 | C9: 8 | D9: Robin Short | E9: ? | F9: 00:23:15 | G9: 113 | M9: 8 | N9: Rory Gilling | O9: Performance Cycles | P9: 00:23:22 | Q9: 113 | R9: 8 | S9: Steve Davies | T9: Swindon RC | U9: 00:24:25 | V9: 113 | W9: 8 | X9: Marguerite Miatt | Y9: Corinium CC | Z9: 00:32:26 | AA9: 113 | AB9: 8 | AC9: Alex King | AD9: Performance Cycles | AE9: 00:23:15 | AF9: 113 | AG9: 8 | AH9: Andy Claxton | AI9: Swindon RC | AJ9: 00:23:17 | AK9: 113 | AL9: = 8 | AM9: Jim Curry | AN9: Performance Cycles | AO9: 00:24:09 | AP9: 113 | AQ9: = 8 | AR9: Martin Cairns | AS9: 0 | AT9: 00:22:59 | AU9: 113 | AV9: 8 | AW9: Chris Broad-Drake | AX9: Swindon RC | AY9: 00:23:44 | AZ9: 113 | BA9: 8 | BB9: Henry Slade | BC9: Performance Cycles | BD9: 00:23:16 | BE9: 113 | BF9: 8 | BG9: Les Liddiard | BH9: Swindon RC | BI9: 00:22:48 | BJ9: 113 | BK9: 8 | BL9: Steve Yates | BM9: Corinium CC | BN9: 00:23:18 | BO9: 113 | BP9: 8 | BQ9: Pete Scott | BR9: Cotswold Veldrijden | BS9: 00:23:50 | BT9: 113 | BU9: 8 | BV9: David Wright | BW9: Veloton | BX9: 00:22:55 | BY9: 113 | BZ9: 8 | CA9: Andy Claxton | CB9: Swindon RC | CC9: 00:22:38 | CD9: 113 | CE9: 8 | CF9: Gary Smith | CG9: Ride 24/7 | CH9: 00:23:25 | CI9: 113 | CJ9: 8 | CK9: Les Liddiard | CL9: Swindon RC | CM9: 00:23:00 | CN9: 113
A10: 0 | C10: 9 | D10: Paul Cook | E10: Ride 24/7 | F10: 00:23:32 | G10: 112 | M10: 9 | N10: Alex King | O10: Performance Cycles | P10: 00:23:24 | Q10: 112 | R10: 9 | S10: Alex King | T10: Performance Cycles | U10: 00:24:36 | V10: 112 | W10: 9 | X10: Annie Pegler | Y10: Corinium CC | Z10: 00:33:00 | AA10: 112 | AB10: 9 | AC10: Andy Claxton | AD10: Swindon RC | AE10: 00:23:18 | AF10: 112 | AG10: 9 | AH10: Nick Lowe | AI10: Cotswold Veldrijden | AJ10: 00:23:39 | AK10: 112 | AL10: = 8 | AM10: Nick Lowe | AN10: Cotswold Veldrijden | AO10: 00:24:09 | AP10: 113 | AQ10: = 8 | AR10: David Wright | AS10: Veloton | AT10: 00:22:59 | AU10: 113 | AV10: 9 | AW10: Andy Morgan | AX10: Corinium CC | AY10: 00:23:46 | AZ10: 112 | BA10: 9 | BB10: Jim Curry | BC10: Performance Cycles | BD10: 00:23:19 | BE10: 112 | BF10: 9 | BG10: Alex King | BH10: Performance Cycles | BI10: 00:22:49 | BJ10: 112 | BK10: 9 | BL10: Mark Woolford | BM10: Chippenham Wheelers | BN10: 00:23:31 | BO10: 112 | BP10: 9 | BQ10: Jon Tresadern | BR10: Swindon RC | BS10: 00:23:57 | BT10: 112 | BU10: 9 | BV10: Steve Yates | BW10: Corinium CC | BX10: 00:23:00 | BY10: 112 | BZ10: 9 | CA10: Robin Short | CB10: Performance Cycles | CC10: 00:23:20 | CD10: 112 | CE10: = 9 | CF10: Jon Tresadern | CG10: Swindon RC | CH10: 00:23:27 | CI10: 112 | CJ10: 9 | CK10: Peter Garnett | CL10: Swindon RC | CM10: 00:23:16 | CN10: 112
A11: 1 | C11: 10 | D11: David Wright | E11: Veloton | F11: 00:23:48 | G11: 111 | M11: 10 | N11: Simon Rogers | O11: BJW | P11: 00:23:45 | Q11: 111 | R11: 10 | S11: Dave Gibson | T11: Swindon RC | U11: 00:24:42 | V11: 111 | W11: 1 | AB11: 10 | AC11: Nick Lowe | AD11: Cotswold Veldrijden | AE11: 00:23:56 | AF11: 111 | AG11: 10 | AH11: Ed Coxwell-Rogers | AI11: Ride 24/7 | AJ11: 00:23:58 | AK11: 111 | AL11: 10 | AM11: Adam Giles | AN11: Ride 24/7 | AO11: 00:24:43 | AP11: 111 | AQ11: = 10 | AR11: Paul Clarkson | AS11: Kingston Wheelers | AT11: 00:23:21 | AU11: 111 | AV11: 10 | AW11: Mike Ward | AX11: Performance Cycles | AY11: 00:23:48 | AZ11: 111 | BA11: 10 | BB11: Nick Lowe | BC11: Cotswold Veldrijden | BD11: 00:23:28 | BE11: 111 | BF11: 10 | BG11: Jacob Pilkington | BI11: 00:22:58 | BK11: 10 | BL11: Pete Scott | BM11: Cotswold Veldrijden | BN11: 00:24:09 | BO11: 111 | BP11: 10 | BQ11: Andy McIntyre | BR11: Performance Cycles | BS11: 00:23:58 | BT11: 111 | BU11: = 10 | BV11: Pete Scott | BW11: Cotswold Veldrijden | BX11: 00:23:46 | BY11: 111 | BZ11: 10 | CA11: Tony Staples | CB11: RNRMCA | CC11: 00:23:25 | CD11: 111 | CE11: = 9 | CF11: David Wright | CG11: Veloton | CH11: 00:23:27 | CI11: 112 | CJ11: 10 | CK11: Jim Curry | CL11: Performance Cycles | CM11: 00:23:17
A12: 1 | C12: 11 | D12: Rory Gilling | E12: Performance Cycles | F12: 00:23:56 | G12: 110 | M12: 11 | N12: David Wright | O12: Veloton | P12: 00:23:50 | Q12: 110 | R12: 11 | S12: Tom Longland | T12: Swindon RC | U12: 00:24:54 | V12: 110 | W12: 1 | AB12: 11 | AC12: Mick Sharratt | AD12: Swindon RC | AE12: 00:24:18 | AF12: 110 | AG12: 11 | AH12: Leigh Schvartz | AI12: Swindon RC | AJ12: 00:24:11 | AK12: 110 | AL12: 11 | AM12: Steve Buckley | AN12: Ride 24/7 | AO12: 00:24:45 | AP12: 110 | AQ12: = 10 | AR12: Andy Claxton | AS12: Swindon RC | AT12: 00:23:21 | AU12: 111 | AV12: 11 | AW12: Robin Short | AX12: Performance Cycles | AY12: 00:23:56 | AZ12: 110 | BA12: 11 | BB12: Andy McIntyre | BC12: Performance Cycles | BD12: 00:23:54 | BE12: 110 | BF12: 11 | BG12: Jim Curry | BH12: Performance Cycles | BI12: 00:23:00 | BJ12: 110 | BK12: 11 | BL12: Adam Giles | BM12: Ride 24/7 | BN12: 00:24:17 | BO12: 110 | BP12: 11 | BQ12: Nick Lowe | BR12: Cotswold Veldrijden | BS12: 00:24:04 | BT12: 110 | BU12: = 10 | BV12: Jim Curry | BW12: Performance Cycles | BX12: 00:23:46 | BY12: 111 | BZ12: = 11 | CA12: Alex King | CB12: Performance Cycles | CC12: 00:23:30 | CD12: 110 | CE12: 11 | CF12: Jim Curry | CG12: Performance Cycles | CH12: 00:23:34 | CI12: 110 | CJ12: 11 | CK12: Chris Broad-Drake | CL12: Swindon RC | CM12: 00:23:39 | CN12: 111
A13: 0 | C13: 12 | D13: Adam Giles | E13: Ride 24/7 | F13: 00:24:11 | G13: 109 | M13: 12 | N13: Jacob Pilkington | O13: Performance Cycles | P13: 00:24:04 | Q13: 109 | R13: 12 | S13: Steve Buckley | T13: Ride 24/7 | U13: 00:25:10 | V13: 109 | W13: 1 | AB13: 12 | AC13: Pete Scott | AD13: Cotswold Veldrijden | AE13: 00:24:19 | AF13: 109 | AG13: = 12 | AH13: Steve Davies | AI13: Swindon RC | AJ13: 00:24:14 | AK13: 109 | AL13: 12 | AM13: Malcolm Walklett | AN13: Swindon RC | AO13: 00:24:46 | AP13: 109 | AQ13: 12 | AR13: Jacob Pilkington | AT13: 00:23:27 | AV13: 12 | AW13: Mick Sharratt | AX13: Swindon RC | AY13: 00:23:59 | AZ13: 109 | BA13: 12 | BB13: Sarah Gunn | BC13: Corinium CC | BD13: 00:24:32 | BE13: 109 | BF13: 12 | BG13: Henry Slade | BH13: Performance Cycles | BI13: 00:23:05 | BJ13: 109 | BK13: 12 | BL13: Andy McIntyre | BM13: Performance Cycles | BN13: 00:24:27 | BO13: 109 | BP13: 12 | BQ13: Tom Longland | BR13: Swindon RC | BS13: 00:24:24 | BT13: 109 | BU13: 12 | BV13: Paul Cook | BW13: Ride 24/7 | BX13: 00:23:48 | BY13: 109 | BZ13: = 11 | CA13: Pete Scott | CB13: Cotswold Veldrijden | CC13: 00:23:30 | CD13: 110 | CE13: = 12 | CF13: Marc Allen | CG13: Swindon RC | CH13: 00:24:39 | CI13: 109 | CJ13: 12 | CK13: David Wright | CL13: Veloton | CM13: 00:23:46 | CN13: 110
A14: 0 | C14: 13 | D14: Tom Sewell | E14: Cotswold Veldrijden | F14: 00:24:12 | G14: 108 | M14: 13 | N14: Pete Scott | O14: Cotswold Veldrijden | P14: 00:24:23 | Q14: 108 | R14: 13 | S14: Harriet Guest | T14: Performance Cycles | U14: 00:25:20 | V14: 108 | W14: 1 | AB14: 13 | AC14: Harriet Guest | AD14: Performance Cycles | AE14: 00:24:23 | AF14: 108 | AG14: = 12 | AH14: Mick Sharratt | AI14: Swindon RC | AJ14: 00:24:14 | AK14: 109 | AL14: 13 | AM14: Mick Sharratt | AN14: Swindon RC | AO14: 00:24:49 | AP14: 108 | AQ14: 13 | AR14: Nick Lowe | AS14: Cotswold Veldrijden | AT14: 00:23:44 | AU14: 108 | AV14: 13 | AW14: Andy McIntyre | AX14: Performance Cycles | AY14: 00:24:00 | AZ14: 108 | BA14: 13 | BB14: Simon James | BC14: Corinium CC | BD14: 00:24:56 | BE14: 108 | BF14: 13 | BG14: Jon Tresadern | BH14: Swindon RC | BI14: 00:23:52 | BJ14: 108 | BK14: 13 | BL14: Harriet Guest | BM14: Performance Cycles | BN14: 00:24:47 | BO14: 108 | BP14: 13 | BQ14: Marc Allen | BR14: Swindon RC | BS14: 00:24:49 | BT14: 108 | BU14: 13 | BV14: Chris Broad-Drake | BW14: Swindon RC | BX14: 00:24:02 | BY14: 108 | BZ14: 13 | CA14: Nick Lowe | CB14: Cotswold Veldrijden | CC14: 00:23:51 | CD14: 108 | CE14: = 12 | CF14: Harriet Guest | CG14: Performance Cycles | CH14: 00:24:39 | CI14: 109 | CJ14: 13 | CK14: Jon Tresadern | CL14: Swindon RC | CM14: 00:23:53 | CN14: 109
A15: 1 | C15: 14 | D15: Steve Davies | E15: Swindon RC | F15: 00:24:14 | G15: 107 | M15: 14 | N15: Mick Sharratt | O15: Swindon RC | P15: 00:24:26 | Q15: 107 | R15: 14 | S15: Adriano dos Santos | T15: Swindon RC | U15: 00:25:28 | V15: 107 | W15: 1 | AB15: 14 | AC15: Andy McIntyre | AD15: Performance Cycles | AE15: 00:24:31 | AF15: 107 | AG15: 14 | AH15: Chris Broad-Drake | AI15: Swindon RC | AJ15: 00:24:25 | AK15: 107 | AL15: 14 | AM15: Pete Scott | AN15: Cotswold Veldrijden | AO15: 00:24:57 | AP15: 107 | AQ15: 14 | AR15: Matt Hodgson | AS15: Ride 24/7 | AT15: 00:23:55 | AU15: 107 | AV15: 14 | AW15: Matt Hodgson | AX15: Ride 24/7 | AY15: 00:24:06 | AZ15: 107 | BA15: 14 | BB15: Mark Foyn | BC15: Corinium CC | BD15: 00:24:59 | BE15: 107 | BF15: 14 | BG15: Ian Barrett | BH15: Corinium CC | BI15: 00:24:01 | BJ15: 107 | BK15: 14 | BL15: Dave Gibson | BM15: Swindon RC | BN15: 00:25:17 | BO15: 107 | BP15: 14 | BQ15: Simon James | BR15: Corinium CC | BS15: 00:24:52 | BT15: 107 | BU15: 14 | BV15: Mark Woolford | BW15: Chippenham Wheelers | BX15: 00:24:03 | BY15: 107 | BZ15: 14 | CA15: Jon Tresadern | CB15: Swindon RC | CC15: 00:23:55 | CD15: 107 | CE15: = 14 | CF15: Alex Foyn | CG15: Corinium CC | CH15: 00:24:54 | CI15: 107 | CJ15: 14 | CK15: Andy McIntyre | CL15: Performance Cycles | CM15: 00:24:01 | CN15: 108
A16: 0 | C16: 15 | D16: Mick Sharratt | E16: Swindon RC | F16: 00:24:29 | G16: 106 | M16: 15 | N16: Matt Hodgson | O16: Ride 24/7 | P16: 00:24:29 | Q16: 106 | R16: 15 | S16: Simon James | T16: Corinium CC | U16: 00:25:34 | V16: 106 | W16: 1 | AB16: 15 | AC16: Jim Curry | AD16: Performance Cycles | AE16: 00:24:36 | AF16: 106 | AG16: 15 | AH16: Adam Giles | AI16: Ride 24/7 | AJ16: 00:24:40 | AK16: 106 | AL16: 15 | AM16: Chris Broad-Drake | AN16: Swindon RC | AO16: 00:24:59 | AP16: 106 | AQ16: = 15 | AR16: Mick Sharratt | AS16: Swindon RC | AT16: 00:24:02 | AU16: 106 | AV16: 15 | AW16: Steve Davies | AX16: Swindon RC | AY16: 00:24:16 | AZ16: 106 | BA16: 15 | BB16: Marc Allen | BC16: Swindon RC | BD16: 00:25:02 | BE16: 106 | BF16: 15 | BG16: Marc Allen | BH16: Swindon RC | BI16: 00:24:02 | BJ16: 106 | BK16: 15 | BL16: Mark Foyn | BM16: Corinium CC | BN16: 00:25:22 | BO16: 106 | BP16: 15 | BQ16: Trevor Hodges | BR16: Corinium CC | BS16: 00:24:59 | BT16: 106 | BU16: 15 | BV16: Jon Tresadern | BW16: Swindon RC | BX16: 00:24:07 | BY16: 106 | BZ16: 15 | CA16: Marc Allen | CB16: Swindon RC | CC16: 00:24:12 | CD16: 106 | CE16: = 14 | CF16: Mick Sharratt | CG16: Swindon RC | CH16: 00:24:54 | CI16: 107 | CJ16: 15 | CK16: Mick Sharratt | CL16: Swindon RC | CM16: 00:24:22 | CN16: 107
A17: 1 | C17: 16 | D17: Andy McIntyre | E17: Performance Cycles | F17: 00:24:33 | G17: 105 | M17: 16 | N17: Andy Claxton | O17: Swindon RC | P17: 00:24:30 | Q17: 105 | R17: 16 | S17: Marc Allen | T17: Swindon RC | U17: 00:25:47 | V17: 105 | W17: 1 | AB17: 16 | AC17: Adam Giles | AD17: Ride 24/7 | AE17: 00:24:38 | AF17: 105 | AG17: 16 | AH17: Dave Gibson | AI17: Swindon RC | AJ17: 00:24:41 | AK17: 105 | AL17: 16 | AM17: Dave Gibson | AN17: Swindon RC | AO17: 00:25:05 | AP17: 105 | AQ17: = 15 | AR17: Pete Scott | AS17: Cotswold Veldrijden | AT17: 00:24:02 | AU17: 106 | AV17: 16 | AW17: Adam Giles | AX17: Ride 24/7 | AY17: 00:24:32 | AZ17: 105 | BA17: 16 | BB17: Owen Paddock | BC17: Swindon RC | BD17: 00:25:32 | BE17: 105 | BF17: 16 | BG17: Andy McIntyre | BH17: Performance Cycles | BI17: 00:24:03 | BJ17: 105 | BK17: 16 | BL17: Alex Foyn | BM17: Corinium CC | BN17: 00:25:26 | BO17: 105 | BP17: 16 | BQ17: Dave Gibson | BR17: Swindon RC | BS17: 00:25:06 | BT17: 105 | BU17: 16 | BV17: Malcolm Walklett | BW17: Swindon RC | BX17: 00:24:09 | BY17: 105 | BZ17: 16 | CA17: Jack Thompson | CB17: Performance Cycles | CC17: 00:24:13 | CD17: 105 | CE17: 16 | CF17: Steve Buckley | CG17: Ride 24/7 | CH17: 00:24:56 | CI17: 105 | CJ17: 16 | CK17: Marc Allen | CL17: Swindon RC | CM17: 00:24:37 | CN17: 106
A18: 1 | C18: 17 | D18: Mark Kent | E18: Swindon RC | F18: 00:25:00 | G18: 104 | M18: 17 | N18: Chris Broad-Drake | O18: Swindon RC | P18: 00:24:40 | Q18: 104 | R18: 17 | S18: Jeff Smith | T18: Swindon RC | U18: 00:26:04 | V18: 104 | W18: 1 | AB18: 17 | AC18: Kris Langley | AD18: Swindon RC | AE18: 00:25:00 | AF18: 104 | AG18: 17 | AH18: Andy McIntyre | AI18: Performance Cycles | AJ18: 00:24:51 | AK18: 104 | AL18: 17 | AM18: Trevor Hodges | AN18: Corinium CC | AO18: 00:25:21 | AP18: 104 | AQ18: 17 | AR18: Steve Buckley | AS18: Ride 24/7 | AT18: 00:24:13 | AU18: 104 | AV18: 17 | AW18: Marc Allen | AX18: Swindon RC | AY18: 00:24:49 | AZ18: 104 | BA18: 17 | BB18: Alex Foyn | BC18: Corinium CC | BD18: 00:25:45 | BE18: 104 | BF18: 17 | BG18: Mick Sharratt | BH18: Swindon RC | BI18: 00:24:05 | BJ18: 104 | BK18: 17 | BL18: Claire Smith | BM18: Swindon RC | BN18: 00:25:48 | BO18: 104 | BP18: 17 | BQ18: Keith Waller | BR18: Swindon RC | BS18: 00:25:33 | BT18: 104 | BU18: 17 | BV18: Andy McIntyre | BW18: Performance Cycles | BX18: 00:24:19 | BY18: 104 | BZ18: 17 | CA18: Chris Broad-Drake | CB18: Swindon RC | CC18: 00:24:16 | CD18: 104 | CE18: 17 | CF18: Simon James | CG18: Corinium CC | CH18: 00:25:05 | CI18: 104 | CJ18: 17 | CK18: Robin Short | CM18: 00:24:48
A19: 0 | C19: 18 | D19: Dave Gibson | E19: Swindon RC | F19: 00:25:04 | G19: 103 | M19: 18 | N19: Tom Sewell | O19: Cotswold Veldrijden | P19: 00:24:54 | Q19: 103 | R19: 18 | S19: Jason Costello | T19: Corinium CC | U19: 00:26:21 | V19: 103 | W19: 1 | AB19: 18 | AC19: Chris Broad-Drake | AD19: Swindon RC | AE19: 00:25:02 | AF19: 103 | AG19: 18 | AH19: Ian Barrett | AI19: Corinium CC | AJ19: 00:24:55 | AK19: 103 | AL19: 18 | AM19: Harriet Guest | AN19: Performance Cycles | AO19: 00:25:34 | AP19: 103 | AQ19: 18 | AR19: Mark Woolford | AS19: Chippenham Wheelers | AT19: 00:24:40 | AU19: 103 | AV19: 18 | AW19: Adriano dos Santos | AX19: Swindon RC | AY19: 00:24:58 | AZ19: 103 | BA19: 18 | BB19: Rob Patterson | BC19: Swindon RC | BD19: 00:25:48 | BE19: 103 | BF19: 18 | BG19: Steve Buckley | BH19: Ride 24/7 | BI19: 00:24:08 | BJ19: 103 | BK19: = 18 | BL19: Rob Patterson | BM19: Swindon RC | BN19: 00:25:55 | BO19: 103 | BP19: 18 | BQ19: Richard Cooper | BR19: Swindon RC | BS19: 00:25:41 | BT19: 103 | BU19: 18 | BV19: Mick Sharratt | BW19: Swindon RC | BX19: 00:24:30 | BY19: 103 | BZ19: 18 | CA19: Andy Morgan | CB19: Corinium CC | CC19: 00:24:19 | CD19: 103 | CE19: 18 | CF19: Trevor Hodges | CG19: Corinium CC | CH19: 00:25:14 | CI19: 103 | CJ19: 18 | CK19: Ian Barrett | CL19: Corinium CC | CM19: 00:24:49 | CN19: 104
A20: 1 | C20: 19 | D20: Mike Holborow | E20: Swindon RC | F20: 00:25:13 | G20: 102 | M20: 19 | N20: Dave Gibson | O20: Swindon RC | P20: 00:24:58 | Q20: 102 | R20: 19 | S20: Bernie Beale | T20: Swindon RC | U20: 00:26:33 | V20: 102 | W20: 1 | AB20: 19 | AC20: Sarah Gunn | AD20: Corinium CC | AE20: 00:25:15 | AF20: 102 | AG20: 19 | AH20: Trevor Hodges | AI20: Corinium CC | AJ20: 00:25:07 | AK20: 102 | AL20: 19 | AM20: Mark Foyn | AN20: Corinium CC | AO20: 00:25:35 | AP20: 102 | AQ20: 19 | AR20: Marc Allen | AS20: Swindon RC | AT20: 00:24:50 | AU20: 102 | AV20: 19 | AW20: Simon James | AX20: Corinium CC | AY20: 00:25:05 | AZ20: 102 | BA20: 19 | BB20: Fay Tocknell | BC20: Swindon RC | BD20: 00:26:36 | BE20: 102 | BF20: 19 | BG20: Ewen Lewis | BH20: Swindon Wheelers | BI20: 00:24:48 | BJ20: 102 | BK20: = 18 | BL20: Jeff Smith | BM20: Swindon RC | BN20: 00:25:55 | BO20: 103 | BP20: 19 | BQ20: Owen Paddock | BR20: Swindon RC | BS20: 00:25:53 | BT20: 102 | BU20: 19 | BV20: Ian Barrett | BW20: Corinium CC | BX20: 00:24:34 | BY20: 102 | BZ20: = 19 | CA20: Russ Thompson | CB20: Performance Cycles | CC20: 00:24:22 | CD20: 102 | CE20: 19 | CF20: Jeff Smith | CG20: Swindon RC | CH20: 00:25:32 | CI20: 102 | CJ20: 19 | CK20: Alex King | CL20: Performance Cycles | CM20: 00:24:52 | CN20: 103
A21: 0 | C21: = 20 | D21: Sarah Gunn | E21: Corinium CC | F21: 00:25:25 | G21: 101 | M21: 20 | N21: Adriano dos Santos | O21: Swindon RC | P21: 00:25:00 | Q21: 101 | R21: = 20 | S21: Martin Pitts | T21: Corinium CC | U21: 00:27:01 | V21: 101 | W21: 1 | AB21: 20 | AC21: Marc Allen | AD21: Swindon RC | AE21: 00:25:16 | AF21: 101 | AG21: 20 | AH21: Mark Foyn | AI21: Corinium CC | AJ21: 00:25:10 | AK21: 101 | AL21: 20 | AM21: Mike Firth | AN21: Corinium CC | AO21: 00:25:52 | AP21: 101 | AQ21: 20 | AR21: Mark Foyn | AS21: Corinium CC | AT21: 00:24:55 | AU21: 101 | AV21: 20 | AW21: Keith Waller | AX21: Swindon RC | AY21: 00:25:11 | AZ21: 101 | BA21: 20 | BB21: Harriet Guest | BC21: Performance Cycles | BD21: 00:26:48 | BE21: 101 | BF21: 20 | BG21: Matt Seddon | BI21: 00:24:50 | BK21: 20 | BL21: Gary Martin | BM21: Westerley CC | BN21: 00:26:02 | BO21: 101 | BP21: 20 | BQ21: Sharon Dolman | BR21: Swindon RC | BS21: 00:26:14 | BT21: 101 | BU21: 20 | BV21: Steve Buckley | BW21: Ride 24/7 | BX21: 00:24:42 | BY21: 101 | BZ21: = 19 | CA21: Tom Longland | CB21: Swindon RC | CC21: 00:24:22 | CD21: 102 | CE21: 20 | CF21: Sarah Gunn | CG21: Corinium CC | CH21: 00:25:33 | CI21: 101 | CJ21: 20 | CK21: Matt Seddon | CM21: 00:24:59
A22: 0 | C22: = 20 | D22: Jacob Pilkington | E22: Performance Cycles | F22: 00:25:25 | G22: 101 | M22: 21 | N22: Rob Merrison | O22: Swindon RC | P22: 00:25:02 | Q22: 100 | R22: = 20 | S22: Michelle Ross | T22: Ride 24/7 | U22: 00:27:01 | V22: 101 | W22: 1 | AB22: 21 | AC22: Trevor Hodges | AD22: Corinium CC | AE22: 00:25:24 | AF22: 100 | AG22: 21 | AH22: Sarah Gunn | AI22: Corinium CC | AJ22: 00:25:20 | AK22: 100 | AL22: 21 | AM22: Adriano dos Santos | AN22: Swindon RC | AO22: 00:25:58 | AP22: 100 | AQ22: 21 | AR22: Dave Gibson | AS22: Swindon RC | AT22: 00:24:58 | AU22: 100 | AV22: 21 | AW22: Jason Costello | AX22: Corinium CC | AY22: 00:25:14 | AZ22: 100 | BA22: 21 | BB22: Paul Fuchs | BC22: Corinium CC | BD22: 00:27:05 | BE22: 100 | BF22: 21 | BG22: Mark Foyn | BH22: Corinium CC | BI22: 00:24:52 | BJ22: 100 | BK22: 21 | BL22: Gerry Peppin | BM22: Corinium CC | BN22: 00:26:07 | BO22: 100 | BP22: 21 | BQ22: Rob Patterson | BR22: Swindon RC | BS22: 00:26:15 | BT22: 100 | BU22: 21 | BV22: Marc Allen | BW22: Swindon RC | BX22: 00:25:06 | BY22: 100 | BZ22: 21 | CA22: Steve Buckley | CB22: Ride 24/7 | CC22: 00:24:39 | CD22: 100 | CE22: 21 | CF22: Mark Foyn | CG22: Corinium CC | CH22: 00:25:46 | CI22: 100 | CJ22: = 21 | CK22: Alex Foyn | CL22: Corinium CC | CM22: 00:25:03 | CN22: 101
A23: 0 | C23: 22 | D23: Marc Allen | E23: Swindon RC | F23: 00:25:33 | G23: 99 | M23: 22 | N23: Adam Giles | O23: Ride 24/7 | P23: 00:25:06 | Q23: 99 | R23: 22 | S23: Paul Fuchs | T23: Corinium CC | U23: 00:27:08 | V23: 99 | W23: 1 | AB23: 22 | AC23: Neil Boyle | AD23: Velo Vitesse | AE23: 00:25:31 | AF23: 99 | AG23: 22 | AH23: Marc Allen | AI23: Swindon RC | AJ23: 00:25:31 | AK23: 99 | AL23: 22 | AM23: Jason Costello | AN23: Corinium CC | AO23: 00:26:14 | AP23: 99 | AQ23: 22 | AR23: Kevin Lister | AS23: Corinium CC | AT23: 00:25:25 | AU23: 99 | AV23: 22 | AW23: Mark Foyn | AX23: Corinium CC | AY23: 00:25:15 | AZ23: 99 | BA23: 22 | BB23: John Whittaker | BC23: Corinium CC | BD23: 00:28:28 | BE23: 99 | BF23: 22 | BG23: Trevor Hodges | BH23: Corinium CC | BI23: 00:25:04 | BJ23: 99 | BK23: 22 | BL23: Sharon Dolman | BM23: Swindon RC | BN23: 00:26:26 | BO23: 99 | BP23: 22 | BQ23: Gerry Peppin | BR23: Corinium CC | BS23: 00:26:17 | BT23: 99 | BU23: 22 | BV23: Keith Waller | BW23: Swindon RC | BX23: 00:25:18 | BY23: 99 | BZ23: 22 | CA23: Harriet Guest | CB23: Performance Cycles | CC23: 00:24:48 | CD23: 99 | CE23: 22 | CF23: Ewen Lewis | CG23: Swindon Wheelers | CH23: 00:25:48 | CI23: 99 | CJ23: = 21 | CK23: Jason Costello | CL23: Corinium CC | CM23: 00:25:03 | CN23: 100
A24: 1 | C24: 23 | D24: Jim Curry | E24: Performance Cycles | F24: 00:25:39 | G24: 98 | M24: 23 | N24: Martin Holloway | O24: Veloton | P24: 00:25:11 | Q24: 98 | R24: 23 | S24: Fay Tocknell | T24: Swindon RC | U24: 00:27:12 | V24: 98 | W24: 1 | AB24: 23 | AC24: Jason Costello | AD24: Corinium CC | AE24: 00:25:56 | AF24: 98 | AG24: 23 | AH24: Jerome Wise | AI24: Swindon RC | AJ24: 00:25:32 | AK24: 98 | AL24: 23 | AM24: Marc Allen | AN24: Swindon RC | AO24: 00:26:28 | AP24: 98 | AQ24: 23 | AR24: Chris Broad-Drake | AS24: Swindon RC | AT24: 00:25:40 | AU24: 98 | AV24: 23 | AW24: Jerome Wise | AX24: Swindon RC | AY24: 00:25:22 | AZ24: 98 | BA24: 23 | BB24: Keith Williams | BC24: Corinium CC | BD24: 00:30:07 | BE24: 98 | BF24: 23 | BG24: Jason Costello | BH24: Corinium CC | BI24: 00:25:13 | BJ24: 98 | BK24: 23 | BL24: Paul Fuchs | BM24: Corinium CC | BN24: 00:26:28 | BO24: 98 | BP24: 23 | BQ24: Kevin Lister | BR24: Corinium CC | BS24: 00:26:29 | BT24: 98 | BU24: 23 | BV24: Dave Gibson | BW24: Swindon RC | BX24: 00:25:24 | BY24: 98 | BZ24: 23 | CA24: Dave Gibson | CB24: Swindon RC | CC24: 00:24:58 | CD24: 98 | CE24: 23 | CF24: Kevin Lister | CG24: Corinium CC | CH24: 00:26:06 | CI24: 98 | CJ24: 23 | CK24: Harriet Guest | CL24: Performance Cycles | CM24: 00:25:04 | CN24: 99
A25: 0 | C25: 24 | D25: Corinne Clark | E25: Performance Cycles | F25: 00:25:52 | G25: 97 | M25: 24 | N25: Marc Allen | O25: Swindon RC | P25: 00:25:59 | Q25: 97 | R25: 24 | S25: Kevin Lister | T25: Corinium CC | U25: 00:27:13 | V25: 97 | W25: 1 | AB25: 24 | AC25: James Pocock | AD25: Ride 24/7 | AE25: 00:25:58 | AF25: 97 | AG25: 24 | AH25: Jeff Smith | AI25: Swindon RC | AJ25: 00:25:51 | AK25: 97 | AL25: 24 | AM25: Jeff Smith | AN25: Swindon RC | AO25: 00:26:38 | AP25: 97 | AQ25: = 24 | AR25: Jeff Smith | AS25: Swindon RC | AT25: 00:25:58 | AU25: 97 | AV25: 24 | AW25: Kevin Lister | AX25: Corinium CC | AY25: 00:25:42 | AZ25: 97 | BA25: 24 | BB25: Marguerite Miatt | BC25: Corinium CC | BD25: 00:30:30 | BE25: 97 | BF25: 24 | BG25: Alex Foyn | BH25: Corinium CC | BI25: 00:25:29 | BJ25: 97 | BK25: 24 | BL25: Kieran Golding | BM25: Swindon RC | BN25: 00:28:06 | BO25: 97 | BP25: 24 | BQ25: Allan Norwood | BR25: Corinium CC | BS25: 00:27:14 | BT25: 97 | BU25: 24 | BV25: Jeff Smith | BW25: Swindon RC | BX25: 00:25:28 | BY25: 97 | BZ25: 24 | CA25: Simon James | CB25: Corinium CC | CC25: 00:25:03 | CD25: 97 | CE25: 24 | CF25: Tristan Stevens | CG25: Swindon RC | CH25: 00:26:11 | CI25: 97 | CJ25: 24 | CK25: Trevor Hodges | CL25: Corinium CC | CM25: 00:25:09 | CN25: 98
A26: 0 | C26: 25 | D26: Wendy Nicholls | E26: Corinium CC | F26: 00:26:11 | G26: 96 | M26: 25 | N26: Jeff Smith | O26: Swindon RC | P26: 00:26:08 | Q26: 96 | R26: 25 | S26: Matt Seddon | T26: Corinium CC | U26: 00:27:26 | V26: 96 | W26: 1 | AB26: 25 | AC26: Keith Waller | AD26: Swindon RC | AE26: 00:26:00 | AF26: 96 | AG26: 25 | AH26: Keith Waller | AI26: Swindon RC | AJ26: 00:25:52 | AK26: 96 | AL26: 25 | AM26: Rob Patterson | AN26: Swindon RC | AO26: 00:26:51 | AP26: 96 | AQ26: = 24 | AR26: Rob Patterson | AS26: Swindon RC | AT26: 00:25:58 | AU26: 97 | AV26: 25 | AW26: Jeff Smith | AX26: Swindon RC | AY26: 00:25:46 | AZ26: 96 | BA26: 25 | BB26: Noel MacKenzie | BC26: Corinium CC | BD26: 00:30:45 | BE26: 96 | BF26: 25 | BG26: Wendy Nicholls | BH26: Kinetic One | BI26: 00:25:42 | BJ26: 96 | BK26: 25 | BL26: Joseph Barrowclough | BM26: Ride 24/7 | BN26: 00:28:26 | BO26: 96 | BP26: 25 | BQ26: Steve Turtle | BR26: 0 | BS26: 00:27:42 | BT26: 96 | BU26: 25 | BV26: Harriet Guest | BW26: Performance Cycles | BX26: 00:25:32 | BY26: 96 | BZ26: 25 | CA26: Alex Foyn | CB26: Corinium CC | CC26: 00:25:09 | CD26: 96 | CE26: 25 | CF26: Stephen Chapman | CG26: Corinium CC | CH26: 00:26:26 | CI26: 96 | CJ26: 25 | CK26: Clive Rivers | CL26: Performance Cycles | CM26: 00:25:13 | CN26: 97
A27: 1 | C27: 26 | D27: Mark Foyn | E27: Corinium CC | F27: 00:26:23 | G27: 95 | M27: 26 | N27: Archie Scott | O27: Cotswold Veldrijden | P27: 00:26:10 | Q27: 95 | R27: 26 | S27: Paul Adams | T27: Swindon RC | U27: 00:27:33 | V27: 95 | W27: 1 | AB27: 26 | AC27: Kevin Lister | AD27: Corinium CC | AE27: 00:26:03 | AF27: 95 | AG27: 26 | AH27: Kevin Lister | AI27: Corinium CC | AJ27: 00:26:11 | AK27: 95 | AL27: 26 | AM27: Michelle Ross | AN27: Ride 24/7 | AO27: 00:27:34 | AP27: 95 | AQ27: 26 | AR27: Gerry Peppin | AS27: Corinium CC | AT27: 00:26:09 | AU27: 95 | AV27: 26 | AW27: Matt Seddon | AX27: Corinium CC | AY27: 00:25:52 | AZ27: 95 | BA27: 26 | BB27: Annie Pegler | BC27: Corinium CC | BD27: 00:30:54 | BE27: 95 | BF27: 26 | BG27: Keith Waller | BH27: Swindon RC | BI27: 00:25:52 | BJ27: 95 | BK27: 26 | BL27: Denis Hedges | BM27: Corinium CC | BN27: 00:28:31 | BO27: 95 | BP27: 26 | BQ27: Denis Hedges | BR27: Corinium CC | BS27: 00:28:23 | BT27: 95 | BU27: 26 | BV27: Jason Costello | BW27: Corinium CC | BX27: 00:25:52 | BY27: 95 | BZ27: 26 | CA27: Trevor Hodges | CB27: Corinium CC | CC27: 00:25:10 | CD27: 95 | CE27: 26 | CF27: Allan Norwood | CG27: Corinium CC | CH27: 00:26:41 | CI27: 95 | CJ27: 26 | CK27: Mark Sysum | CL27: 0 | CM27: 00:25:26 | CN27: 96
A28: 0 | C28: 27 | D28: Jeff Smith | E28: Swindon RC | F28: 00:26:26 | G28: 94 | M28: 27 | N28: Mark Foyn | O28: Corinium CC | P28: 00:26:13 | Q28: 94 | R28: 27 | S28: Allan Norwood | T28: Corinium CC | U28: 00:27:46 | V28: 94 | W28: 1 | AB28: = 27 | AC28: Sharon Dolman | AD28: Swindon RC | AE28: 00:26:25 | AF28: 94 | AG28: 27 | AH28: Rob Everill | AI28: Performance Cycles | AJ28: 00:26:12 | AK28: 94 | AL28: 27 | AM28: Allan Norwood | AN28: Corinium CC | AO28: 00:27:40 | AP28: 94 | AQ28: 27 | AR28: Sharon Dolman | AS28: Swindon RC | AT28: 00:26:16 | AU28: 94 | AV28: 27 | AW28: Sharon Dolman | AX28: Swindon RC | AY28: 00:26:09 | AZ28: 94 | BA28: 27 | BB28: Amanda Adams | BC28: Swindon RC | BD28: 00:32:01 | BE28: 94 | BF28: 27 | BG28: Gerry Peppin | BH28: Corinium CC | BI28: 00:26:09 | BJ28: 94 | BK28: 27 | BL28: Howard Seward | BM28: Swindon RC | BN28: 00:28:40 | BO28: 94 | BP28: 27 | BQ28: Nick Fiore | BR28: Cotswold Veldrijden | BS28: 00:28:30 | BT28: 94 | BU28: 27 | BV28: Rob Patterson | BW28: Swindon RC | BX28: 00:26:05 | BY28: 94 | BZ28: 27 | CA28: Jeff Smith | CB28: Swindon RC | CC28: 00:25:29 | CD28: 94 | CE28: 27 | CF28: Paul Fuchs | CG28: Corinium CC | CH28: 00:26:42 | CI28: 94 | CJ28: 27 | CK28: Sarah Gunn | CL28: Corinium CC | CM28: 00:25:33 | CN28: 95
A29: 1 | C29: 28 | D29: Neil Boyle | E29: Ride 24/7 | F29: 00:26:37 | G29: 93 | M29: 28 | N29: Tristan Stevens | O29: Swindon RC | P29: 00:26:26 | Q29: 93 | R29: 28 | S29: Oliver Palmer | T29: Swindon RC | U29: 00:27:50 | V29: 93 | W29: 1 | AB29: = 27 | AC29: Rob Patterson | AD29: Swindon RC | AE29: 00:26:25 | AF29: 94 | AG29: 28 | AH29: Rob Patterson | AI29: Swindon RC | AJ29: 00:26:21 | AK29: 93 | AL29: 28 | AM29: Marc Lehrer | AN29: Ride 24/7 | AO29: 00:27:54 | AP29: 93 | AQ29: 28 | AR29: Stephen Chapman | AS29: Corinium CC | AT29: 00:26:39 | AU29: 93 | AV29: 28 | AW29: Stephen Chapman | AX29: Corinium CC | AY29: 00:26:18 | AZ29: 93 | BF29: 28 | BG29: Stephen Chapman | BH29: Corinium CC | BI29: 00:26:12 | BJ29: 93 | BK29: 28 | BL29: Marguerite Miatt | BM29: Corinium CC | BN29: 00:31:05 | BO29: 93 | BP29: 28 | BQ29: Amy Cooper | BR29: Dame Cycling | BS29: 00:28:52 | BT29: 93 | BU29: 28 | BV29: Dave Miatt | BW29: Corinium CC | BX29: 00:30:15 | BY29: 93 | BZ29: 28 | CA29: Ewen Lewis | CB29: Swindon Wheelers | CC29: 00:25:34 | CD29: 93 | CE29: 28 | CF29: Nick Schiettecatte | CG29: Middlesex Road Club | CH29: 00:27:15 | CI29: 93 | CJ29: 28 | CK29: Jeff Smith | CL29: Swindon RC | CM29: 00:25:53 | CN29: 94
A30: 1 | C30: 29 | D30: Gerry Peppin | E30: Corinium CC | F30: 00:26:44 | G30: 92 | M30: 29 | N30: Harriet Guest | O30: Performance Cycles | P30: 00:26:37 | Q30: 92 | R30: 29 | S30: Kieran Golding | T30: Swindon RC | U30: 00:28:11 | V30: 92 | W30: 1 | AB30: 29 | AC30: Gerry Peppin | AD30: Corinium CC | AE30: 00:26:33 | AF30: 92 | AG30: 29 | AH30: Gerry Peppin | AI30: Corinium CC | AJ30: 00:26:26 | AK30: 92 | AL30: 29 | AM30: Nick Schiettecatte | AN30: Middlesex Road Club | AO30: 00:27:59 | AP30: 92 | AQ30: 29 | AR30: Matt Seddon | AS30: Corinium CC | AT30: 00:26:42 | AU30: 92 | AV30: 29 | AW30: Rob Patterson | AX30: Swindon RC | AY30: 00:26:30 | AZ30: 92 | BF30: 29 | BG30: Paul Fuchs | BH30: Corinium CC | BI30: 00:26:47 | BJ30: 92 | BK30: 29 | BL30: Ross Gregory | BM30: Corinium CC | BN30: 00:32:15 | BO30: 92 | BP30: 29 | BQ30: Sophie Crampin | BR30: Dame Cycling | BS30: 00:29:28 | BT30: 92 | BU30: 29 | BV30: Keith Williams | BW30: Corinium CC | BX30: 00:30:43 | BY30: 92 | BZ30: 29 | CA30: Will Shephard | CB30: Ely & District | CC30: 00:25:36 | CD30: 92 | CE30: 29 | CF30: Howard Seward | CG30: Swindon RC | CH30: 00:27:48 | CI30: 92 | CJ30: 29 | CK30: Mark Foyn | CL30: Corinium CC | CM30: 00:25:54 | CN30: 93
A31: 0 | C31: 30 | D31: Martin Pitts | E31: Corinium CC | F31: 00:26:55 | G31: 91 | M31: = 30 | N31: Simon James | O31: Corinium CC | P31: 00:26:40 | Q31: 91 | R31: 30 | S31: Sophie Crampin | T31: Dame Cycling | U31: 00:28:40 | V31: 91 | W31: 1 | AB31: 30 | AC31: Bernie Beale | AD31: Swindon RC | AE31: 00:26:41 | AF31: 91 | AG31: 30 | AH31: Gary Martin | AI31: Westerley CC | AJ31: 00:26:34 | AK31: 91 | AL31: 30 | AM31: Oliver Palmer | AN31: Swindon RC | AO31: 00:28:55 | AP31: 91 | AQ31: 30 | AR31: Allan Norwood | AS31: Corinium CC | AT31: 00:27:04 | AU31: 91 | AV31: 30 | AW31: Rob Everill | AX31: Performance Cycles | AY31: 00:26:35 | AZ31: 91 | BF31: 30 | BG31: Fay Tocknell | BH31: Swindon RC | BI31: 00:26:49 | BJ31: 91 | BK31: 1 | BP31: 30 | BQ31: Keith Williams | BR31: Corinium CC | BS31: 00:30:27 | BT31: 91 | BU31: 30 | BV31: Annie Pegler | BW31: Corinium CC | BX31: 00:30:50 | BY31: 91 | BZ31: 30 | CA31: Sharon Dolman | CB31: Swindon RC | CC31: 00:25:51 | CD31: 91 | CE31: 30 | CF31: Joseph Barrowclough | CG31: Ride 24/7 | CH31: 00:29:08 | CI31: 91 | CJ31: 30 | CK31: Steve Buckley | CL31: Ride 24/7 | CM31: 00:25:57 | CN31: 92
A32: 0 | C32: = 31 | D32: John Simmons | E32: Performance Cycles | F32: 00:27:03 | G32: 90 | M32: = 30 | N32: Jason Costello | O32: Corinium CC | P32: 00:26:40 | Q32: 91 | R32: 31 | S32: Denis Hedges | T32: Corinium CC | U32: 00:28:47 | V32: 90 | W32: 1 | AB32: 31 | AC32: Fay Tocknell | AD32: Swindon RC | AE32: 00:27:02 | AF32: 90 | AG32: 31 | AH32: Roger Bryan | AI32: Swindon RC | AJ32: 00:26:53 | AK32: 90 | AL32: 31 | AM32: Dave Fitton | AN32: West Pennine RC | AO32: 00:29:29 | AP32: 90 | AQ32: 31 | AR32: Paul Fuchs | AS32: Corinium CC | AT32: 00:27:07 | AU32: 90 | AV32: 31 | AW32: Paul Fuchs | AX32: Corinium CC | AY32: 00:26:45 | AZ32: 90 | BF32: 31 | BG32: Paul Adams | BH32: Swindon RC | BI32: 00:26:57 | BJ32: 90 | BK32: 1 | BP32: 31 | BQ32: Marguerite Miatt | BR32: Corinium CC | BS32: 00:30:36 | BT32: 90 | BU32: 31 | BV32: Noel MacKenzie | BW32: Corinium CC | BX32: 00:31:00 | BY32: 90 | BZ32: 31 | CA32: Owen Paddock | CB32: Swindon RC | CC32: 00:25:55 | CD32: 90 | CE32: 31 | CF32: Annie Pegler | CG32: Corinium CC | CH32: 00:30:10 | CI32: 90 | CJ32: 31 | CK32: Tristan Stevens | CL32: Swindon RC | CM32: 00:26:02 | CN32: 91
A33: 1 | C33: = 31 | D33: Richard Ash | E33: Swindon RC | F33: 00:27:03 | G33: 90 | M33: 32 | N33: Rob Everill | O33: Performance Cycles | P33: 00:27:04 | Q33: 89 | R33: 32 | S33: Howard Seward | T33: Swindon RC | U33: 00:30:13 | V33: 89 | W33: 1 | AB33: 32 | AC33: David Smith | AD33: Swindon RC | AE33: 00:27:06 | AF33: 89 | AG33: 32 | AH33: Paul Fuchs | AI33: Corinium CC | AJ33: 00:27:10 | AK33: 89 | AL33: 32 | AM33: Kieran Golding | AN33: Swindon RC | AO33: 00:29:49 | AP33: 89 | AQ33: 32 | AR33: Nick Schiettecatte | AS33: Middlesex Road Club | AT33: 00:27:30 | AU33: 89 | AV33: 32 | AW33: Alistair Moody | AX33: RNRMCA | AY33: 00:26:58 | AZ33: 89 | BF33: 32 | BG33: Steve Turtle | BH33: Swindon Wheelers | BI33: 00:26:59 | BJ33: 89 | BK33: 1 | BP33: 32 | BQ33: Annie Pegler | BR33: Corinium CC | BS33: 00:30:46 | BT33: 89 | BU33: 32 | BV33: Terry Barry | BW33: Corinium CC | BX33: 00:31:33 | BY33: 89 | BZ33: 32 | CA33: Rob Patterson | CB33: Swindon RC | CC33: 00:26:24 | CD33: 89 | CE33: 32 | CF33: Marguerite Miatt | CG33: Corinium CC | CH33: 00:30:31 | CI33: 89 | CJ33: 32 | CK33: Rob Everill | CL33: Performance Cycles | CM33: 00:26:09 | CN33: 90
A34: 0 | C34: 33 | D34: Fay Tocknell | E34: Swindon RC | F34: 00:27:14 | G34: 88 | M34: 33 | N34: Fay Tocknell | O34: Swindon RC | P34: 00:27:25 | Q34: 88 | R34: 33 | S34: Laura Chadwick | T34: Dame Cycling | U34: 00:30:50 | V34: 88 | W34: 1 | AB34: 33 | AC34: Michelle Ross | AD34: Ride 24/7 | AE34: 00:27:24 | AF34: 88 | AG34: 33 | AH34: Oliver Palmer | AI34: Swindon RC | AJ34: 00:27:27 | AK34: 88 | AL34: 33 | AM34: Howard Seward | AN34: Swindon RC | AO34: 00:30:14 | AP34: 88 | AQ34: 33 | AR34: Charlie Edmunds | AS34: Swindon RC | AT34: 00:27:40 | AU34: 88 | AV34: 33 | AW34: Nick Schiettecatte | AX34: Middlesex Road Club | AY34: 00:27:13 | AZ34: 88 | BF34: 33 | BG34: Nick Schiettecatte | BH34: Middlesex Road Club | BI34: 00:27:13 | BJ34: 88 | BK34: 1 | BP34: 33 | BQ34: Ewen Lewis | BR34: Swindon Wheelers | BS34: 00:31:12 | BT34: 88 | BU34: 33 | BV34: Ross Gregory | BW34: Corinium CC | BX34: 00:31:42 | BY34: 88 | BZ34: 33 | CA34: Les Sheppard | CB34: Swindon Wheelers | CC34: 00:26:26 | CD34: 88 | CE34: 33 | CF34: Keith Williams | CG34: Corinium CC | CH34: 00:30:34 | CI34: 88 | CJ34: = 33 | CK34: Mike Firth | CL34: Corinium CC | CM34: 00:26:11 | CN34: 89
A35: 0 | C35: 34 | D35: Nick Kent | E35: Dame Cycling | F35: 00:27:38 | G35: 87 | M35: 34 | N35: Paul Fuchs | O35: Corinium CC | P35: 00:27:34 | Q35: 87 | R35: 34 | S35: Marguerite Miatt | T35: Corinium CC | U35: 00:31:05 | V35: 87 | W35: 1 | AB35: 34 | AC35: Paul Adams | AD35: Swindon RC | AE35: 00:27:37 | AF35: 87 | AG35: 34 | AH35: Michelle Ross | AI35: Ride 24/7 | AJ35: 00:27:49 | AK35: 87 | AL35: 34 | AM35: Kate Fitton | AN35: West Pennine RC | AO35: 00:30:39 | AP35: 87 | AQ35: 34 | AR35: Nick Fiore | AS35: Cotswold Veldrijden | AT35: 00:28:35 | AU35: 87 | AV35: 34 | AW35: James Foster | AX35: Performance Cycles | AY35: 00:27:47 | AZ35: 87 | BF35: 34 | BG35: Denis Hedges | BH35: Corinium CC | BI35: 00:27:29 | BJ35: 87 | BK35: 1 | BP35: 34 | BQ35: Ross Gregory | BR35: Corinium CC | BS35: 00:31:45 | BT35: 87 | BU35: 34 | BV35: Amanda Adams | BW35: Swindon RC | BX35: 00:32:41 | BY35: 87 | BZ35: 34 | CA35: Stephen Chapman | CB35: Corinium CC | CC35: 00:26:42 | CD35: 87 | CE35: 34 | CF35: Ross Gregory | CG35: Corinium CC | CH35: 00:31:47 | CI35: 87 | CJ35: = 33 | CK35: Stephen Chapman | CL35: Corinium CC | CM35: 00:26:11 | CN35: 89
A36: 0 | C36: 35 | D36: Paul Fuchs | E36: Corinium CC | F36: 00:27:44 | G36: 86 | M36: 35 | N36: Sharon Dolman | O36: Swindon RC | P36: 00:27:39 | Q36: 86 | R36: 35 | S36: Carol Clarke | T36: Corinium CC | U36: 00:31:29 | V36: 86 | W36: 1 | AB36: 35 | AC36: Oliver Palmer | AD36: Swindon RC | AE36: 00:28:05 | AF36: 86 | AG36: 35 | AH36: Denis Hedges | AI36: Corinium CC | AJ36: 00:28:32 | AK36: 86 | AL36: 35 | AM36: William MacKenzie | AN36: Corinium CC | AO36: 00:31:05 | AP36: 86 | AQ36: 35 | AR36: William MacKenzie | AS36: Corinium CC | AT36: 00:30:20 | AU36: 86 | AV36: 35 | AW36: Kieran Golding | AX36: Swindon RC | AY36: 00:28:26 | AZ36: 86 | BF36: 35 | BG36: Kieran Golding | BH36: Swindon RC | BI36: 00:27:49 | BJ36: 86 | BK36: 1 | BP36: 35 | BQ36: Terry Barry | BR36: Corinium CC | BS36: 00:32:40 | BT36: 86 | BZ36: 35 | CA36: Mike Firth | CB36: Corinium CC | CC36: 00:26:49 | CD36: 86 | CE36: 35 | CF36: Richard Gower | CG36: Performance Cycles | CH36: 00:32:28 | CI36: 86 | CJ36: 35 | CK36: Kevin Lister | CL36: Corinium CC | CM36: 00:26:14 | CN36: 87
A37: 0 | C37: 36 | D37: Oliver Palmer | E37: Swindon RC | F37: 00:27:54 | G37: 85 | M37: 36 | N37: Richard Alston | O37: RLSCC | P37: 00:27:42 | Q37: 85 | R37: 36 | S37: William MacKenzie | T37: Corinium CC | U37: 00:31:43 | V37: 85 | W37: 1 | AB37: 36 | AC37: Kieran Golding | AD37: Swindon RC | AE37: 00:28:14 | AF37: 85 | AG37: 36 | AH37: Allan Norwood | AI37: Corinium CC | AJ37: 00:28:35 | AK37: 85 | AL37: 36 | AM37: Keith Williams | AN37: Corinium CC | AO37: 00:31:46 | AP37: 85 | AQ37: 36 | AR37: Keith Williams | AS37: Corinium CC | AT37: 00:30:40 | AU37: 85 | AV37: 36 | AW37: Joseph Barrowclough | AX37: Ride 24/7 | AY37: 00:29:06 | AZ37: 85 | BF37: 36 | BG37: John Whittaker | BH37: Corinium CC | BI37: 00:28:25 | BJ37: 85 | BK37: 1 | BP37: 0 | BU37: 0 | BZ37: 36 | CA37: Paul Adams | CB37: Swindon RC | CC37: 00:26:54 | CD37: 85 | CE37: 36 | CF37: Amanda Adams | CG37: Swindon RC | CH37: 00:33:34 | CI37: 85 | CJ37: 36 | CK37: Daniel Wood | CL37: 0 | CM37: 00:26:31 | CN37: 86
A38: 0 | C38: 37 | D38: Michelle Ross | E38: Ride 24/7 | F38: 00:28:15 | G38: 84 | M38: 37 | N38: Michelle Ross | O38: Ride 24/7 | P38: 00:27:43 | Q38: 84 | R38: 37 | S38: Noel MacKenzie | T38: Corinium CC | U38: 00:31:55 | V38: 84 | W38: 1 | AB38: 37 | AC38: James Foster | AD38: Performance Cycles | AE38: 00:28:16 | AF38: 84 | AG38: 37 | AH38: Jo Cassidy | AI38: Performance Cycles | AJ38: 00:30:14 | AK38: 84 | AL38: 37 | AM38: Noel MacKenzie | AN38: Corinium CC | AO38: 00:32:03 | AP38: 84 | AQ38: 37 | AR38: Noel MacKenzie | AS38: Corinium CC | AT38: 00:31:25 | AU38: 84 | AV38: 37 | AW38: Howard Seward | AX38: Swindon RC | AY38: 00:29:40 | AZ38: 84 | BF38: 37 | BG38: Marguerite Miatt | BH38: Corinium CC | BI38: 00:30:04 | BJ38: 84 | BK38: 1 | BP38: 0 | BU38: 0 | BZ38: 37 | CA38: Allan Norwood | CB38: Corinium CC | CC38: 00:27:22 | CD38: 84 | CE38: 37 | CF38: Terry Barry | CG38: Corinium CC | CH38: 00:36:48 | CI38: 84 | CJ38: 37 | CK38: Ben Gamsa | CL38: 0 | CM38: 00:26:42 | CN38: 85
A39: 0 | C39: 38 | D39: Allan Norwood | E39: Corinium CC | F39: 00:28:29 | G39: 83 | M39: 38 | N39: Stephen Chapman | O39: Corinium CC | P39: 00:27:44 | Q39: 83 | R39: 38 | S39: Annie Pegler | T39: Corinium CC | U39: 00:31:58 | V39: 83 | W39: 1 | AB39: 38 | AC39: Peter Mills | AD39: Swindon Wheelers | AE39: 00:29:29 | AF39: 83 | AG39: 38 | AH39: Marguerite Miatt | AI39: Corinium CC | AJ39: 00:30:54 | AK39: 83 | AL39: 38 | AM39: Carol Clarke | AN39: Corinium CC | AO39: 00:32:16 | AP39: 83 | AQ39: 38 | AR39: Ross Gregory | AS39: Corinium CC | AT39: 00:32:24 | AU39: 83 | AV39: 38 | AW39: Marguerite Miatt | AX39: Corinium CC | AY39: 00:30:25 | AZ39: 83 | BF39: 38 | BG39: William MacKenzie | BH39: Corinium CC | BI39: 00:30:07 | BJ39: 83 | BK39: 1 | BP39: 0 | BU39: 0 | BZ39: 38 | CA39: Andy Moran | CB39: Corinium CC | CC39: 00:28:04 | CD39: 83 | CE39: 1 | CJ39: 38 | CK39: Rob Patterson | CL39: Swindon RC | CM39: 00:26:46 | CN39: 84
A40: 0 | C40: 39 | D40: Kieran Golding | E40: Swindon RC | F40: 00:28:44 | G40: 82 | M40: 39 | N40: Richard Halliday | O40: Dame Cycling | P40: 00:28:02 | Q40: 82 | R40: 39 | S40: Paul Wood | T40: Swindon Wheelers | U40: 00:32:08 | V40: 82 | W40: 1 | AB40: 39 | AC40: Kate Fitton | AD40: Dame Cycling | AE40: 00:30:00 | AF40: 82 | AG40: 39 | AH40: William MacKenzie | AI40: Corinium CC | AJ40: 00:32:16 | AK40: 82 | AL40: 39 | AM40: Paul Wood | AN40: Swindon Wheelers | AO40: 00:32:34 | AP40: 82 | AQ40: 39 | AR40: Joe Petrie | AS40: Swindon RC | AT40: 00:33:35 | AU40: 82 | AV40: 39 | AW40: William MacKenzie | AX40: Corinium CC | AY40: 00:30:44 | AZ40: 82 | BF40: 39 | BG40: Keith Williams | BH40: Corinium CC | BI40: 00:30:09 | BJ40: 82 | BK40: 1 | BP40: 0 | BU40: 0 | BZ40: 39 | CA40: Howard Seward | CB40: Swindon RC | CC40: 00:28:15 | CD40: 82 | CE40: 1 | CJ40: 39 | CK40: Gerry Peppin | CL40: Corinium CC | CM40: 00:27:05 | CN40: 83
A41: 1 | C41: 40 | D41: Kelli Salone | E41: Dame Cycling | F41: 00:29:19 | G41: 81 | M41: 40 | N41: Paul Adams | O41: Swindon RC | P41: 00:28:10 | Q41: 81 | R41: 40 | S41: Amanda Adams | T41: Swindon RC | U41: 00:32:50 | V41: 81 | W41: 1 | AB41: 40 | AC41: Keith Williams | AD41: Corinium CC | AE41: 00:31:01 | AF41: 81 | AG41: 40 | AH41: Dave Miatt | AI41: Corinium CC | AJ41: 00:33:16 | AK41: 81 | AQ41: 0 | AV41: 40 | AW41: Keith Williams | AX41: Corinium CC | AY41: 00:30:51 | AZ41: 81 | BF41: 40 | BG41: Noel MacKenzie | BH41: Corinium CC | BI41: 00:31:05 | BJ41: 81 | BK41: 1 | BP41: 0 | BU41: 0 | BZ41: 40 | CA41: Fay Tocknell | CB41: Swindon RC | CC41: 00:28:20 | CD41: 81 | CE41: 1 | CJ41: 40 | CK41: Denis Hedges | CL41: Corinium CC | CM41: 00:28:43 | CN41: 82
A42: 1506 | C42: 41 | D42: Carmen Young | E42: Dame Cycling | F42: 00:29:27 | G42: 80 | M42: 41 | N42: David Smith | O42: Swindon RC | P42: 00:28:43 | Q42: 80 | R42: 1 | W42: 0 | AB42: 41 | AC42: Marguerite Miatt | AD42: Corinium CC | AE42: 00:31:29 | AF42: 80 | AG42: 41 | AH42: Noel MacKenzie | AI42: Corinium CC | AJ42: 00:33:23 | AK42: 80 | AQ42: 0 | AV42: 41 | AW42: Noel MacKenzie | AX42: Corinium CC | AY42: 00:31:08 | AZ42: 80 | BF42: 41 | BG42: Charlotte Berry | BH42: Performance Cycles | BI42: 00:31:08 | BJ42: 80 | BK42: 1 | BP42: 0 | BU42: 0 | BZ42: 41 | CA42: Denis Hedges | CB42: Corinium CC | CC42: 00:28:45 | CD42: 80 | CE42: 1 | CJ42: 41 | CK42: Howard Seward | CL42: Swindon RC | CM42: 00:28:56 | CN42: 81
A43: 1506 | C43: 42 | D43: Chris Fox (SRC) | E43: Swindon RC | F43: 00:29:35 | G43: 79 | M43: 42 | N43: Mervyn Cox | O43: Performance Cycles | P43: 00:28:44 | Q43: 79 | R43: 1 | W43: 0 | AB43: 42 | AC43: Jo Cassidy | AD43: Performance Cycles | AE43: 00:31:45 | AF43: 79 | AG43: 42 | AH43: Ross Gregory | AI43: Corinium CC | AJ43: 00:33:40 | AK43: 79 | AQ43: 0 | AV43: 42 | AW43: Joe Petrie | AX43: Swindon RC | AY43: 00:31:10 | AZ43: 79 | BF43: 42 | BG43: Amanda Adams | BH43: Swindon RC | BI43: 00:31:10 | BJ43: 79 | BK43: 1 | BP43: 0 | BU43: 0 | BZ43: 42 | CA43: Kieran Golding | CB43: Swindon RC | CC43: 00:28:57 | CD43: 79 | CE43: 1 | CJ43: 42 | CK43: Annie Pegler | CL43: Corinium CC | CM43: 00:30:33 | CN43: 80
A44: 1506 | C44: 43 | D44: Katie Scott | E44: Cotswold Veldrijden | F44: 00:29:42 | G44: 78 | M44: 43 | N44: Kieran Golding | O44: Swindon RC | P44: 00:28:51 | Q44: 78 | R44: 1 | W44: 0 | AB44: 43 | AC44: Ross Gregory | AD44: Corinium CC | AE44: 00:33:10 | AF44: 78 | AL44: 0 | AQ44: 0 | AV44: 43 | AW44: Ross Gregory | AX44: Corinium CC | AY44: 00:31:44 | AZ44: 78 | BF44: 43 | BG44: Paul Wood | BH44: Swindon Wheelers | BI44: 00:31:21 | BJ44: 78 | BK44: 1 | BP44: 0 | BU44: 0 | BZ44: 43 | CA44: Steve Turtle | CB44: Swindon Wheelers | CC44: 00:29:34 | CD44: 78 | CE44: 1 | CJ44: 43 | CK44: Keith Williams | CL44: Corinium CC | CM44: 00:30:57 | CN44: 79
A45: 1506 | C45: 44 | D45: Michael Soan | E45: ? | F45: 00:29:44 | G45: 77 | M45: 44 | N45: John Whittaker | O45: Corinium CC | P45: 00:30:06 | Q45: 77 | R45: 1 | W45: 0 | AB45: 0 | AG45: 0 | AL45: 0 | AQ45: 0 | AV45: 44 | AW45: Carol Clarke | AX45: Corinium CC | AY45: 00:32:00 | AZ45: 77 | BF45: 44 | BG45: Ross Gregory | BH45: Corinium CC | BI45: 00:31:37 | BJ45: 77 | BK45: 1 | BP45: 0 | BU45: 0 | BZ45: 44 | CA45: Annie Pegler | CB45: Corinium CC | CC45: 00:30:04 | CD45: 77 | CE45: 1 | CJ45: 44 | CK45: Marguerite Miatt | CL45: Corinium CC | CM45: 00:31:11 | CN45: 78
